{"text_format":"1","workbook":"xlsx","n_sheets":5,"sheets":["ID","Info","Data","Arus Kas","HD"],"not_rendered":{"charts":0,"images":3,"macros":1,"external_links":4,"defined_names":105,"comments":0,"pivot_tables":0},"unopened":[],"bounds":{"document_bytes":16777216,"sheet_cells":100000,"rows_first":2000,"rows_last":500,"rows_between":2000,"halvings":0,"cell_chars":16384,"cell_head_chars":4096},"cells_cut":0,"cells_raw":0,"read":"whole","date_system":"1900"}

{"sheet":"ID","index":0,"n_rows":501,"n_cols":156,"rows_kept":501,"cut":false,"hidden":true,"merged":[]}
[]
[null,null,null,null,null,null,null,null,null,null,null,null,null,null,null,null,null,null,null,null,null,null,null,null,null,null,null,null,null,null,null,null,null,null,null,null,null,null,null,null,null,null,null,null,null,null,null,null,null,null,{"$f":"IF(OR(AZ2=\"KODE\",AZ2=\"\"),\"-\",COUNTA(AZ$2:AZ2)-COUNTBLANK(AZ$2:AZ2))","v":"-"},{"$f":"IF(OR(INDEX(Data!A:A,0,1)=0,INDEX(Data!A:A,0,1)=\"-\"),\"\",INDEX(Data!A:A,0,1))","v":""},2,{"$f":"IF(ISNA(VLOOKUP(BA2,AY:AZ,2,FALSE)),\"-\",VLOOKUP(BA2,AY:AZ,2,FALSE))","v":"KAS"},null,null,null,null,null,null,null,null,null,null,null,null,null,null,null,null,null,null,null,null,null,null,null,null,null,null,null,null,null,null,null,null,null,null,null,null,null,null,null,null,null,null,null,null,null,null,null,null,null,null,null,null,null,null,null,null,null,null,null,null,null,null,null,null,null,null,null,null,null,null,null,null,null,null,null,null,null,null,null,null,null,null,null,null,null,null,null,null,null,null,null,null,null,null,null,null,null,null,null,null,null,{"$f":"IF(Info!D5<>0,Info!D5,\"Nama Perusahaan\")","v":"PT. EXPRESS GEMBOL"}]
[null,null,null,null,null,null,null,null,null,null,null,null,null,null,null,null,null,null,null,null,null,null,null,null,null,null,null,null,null,null,null,null,null,null,null,null,null,null,null,null,null,null,null,null,null,null,null,null,null,null,{"$f":"IF(OR(AZ3=\"-\",AZ3=\"\"),\"-\",COUNTA(AZ$2:AZ3)-COUNTBLANK(AZ$2:AZ3))","v":1},{"$f":"IF(OR(INDEX(Data!A:A,0,1)=0,INDEX(Data!A:A,0,1)=\"-\"),\"\",INDEX(Data!A:A,0,1))","v":"KODE"},{"$f":"BA2+1","v":3},"OPR-01",null,null,null,null,null,null,null,null,null,null,null,null,null,null,null,null,null,null,null,null,null,null,null,null,null,null,null,null,null,null,null,null,null,null,null,null,null,null,null,null,null,null,null,null,null,null,null,null,null,null,{"$f":"IF(AND(HD!B2000=0,HD!B3000=0,HD!B4000=0),\"KAS\",\"#\")","v":"KAS"}]
[null,null,null,null,null,null,null,null,null,null,null,null,null,null,null,null,null,null,null,null,null,null,null,null,null,null,null,null,null,null,null,null,null,null,null,null,null,null,null,null,null,null,null,null,null,null,null,null,null,null,{"$f":"IF(OR(AZ4=\"-\",AZ4=\"\"),\"-\",COUNTA(AZ$2:AZ4)-COUNTBLANK(AZ$2:AZ4))","v":"-"},{"$f":"IF(OR(INDEX(Data!A:A,0,1)=0,INDEX(Data!A:A,0,1)=\"-\"),\"\",INDEX(Data!A:A,0,1))","v":""},{"$f":"BA3+1","v":4},"OPR-02"]
[null,null,null,null,null,null,null,null,null,null,null,null,null,null,null,null,null,null,null,null,null,null,null,null,null,null,null,null,null,null,null,null,null,null,null,null,null,null,null,null,null,null,null,null,null,null,null,null,null,null,{"$f":"IF(OR(AZ5=\"-\",AZ5=\"\"),\"-\",COUNTA(AZ$2:AZ5)-COUNTBLANK(AZ$2:AZ5))","v":"-"},{"$f":"IF(OR(INDEX(Data!A:A,0,1)=0,INDEX(Data!A:A,0,1)=\"-\"),\"\",INDEX(Data!A:A,0,1))","v":""},5,"OPR-03"]
[null,null,null,null,null,null,null,null,null,null,null,null,null,null,null,null,null,null,null,null,null,null,null,null,null,null,null,null,null,null,null,null,null,null,null,null,null,null,null,null,null,null,null,null,null,null,null,null,null,null,{"$f":"IF(OR(AZ6=\"-\",AZ6=\"\"),\"-\",COUNTA(AZ$2:AZ6)-COUNTBLANK(AZ$2:AZ6))","v":"-"},{"$f":"IF(OR(INDEX(Data!A:A,0,1)=0,INDEX(Data!A:A,0,1)=\"-\"),\"\",INDEX(Data!A:A,0,1))","v":""},6,"OPR-04"]
[null,null,null,null,null,null,null,null,null,null,null,null,null,null,null,null,null,null,null,null,null,null,null,null,null,null,null,null,null,null,null,null,null,null,null,null,null,null,null,null,null,null,null,null,null,null,null,null,null,null,{"$f":"IF(OR(AZ7=\"-\",AZ7=\"\"),\"-\",COUNTA(AZ$2:AZ7)-COUNTBLANK(AZ$2:AZ7))","v":2},{"$f":"IF(OR(INDEX(Data!A:A,0,1)=0,INDEX(Data!A:A,0,1)=\"-\"),\"\",INDEX(Data!A:A,0,1))","v":"KAS"},7,"OPR-05"]
[null,null,null,null,null,null,null,null,null,null,null,null,null,null,null,null,null,null,null,null,null,null,null,null,null,null,null,null,null,null,null,null,null,null,null,null,null,null,null,null,null,null,null,null,null,null,null,null,null,null,{"$f":"IF(OR(AZ8=\"-\",AZ8=\"\"),\"-\",COUNTA(AZ$2:AZ8)-COUNTBLANK(AZ$2:AZ8))","v":3},{"$f":"IF(OR(INDEX(Data!A:A,0,1)=0,INDEX(Data!A:A,0,1)=\"-\"),\"\",INDEX(Data!A:A,0,1))","v":"OPR-01"},{"$f":"BA7+1","v":8},"INV-01"]
[null,null,null,null,null,null,null,null,null,null,null,null,null,null,null,null,null,null,null,null,null,null,null,null,null,null,null,null,null,null,null,null,null,null,null,null,null,null,null,null,null,null,null,null,null,null,null,null,null,null,{"$f":"IF(OR(AZ9=\"-\",AZ9=\"\"),\"-\",COUNTA(AZ$2:AZ9)-COUNTBLANK(AZ$2:AZ9))","v":4},{"$f":"IF(OR(INDEX(Data!A:A,0,1)=0,INDEX(Data!A:A,0,1)=\"-\"),\"\",INDEX(Data!A:A,0,1))","v":"OPR-02"},9,"PNY"]
[null,null,null,null,null,null,null,null,null,null,null,null,null,null,null,null,null,null,null,null,null,null,null,null,null,null,null,null,null,null,null,null,null,null,null,null,null,null,null,null,null,null,null,null,null,null,null,null,null,null,{"$f":"IF(OR(AZ10=\"-\",AZ10=\"\"),\"-\",COUNTA(AZ$2:AZ10)-COUNTBLANK(AZ$2:AZ10))","v":5},{"$f":"IF(OR(INDEX(Data!A:A,0,1)=0,INDEX(Data!A:A,0,1)=\"-\"),\"\",INDEX(Data!A:A,0,1))","v":"OPR-03"},10,"INV-02"]
[null,null,null,null,null,null,null,null,null,null,null,null,null,null,null,null,null,null,null,null,null,null,null,null,null,null,null,null,null,null,null,null,null,null,null,null,null,null,null,null,null,null,null,null,null,null,null,null,null,null,{"$f":"IF(OR(AZ11=\"-\",AZ11=\"\"),\"-\",COUNTA(AZ$2:AZ11)-COUNTBLANK(AZ$2:AZ11))","v":6},{"$f":"IF(OR(INDEX(Data!A:A,0,1)=0,INDEX(Data!A:A,0,1)=\"-\"),\"\",INDEX(Data!A:A,0,1))","v":"OPR-04"},11,"OPR-06"]
[null,null,null,null,null,null,null,null,null,null,null,null,null,null,null,null,null,null,null,null,null,null,null,null,null,null,null,null,null,null,null,null,null,null,null,null,null,null,null,null,null,null,null,null,null,null,null,null,null,null,{"$f":"IF(OR(AZ12=\"-\",AZ12=\"\"),\"-\",COUNTA(AZ$2:AZ12)-COUNTBLANK(AZ$2:AZ12))","v":7},{"$f":"IF(OR(INDEX(Data!A:A,0,1)=0,INDEX(Data!A:A,0,1)=\"-\"),\"\",INDEX(Data!A:A,0,1))","v":"OPR-05"},12,"OPR-07"]
[null,null,null,null,null,null,null,null,null,null,null,null,null,null,null,null,null,null,null,null,null,null,null,null,null,null,null,null,null,null,null,null,null,null,null,null,null,null,null,null,null,null,null,null,null,null,null,null,null,null,{"$f":"IF(OR(AZ13=\"-\",AZ13=\"\"),\"-\",COUNTA(AZ$2:AZ13)-COUNTBLANK(AZ$2:AZ13))","v":"-"},{"$f":"IF(OR(INDEX(Data!A:A,0,1)=0,INDEX(Data!A:A,0,1)=\"-\"),\"\",INDEX(Data!A:A,0,1))","v":""},13,"OPR-08"]
[null,null,null,null,null,null,null,null,null,null,null,null,null,null,null,null,null,null,null,null,null,null,null,null,null,null,null,null,null,null,null,null,null,null,null,null,null,null,null,null,null,null,null,null,null,null,null,null,null,null,{"$f":"IF(OR(AZ14=\"-\",AZ14=\"\"),\"-\",COUNTA(AZ$2:AZ14)-COUNTBLANK(AZ$2:AZ14))","v":8},{"$f":"IF(OR(INDEX(Data!A:A,0,1)=0,INDEX(Data!A:A,0,1)=\"-\"),\"\",INDEX(Data!A:A,0,1))","v":"INV-01"},14,"OPR-09",null,null,null,null,null,null,null,null,null,null,null,null,null,null,null,null,null,null,null,null,null,null,null,null,null,null,null,null,null,null,null,null,null,null,null,null,null,null,null,null,null,null,null,null,null,null,null,null,null,null,null,null,null,null,null,null,null,null,null,null,null,null,null,null,null,null,null,null,null,null,null,null,null,null,null,null,null,null,null,null,null,null,null,null,null,null,null,null,null,null,null,null,null,null,null,null,null,null,null,null,null,{"$f":"IF(Info!D6<>0,\"Per \"&TEXT(Info!D6,\"dd-mmm-yyy\"),\"...................\")","v":"Per 31-Des-2015"}]
[null,null,null,null,null,null,null,null,null,null,null,null,null,null,null,null,null,null,null,null,null,null,null,null,null,null,null,null,null,null,null,null,null,null,null,null,null,null,null,null,null,null,null,null,null,null,null,null,null,null,{"$f":"IF(OR(AZ15=\"-\",AZ15=\"\"),\"-\",COUNTA(AZ$2:AZ15)-COUNTBLANK(AZ$2:AZ15))","v":9},{"$f":"IF(OR(INDEX(Data!A:A,0,1)=0,INDEX(Data!A:A,0,1)=\"-\"),\"\",INDEX(Data!A:A,0,1))","v":"PNY"},15,"DNA-01"]
[null,null,null,null,null,null,null,null,null,null,null,null,null,null,null,null,null,null,null,null,null,null,null,null,null,null,null,null,null,null,null,null,null,null,null,null,null,null,null,null,null,null,null,null,null,null,null,null,null,null,{"$f":"IF(OR(AZ16=\"-\",AZ16=\"\"),\"-\",COUNTA(AZ$2:AZ16)-COUNTBLANK(AZ$2:AZ16))","v":"-"},{"$f":"IF(OR(INDEX(Data!A:A,0,1)=0,INDEX(Data!A:A,0,1)=\"-\"),\"\",INDEX(Data!A:A,0,1))","v":""},16,"DNA-02",null,null,null,null,null,null,null,null,null,null,null,null,null,null,null,null,null,null,null,null,null,null,null,null,null,null,null,null,null,null,null,null,null,null,null,null,null,null,null,null,null,null,null,null,null,null,null,null,null,null,{"$f":"IF(AND(HD!B2000=0,HD!B3000=0,HD!B4000=0),\"OPERASIONAL\",\"#\")","v":"OPERASIONAL"}]
[null,null,null,null,null,null,null,null,null,null,null,null,null,null,null,null,null,null,null,null,null,null,null,null,null,null,null,null,null,null,null,null,null,null,null,null,null,null,null,null,null,null,null,null,null,null,null,null,null,null,{"$f":"IF(OR(AZ17=\"-\",AZ17=\"\"),\"-\",COUNTA(AZ$2:AZ17)-COUNTBLANK(AZ$2:AZ17))","v":10},{"$f":"IF(OR(INDEX(Data!A:A,0,1)=0,INDEX(Data!A:A,0,1)=\"-\"),\"\",INDEX(Data!A:A,0,1))","v":"INV-02"},17,"DNA-03"]
[null,null,null,null,null,null,null,null,null,null,null,null,null,null,null,null,null,null,null,null,null,null,null,null,null,null,null,null,null,null,null,null,null,null,null,null,null,null,null,null,null,null,null,null,null,null,null,null,null,null,{"$f":"IF(OR(AZ18=\"-\",AZ18=\"\"),\"-\",COUNTA(AZ$2:AZ18)-COUNTBLANK(AZ$2:AZ18))","v":11},{"$f":"IF(OR(INDEX(Data!A:A,0,1)=0,INDEX(Data!A:A,0,1)=\"-\"),\"\",INDEX(Data!A:A,0,1))","v":"OPR-06"},18,"DNA-04"]
[null,null,null,null,null,null,null,null,null,null,null,null,null,null,null,null,null,null,null,null,null,null,null,null,null,null,null,null,null,null,null,null,null,null,null,null,null,null,null,null,null,null,null,null,null,null,null,null,null,null,{"$f":"IF(OR(AZ19=\"-\",AZ19=\"\"),\"-\",COUNTA(AZ$2:AZ19)-COUNTBLANK(AZ$2:AZ19))","v":"-"},{"$f":"IF(OR(INDEX(Data!A:A,0,1)=0,INDEX(Data!A:A,0,1)=\"-\"),\"\",INDEX(Data!A:A,0,1))","v":""},19,"LBD-01"]
[null,null,null,null,null,null,null,null,null,null,null,null,null,null,null,null,null,null,null,null,null,null,null,null,null,null,null,null,null,null,null,null,null,null,null,null,null,null,null,null,null,null,null,null,null,null,null,null,null,null,{"$f":"IF(OR(AZ20=\"-\",AZ20=\"\"),\"-\",COUNTA(AZ$2:AZ20)-COUNTBLANK(AZ$2:AZ20))","v":"-"},{"$f":"IF(OR(INDEX(Data!A:A,0,1)=0,INDEX(Data!A:A,0,1)=\"-\"),\"\",INDEX(Data!A:A,0,1))","v":""},20,"LBD-02"]
[null,null,null,null,null,null,null,null,null,null,null,null,null,null,null,null,null,null,null,null,null,null,null,null,null,null,null,null,null,null,null,null,null,null,null,null,null,null,null,null,null,null,null,null,null,null,null,null,null,null,{"$f":"IF(OR(AZ21=\"-\",AZ21=\"\"),\"-\",COUNTA(AZ$2:AZ21)-COUNTBLANK(AZ$2:AZ21))","v":"-"},{"$f":"IF(OR(INDEX(Data!A:A,0,1)=0,INDEX(Data!A:A,0,1)=\"-\"),\"\",INDEX(Data!A:A,0,1))","v":""},21,"LBS"]
[null,null,null,null,null,null,null,null,null,null,null,null,null,null,null,null,null,null,null,null,null,null,null,null,null,null,null,null,null,null,null,null,null,null,null,null,null,null,null,null,null,null,null,null,null,null,null,null,null,null,{"$f":"IF(OR(AZ22=\"-\",AZ22=\"\"),\"-\",COUNTA(AZ$2:AZ22)-COUNTBLANK(AZ$2:AZ22))","v":"-"},{"$f":"IF(OR(INDEX(Data!A:A,0,1)=0,INDEX(Data!A:A,0,1)=\"-\"),\"\",INDEX(Data!A:A,0,1))","v":""},22,"-"]
[null,null,null,null,null,null,null,null,null,null,null,null,null,null,null,null,null,null,null,null,null,null,null,null,null,null,null,null,null,null,null,null,null,null,null,null,null,null,null,null,null,null,null,null,null,null,null,null,null,null,{"$f":"IF(OR(AZ23=\"-\",AZ23=\"\"),\"-\",COUNTA(AZ$2:AZ23)-COUNTBLANK(AZ$2:AZ23))","v":"-"},{"$f":"IF(OR(INDEX(Data!A:A,0,1)=0,INDEX(Data!A:A,0,1)=\"-\"),\"\",INDEX(Data!A:A,0,1))","v":""},23,"-"]
[null,null,null,null,null,null,null,null,null,null,null,null,null,null,null,null,null,null,null,null,null,null,null,null,null,null,null,null,null,null,null,null,null,null,null,null,null,null,null,null,null,null,null,null,null,null,null,null,null,null,{"$f":"IF(OR(AZ24=\"-\",AZ24=\"\"),\"-\",COUNTA(AZ$2:AZ24)-COUNTBLANK(AZ$2:AZ24))","v":12},{"$f":"IF(OR(INDEX(Data!A:A,0,1)=0,INDEX(Data!A:A,0,1)=\"-\"),\"\",INDEX(Data!A:A,0,1))","v":"OPR-07"},24,"-"]
[null,null,null,null,null,null,null,null,null,null,null,null,null,null,null,null,null,null,null,null,null,null,null,null,null,null,null,null,null,null,null,null,null,null,null,null,null,null,null,null,null,null,null,null,null,null,null,null,null,null,{"$f":"IF(OR(AZ25=\"-\",AZ25=\"\"),\"-\",COUNTA(AZ$2:AZ25)-COUNTBLANK(AZ$2:AZ25))","v":13},{"$f":"IF(OR(INDEX(Data!A:A,0,1)=0,INDEX(Data!A:A,0,1)=\"-\"),\"\",INDEX(Data!A:A,0,1))","v":"OPR-08"},25,"-"]
[null,null,null,null,null,null,null,null,null,null,null,null,null,null,null,null,null,null,null,null,null,null,null,null,null,null,null,null,null,null,null,null,null,null,null,null,null,null,null,null,null,null,null,null,null,null,null,null,null,null,{"$f":"IF(OR(AZ26=\"-\",AZ26=\"\"),\"-\",COUNTA(AZ$2:AZ26)-COUNTBLANK(AZ$2:AZ26))","v":14},{"$f":"IF(OR(INDEX(Data!A:A,0,1)=0,INDEX(Data!A:A,0,1)=\"-\"),\"\",INDEX(Data!A:A,0,1))","v":"OPR-09"},26,"-",null,null,null,null,null,null,null,null,null,null,null,null,null,null,null,null,null,null,null,null,null,null,null,null,null,null,null,null,null,null,null,null,null,null,null,null,null,null,null,null,null,null,null,null,null,null,null,null,null,null,null,null,null,null,null,null,null,null,null,null,null,null,null,null,null,null,null,null,null,null,null,null,null,null,null,null,null,null,null,null,null,null,null,null,null,null,null,null,null,null,null,null,null,null,null,null,null,null,null,null,null,{"$f":"IF(Info!D7<>0,\"Per \"&TEXT(Info!D7,\"dd-mmm-yyy\"),\"...................\")","v":"Per 31-Des-2016"}]
[null,null,null,null,null,null,null,null,null,null,null,null,null,null,null,null,null,null,null,null,null,null,null,null,null,null,null,null,null,null,null,null,null,null,null,null,null,null,null,null,null,null,null,null,null,null,null,null,null,null,{"$f":"IF(OR(AZ27=\"-\",AZ27=\"\"),\"-\",COUNTA(AZ$2:AZ27)-COUNTBLANK(AZ$2:AZ27))","v":"-"},{"$f":"IF(OR(INDEX(Data!A:A,0,1)=0,INDEX(Data!A:A,0,1)=\"-\"),\"\",INDEX(Data!A:A,0,1))","v":""},27,"-"]
[null,null,null,null,null,null,null,null,null,null,null,null,null,null,null,null,null,null,null,null,null,null,null,null,null,null,null,null,null,null,null,null,null,null,null,null,null,null,null,null,null,null,null,null,null,null,null,null,null,null,{"$f":"IF(OR(AZ28=\"-\",AZ28=\"\"),\"-\",COUNTA(AZ$2:AZ28)-COUNTBLANK(AZ$2:AZ28))","v":15},{"$f":"IF(OR(INDEX(Data!A:A,0,1)=0,INDEX(Data!A:A,0,1)=\"-\"),\"\",INDEX(Data!A:A,0,1))","v":"DNA-01"},28,"-",null,null,null,null,null,null,null,null,null,null,null,null,null,null,null,null,null,null,null,null,null,null,null,null,null,null,null,null,null,null,null,null,null,null,null,null,null,null,null,null,null,null,null,null,null,null,null,null,null,null,{"$f":"IF(AND(HD!B2000=0,HD!B3000=0,HD!B4000=0),\"INVESTASI\",\"#\")","v":"INVESTASI"}]
[null,null,null,null,null,null,null,null,null,null,null,null,null,null,null,null,null,null,null,null,null,null,null,null,null,null,null,null,null,null,null,null,null,null,null,null,null,null,null,null,null,null,null,null,null,null,null,null,null,null,{"$f":"IF(OR(AZ29=\"-\",AZ29=\"\"),\"-\",COUNTA(AZ$2:AZ29)-COUNTBLANK(AZ$2:AZ29))","v":16},{"$f":"IF(OR(INDEX(Data!A:A,0,1)=0,INDEX(Data!A:A,0,1)=\"-\"),\"\",INDEX(Data!A:A,0,1))","v":"DNA-02"},29,"-"]
[null,null,null,null,null,null,null,null,null,null,null,null,null,null,null,null,null,null,null,null,null,null,null,null,null,null,null,null,null,null,null,null,null,null,null,null,null,null,null,null,null,null,null,null,null,null,null,null,null,null,{"$f":"IF(OR(AZ30=\"-\",AZ30=\"\"),\"-\",COUNTA(AZ$2:AZ30)-COUNTBLANK(AZ$2:AZ30))","v":17},{"$f":"IF(OR(INDEX(Data!A:A,0,1)=0,INDEX(Data!A:A,0,1)=\"-\"),\"\",INDEX(Data!A:A,0,1))","v":"DNA-03"},30,"-"]
[null,null,null,null,null,null,null,null,null,null,null,null,null,null,null,null,null,null,null,null,null,null,null,null,null,null,null,null,null,null,null,null,null,null,null,null,null,null,null,null,null,null,null,null,null,null,null,null,null,null,{"$f":"IF(OR(AZ31=\"-\",AZ31=\"\"),\"-\",COUNTA(AZ$2:AZ31)-COUNTBLANK(AZ$2:AZ31))","v":"-"},{"$f":"IF(OR(INDEX(Data!A:A,0,1)=0,INDEX(Data!A:A,0,1)=\"-\"),\"\",INDEX(Data!A:A,0,1))","v":""},31,"-"]
[null,null,null,null,null,null,null,null,null,null,null,null,null,null,null,null,null,null,null,null,null,null,null,null,null,null,null,null,null,null,null,null,null,null,null,null,null,null,null,null,null,null,null,null,null,null,null,null,null,null,{"$f":"IF(OR(AZ32=\"-\",AZ32=\"\"),\"-\",COUNTA(AZ$2:AZ32)-COUNTBLANK(AZ$2:AZ32))","v":"-"},{"$f":"IF(OR(INDEX(Data!A:A,0,1)=0,INDEX(Data!A:A,0,1)=\"-\"),\"\",INDEX(Data!A:A,0,1))","v":""},32,"-"]
[null,null,null,null,null,null,null,null,null,null,null,null,null,null,null,null,null,null,null,null,null,null,null,null,null,null,null,null,null,null,null,null,null,null,null,null,null,null,null,null,null,null,null,null,null,null,null,null,null,null,{"$f":"IF(OR(AZ33=\"-\",AZ33=\"\"),\"-\",COUNTA(AZ$2:AZ33)-COUNTBLANK(AZ$2:AZ33))","v":"-"},{"$f":"IF(OR(INDEX(Data!A:A,0,1)=0,INDEX(Data!A:A,0,1)=\"-\"),\"\",INDEX(Data!A:A,0,1))","v":""},33,"-"]
[null,null,null,null,null,null,null,null,null,null,null,null,null,null,null,null,null,null,null,null,null,null,null,null,null,null,null,null,null,null,null,null,null,null,null,null,null,null,null,null,null,null,null,null,null,null,null,null,null,null,{"$f":"IF(OR(AZ34=\"-\",AZ34=\"\"),\"-\",COUNTA(AZ$2:AZ34)-COUNTBLANK(AZ$2:AZ34))","v":"-"},{"$f":"IF(OR(INDEX(Data!A:A,0,1)=0,INDEX(Data!A:A,0,1)=\"-\"),\"\",INDEX(Data!A:A,0,1))","v":""},34,{"$f":"IF(ISNA(VLOOKUP(BA34,AY:AZ,2,FALSE)),\"-\",VLOOKUP(BA34,AY:AZ,2,FALSE))","v":"-"}]
[null,null,null,null,null,null,null,null,null,null,null,null,null,null,null,null,null,null,null,null,null,null,null,null,null,null,null,null,null,null,null,null,null,null,null,null,null,null,null,null,null,null,null,null,null,null,null,null,null,null,{"$f":"IF(OR(AZ35=\"-\",AZ35=\"\"),\"-\",COUNTA(AZ$2:AZ35)-COUNTBLANK(AZ$2:AZ35))","v":18},{"$f":"IF(OR(INDEX(Data!A:A,0,1)=0,INDEX(Data!A:A,0,1)=\"-\"),\"\",INDEX(Data!A:A,0,1))","v":"DNA-04"},35,"-"]
[null,null,null,null,null,null,null,null,null,null,null,null,null,null,null,null,null,null,null,null,null,null,null,null,null,null,null,null,null,null,null,null,null,null,null,null,null,null,null,null,null,null,null,null,null,null,null,null,null,null,{"$f":"IF(OR(AZ36=\"-\",AZ36=\"\"),\"-\",COUNTA(AZ$2:AZ36)-COUNTBLANK(AZ$2:AZ36))","v":19},{"$f":"IF(OR(INDEX(Data!A:A,0,1)=0,INDEX(Data!A:A,0,1)=\"-\"),\"\",INDEX(Data!A:A,0,1))","v":"LBD-01"},36,"-"]
[null,null,null,null,null,null,null,null,null,null,null,null,null,null,null,null,null,null,null,null,null,null,null,null,null,null,null,null,null,null,null,null,null,null,null,null,null,null,null,null,null,null,null,null,null,null,null,null,null,null,{"$f":"IF(OR(AZ37=\"-\",AZ37=\"\"),\"-\",COUNTA(AZ$2:AZ37)-COUNTBLANK(AZ$2:AZ37))","v":20},{"$f":"IF(OR(INDEX(Data!A:A,0,1)=0,INDEX(Data!A:A,0,1)=\"-\"),\"\",INDEX(Data!A:A,0,1))","v":"LBD-02"},37,"-"]
[null,null,null,null,null,null,null,null,null,null,null,null,null,null,null,null,null,null,null,null,null,null,null,null,null,null,null,null,null,null,null,null,null,null,null,null,null,null,null,null,null,null,null,null,null,null,null,null,null,null,{"$f":"IF(OR(AZ38=\"-\",AZ38=\"\"),\"-\",COUNTA(AZ$2:AZ38)-COUNTBLANK(AZ$2:AZ38))","v":"-"},{"$f":"IF(OR(INDEX(Data!A:A,0,1)=0,INDEX(Data!A:A,0,1)=\"-\"),\"\",INDEX(Data!A:A,0,1))","v":""},38,"-",null,null,null,null,null,null,null,null,null,null,null,null,null,null,null,null,null,null,null,null,null,null,null,null,null,null,null,null,null,null,null,null,null,null,null,null,null,null,null,null,null,null,null,null,null,null,null,null,null,null,null,null,null,null,null,null,null,null,null,null,null,null,null,null,null,null,null,null,null,null,null,null,null,null,null,null,null,null,null,null,null,null,null,null,null,null,null,null,null,null,null,null,null,null,null,null,null,null,null,null,null,{"$f":"IF(Info!D8<>0,\"Per \"&TEXT(Info!D8,\"dd-mmm-yyy\"),\"...................\")","v":"Per 31-Des-2017"}]
[null,null,null,null,null,null,null,null,null,null,null,null,null,null,null,null,null,null,null,null,null,null,null,null,null,null,null,null,null,null,null,null,null,null,null,null,null,null,null,null,null,null,null,null,null,null,null,null,null,null,{"$f":"IF(OR(AZ39=\"-\",AZ39=\"\"),\"-\",COUNTA(AZ$2:AZ39)-COUNTBLANK(AZ$2:AZ39))","v":"-"},{"$f":"IF(OR(INDEX(Data!A:A,0,1)=0,INDEX(Data!A:A,0,1)=\"-\"),\"\",INDEX(Data!A:A,0,1))","v":""},39,"-"]
[null,null,null,null,null,null,null,null,null,null,null,null,null,null,null,null,null,null,null,null,null,null,null,null,null,null,null,null,null,null,null,null,null,null,null,null,null,null,null,null,null,null,null,null,null,null,null,null,null,null,{"$f":"IF(OR(AZ40=\"-\",AZ40=\"\"),\"-\",COUNTA(AZ$2:AZ40)-COUNTBLANK(AZ$2:AZ40))","v":"-"},{"$f":"IF(OR(INDEX(Data!A:A,0,1)=0,INDEX(Data!A:A,0,1)=\"-\"),\"\",INDEX(Data!A:A,0,1))","v":""},40,"-",null,null,null,null,null,null,null,null,null,null,null,null,null,null,null,null,null,null,null,null,null,null,null,null,null,null,null,null,null,null,null,null,null,null,null,null,null,null,null,null,null,null,null,null,null,null,null,null,null,null,{"$f":"IF(AND(HD!B2000=0,HD!B3000=0,HD!B4000=0),\"PENYUSUTAN\",\"#\")","v":"PENYUSUTAN"}]
[null,null,null,null,null,null,null,null,null,null,null,null,null,null,null,null,null,null,null,null,null,null,null,null,null,null,null,null,null,null,null,null,null,null,null,null,null,null,null,null,null,null,null,null,null,null,null,null,null,null,{"$f":"IF(OR(AZ41=\"-\",AZ41=\"\"),\"-\",COUNTA(AZ$2:AZ41)-COUNTBLANK(AZ$2:AZ41))","v":"-"},{"$f":"IF(OR(INDEX(Data!A:A,0,1)=0,INDEX(Data!A:A,0,1)=\"-\"),\"\",INDEX(Data!A:A,0,1))","v":""},41,"-"]
[null,null,null,null,null,null,null,null,null,null,null,null,null,null,null,null,null,null,null,null,null,null,null,null,null,null,null,null,null,null,null,null,null,null,null,null,null,null,null,null,null,null,null,null,null,null,null,null,null,null,{"$f":"IF(OR(AZ42=\"-\",AZ42=\"\"),\"-\",COUNTA(AZ$2:AZ42)-COUNTBLANK(AZ$2:AZ42))","v":"-"},{"$f":"IF(OR(INDEX(Data!A:A,0,1)=0,INDEX(Data!A:A,0,1)=\"-\"),\"\",INDEX(Data!A:A,0,1))","v":""},42,"-"]
[null,null,null,null,null,null,null,null,null,null,null,null,null,null,null,null,null,null,null,null,null,null,null,null,null,null,null,null,null,null,null,null,null,null,null,null,null,null,null,null,null,null,null,null,null,null,null,null,null,null,{"$f":"IF(OR(AZ43=\"-\",AZ43=\"\"),\"-\",COUNTA(AZ$2:AZ43)-COUNTBLANK(AZ$2:AZ43))","v":"-"},{"$f":"IF(OR(INDEX(Data!A:A,0,1)=0,INDEX(Data!A:A,0,1)=\"-\"),\"\",INDEX(Data!A:A,0,1))","v":""},43,"-"]
[null,null,null,null,null,null,null,null,null,null,null,null,null,null,null,null,null,null,null,null,null,null,null,null,null,null,null,null,null,null,null,null,null,null,null,null,null,null,null,null,null,null,null,null,null,null,null,null,null,null,{"$f":"IF(OR(AZ44=\"-\",AZ44=\"\"),\"-\",COUNTA(AZ$2:AZ44)-COUNTBLANK(AZ$2:AZ44))","v":"-"},{"$f":"IF(OR(INDEX(Data!A:A,0,1)=0,INDEX(Data!A:A,0,1)=\"-\"),\"\",INDEX(Data!A:A,0,1))","v":""},44,"-"]
[null,null,null,null,null,null,null,null,null,null,null,null,null,null,null,null,null,null,null,null,null,null,null,null,null,null,null,null,null,null,null,null,null,null,null,null,null,null,null,null,null,null,null,null,null,null,null,null,null,null,{"$f":"IF(OR(AZ45=\"-\",AZ45=\"\"),\"-\",COUNTA(AZ$2:AZ45)-COUNTBLANK(AZ$2:AZ45))","v":"-"},{"$f":"IF(OR(INDEX(Data!A:A,0,1)=0,INDEX(Data!A:A,0,1)=\"-\"),\"\",INDEX(Data!A:A,0,1))","v":""},45,"-"]
[null,null,null,null,null,null,null,null,null,null,null,null,null,null,null,null,null,null,null,null,null,null,null,null,null,null,null,null,null,null,null,null,null,null,null,null,null,null,null,null,null,null,null,null,null,null,null,null,null,null,{"$f":"IF(OR(AZ46=\"-\",AZ46=\"\"),\"-\",COUNTA(AZ$2:AZ46)-COUNTBLANK(AZ$2:AZ46))","v":"-"},{"$f":"IF(OR(INDEX(Data!A:A,0,1)=0,INDEX(Data!A:A,0,1)=\"-\"),\"\",INDEX(Data!A:A,0,1))","v":""},46,"-"]
[null,null,null,null,null,null,null,null,null,null,null,null,null,null,null,null,null,null,null,null,null,null,null,null,null,null,null,null,null,null,null,null,null,null,null,null,null,null,null,null,null,null,null,null,null,null,null,null,null,null,{"$f":"IF(OR(AZ47=\"-\",AZ47=\"\"),\"-\",COUNTA(AZ$2:AZ47)-COUNTBLANK(AZ$2:AZ47))","v":"-"},{"$f":"IF(OR(INDEX(Data!A:A,0,1)=0,INDEX(Data!A:A,0,1)=\"-\"),\"\",INDEX(Data!A:A,0,1))","v":""},47,"-"]
[null,null,null,null,null,null,null,null,null,null,null,null,null,null,null,null,null,null,null,null,null,null,null,null,null,null,null,null,null,null,null,null,null,null,null,null,null,null,null,null,null,null,null,null,null,null,null,null,null,null,{"$f":"IF(OR(AZ48=\"-\",AZ48=\"\"),\"-\",COUNTA(AZ$2:AZ48)-COUNTBLANK(AZ$2:AZ48))","v":"-"},{"$f":"IF(OR(INDEX(Data!A:A,0,1)=0,INDEX(Data!A:A,0,1)=\"-\"),\"\",INDEX(Data!A:A,0,1))","v":""},48,"-"]
[null,null,null,null,null,null,null,null,null,null,null,null,null,null,null,null,null,null,null,null,null,null,null,null,null,null,null,null,null,null,null,null,null,null,null,null,null,null,null,null,null,null,null,null,null,null,null,null,null,null,{"$f":"IF(OR(AZ49=\"-\",AZ49=\"\"),\"-\",COUNTA(AZ$2:AZ49)-COUNTBLANK(AZ$2:AZ49))","v":"-"},{"$f":"IF(OR(INDEX(Data!A:A,0,1)=0,INDEX(Data!A:A,0,1)=\"-\"),\"\",INDEX(Data!A:A,0,1))","v":""},49,"-"]
[null,null,null,null,null,null,null,null,null,null,null,null,null,null,null,null,null,null,null,null,null,null,null,null,null,null,null,null,null,null,null,null,null,null,null,null,null,null,null,null,null,null,null,null,null,null,null,null,null,null,{"$f":"IF(OR(AZ50=\"-\",AZ50=\"\"),\"-\",COUNTA(AZ$2:AZ50)-COUNTBLANK(AZ$2:AZ50))","v":"-"},{"$f":"IF(OR(INDEX(Data!A:A,0,1)=0,INDEX(Data!A:A,0,1)=\"-\"),\"\",INDEX(Data!A:A,0,1))","v":""},50,"-",null,null,null,null,null,null,null,null,null,null,null,null,null,null,null,null,null,null,null,null,null,null,null,null,null,null,null,null,null,null,null,null,null,null,null,null,null,null,null,null,null,null,null,null,null,null,null,null,null,null,null,null,null,null,null,null,null,null,null,null,null,null,null,null,null,null,null,null,null,null,null,null,null,null,null,null,null,null,null,null,null,null,null,null,null,null,null,null,null,null,null,null,null,null,null,null,null,null,null,null,null,{"$f":"IF(Info!D6<>0,TEXT(Info!D6,\"dd-mmm-yyy\"),\"...................\")","v":"31-Des-2015"}]
[null,null,null,null,null,null,null,null,null,null,null,null,null,null,null,null,null,null,null,null,null,null,null,null,null,null,null,null,null,null,null,null,null,null,null,null,null,null,null,null,null,null,null,null,null,null,null,null,null,null,{"$f":"IF(OR(AZ51=\"-\",AZ51=\"\"),\"-\",COUNTA(AZ$2:AZ51)-COUNTBLANK(AZ$2:AZ51))","v":"-"},{"$f":"IF(OR(INDEX(Data!A:A,0,1)=0,INDEX(Data!A:A,0,1)=\"-\"),\"\",INDEX(Data!A:A,0,1))","v":""},51,"-"]
[null,null,null,null,null,null,null,null,null,null,null,null,null,null,null,null,null,null,null,null,null,null,null,null,null,null,null,null,null,null,null,null,null,null,null,null,null,null,null,null,null,null,null,null,null,null,null,null,null,null,{"$f":"IF(OR(AZ52=\"-\",AZ52=\"\"),\"-\",COUNTA(AZ$2:AZ52)-COUNTBLANK(AZ$2:AZ52))","v":"-"},{"$f":"IF(OR(INDEX(Data!A:A,0,1)=0,INDEX(Data!A:A,0,1)=\"-\"),\"\",INDEX(Data!A:A,0,1))","v":""},52,"-",null,null,null,null,null,null,null,null,null,null,null,null,null,null,null,null,null,null,null,null,null,null,null,null,null,null,null,null,null,null,null,null,null,null,null,null,null,null,null,null,null,null,null,null,null,null,null,null,null,null,{"$f":"IF(AND(HD!B2000=0,HD!B3000=0,HD!B4000=0),\"PENDANAAN\",\"#\")","v":"PENDANAAN"}]
[null,null,null,null,null,null,null,null,null,null,null,null,null,null,null,null,null,null,null,null,null,null,null,null,null,null,null,null,null,null,null,null,null,null,null,null,null,null,null,null,null,null,null,null,null,null,null,null,null,null,{"$f":"IF(OR(AZ53=\"-\",AZ53=\"\"),\"-\",COUNTA(AZ$2:AZ53)-COUNTBLANK(AZ$2:AZ53))","v":"-"},{"$f":"IF(OR(INDEX(Data!A:A,0,1)=0,INDEX(Data!A:A,0,1)=\"-\"),\"\",INDEX(Data!A:A,0,1))","v":""},53,"-"]
[null,null,null,null,null,null,null,null,null,null,null,null,null,null,null,null,null,null,null,null,null,null,null,null,null,null,null,null,null,null,null,null,null,null,null,null,null,null,null,null,null,null,null,null,null,null,null,null,null,null,{"$f":"IF(OR(AZ54=\"-\",AZ54=\"\"),\"-\",COUNTA(AZ$2:AZ54)-COUNTBLANK(AZ$2:AZ54))","v":"-"},{"$f":"IF(OR(INDEX(Data!A:A,0,1)=0,INDEX(Data!A:A,0,1)=\"-\"),\"\",INDEX(Data!A:A,0,1))","v":""},54,"-"]
[null,null,null,null,null,null,null,null,null,null,null,null,null,null,null,null,null,null,null,null,null,null,null,null,null,null,null,null,null,null,null,null,null,null,null,null,null,null,null,null,null,null,null,null,null,null,null,null,null,null,{"$f":"IF(OR(AZ55=\"-\",AZ55=\"\"),\"-\",COUNTA(AZ$2:AZ55)-COUNTBLANK(AZ$2:AZ55))","v":"-"},{"$f":"IF(OR(INDEX(Data!A:A,0,1)=0,INDEX(Data!A:A,0,1)=\"-\"),\"\",INDEX(Data!A:A,0,1))","v":""},55,"-"]
[null,null,null,null,null,null,null,null,null,null,null,null,null,null,null,null,null,null,null,null,null,null,null,null,null,null,null,null,null,null,null,null,null,null,null,null,null,null,null,null,null,null,null,null,null,null,null,null,null,null,{"$f":"IF(OR(AZ56=\"-\",AZ56=\"\"),\"-\",COUNTA(AZ$2:AZ56)-COUNTBLANK(AZ$2:AZ56))","v":"-"},{"$f":"IF(OR(INDEX(Data!A:A,0,1)=0,INDEX(Data!A:A,0,1)=\"-\"),\"\",INDEX(Data!A:A,0,1))","v":""},56,"-"]
[null,null,null,null,null,null,null,null,null,null,null,null,null,null,null,null,null,null,null,null,null,null,null,null,null,null,null,null,null,null,null,null,null,null,null,null,null,null,null,null,null,null,null,null,null,null,null,null,null,null,{"$f":"IF(OR(AZ57=\"-\",AZ57=\"\"),\"-\",COUNTA(AZ$2:AZ57)-COUNTBLANK(AZ$2:AZ57))","v":"-"},{"$f":"IF(OR(INDEX(Data!A:A,0,1)=0,INDEX(Data!A:A,0,1)=\"-\"),\"\",INDEX(Data!A:A,0,1))","v":""},57,"-"]
[null,null,null,null,null,null,null,null,null,null,null,null,null,null,null,null,null,null,null,null,null,null,null,null,null,null,null,null,null,null,null,null,null,null,null,null,null,null,null,null,null,null,null,null,null,null,null,null,null,null,{"$f":"IF(OR(AZ58=\"-\",AZ58=\"\"),\"-\",COUNTA(AZ$2:AZ58)-COUNTBLANK(AZ$2:AZ58))","v":"-"},{"$f":"IF(OR(INDEX(Data!A:A,0,1)=0,INDEX(Data!A:A,0,1)=\"-\"),\"\",INDEX(Data!A:A,0,1))","v":""},58,"-"]
[null,null,null,null,null,null,null,null,null,null,null,null,null,null,null,null,null,null,null,null,null,null,null,null,null,null,null,null,null,null,null,null,null,null,null,null,null,null,null,null,null,null,null,null,null,null,null,null,null,null,{"$f":"IF(OR(AZ59=\"-\",AZ59=\"\"),\"-\",COUNTA(AZ$2:AZ59)-COUNTBLANK(AZ$2:AZ59))","v":"-"},{"$f":"IF(OR(INDEX(Data!A:A,0,1)=0,INDEX(Data!A:A,0,1)=\"-\"),\"\",INDEX(Data!A:A,0,1))","v":""},59,"-"]
[null,null,null,null,null,null,null,null,null,null,null,null,null,null,null,null,null,null,null,null,null,null,null,null,null,null,null,null,null,null,null,null,null,null,null,null,null,null,null,null,null,null,null,null,null,null,null,null,null,null,{"$f":"IF(OR(AZ60=\"-\",AZ60=\"\"),\"-\",COUNTA(AZ$2:AZ60)-COUNTBLANK(AZ$2:AZ60))","v":"-"},{"$f":"IF(OR(INDEX(Data!A:A,0,1)=0,INDEX(Data!A:A,0,1)=\"-\"),\"\",INDEX(Data!A:A,0,1))","v":""},60,"-"]
[null,null,null,null,null,null,null,null,null,null,null,null,null,null,null,null,null,null,null,null,null,null,null,null,null,null,null,null,null,null,null,null,null,null,null,null,null,null,null,null,null,null,null,null,null,null,null,null,null,null,{"$f":"IF(OR(AZ61=\"-\",AZ61=\"\"),\"-\",COUNTA(AZ$2:AZ61)-COUNTBLANK(AZ$2:AZ61))","v":"-"},{"$f":"IF(OR(INDEX(Data!A:A,0,1)=0,INDEX(Data!A:A,0,1)=\"-\"),\"\",INDEX(Data!A:A,0,1))","v":""},61,"-"]
[null,null,null,null,null,null,null,null,null,null,null,null,null,null,null,null,null,null,null,null,null,null,null,null,null,null,null,null,null,null,null,null,null,null,null,null,null,null,null,null,null,null,null,null,null,null,null,null,null,null,{"$f":"IF(OR(AZ62=\"-\",AZ62=\"\"),\"-\",COUNTA(AZ$2:AZ62)-COUNTBLANK(AZ$2:AZ62))","v":"-"},{"$f":"IF(OR(INDEX(Data!A:A,0,1)=0,INDEX(Data!A:A,0,1)=\"-\"),\"\",INDEX(Data!A:A,0,1))","v":""},62,"-",null,null,null,null,null,null,null,null,null,null,null,null,null,null,null,null,null,null,null,null,null,null,null,null,null,null,null,null,null,null,null,null,null,null,null,null,null,null,null,null,null,null,null,null,null,null,null,null,null,null,null,null,null,null,null,null,null,null,null,null,null,null,null,null,null,null,null,null,null,null,null,null,null,null,null,null,null,null,null,null,null,null,null,null,null,null,null,null,null,null,null,null,null,null,null,null,null,null,null,null,null,{"$f":"IF(Info!D7<>0,TEXT(Info!D7,\"dd-mmm-yyy\"),\"...................\")","v":"31-Des-2016"}]
[null,null,null,null,null,null,null,null,null,null,null,null,null,null,null,null,null,null,null,null,null,null,null,null,null,null,null,null,null,null,null,null,null,null,null,null,null,null,null,null,null,null,null,null,null,null,null,null,null,null,{"$f":"IF(OR(AZ63=\"-\",AZ63=\"\"),\"-\",COUNTA(AZ$2:AZ63)-COUNTBLANK(AZ$2:AZ63))","v":"-"},{"$f":"IF(OR(INDEX(Data!A:A,0,1)=0,INDEX(Data!A:A,0,1)=\"-\"),\"\",INDEX(Data!A:A,0,1))","v":""},63,"-"]
[null,null,null,null,null,null,null,null,null,null,null,null,null,null,null,null,null,null,null,null,null,null,null,null,null,null,null,null,null,null,null,null,null,null,null,null,null,null,null,null,null,null,null,null,null,null,null,null,null,null,{"$f":"IF(OR(AZ64=\"-\",AZ64=\"\"),\"-\",COUNTA(AZ$2:AZ64)-COUNTBLANK(AZ$2:AZ64))","v":"-"},{"$f":"IF(OR(INDEX(Data!A:A,0,1)=0,INDEX(Data!A:A,0,1)=\"-\"),\"\",INDEX(Data!A:A,0,1))","v":""},64,"-",null,null,null,null,null,null,null,null,null,null,null,null,null,null,null,null,null,null,null,null,null,null,null,null,null,null,null,null,null,null,null,null,null,null,null,null,null,null,null,null,null,null,null,null,null,null,null,null,null,null,{"$f":"IF(AND(HD!B2000=0,HD!B3000=0,HD!B4000=0),\"LABA DITAHAN\",\"#\")","v":"LABA DITAHAN"}]
[null,null,null,null,null,null,null,null,null,null,null,null,null,null,null,null,null,null,null,null,null,null,null,null,null,null,null,null,null,null,null,null,null,null,null,null,null,null,null,null,null,null,null,null,null,null,null,null,null,null,{"$f":"IF(OR(AZ65=\"-\",AZ65=\"\"),\"-\",COUNTA(AZ$2:AZ65)-COUNTBLANK(AZ$2:AZ65))","v":"-"},{"$f":"IF(OR(INDEX(Data!A:A,0,1)=0,INDEX(Data!A:A,0,1)=\"-\"),\"\",INDEX(Data!A:A,0,1))","v":""},65,"-"]
[null,null,null,null,null,null,null,null,null,null,null,null,null,null,null,null,null,null,null,null,null,null,null,null,null,null,null,null,null,null,null,null,null,null,null,null,null,null,null,null,null,null,null,null,null,null,null,null,null,null,{"$f":"IF(OR(AZ66=\"-\",AZ66=\"\"),\"-\",COUNTA(AZ$2:AZ66)-COUNTBLANK(AZ$2:AZ66))","v":"-"},{"$f":"IF(OR(INDEX(Data!A:A,0,1)=0,INDEX(Data!A:A,0,1)=\"-\"),\"\",INDEX(Data!A:A,0,1))","v":""},66,{"$f":"IF(ISNA(VLOOKUP(BA66,AY:AZ,2,FALSE)),\"-\",VLOOKUP(BA66,AY:AZ,2,FALSE))","v":"-"}]
[null,null,null,null,null,null,null,null,null,null,null,null,null,null,null,null,null,null,null,null,null,null,null,null,null,null,null,null,null,null,null,null,null,null,null,null,null,null,null,null,null,null,null,null,null,null,null,null,null,null,{"$f":"IF(OR(AZ67=\"-\",AZ67=\"\"),\"-\",COUNTA(AZ$2:AZ67)-COUNTBLANK(AZ$2:AZ67))","v":"-"},{"$f":"IF(OR(INDEX(Data!A:A,0,1)=0,INDEX(Data!A:A,0,1)=\"-\"),\"\",INDEX(Data!A:A,0,1))","v":""},67,"-"]
[null,null,null,null,null,null,null,null,null,null,null,null,null,null,null,null,null,null,null,null,null,null,null,null,null,null,null,null,null,null,null,null,null,null,null,null,null,null,null,null,null,null,null,null,null,null,null,null,null,null,{"$f":"IF(OR(AZ68=\"-\",AZ68=\"\"),\"-\",COUNTA(AZ$2:AZ68)-COUNTBLANK(AZ$2:AZ68))","v":"-"},{"$f":"IF(OR(INDEX(Data!A:A,0,1)=0,INDEX(Data!A:A,0,1)=\"-\"),\"\",INDEX(Data!A:A,0,1))","v":""},{"$f":"BA67+1","v":68},"-"]
[null,null,null,null,null,null,null,null,null,null,null,null,null,null,null,null,null,null,null,null,null,null,null,null,null,null,null,null,null,null,null,null,null,null,null,null,null,null,null,null,null,null,null,null,null,null,null,null,null,null,{"$f":"IF(OR(AZ69=\"-\",AZ69=\"\"),\"-\",COUNTA(AZ$2:AZ69)-COUNTBLANK(AZ$2:AZ69))","v":"-"},{"$f":"IF(OR(INDEX(Data!A:A,0,1)=0,INDEX(Data!A:A,0,1)=\"-\"),\"\",INDEX(Data!A:A,0,1))","v":""},69,"-"]
[null,null,null,null,null,null,null,null,null,null,null,null,null,null,null,null,null,null,null,null,null,null,null,null,null,null,null,null,null,null,null,null,null,null,null,null,null,null,null,null,null,null,null,null,null,null,null,null,null,null,{"$f":"IF(OR(AZ70=\"-\",AZ70=\"\"),\"-\",COUNTA(AZ$2:AZ70)-COUNTBLANK(AZ$2:AZ70))","v":"-"},{"$f":"IF(OR(INDEX(Data!A:A,0,1)=0,INDEX(Data!A:A,0,1)=\"-\"),\"\",INDEX(Data!A:A,0,1))","v":""},70,"-"]
[null,null,null,null,null,null,null,null,null,null,null,null,null,null,null,null,null,null,null,null,null,null,null,null,null,null,null,null,null,null,null,null,null,null,null,null,null,null,null,null,null,null,null,null,null,null,null,null,null,null,{"$f":"IF(OR(AZ71=\"-\",AZ71=\"\"),\"-\",COUNTA(AZ$2:AZ71)-COUNTBLANK(AZ$2:AZ71))","v":"-"},{"$f":"IF(OR(INDEX(Data!A:A,0,1)=0,INDEX(Data!A:A,0,1)=\"-\"),\"\",INDEX(Data!A:A,0,1))","v":""},71,"-"]
[null,null,null,null,null,null,null,null,null,null,null,null,null,null,null,null,null,null,null,null,null,null,null,null,null,null,null,null,null,null,null,null,null,null,null,null,null,null,null,null,null,null,null,null,null,null,null,null,null,null,{"$f":"IF(OR(AZ72=\"-\",AZ72=\"\"),\"-\",COUNTA(AZ$2:AZ72)-COUNTBLANK(AZ$2:AZ72))","v":"-"},{"$f":"IF(OR(INDEX(Data!A:A,0,1)=0,INDEX(Data!A:A,0,1)=\"-\"),\"\",INDEX(Data!A:A,0,1))","v":""},72,"-"]
[null,null,null,null,null,null,null,null,null,null,null,null,null,null,null,null,null,null,null,null,null,null,null,null,null,null,null,null,null,null,null,null,null,null,null,null,null,null,null,null,null,null,null,null,null,null,null,null,null,null,{"$f":"IF(OR(AZ73=\"-\",AZ73=\"\"),\"-\",COUNTA(AZ$2:AZ73)-COUNTBLANK(AZ$2:AZ73))","v":21},{"$f":"IF(OR(INDEX(Data!A:A,0,1)=0,INDEX(Data!A:A,0,1)=\"-\"),\"\",INDEX(Data!A:A,0,1))","v":"LBS"},73,"-"]
[null,null,null,null,null,null,null,null,null,null,null,null,null,null,null,null,null,null,null,null,null,null,null,null,null,null,null,null,null,null,null,null,null,null,null,null,null,null,null,null,null,null,null,null,null,null,null,null,null,null,{"$f":"IF(OR(AZ74=\"-\",AZ74=\"\"),\"-\",COUNTA(AZ$2:AZ74)-COUNTBLANK(AZ$2:AZ74))","v":"-"},{"$f":"IF(OR(INDEX(Data!A:A,0,1)=0,INDEX(Data!A:A,0,1)=\"-\"),\"\",INDEX(Data!A:A,0,1))","v":""},74,"-",null,null,null,null,null,null,null,null,null,null,null,null,null,null,null,null,null,null,null,null,null,null,null,null,null,null,null,null,null,null,null,null,null,null,null,null,null,null,null,null,null,null,null,null,null,null,null,null,null,null,null,null,null,null,null,null,null,null,null,null,null,null,null,null,null,null,null,null,null,null,null,null,null,null,null,null,null,null,null,null,null,null,null,null,null,null,null,null,null,null,null,null,null,null,null,null,null,null,null,null,null,{"$f":"IF(Info!D8<>0,TEXT(Info!D8,\"dd-mmm-yyy\"),\"...................\")","v":"31-Des-2017"}]
[null,null,null,null,null,null,null,null,null,null,null,null,null,null,null,null,null,null,null,null,null,null,null,null,null,null,null,null,null,null,null,null,null,null,null,null,null,null,null,null,null,null,null,null,null,null,null,null,null,null,{"$f":"IF(OR(AZ75=\"-\",AZ75=\"\"),\"-\",COUNTA(AZ$2:AZ75)-COUNTBLANK(AZ$2:AZ75))","v":"-"},{"$f":"IF(OR(INDEX(Data!A:A,0,1)=0,INDEX(Data!A:A,0,1)=\"-\"),\"\",INDEX(Data!A:A,0,1))","v":""},75,"-"]
[null,null,null,null,null,null,null,null,null,null,null,null,null,null,null,null,null,null,null,null,null,null,null,null,null,null,null,null,null,null,null,null,null,null,null,null,null,null,null,null,null,null,null,null,null,null,null,null,null,null,{"$f":"IF(OR(AZ76=\"-\",AZ76=\"\"),\"-\",COUNTA(AZ$2:AZ76)-COUNTBLANK(AZ$2:AZ76))","v":"-"},{"$f":"IF(OR(INDEX(Data!A:A,0,1)=0,INDEX(Data!A:A,0,1)=\"-\"),\"\",INDEX(Data!A:A,0,1))","v":""},76,"-",null,null,null,null,null,null,null,null,null,null,null,null,null,null,null,null,null,null,null,null,null,null,null,null,null,null,null,null,null,null,null,null,null,null,null,null,null,null,null,null,null,null,null,null,null,null,null,null,null,null,{"$f":"IF(AND(HD!B2000=0,HD!B3000=0,HD!B4000=0),\"LABA BERSIH\",\"#\")","v":"LABA BERSIH"}]
[null,null,null,null,null,null,null,null,null,null,null,null,null,null,null,null,null,null,null,null,null,null,null,null,null,null,null,null,null,null,null,null,null,null,null,null,null,null,null,null,null,null,null,null,null,null,null,null,null,null,{"$f":"IF(OR(AZ77=\"-\",AZ77=\"\"),\"-\",COUNTA(AZ$2:AZ77)-COUNTBLANK(AZ$2:AZ77))","v":"-"},{"$f":"IF(OR(INDEX(Data!A:A,0,1)=0,INDEX(Data!A:A,0,1)=\"-\"),\"\",INDEX(Data!A:A,0,1))","v":""},77,"-"]
[null,null,null,null,null,null,null,null,null,null,null,null,null,null,null,null,null,null,null,null,null,null,null,null,null,null,null,null,null,null,null,null,null,null,null,null,null,null,null,null,null,null,null,null,null,null,null,null,null,null,{"$f":"IF(OR(AZ78=\"-\",AZ78=\"\"),\"-\",COUNTA(AZ$2:AZ78)-COUNTBLANK(AZ$2:AZ78))","v":"-"},{"$f":"IF(OR(INDEX(Data!A:A,0,1)=0,INDEX(Data!A:A,0,1)=\"-\"),\"\",INDEX(Data!A:A,0,1))","v":""},78,"-"]
[null,null,null,null,null,null,null,null,null,null,null,null,null,null,null,null,null,null,null,null,null,null,null,null,null,null,null,null,null,null,null,null,null,null,null,null,null,null,null,null,null,null,null,null,null,null,null,null,null,null,{"$f":"IF(OR(AZ79=\"-\",AZ79=\"\"),\"-\",COUNTA(AZ$2:AZ79)-COUNTBLANK(AZ$2:AZ79))","v":"-"},{"$f":"IF(OR(INDEX(Data!A:A,0,1)=0,INDEX(Data!A:A,0,1)=\"-\"),\"\",INDEX(Data!A:A,0,1))","v":""},79,"-"]
[null,null,null,null,null,null,null,null,null,null,null,null,null,null,null,null,null,null,null,null,null,null,null,null,null,null,null,null,null,null,null,null,null,null,null,null,null,null,null,null,null,null,null,null,null,null,null,null,null,null,{"$f":"IF(OR(AZ80=\"-\",AZ80=\"\"),\"-\",COUNTA(AZ$2:AZ80)-COUNTBLANK(AZ$2:AZ80))","v":"-"},{"$f":"IF(OR(INDEX(Data!A:A,0,1)=0,INDEX(Data!A:A,0,1)=\"-\"),\"\",INDEX(Data!A:A,0,1))","v":""},80,"-"]
[null,null,null,null,null,null,null,null,null,null,null,null,null,null,null,null,null,null,null,null,null,null,null,null,null,null,null,null,null,null,null,null,null,null,null,null,null,null,null,null,null,null,null,null,null,null,null,null,null,null,{"$f":"IF(OR(AZ81=\"-\",AZ81=\"\"),\"-\",COUNTA(AZ$2:AZ81)-COUNTBLANK(AZ$2:AZ81))","v":"-"},{"$f":"IF(OR(INDEX(Data!A:A,0,1)=0,INDEX(Data!A:A,0,1)=\"-\"),\"\",INDEX(Data!A:A,0,1))","v":""},81,"-"]
[null,null,null,null,null,null,null,null,null,null,null,null,null,null,null,null,null,null,null,null,null,null,null,null,null,null,null,null,null,null,null,null,null,null,null,null,null,null,null,null,null,null,null,null,null,null,null,null,null,null,{"$f":"IF(OR(AZ82=\"-\",AZ82=\"\"),\"-\",COUNTA(AZ$2:AZ82)-COUNTBLANK(AZ$2:AZ82))","v":"-"},{"$f":"IF(OR(INDEX(Data!A:A,0,1)=0,INDEX(Data!A:A,0,1)=\"-\"),\"\",INDEX(Data!A:A,0,1))","v":""},82,"-"]
[null,null,null,null,null,null,null,null,null,null,null,null,null,null,null,null,null,null,null,null,null,null,null,null,null,null,null,null,null,null,null,null,null,null,null,null,null,null,null,null,null,null,null,null,null,null,null,null,null,null,{"$f":"IF(OR(AZ83=\"-\",AZ83=\"\"),\"-\",COUNTA(AZ$2:AZ83)-COUNTBLANK(AZ$2:AZ83))","v":"-"},{"$f":"IF(OR(INDEX(Data!A:A,0,1)=0,INDEX(Data!A:A,0,1)=\"-\"),\"\",INDEX(Data!A:A,0,1))","v":""},83,"-"]
[null,null,null,null,null,null,null,null,null,null,null,null,null,null,null,null,null,null,null,null,null,null,null,null,null,null,null,null,null,null,null,null,null,null,null,null,null,null,null,null,null,null,null,null,null,null,null,null,null,null,{"$f":"IF(OR(AZ84=\"-\",AZ84=\"\"),\"-\",COUNTA(AZ$2:AZ84)-COUNTBLANK(AZ$2:AZ84))","v":"-"},{"$f":"IF(OR(INDEX(Data!A:A,0,1)=0,INDEX(Data!A:A,0,1)=\"-\"),\"\",INDEX(Data!A:A,0,1))","v":""},84,"-"]
[null,null,null,null,null,null,null,null,null,null,null,null,null,null,null,null,null,null,null,null,null,null,null,null,null,null,null,null,null,null,null,null,null,null,null,null,null,null,null,null,null,null,null,null,null,null,null,null,null,null,{"$f":"IF(OR(AZ85=\"-\",AZ85=\"\"),\"-\",COUNTA(AZ$2:AZ85)-COUNTBLANK(AZ$2:AZ85))","v":"-"},{"$f":"IF(OR(INDEX(Data!A:A,0,1)=0,INDEX(Data!A:A,0,1)=\"-\"),\"\",INDEX(Data!A:A,0,1))","v":""},85,"-"]
[null,null,null,null,null,null,null,null,null,null,null,null,null,null,null,null,null,null,null,null,null,null,null,null,null,null,null,null,null,null,null,null,null,null,null,null,null,null,null,null,null,null,null,null,null,null,null,null,null,null,{"$f":"IF(OR(AZ86=\"-\",AZ86=\"\"),\"-\",COUNTA(AZ$2:AZ86)-COUNTBLANK(AZ$2:AZ86))","v":"-"},{"$f":"IF(OR(INDEX(Data!A:A,0,1)=0,INDEX(Data!A:A,0,1)=\"-\"),\"\",INDEX(Data!A:A,0,1))","v":""},86,"-",null,null,null,null,null,null,null,null,null,null,null,null,null,null,null,null,null,null,null,null,null,null,null,null,null,null,null,null,null,null,null,null,null,null,null,null,null,null,null,null,null,null,null,null,null,null,null,null,null,null,null,null,null,null,null,null,null,null,null,null,null,null,null,null,null,null,null,null,null,null,null,null,null,null,null,null,null,null,null,null,null,null,null,null,null,null,null,null,null,null,null,null,null,null,null,null,null,null,null,null,null,{"$f":"\"Periode \"&tgl_1&\" s/d \"&tgl_2","v":"Periode 31-Des-2015 s/d 31-Des-2016"}]
[null,null,null,null,null,null,null,null,null,null,null,null,null,null,null,null,null,null,null,null,null,null,null,null,null,null,null,null,null,null,null,null,null,null,null,null,null,null,null,null,null,null,null,null,null,null,null,null,null,null,{"$f":"IF(OR(AZ87=\"-\",AZ87=\"\"),\"-\",COUNTA(AZ$2:AZ87)-COUNTBLANK(AZ$2:AZ87))","v":"-"},{"$f":"IF(OR(INDEX(Data!A:A,0,1)=0,INDEX(Data!A:A,0,1)=\"-\"),\"\",INDEX(Data!A:A,0,1))","v":""},87,"-"]
[null,null,null,null,null,null,null,null,null,null,null,null,null,null,null,null,null,null,null,null,null,null,null,null,null,null,null,null,null,null,null,null,null,null,null,null,null,null,null,null,null,null,null,null,null,null,null,null,null,null,{"$f":"IF(OR(AZ88=\"-\",AZ88=\"\"),\"-\",COUNTA(AZ$2:AZ88)-COUNTBLANK(AZ$2:AZ88))","v":"-"},{"$f":"IF(OR(INDEX(Data!A:A,0,1)=0,INDEX(Data!A:A,0,1)=\"-\"),\"\",INDEX(Data!A:A,0,1))","v":""},88,"-",null,null,null,null,null,null,null,null,null,null,null,null,null,null,null,null,null,null,null,null,null,null,null,null,null,null,null,null,null,null,null,null,null,null,null,null,null,null,null,null,null,null,null,null,null,null,null,null,null,null,{"$f":"IF(AND(HD!B2000=0,HD!B3000=0,HD!B4000=0),\"LBS\",\"#\")","v":"LBS"}]
[null,null,null,null,null,null,null,null,null,null,null,null,null,null,null,null,null,null,null,null,null,null,null,null,null,null,null,null,null,null,null,null,null,null,null,null,null,null,null,null,null,null,null,null,null,null,null,null,null,null,{"$f":"IF(OR(AZ89=\"-\",AZ89=\"\"),\"-\",COUNTA(AZ$2:AZ89)-COUNTBLANK(AZ$2:AZ89))","v":"-"},{"$f":"IF(OR(INDEX(Data!A:A,0,1)=0,INDEX(Data!A:A,0,1)=\"-\"),\"\",INDEX(Data!A:A,0,1))","v":""},89,"-"]
[null,null,null,null,null,null,null,null,null,null,null,null,null,null,null,null,null,null,null,null,null,null,null,null,null,null,null,null,null,null,null,null,null,null,null,null,null,null,null,null,null,null,null,null,null,null,null,null,null,null,{"$f":"IF(OR(AZ90=\"-\",AZ90=\"\"),\"-\",COUNTA(AZ$2:AZ90)-COUNTBLANK(AZ$2:AZ90))","v":"-"},{"$f":"IF(OR(INDEX(Data!A:A,0,1)=0,INDEX(Data!A:A,0,1)=\"-\"),\"\",INDEX(Data!A:A,0,1))","v":""},90,"-"]
[null,null,null,null,null,null,null,null,null,null,null,null,null,null,null,null,null,null,null,null,null,null,null,null,null,null,null,null,null,null,null,null,null,null,null,null,null,null,null,null,null,null,null,null,null,null,null,null,null,null,{"$f":"IF(OR(AZ91=\"-\",AZ91=\"\"),\"-\",COUNTA(AZ$2:AZ91)-COUNTBLANK(AZ$2:AZ91))","v":"-"},{"$f":"IF(OR(INDEX(Data!A:A,0,1)=0,INDEX(Data!A:A,0,1)=\"-\"),\"\",INDEX(Data!A:A,0,1))","v":""},91,"-"]
[null,null,null,null,null,null,null,null,null,null,null,null,null,null,null,null,null,null,null,null,null,null,null,null,null,null,null,null,null,null,null,null,null,null,null,null,null,null,null,null,null,null,null,null,null,null,null,null,null,null,{"$f":"IF(OR(AZ92=\"-\",AZ92=\"\"),\"-\",COUNTA(AZ$2:AZ92)-COUNTBLANK(AZ$2:AZ92))","v":"-"},{"$f":"IF(OR(INDEX(Data!A:A,0,1)=0,INDEX(Data!A:A,0,1)=\"-\"),\"\",INDEX(Data!A:A,0,1))","v":""},92,"-"]
[null,null,null,null,null,null,null,null,null,null,null,null,null,null,null,null,null,null,null,null,null,null,null,null,null,null,null,null,null,null,null,null,null,null,null,null,null,null,null,null,null,null,null,null,null,null,null,null,null,null,{"$f":"IF(OR(AZ93=\"-\",AZ93=\"\"),\"-\",COUNTA(AZ$2:AZ93)-COUNTBLANK(AZ$2:AZ93))","v":"-"},{"$f":"IF(OR(INDEX(Data!A:A,0,1)=0,INDEX(Data!A:A,0,1)=\"-\"),\"\",INDEX(Data!A:A,0,1))","v":""},93,"-"]
[null,null,null,null,null,null,null,null,null,null,null,null,null,null,null,null,null,null,null,null,null,null,null,null,null,null,null,null,null,null,null,null,null,null,null,null,null,null,null,null,null,null,null,null,null,null,null,null,null,null,{"$f":"IF(OR(AZ94=\"-\",AZ94=\"\"),\"-\",COUNTA(AZ$2:AZ94)-COUNTBLANK(AZ$2:AZ94))","v":"-"},{"$f":"IF(OR(INDEX(Data!A:A,0,1)=0,INDEX(Data!A:A,0,1)=\"-\"),\"\",INDEX(Data!A:A,0,1))","v":""},94,"-"]
[null,null,null,null,null,null,null,null,null,null,null,null,null,null,null,null,null,null,null,null,null,null,null,null,null,null,null,null,null,null,null,null,null,null,null,null,null,null,null,null,null,null,null,null,null,null,null,null,null,null,{"$f":"IF(OR(AZ95=\"-\",AZ95=\"\"),\"-\",COUNTA(AZ$2:AZ95)-COUNTBLANK(AZ$2:AZ95))","v":"-"},{"$f":"IF(OR(INDEX(Data!A:A,0,1)=0,INDEX(Data!A:A,0,1)=\"-\"),\"\",INDEX(Data!A:A,0,1))","v":""},95,"-"]
[null,null,null,null,null,null,null,null,null,null,null,null,null,null,null,null,null,null,null,null,null,null,null,null,null,null,null,null,null,null,null,null,null,null,null,null,null,null,null,null,null,null,null,null,null,null,null,null,null,null,{"$f":"IF(OR(AZ96=\"-\",AZ96=\"\"),\"-\",COUNTA(AZ$2:AZ96)-COUNTBLANK(AZ$2:AZ96))","v":"-"},{"$f":"IF(OR(INDEX(Data!A:A,0,1)=0,INDEX(Data!A:A,0,1)=\"-\"),\"\",INDEX(Data!A:A,0,1))","v":""},96,"-"]
[null,null,null,null,null,null,null,null,null,null,null,null,null,null,null,null,null,null,null,null,null,null,null,null,null,null,null,null,null,null,null,null,null,null,null,null,null,null,null,null,null,null,null,null,null,null,null,null,null,null,{"$f":"IF(OR(AZ97=\"-\",AZ97=\"\"),\"-\",COUNTA(AZ$2:AZ97)-COUNTBLANK(AZ$2:AZ97))","v":"-"},{"$f":"IF(OR(INDEX(Data!A:A,0,1)=0,INDEX(Data!A:A,0,1)=\"-\"),\"\",INDEX(Data!A:A,0,1))","v":""},97,"-"]
[null,null,null,null,null,null,null,null,null,null,null,null,null,null,null,null,null,null,null,null,null,null,null,null,null,null,null,null,null,null,null,null,null,null,null,null,null,null,null,null,null,null,null,null,null,null,null,null,null,null,{"$f":"IF(OR(AZ98=\"-\",AZ98=\"\"),\"-\",COUNTA(AZ$2:AZ98)-COUNTBLANK(AZ$2:AZ98))","v":"-"},{"$f":"IF(OR(INDEX(Data!A:A,0,1)=0,INDEX(Data!A:A,0,1)=\"-\"),\"\",INDEX(Data!A:A,0,1))","v":""},98,{"$f":"IF(ISNA(VLOOKUP(BA98,AY:AZ,2,FALSE)),\"-\",VLOOKUP(BA98,AY:AZ,2,FALSE))","v":"-"},null,null,null,null,null,null,null,null,null,null,null,null,null,null,null,null,null,null,null,null,null,null,null,null,null,null,null,null,null,null,null,null,null,null,null,null,null,null,null,null,null,null,null,null,null,null,null,null,null,null,null,null,null,null,null,null,null,null,null,null,null,null,null,null,null,null,null,null,null,null,null,null,null,null,null,null,null,null,null,null,null,null,null,null,null,null,null,null,null,null,null,null,null,null,null,null,null,null,null,null,null,{"$f":"\"Periode \"&tgl_2&\" s/d \"&tgl_3","v":"Periode 31-Des-2016 s/d 31-Des-2017"}]
[null,null,null,null,null,null,null,null,null,null,null,null,null,null,null,null,null,null,null,null,null,null,null,null,null,null,null,null,null,null,null,null,null,null,null,null,null,null,null,null,null,null,null,null,null,null,null,null,null,null,{"$f":"IF(OR(AZ99=\"-\",AZ99=\"\"),\"-\",COUNTA(AZ$2:AZ99)-COUNTBLANK(AZ$2:AZ99))","v":"-"},{"$f":"IF(OR(INDEX(Data!A:A,0,1)=0,INDEX(Data!A:A,0,1)=\"-\"),\"\",INDEX(Data!A:A,0,1))","v":""},99,"-"]
[null,null,null,null,null,null,null,null,null,null,null,null,null,null,null,null,null,null,null,null,null,null,null,null,null,null,null,null,null,null,null,null,null,null,null,null,null,null,null,null,null,null,null,null,null,null,null,null,null,null,{"$f":"IF(OR(AZ100=\"-\",AZ100=\"\"),\"-\",COUNTA(AZ$2:AZ100)-COUNTBLANK(AZ$2:AZ100))","v":"-"},{"$f":"IF(OR(INDEX(Data!A:A,0,1)=0,INDEX(Data!A:A,0,1)=\"-\"),\"\",INDEX(Data!A:A,0,1))","v":""},100,"-",null,null,null,null,null,null,null,null,null,null,null,null,null,null,null,null,null,null,null,null,null,null,null,null,null,null,null,null,null,null,null,null,null,null,null,null,null,null,null,null,null,null,null,null,null,null,null,null,null,null,{"$f":"IF(AND(HD!B2000=0,HD!B3000=0,HD!B4000=0),\"PNY\",\"#\")","v":"PNY"}]
[null,null,null,null,null,null,null,null,null,null,null,null,null,null,null,null,null,null,null,null,null,null,null,null,null,null,null,null,null,null,null,null,null,null,null,null,null,null,null,null,null,null,null,null,null,null,null,null,null,null,{"$f":"IF(OR(AZ101=\"-\",AZ101=\"\"),\"-\",COUNTA(AZ$2:AZ101)-COUNTBLANK(AZ$2:AZ101))","v":"-"},{"$f":"IF(OR(INDEX(Data!A:A,0,1)=0,INDEX(Data!A:A,0,1)=\"-\"),\"\",INDEX(Data!A:A,0,1))","v":""},101,"-"]
[null,null,null,null,null,null,null,null,null,null,null,null,null,null,null,null,null,null,null,null,null,null,null,null,null,null,null,null,null,null,null,null,null,null,null,null,null,null,null,null,null,null,null,null,null,null,null,null,null,null,{"$f":"IF(OR(AZ102=\"-\",AZ102=\"\"),\"-\",COUNTA(AZ$2:AZ102)-COUNTBLANK(AZ$2:AZ102))","v":"-"},{"$f":"IF(OR(INDEX(Data!A:A,0,1)=0,INDEX(Data!A:A,0,1)=\"-\"),\"\",INDEX(Data!A:A,0,1))","v":""}]
[null,null,null,null,null,null,null,null,null,null,null,null,null,null,null,null,null,null,null,null,null,null,null,null,null,null,null,null,null,null,null,null,null,null,null,null,null,null,null,null,null,null,null,null,null,null,null,null,null,null,{"$f":"IF(OR(AZ103=\"-\",AZ103=\"\"),\"-\",COUNTA(AZ$2:AZ103)-COUNTBLANK(AZ$2:AZ103))","v":"-"},{"$f":"IF(OR(INDEX(Data!A:A,0,1)=0,INDEX(Data!A:A,0,1)=\"-\"),\"\",INDEX(Data!A:A,0,1))","v":""}]
[null,null,null,null,null,null,null,null,null,null,null,null,null,null,null,null,null,null,null,null,null,null,null,null,null,null,null,null,null,null,null,null,null,null,null,null,null,null,null,null,null,null,null,null,null,null,null,null,null,null,{"$f":"IF(OR(AZ104=\"-\",AZ104=\"\"),\"-\",COUNTA(AZ$2:AZ104)-COUNTBLANK(AZ$2:AZ104))","v":"-"},{"$f":"IF(OR(INDEX(Data!A:A,0,1)=0,INDEX(Data!A:A,0,1)=\"-\"),\"\",INDEX(Data!A:A,0,1))","v":""}]
[null,null,null,null,null,null,null,null,null,null,null,null,null,null,null,null,null,null,null,null,null,null,null,null,null,null,null,null,null,null,null,null,null,null,null,null,null,null,null,null,null,null,null,null,null,null,null,null,null,null,{"$f":"IF(OR(AZ105=\"-\",AZ105=\"\"),\"-\",COUNTA(AZ$2:AZ105)-COUNTBLANK(AZ$2:AZ105))","v":"-"},{"$f":"IF(OR(INDEX(Data!A:A,0,1)=0,INDEX(Data!A:A,0,1)=\"-\"),\"\",INDEX(Data!A:A,0,1))","v":""}]
[null,null,null,null,null,null,null,null,null,null,null,null,null,null,null,null,null,null,null,null,null,null,null,null,null,null,null,null,null,null,null,null,null,null,null,null,null,null,null,null,null,null,null,null,null,null,null,null,null,null,{"$f":"IF(OR(AZ106=\"-\",AZ106=\"\"),\"-\",COUNTA(AZ$2:AZ106)-COUNTBLANK(AZ$2:AZ106))","v":"-"},{"$f":"IF(OR(INDEX(Data!A:A,0,1)=0,INDEX(Data!A:A,0,1)=\"-\"),\"\",INDEX(Data!A:A,0,1))","v":""}]
[null,null,null,null,null,null,null,null,null,null,null,null,null,null,null,null,null,null,null,null,null,null,null,null,null,null,null,null,null,null,null,null,null,null,null,null,null,null,null,null,null,null,null,null,null,null,null,null,null,null,{"$f":"IF(OR(AZ107=\"-\",AZ107=\"\"),\"-\",COUNTA(AZ$2:AZ107)-COUNTBLANK(AZ$2:AZ107))","v":"-"},{"$f":"IF(OR(INDEX(Data!A:A,0,1)=0,INDEX(Data!A:A,0,1)=\"-\"),\"\",INDEX(Data!A:A,0,1))","v":""}]
[null,null,null,null,null,null,null,null,null,null,null,null,null,null,null,null,null,null,null,null,null,null,null,null,null,null,null,null,null,null,null,null,null,null,null,null,null,null,null,null,null,null,null,null,null,null,null,null,null,null,{"$f":"IF(OR(AZ108=\"-\",AZ108=\"\"),\"-\",COUNTA(AZ$2:AZ108)-COUNTBLANK(AZ$2:AZ108))","v":"-"},{"$f":"IF(OR(INDEX(Data!A:A,0,1)=0,INDEX(Data!A:A,0,1)=\"-\"),\"\",INDEX(Data!A:A,0,1))","v":""}]
[null,null,null,null,null,null,null,null,null,null,null,null,null,null,null,null,null,null,null,null,null,null,null,null,null,null,null,null,null,null,null,null,null,null,null,null,null,null,null,null,null,null,null,null,null,null,null,null,null,null,{"$f":"IF(OR(AZ109=\"-\",AZ109=\"\"),\"-\",COUNTA(AZ$2:AZ109)-COUNTBLANK(AZ$2:AZ109))","v":"-"},{"$f":"IF(OR(INDEX(Data!A:A,0,1)=0,INDEX(Data!A:A,0,1)=\"-\"),\"\",INDEX(Data!A:A,0,1))","v":""}]
[null,null,null,null,null,null,null,null,null,null,null,null,null,null,null,null,null,null,null,null,null,null,null,null,null,null,null,null,null,null,null,null,null,null,null,null,null,null,null,null,null,null,null,null,null,null,null,null,null,null,{"$f":"IF(OR(AZ110=\"-\",AZ110=\"\"),\"-\",COUNTA(AZ$2:AZ110)-COUNTBLANK(AZ$2:AZ110))","v":"-"},{"$f":"IF(OR(INDEX(Data!A:A,0,1)=0,INDEX(Data!A:A,0,1)=\"-\"),\"\",INDEX(Data!A:A,0,1))","v":""},null,null,null,null,null,null,null,null,null,null,null,null,null,null,null,null,null,null,null,null,null,null,null,null,null,null,null,null,null,null,null,null,null,null,null,null,null,null,null,null,null,null,null,null,null,null,null,null,null,null,null,null,null,null,null,null,null,null,null,null,null,null,null,null,null,null,null,null,null,null,null,null,null,null,null,null,null,null,null,null,null,null,null,null,null,null,null,null,null,null,null,null,null,null,null,null,null,null,null,null,null,null,null,{"$f":"IF(OR(Info!D6=Info!D6,Info!D7=Info!D7,Info!D8=Info!D8),0,\"#####\")","v":0}]
[null,null,null,null,null,null,null,null,null,null,null,null,null,null,null,null,null,null,null,null,null,null,null,null,null,null,null,null,null,null,null,null,null,null,null,null,null,null,null,null,null,null,null,null,null,null,null,null,null,null,{"$f":"IF(OR(AZ111=\"-\",AZ111=\"\"),\"-\",COUNTA(AZ$2:AZ111)-COUNTBLANK(AZ$2:AZ111))","v":"-"},{"$f":"IF(OR(INDEX(Data!A:A,0,1)=0,INDEX(Data!A:A,0,1)=\"-\"),\"\",INDEX(Data!A:A,0,1))","v":""}]
[null,null,null,null,null,null,null,null,null,null,null,null,null,null,null,null,null,null,null,null,null,null,null,null,null,null,null,null,null,null,null,null,null,null,null,null,null,null,null,null,null,null,null,null,null,null,null,null,null,null,{"$f":"IF(OR(AZ112=\"-\",AZ112=\"\"),\"-\",COUNTA(AZ$2:AZ112)-COUNTBLANK(AZ$2:AZ112))","v":"-"},{"$f":"IF(OR(INDEX(Data!A:A,0,1)=0,INDEX(Data!A:A,0,1)=\"-\"),\"\",INDEX(Data!A:A,0,1))","v":""},null,null,null,null,null,null,null,null,null,null,null,null,null,null,null,null,null,null,null,null,null,null,null,null,null,null,null,null,null,null,null,null,null,null,null,null,null,null,null,null,null,null,null,null,null,null,null,null,null,null,null,null,{"$f":"IF(AND(HD!B2000=0,HD!B3000=0,HD!B4000=0),\"OPR-0\",\"#\")","v":"OPR-0"}]
[null,null,null,null,null,null,null,null,null,null,null,null,null,null,null,null,null,null,null,null,null,null,null,null,null,null,null,null,null,null,null,null,null,null,null,null,null,null,null,null,null,null,null,null,null,null,null,null,null,null,{"$f":"IF(OR(AZ113=\"-\",AZ113=\"\"),\"-\",COUNTA(AZ$2:AZ113)-COUNTBLANK(AZ$2:AZ113))","v":"-"},{"$f":"IF(OR(INDEX(Data!A:A,0,1)=0,INDEX(Data!A:A,0,1)=\"-\"),\"\",INDEX(Data!A:A,0,1))","v":""}]
[null,null,null,null,null,null,null,null,null,null,null,null,null,null,null,null,null,null,null,null,null,null,null,null,null,null,null,null,null,null,null,null,null,null,null,null,null,null,null,null,null,null,null,null,null,null,null,null,null,null,{"$f":"IF(OR(AZ114=\"-\",AZ114=\"\"),\"-\",COUNTA(AZ$2:AZ114)-COUNTBLANK(AZ$2:AZ114))","v":"-"},{"$f":"IF(OR(INDEX(Data!A:A,0,1)=0,INDEX(Data!A:A,0,1)=\"-\"),\"\",INDEX(Data!A:A,0,1))","v":""}]
[null,null,null,null,null,null,null,null,null,null,null,null,null,null,null,null,null,null,null,null,null,null,null,null,null,null,null,null,null,null,null,null,null,null,null,null,null,null,null,null,null,null,null,null,null,null,null,null,null,null,{"$f":"IF(OR(AZ115=\"-\",AZ115=\"\"),\"-\",COUNTA(AZ$2:AZ115)-COUNTBLANK(AZ$2:AZ115))","v":"-"},{"$f":"IF(OR(INDEX(Data!A:A,0,1)=0,INDEX(Data!A:A,0,1)=\"-\"),\"\",INDEX(Data!A:A,0,1))","v":""}]
[null,null,null,null,null,null,null,null,null,null,null,null,null,null,null,null,null,null,null,null,null,null,null,null,null,null,null,null,null,null,null,null,null,null,null,null,null,null,null,null,null,null,null,null,null,null,null,null,null,null,{"$f":"IF(OR(AZ116=\"-\",AZ116=\"\"),\"-\",COUNTA(AZ$2:AZ116)-COUNTBLANK(AZ$2:AZ116))","v":"-"},{"$f":"IF(OR(INDEX(Data!A:A,0,1)=0,INDEX(Data!A:A,0,1)=\"-\"),\"\",INDEX(Data!A:A,0,1))","v":""}]
[null,null,null,null,null,null,null,null,null,null,null,null,null,null,null,null,null,null,null,null,null,null,null,null,null,null,null,null,null,null,null,null,null,null,null,null,null,null,null,null,null,null,null,null,null,null,null,null,null,null,{"$f":"IF(OR(AZ117=\"-\",AZ117=\"\"),\"-\",COUNTA(AZ$2:AZ117)-COUNTBLANK(AZ$2:AZ117))","v":"-"},{"$f":"IF(OR(INDEX(Data!A:A,0,1)=0,INDEX(Data!A:A,0,1)=\"-\"),\"\",INDEX(Data!A:A,0,1))","v":""}]
[null,null,null,null,null,null,null,null,null,null,null,null,null,null,null,null,null,null,null,null,null,null,null,null,null,null,null,null,null,null,null,null,null,null,null,null,null,null,null,null,null,null,null,null,null,null,null,null,null,null,{"$f":"IF(OR(AZ118=\"-\",AZ118=\"\"),\"-\",COUNTA(AZ$2:AZ118)-COUNTBLANK(AZ$2:AZ118))","v":"-"},{"$f":"IF(OR(INDEX(Data!A:A,0,1)=0,INDEX(Data!A:A,0,1)=\"-\"),\"\",INDEX(Data!A:A,0,1))","v":""}]
[null,null,null,null,null,null,null,null,null,null,null,null,null,null,null,null,null,null,null,null,null,null,null,null,null,null,null,null,null,null,null,null,null,null,null,null,null,null,null,null,null,null,null,null,null,null,null,null,null,null,{"$f":"IF(OR(AZ119=\"-\",AZ119=\"\"),\"-\",COUNTA(AZ$2:AZ119)-COUNTBLANK(AZ$2:AZ119))","v":"-"},{"$f":"IF(OR(INDEX(Data!A:A,0,1)=0,INDEX(Data!A:A,0,1)=\"-\"),\"\",INDEX(Data!A:A,0,1))","v":""}]
[null,null,null,null,null,null,null,null,null,null,null,null,null,null,null,null,null,null,null,null,null,null,null,null,null,null,null,null,null,null,null,null,null,null,null,null,null,null,null,null,null,null,null,null,null,null,null,null,null,null,{"$f":"IF(OR(AZ120=\"-\",AZ120=\"\"),\"-\",COUNTA(AZ$2:AZ120)-COUNTBLANK(AZ$2:AZ120))","v":"-"},{"$f":"IF(OR(INDEX(Data!A:A,0,1)=0,INDEX(Data!A:A,0,1)=\"-\"),\"\",INDEX(Data!A:A,0,1))","v":""}]
[null,null,null,null,null,null,null,null,null,null,null,null,null,null,null,null,null,null,null,null,null,null,null,null,null,null,null,null,null,null,null,null,null,null,null,null,null,null,null,null,null,null,null,null,null,null,null,null,null,null,{"$f":"IF(OR(AZ121=\"-\",AZ121=\"\"),\"-\",COUNTA(AZ$2:AZ121)-COUNTBLANK(AZ$2:AZ121))","v":"-"},{"$f":"IF(OR(INDEX(Data!A:A,0,1)=0,INDEX(Data!A:A,0,1)=\"-\"),\"\",INDEX(Data!A:A,0,1))","v":""}]
[null,null,null,null,null,null,null,null,null,null,null,null,null,null,null,null,null,null,null,null,null,null,null,null,null,null,null,null,null,null,null,null,null,null,null,null,null,null,null,null,null,null,null,null,null,null,null,null,null,null,{"$f":"IF(OR(AZ122=\"-\",AZ122=\"\"),\"-\",COUNTA(AZ$2:AZ122)-COUNTBLANK(AZ$2:AZ122))","v":"-"},{"$f":"IF(OR(INDEX(Data!A:A,0,1)=0,INDEX(Data!A:A,0,1)=\"-\"),\"\",INDEX(Data!A:A,0,1))","v":""},null,null,null,null,null,null,null,null,null,null,null,null,null,null,null,null,null,null,null,null,null,null,null,null,null,null,null,null,null,null,null,null,null,null,null,null,null,null,null,null,null,null,null,null,null,null,null,null,null,null,null,null,null,null,null,null,null,null,null,null,null,null,null,null,null,null,null,null,null,null,null,null,null,null,null,null,null,null,null,null,null,null,null,null,null,null,null,null,null,null,null,null,null,null,null,null,null,null,null,null,null,null,null,{"$f":"IF(AND(HD!B2000=0,HD!B3000=0,HD!B4000=0),COUNTBLANK(Data!$A$78:$B$78),\"#\")","v":2}]
[null,null,null,null,null,null,null,null,null,null,null,null,null,null,null,null,null,null,null,null,null,null,null,null,null,null,null,null,null,null,null,null,null,null,null,null,null,null,null,null,null,null,null,null,null,null,null,null,null,null,{"$f":"IF(OR(AZ123=\"-\",AZ123=\"\"),\"-\",COUNTA(AZ$2:AZ123)-COUNTBLANK(AZ$2:AZ123))","v":"-"},{"$f":"IF(OR(INDEX(Data!A:A,0,1)=0,INDEX(Data!A:A,0,1)=\"-\"),\"\",INDEX(Data!A:A,0,1))","v":""}]
[null,null,null,null,null,null,null,null,null,null,null,null,null,null,null,null,null,null,null,null,null,null,null,null,null,null,null,null,null,null,null,null,null,null,null,null,null,null,null,null,null,null,null,null,null,null,null,null,null,null,{"$f":"IF(OR(AZ124=\"-\",AZ124=\"\"),\"-\",COUNTA(AZ$2:AZ124)-COUNTBLANK(AZ$2:AZ124))","v":"-"},{"$f":"IF(OR(INDEX(Data!A:A,0,1)=0,INDEX(Data!A:A,0,1)=\"-\"),\"\",INDEX(Data!A:A,0,1))","v":""},null,null,null,null,null,null,null,null,null,null,null,null,null,null,null,null,null,null,null,null,null,null,null,null,null,null,null,null,null,null,null,null,null,null,null,null,null,null,null,null,null,null,null,null,null,null,null,null,null,null,null,null,{"$f":"IF(AND(HD!B2000=0,HD!B3000=0,HD!B4000=0),\"OPR-\",\"#\")","v":"OPR-"}]
[null,null,null,null,null,null,null,null,null,null,null,null,null,null,null,null,null,null,null,null,null,null,null,null,null,null,null,null,null,null,null,null,null,null,null,null,null,null,null,null,null,null,null,null,null,null,null,null,null,null,{"$f":"IF(OR(AZ125=\"-\",AZ125=\"\"),\"-\",COUNTA(AZ$2:AZ125)-COUNTBLANK(AZ$2:AZ125))","v":"-"},{"$f":"IF(OR(INDEX(Data!A:A,0,1)=0,INDEX(Data!A:A,0,1)=\"-\"),\"\",INDEX(Data!A:A,0,1))","v":""}]
[null,null,null,null,null,null,null,null,null,null,null,null,null,null,null,null,null,null,null,null,null,null,null,null,null,null,null,null,null,null,null,null,null,null,null,null,null,null,null,null,null,null,null,null,null,null,null,null,null,null,{"$f":"IF(OR(AZ126=\"-\",AZ126=\"\"),\"-\",COUNTA(AZ$2:AZ126)-COUNTBLANK(AZ$2:AZ126))","v":"-"},{"$f":"IF(OR(INDEX(Data!A:A,0,1)=0,INDEX(Data!A:A,0,1)=\"-\"),\"\",INDEX(Data!A:A,0,1))","v":""}]
[null,null,null,null,null,null,null,null,null,null,null,null,null,null,null,null,null,null,null,null,null,null,null,null,null,null,null,null,null,null,null,null,null,null,null,null,null,null,null,null,null,null,null,null,null,null,null,null,null,null,{"$f":"IF(OR(AZ127=\"-\",AZ127=\"\"),\"-\",COUNTA(AZ$2:AZ127)-COUNTBLANK(AZ$2:AZ127))","v":"-"},{"$f":"IF(OR(INDEX(Data!A:A,0,1)=0,INDEX(Data!A:A,0,1)=\"-\"),\"\",INDEX(Data!A:A,0,1))","v":""}]
[null,null,null,null,null,null,null,null,null,null,null,null,null,null,null,null,null,null,null,null,null,null,null,null,null,null,null,null,null,null,null,null,null,null,null,null,null,null,null,null,null,null,null,null,null,null,null,null,null,null,{"$f":"IF(OR(AZ128=\"-\",AZ128=\"\"),\"-\",COUNTA(AZ$2:AZ128)-COUNTBLANK(AZ$2:AZ128))","v":"-"},{"$f":"IF(OR(INDEX(Data!A:A,0,1)=0,INDEX(Data!A:A,0,1)=\"-\"),\"\",INDEX(Data!A:A,0,1))","v":""}]
[null,null,null,null,null,null,null,null,null,null,null,null,null,null,null,null,null,null,null,null,null,null,null,null,null,null,null,null,null,null,null,null,null,null,null,null,null,null,null,null,null,null,null,null,null,null,null,null,null,null,{"$f":"IF(OR(AZ129=\"-\",AZ129=\"\"),\"-\",COUNTA(AZ$2:AZ129)-COUNTBLANK(AZ$2:AZ129))","v":"-"},{"$f":"IF(OR(INDEX(Data!A:A,0,1)=0,INDEX(Data!A:A,0,1)=\"-\"),\"\",INDEX(Data!A:A,0,1))","v":""}]
[null,null,null,null,null,null,null,null,null,null,null,null,null,null,null,null,null,null,null,null,null,null,null,null,null,null,null,null,null,null,null,null,null,null,null,null,null,null,null,null,null,null,null,null,null,null,null,null,null,null,{"$f":"IF(OR(AZ130=\"-\",AZ130=\"\"),\"-\",COUNTA(AZ$2:AZ130)-COUNTBLANK(AZ$2:AZ130))","v":"-"},{"$f":"IF(OR(INDEX(Data!A:A,0,1)=0,INDEX(Data!A:A,0,1)=\"-\"),\"\",INDEX(Data!A:A,0,1))","v":""}]
[null,null,null,null,null,null,null,null,null,null,null,null,null,null,null,null,null,null,null,null,null,null,null,null,null,null,null,null,null,null,null,null,null,null,null,null,null,null,null,null,null,null,null,null,null,null,null,null,null,null,{"$f":"IF(OR(AZ131=\"-\",AZ131=\"\"),\"-\",COUNTA(AZ$2:AZ131)-COUNTBLANK(AZ$2:AZ131))","v":"-"},{"$f":"IF(OR(INDEX(Data!A:A,0,1)=0,INDEX(Data!A:A,0,1)=\"-\"),\"\",INDEX(Data!A:A,0,1))","v":""}]
[null,null,null,null,null,null,null,null,null,null,null,null,null,null,null,null,null,null,null,null,null,null,null,null,null,null,null,null,null,null,null,null,null,null,null,null,null,null,null,null,null,null,null,null,null,null,null,null,null,null,{"$f":"IF(OR(AZ132=\"-\",AZ132=\"\"),\"-\",COUNTA(AZ$2:AZ132)-COUNTBLANK(AZ$2:AZ132))","v":"-"},{"$f":"IF(OR(INDEX(Data!A:A,0,1)=0,INDEX(Data!A:A,0,1)=\"-\"),\"\",INDEX(Data!A:A,0,1))","v":""}]
[null,null,null,null,null,null,null,null,null,null,null,null,null,null,null,null,null,null,null,null,null,null,null,null,null,null,null,null,null,null,null,null,null,null,null,null,null,null,null,null,null,null,null,null,null,null,null,null,null,null,{"$f":"IF(OR(AZ133=\"-\",AZ133=\"\"),\"-\",COUNTA(AZ$2:AZ133)-COUNTBLANK(AZ$2:AZ133))","v":"-"},{"$f":"IF(OR(INDEX(Data!A:A,0,1)=0,INDEX(Data!A:A,0,1)=\"-\"),\"\",INDEX(Data!A:A,0,1))","v":""}]
[null,null,null,null,null,null,null,null,null,null,null,null,null,null,null,null,null,null,null,null,null,null,null,null,null,null,null,null,null,null,null,null,null,null,null,null,null,null,null,null,null,null,null,null,null,null,null,null,null,null,{"$f":"IF(OR(AZ134=\"-\",AZ134=\"\"),\"-\",COUNTA(AZ$2:AZ134)-COUNTBLANK(AZ$2:AZ134))","v":"-"},{"$f":"IF(OR(INDEX(Data!A:A,0,1)=0,INDEX(Data!A:A,0,1)=\"-\"),\"\",INDEX(Data!A:A,0,1))","v":""},null,null,null,null,null,null,null,null,null,null,null,null,null,null,null,null,null,null,null,null,null,null,null,null,null,null,null,null,null,null,null,null,null,null,null,null,null,null,null,null,null,null,null,null,null,null,null,null,null,null,null,null,null,null,null,null,null,null,null,null,null,null,null,null,null,null,null,null,null,null,null,null,null,null,null,null,null,null,null,null,null,null,null,null,null,null,null,null,null,null,null,null,null,null,null,null,null,null,null,null,null,null,null,{"$f":"IF(AND(HD!B2000=0,HD!B3000=0,HD!B4000=0),COUNTBLANK(Data!$A$78:$C$78),\"#\")","v":3}]
[null,null,null,null,null,null,null,null,null,null,null,null,null,null,null,null,null,null,null,null,null,null,null,null,null,null,null,null,null,null,null,null,null,null,null,null,null,null,null,null,null,null,null,null,null,null,null,null,null,null,{"$f":"IF(OR(AZ135=\"-\",AZ135=\"\"),\"-\",COUNTA(AZ$2:AZ135)-COUNTBLANK(AZ$2:AZ135))","v":"-"},{"$f":"IF(OR(INDEX(Data!A:A,0,1)=0,INDEX(Data!A:A,0,1)=\"-\"),\"\",INDEX(Data!A:A,0,1))","v":""}]
[null,null,null,null,null,null,null,null,null,null,null,null,null,null,null,null,null,null,null,null,null,null,null,null,null,null,null,null,null,null,null,null,null,null,null,null,null,null,null,null,null,null,null,null,null,null,null,null,null,null,{"$f":"IF(OR(AZ136=\"-\",AZ136=\"\"),\"-\",COUNTA(AZ$2:AZ136)-COUNTBLANK(AZ$2:AZ136))","v":"-"},{"$f":"IF(OR(INDEX(Data!A:A,0,1)=0,INDEX(Data!A:A,0,1)=\"-\"),\"\",INDEX(Data!A:A,0,1))","v":""},null,null,null,null,null,null,null,null,null,null,null,null,null,null,null,null,null,null,null,null,null,null,null,null,null,null,null,null,null,null,null,null,null,null,null,null,null,null,null,null,null,null,null,null,null,null,null,null,null,null,null,null,{"$f":"IF(AND(HD!B2000=0,HD!B3000=0,HD!B4000=0),\"INV-0\",\"#\")","v":"INV-0"}]
[null,null,null,null,null,null,null,null,null,null,null,null,null,null,null,null,null,null,null,null,null,null,null,null,null,null,null,null,null,null,null,null,null,null,null,null,null,null,null,null,null,null,null,null,null,null,null,null,null,null,{"$f":"IF(OR(AZ137=\"-\",AZ137=\"\"),\"-\",COUNTA(AZ$2:AZ137)-COUNTBLANK(AZ$2:AZ137))","v":"-"},{"$f":"IF(OR(INDEX(Data!A:A,0,1)=0,INDEX(Data!A:A,0,1)=\"-\"),\"\",INDEX(Data!A:A,0,1))","v":""}]
[null,null,null,null,null,null,null,null,null,null,null,null,null,null,null,null,null,null,null,null,null,null,null,null,null,null,null,null,null,null,null,null,null,null,null,null,null,null,null,null,null,null,null,null,null,null,null,null,null,null,{"$f":"IF(OR(AZ138=\"-\",AZ138=\"\"),\"-\",COUNTA(AZ$2:AZ138)-COUNTBLANK(AZ$2:AZ138))","v":"-"},{"$f":"IF(OR(INDEX(Data!A:A,0,1)=0,INDEX(Data!A:A,0,1)=\"-\"),\"\",INDEX(Data!A:A,0,1))","v":""}]
[null,null,null,null,null,null,null,null,null,null,null,null,null,null,null,null,null,null,null,null,null,null,null,null,null,null,null,null,null,null,null,null,null,null,null,null,null,null,null,null,null,null,null,null,null,null,null,null,null,null,{"$f":"IF(OR(AZ139=\"-\",AZ139=\"\"),\"-\",COUNTA(AZ$2:AZ139)-COUNTBLANK(AZ$2:AZ139))","v":"-"},{"$f":"IF(OR(INDEX(Data!A:A,0,1)=0,INDEX(Data!A:A,0,1)=\"-\"),\"\",INDEX(Data!A:A,0,1))","v":""}]
[null,null,null,null,null,null,null,null,null,null,null,null,null,null,null,null,null,null,null,null,null,null,null,null,null,null,null,null,null,null,null,null,null,null,null,null,null,null,null,null,null,null,null,null,null,null,null,null,null,null,{"$f":"IF(OR(AZ140=\"-\",AZ140=\"\"),\"-\",COUNTA(AZ$2:AZ140)-COUNTBLANK(AZ$2:AZ140))","v":"-"},{"$f":"IF(OR(INDEX(Data!A:A,0,1)=0,INDEX(Data!A:A,0,1)=\"-\"),\"\",INDEX(Data!A:A,0,1))","v":""}]
[null,null,null,null,null,null,null,null,null,null,null,null,null,null,null,null,null,null,null,null,null,null,null,null,null,null,null,null,null,null,null,null,null,null,null,null,null,null,null,null,null,null,null,null,null,null,null,null,null,null,{"$f":"IF(OR(AZ141=\"-\",AZ141=\"\"),\"-\",COUNTA(AZ$2:AZ141)-COUNTBLANK(AZ$2:AZ141))","v":"-"},{"$f":"IF(OR(INDEX(Data!A:A,0,1)=0,INDEX(Data!A:A,0,1)=\"-\"),\"\",INDEX(Data!A:A,0,1))","v":""}]
[null,null,null,null,null,null,null,null,null,null,null,null,null,null,null,null,null,null,null,null,null,null,null,null,null,null,null,null,null,null,null,null,null,null,null,null,null,null,null,null,null,null,null,null,null,null,null,null,null,null,{"$f":"IF(OR(AZ142=\"-\",AZ142=\"\"),\"-\",COUNTA(AZ$2:AZ142)-COUNTBLANK(AZ$2:AZ142))","v":"-"},{"$f":"IF(OR(INDEX(Data!A:A,0,1)=0,INDEX(Data!A:A,0,1)=\"-\"),\"\",INDEX(Data!A:A,0,1))","v":""}]
[null,null,null,null,null,null,null,null,null,null,null,null,null,null,null,null,null,null,null,null,null,null,null,null,null,null,null,null,null,null,null,null,null,null,null,null,null,null,null,null,null,null,null,null,null,null,null,null,null,null,{"$f":"IF(OR(AZ143=\"-\",AZ143=\"\"),\"-\",COUNTA(AZ$2:AZ143)-COUNTBLANK(AZ$2:AZ143))","v":"-"},{"$f":"IF(OR(INDEX(Data!A:A,0,1)=0,INDEX(Data!A:A,0,1)=\"-\"),\"\",INDEX(Data!A:A,0,1))","v":""}]
[null,null,null,null,null,null,null,null,null,null,null,null,null,null,null,null,null,null,null,null,null,null,null,null,null,null,null,null,null,null,null,null,null,null,null,null,null,null,null,null,null,null,null,null,null,null,null,null,null,null,{"$f":"IF(OR(AZ144=\"-\",AZ144=\"\"),\"-\",COUNTA(AZ$2:AZ144)-COUNTBLANK(AZ$2:AZ144))","v":"-"},{"$f":"IF(OR(INDEX(Data!A:A,0,1)=0,INDEX(Data!A:A,0,1)=\"-\"),\"\",INDEX(Data!A:A,0,1))","v":""}]
[null,null,null,null,null,null,null,null,null,null,null,null,null,null,null,null,null,null,null,null,null,null,null,null,null,null,null,null,null,null,null,null,null,null,null,null,null,null,null,null,null,null,null,null,null,null,null,null,null,null,{"$f":"IF(OR(AZ145=\"-\",AZ145=\"\"),\"-\",COUNTA(AZ$2:AZ145)-COUNTBLANK(AZ$2:AZ145))","v":"-"},{"$f":"IF(OR(INDEX(Data!A:A,0,1)=0,INDEX(Data!A:A,0,1)=\"-\"),\"\",INDEX(Data!A:A,0,1))","v":""}]
[null,null,null,null,null,null,null,null,null,null,null,null,null,null,null,null,null,null,null,null,null,null,null,null,null,null,null,null,null,null,null,null,null,null,null,null,null,null,null,null,null,null,null,null,null,null,null,null,null,null,{"$f":"IF(OR(AZ146=\"-\",AZ146=\"\"),\"-\",COUNTA(AZ$2:AZ146)-COUNTBLANK(AZ$2:AZ146))","v":"-"},{"$f":"IF(OR(INDEX(Data!A:A,0,1)=0,INDEX(Data!A:A,0,1)=\"-\"),\"\",INDEX(Data!A:A,0,1))","v":""},null,null,null,null,null,null,null,null,null,null,null,null,null,null,null,null,null,null,null,null,null,null,null,null,null,null,null,null,null,null,null,null,null,null,null,null,null,null,null,null,null,null,null,null,null,null,null,null,null,null,null,null,null,null,null,null,null,null,null,null,null,null,null,null,null,null,null,null,null,null,null,null,null,null,null,null,null,null,null,null,null,null,null,null,null,null,null,null,null,null,null,null,null,null,null,null,null,null,null,null,null,null,null,{"$f":"IF(AND(HD!B2000=0,HD!B3000=0,HD!B4000=0),COUNTBLANK(Data!$A$78:$F$78),\"#\")","v":6}]
[null,null,null,null,null,null,null,null,null,null,null,null,null,null,null,null,null,null,null,null,null,null,null,null,null,null,null,null,null,null,null,null,null,null,null,null,null,null,null,null,null,null,null,null,null,null,null,null,null,null,{"$f":"IF(OR(AZ147=\"-\",AZ147=\"\"),\"-\",COUNTA(AZ$2:AZ147)-COUNTBLANK(AZ$2:AZ147))","v":"-"},{"$f":"IF(OR(INDEX(Data!A:A,0,1)=0,INDEX(Data!A:A,0,1)=\"-\"),\"\",INDEX(Data!A:A,0,1))","v":""}]
[null,null,null,null,null,null,null,null,null,null,null,null,null,null,null,null,null,null,null,null,null,null,null,null,null,null,null,null,null,null,null,null,null,null,null,null,null,null,null,null,null,null,null,null,null,null,null,null,null,null,{"$f":"IF(OR(AZ148=\"-\",AZ148=\"\"),\"-\",COUNTA(AZ$2:AZ148)-COUNTBLANK(AZ$2:AZ148))","v":"-"},{"$f":"IF(OR(INDEX(Data!A:A,0,1)=0,INDEX(Data!A:A,0,1)=\"-\"),\"\",INDEX(Data!A:A,0,1))","v":""},null,null,null,null,null,null,null,null,null,null,null,null,null,null,null,null,null,null,null,null,null,null,null,null,null,null,null,null,null,null,null,null,null,null,null,null,null,null,null,null,null,null,null,null,null,null,null,null,null,null,null,null,{"$f":"IF(AND(HD!B2000=0,HD!B3000=0,HD!B4000=0),\"INV-\",\"#\")","v":"INV-"}]
[null,null,null,null,null,null,null,null,null,null,null,null,null,null,null,null,null,null,null,null,null,null,null,null,null,null,null,null,null,null,null,null,null,null,null,null,null,null,null,null,null,null,null,null,null,null,null,null,null,null,{"$f":"IF(OR(AZ149=\"-\",AZ149=\"\"),\"-\",COUNTA(AZ$2:AZ149)-COUNTBLANK(AZ$2:AZ149))","v":"-"},{"$f":"IF(OR(INDEX(Data!A:A,0,1)=0,INDEX(Data!A:A,0,1)=\"-\"),\"\",INDEX(Data!A:A,0,1))","v":""}]
[null,null,null,null,null,null,null,null,null,null,null,null,null,null,null,null,null,null,null,null,null,null,null,null,null,null,null,null,null,null,null,null,null,null,null,null,null,null,null,null,null,null,null,null,null,null,null,null,null,null,{"$f":"IF(OR(AZ150=\"-\",AZ150=\"\"),\"-\",COUNTA(AZ$2:AZ150)-COUNTBLANK(AZ$2:AZ150))","v":"-"},{"$f":"IF(OR(INDEX(Data!A:A,0,1)=0,INDEX(Data!A:A,0,1)=\"-\"),\"\",INDEX(Data!A:A,0,1))","v":""}]
[null,null,null,null,null,null,null,null,null,null,null,null,null,null,null,null,null,null,null,null,null,null,null,null,null,null,null,null,null,null,null,null,null,null,null,null,null,null,null,null,null,null,null,null,null,null,null,null,null,null,{"$f":"IF(OR(AZ151=\"-\",AZ151=\"\"),\"-\",COUNTA(AZ$2:AZ151)-COUNTBLANK(AZ$2:AZ151))","v":"-"},{"$f":"IF(OR(INDEX(Data!A:A,0,1)=0,INDEX(Data!A:A,0,1)=\"-\"),\"\",INDEX(Data!A:A,0,1))","v":""}]
[null,null,null,null,null,null,null,null,null,null,null,null,null,null,null,null,null,null,null,null,null,null,null,null,null,null,null,null,null,null,null,null,null,null,null,null,null,null,null,null,null,null,null,null,null,null,null,null,null,null,{"$f":"IF(OR(AZ152=\"-\",AZ152=\"\"),\"-\",COUNTA(AZ$2:AZ152)-COUNTBLANK(AZ$2:AZ152))","v":"-"},{"$f":"IF(OR(INDEX(Data!A:A,0,1)=0,INDEX(Data!A:A,0,1)=\"-\"),\"\",INDEX(Data!A:A,0,1))","v":""}]
[null,null,null,null,null,null,null,null,null,null,null,null,null,null,null,null,null,null,null,null,null,null,null,null,null,null,null,null,null,null,null,null,null,null,null,null,null,null,null,null,null,null,null,null,null,null,null,null,null,null,{"$f":"IF(OR(AZ153=\"-\",AZ153=\"\"),\"-\",COUNTA(AZ$2:AZ153)-COUNTBLANK(AZ$2:AZ153))","v":"-"},{"$f":"IF(OR(INDEX(Data!A:A,0,1)=0,INDEX(Data!A:A,0,1)=\"-\"),\"\",INDEX(Data!A:A,0,1))","v":""}]
[null,null,null,null,null,null,null,null,null,null,null,null,null,null,null,null,null,null,null,null,null,null,null,null,null,null,null,null,null,null,null,null,null,null,null,null,null,null,null,null,null,null,null,null,null,null,null,null,null,null,{"$f":"IF(OR(AZ154=\"-\",AZ154=\"\"),\"-\",COUNTA(AZ$2:AZ154)-COUNTBLANK(AZ$2:AZ154))","v":"-"},{"$f":"IF(OR(INDEX(Data!A:A,0,1)=0,INDEX(Data!A:A,0,1)=\"-\"),\"\",INDEX(Data!A:A,0,1))","v":""}]
[null,null,null,null,null,null,null,null,null,null,null,null,null,null,null,null,null,null,null,null,null,null,null,null,null,null,null,null,null,null,null,null,null,null,null,null,null,null,null,null,null,null,null,null,null,null,null,null,null,null,{"$f":"IF(OR(AZ155=\"-\",AZ155=\"\"),\"-\",COUNTA(AZ$2:AZ155)-COUNTBLANK(AZ$2:AZ155))","v":"-"},{"$f":"IF(OR(INDEX(Data!A:A,0,1)=0,INDEX(Data!A:A,0,1)=\"-\"),\"\",INDEX(Data!A:A,0,1))","v":""}]
[null,null,null,null,null,null,null,null,null,null,null,null,null,null,null,null,null,null,null,null,null,null,null,null,null,null,null,null,null,null,null,null,null,null,null,null,null,null,null,null,null,null,null,null,null,null,null,null,null,null,{"$f":"IF(OR(AZ156=\"-\",AZ156=\"\"),\"-\",COUNTA(AZ$2:AZ156)-COUNTBLANK(AZ$2:AZ156))","v":"-"},{"$f":"IF(OR(INDEX(Data!A:A,0,1)=0,INDEX(Data!A:A,0,1)=\"-\"),\"\",INDEX(Data!A:A,0,1))","v":""}]
[null,null,null,null,null,null,null,null,null,null,null,null,null,null,null,null,null,null,null,null,null,null,null,null,null,null,null,null,null,null,null,null,null,null,null,null,null,null,null,null,null,null,null,null,null,null,null,null,null,null,{"$f":"IF(OR(AZ157=\"-\",AZ157=\"\"),\"-\",COUNTA(AZ$2:AZ157)-COUNTBLANK(AZ$2:AZ157))","v":"-"},{"$f":"IF(OR(INDEX(Data!A:A,0,1)=0,INDEX(Data!A:A,0,1)=\"-\"),\"\",INDEX(Data!A:A,0,1))","v":""}]
[null,null,null,null,null,null,null,null,null,null,null,null,null,null,null,null,null,null,null,null,null,null,null,null,null,null,null,null,null,null,null,null,null,null,null,null,null,null,null,null,null,null,null,null,null,null,null,null,null,null,{"$f":"IF(OR(AZ158=\"-\",AZ158=\"\"),\"-\",COUNTA(AZ$2:AZ158)-COUNTBLANK(AZ$2:AZ158))","v":"-"},{"$f":"IF(OR(INDEX(Data!A:A,0,1)=0,INDEX(Data!A:A,0,1)=\"-\"),\"\",INDEX(Data!A:A,0,1))","v":""},null,null,null,null,null,null,null,null,null,null,null,null,null,null,null,null,null,null,null,null,null,null,null,null,null,null,null,null,null,null,null,null,null,null,null,null,null,null,null,null,null,null,null,null,null,null,null,null,null,null,null,null,null,null,null,null,null,null,null,null,null,null,null,null,null,null,null,null,null,null,null,null,null,null,null,null,null,null,null,null,null,null,null,null,null,null,null,null,null,null,null,null,null,null,null,null,null,null,null,null,null,null,null,{"$f":"IF(AND(tgl_2-tgl_1>300,tgl_3-tgl_2>300),\"Tahun \"&TEXT(tgl_1,\"YYY\"),IF(AND(tgl_2-tgl_1<300,tgl_3-tgl_2<300),\"Bulan \"&TEXT(tgl_1,\"MMM-YYY\"),\"No Konsiten\"))","v":"Tahun 2015"}]
[null,null,null,null,null,null,null,null,null,null,null,null,null,null,null,null,null,null,null,null,null,null,null,null,null,null,null,null,null,null,null,null,null,null,null,null,null,null,null,null,null,null,null,null,null,null,null,null,null,null,{"$f":"IF(OR(AZ159=\"-\",AZ159=\"\"),\"-\",COUNTA(AZ$2:AZ159)-COUNTBLANK(AZ$2:AZ159))","v":"-"},{"$f":"IF(OR(INDEX(Data!A:A,0,1)=0,INDEX(Data!A:A,0,1)=\"-\"),\"\",INDEX(Data!A:A,0,1))","v":""}]
[null,null,null,null,null,null,null,null,null,null,null,null,null,null,null,null,null,null,null,null,null,null,null,null,null,null,null,null,null,null,null,null,null,null,null,null,null,null,null,null,null,null,null,null,null,null,null,null,null,null,{"$f":"IF(OR(AZ160=\"-\",AZ160=\"\"),\"-\",COUNTA(AZ$2:AZ160)-COUNTBLANK(AZ$2:AZ160))","v":"-"},{"$f":"IF(OR(INDEX(Data!A:A,0,1)=0,INDEX(Data!A:A,0,1)=\"-\"),\"\",INDEX(Data!A:A,0,1))","v":""},null,null,null,null,null,null,null,null,null,null,null,null,null,null,null,null,null,null,null,null,null,null,null,null,null,null,null,null,null,null,null,null,null,null,null,null,null,null,null,null,null,null,null,null,null,null,null,null,null,null,null,null,{"$f":"IF(AND(HD!B2000=0,HD!B3000=0,HD!B4000=0),\"DNA-0\",\"#\")","v":"DNA-0"}]
[null,null,null,null,null,null,null,null,null,null,null,null,null,null,null,null,null,null,null,null,null,null,null,null,null,null,null,null,null,null,null,null,null,null,null,null,null,null,null,null,null,null,null,null,null,null,null,null,null,null,{"$f":"IF(OR(AZ161=\"-\",AZ161=\"\"),\"-\",COUNTA(AZ$2:AZ161)-COUNTBLANK(AZ$2:AZ161))","v":"-"},{"$f":"IF(OR(INDEX(Data!A:A,0,1)=0,INDEX(Data!A:A,0,1)=\"-\"),\"\",INDEX(Data!A:A,0,1))","v":""}]
[null,null,null,null,null,null,null,null,null,null,null,null,null,null,null,null,null,null,null,null,null,null,null,null,null,null,null,null,null,null,null,null,null,null,null,null,null,null,null,null,null,null,null,null,null,null,null,null,null,null,{"$f":"IF(OR(AZ162=\"-\",AZ162=\"\"),\"-\",COUNTA(AZ$2:AZ162)-COUNTBLANK(AZ$2:AZ162))","v":"-"},{"$f":"IF(OR(INDEX(Data!A:A,0,1)=0,INDEX(Data!A:A,0,1)=\"-\"),\"\",INDEX(Data!A:A,0,1))","v":""}]
[null,null,null,null,null,null,null,null,null,null,null,null,null,null,null,null,null,null,null,null,null,null,null,null,null,null,null,null,null,null,null,null,null,null,null,null,null,null,null,null,null,null,null,null,null,null,null,null,null,null,{"$f":"IF(OR(AZ163=\"-\",AZ163=\"\"),\"-\",COUNTA(AZ$2:AZ163)-COUNTBLANK(AZ$2:AZ163))","v":"-"},{"$f":"IF(OR(INDEX(Data!A:A,0,1)=0,INDEX(Data!A:A,0,1)=\"-\"),\"\",INDEX(Data!A:A,0,1))","v":""}]
[null,null,null,null,null,null,null,null,null,null,null,null,null,null,null,null,null,null,null,null,null,null,null,null,null,null,null,null,null,null,null,null,null,null,null,null,null,null,null,null,null,null,null,null,null,null,null,null,null,null,{"$f":"IF(OR(AZ164=\"-\",AZ164=\"\"),\"-\",COUNTA(AZ$2:AZ164)-COUNTBLANK(AZ$2:AZ164))","v":"-"},{"$f":"IF(OR(INDEX(Data!A:A,0,1)=0,INDEX(Data!A:A,0,1)=\"-\"),\"\",INDEX(Data!A:A,0,1))","v":""}]
[null,null,null,null,null,null,null,null,null,null,null,null,null,null,null,null,null,null,null,null,null,null,null,null,null,null,null,null,null,null,null,null,null,null,null,null,null,null,null,null,null,null,null,null,null,null,null,null,null,null,{"$f":"IF(OR(AZ165=\"-\",AZ165=\"\"),\"-\",COUNTA(AZ$2:AZ165)-COUNTBLANK(AZ$2:AZ165))","v":"-"},{"$f":"IF(OR(INDEX(Data!A:A,0,1)=0,INDEX(Data!A:A,0,1)=\"-\"),\"\",INDEX(Data!A:A,0,1))","v":""}]
[null,null,null,null,null,null,null,null,null,null,null,null,null,null,null,null,null,null,null,null,null,null,null,null,null,null,null,null,null,null,null,null,null,null,null,null,null,null,null,null,null,null,null,null,null,null,null,null,null,null,{"$f":"IF(OR(AZ166=\"-\",AZ166=\"\"),\"-\",COUNTA(AZ$2:AZ166)-COUNTBLANK(AZ$2:AZ166))","v":"-"},{"$f":"IF(OR(INDEX(Data!A:A,0,1)=0,INDEX(Data!A:A,0,1)=\"-\"),\"\",INDEX(Data!A:A,0,1))","v":""}]
[null,null,null,null,null,null,null,null,null,null,null,null,null,null,null,null,null,null,null,null,null,null,null,null,null,null,null,null,null,null,null,null,null,null,null,null,null,null,null,null,null,null,null,null,null,null,null,null,null,null,{"$f":"IF(OR(AZ167=\"-\",AZ167=\"\"),\"-\",COUNTA(AZ$2:AZ167)-COUNTBLANK(AZ$2:AZ167))","v":"-"},{"$f":"IF(OR(INDEX(Data!A:A,0,1)=0,INDEX(Data!A:A,0,1)=\"-\"),\"\",INDEX(Data!A:A,0,1))","v":""}]
[null,null,null,null,null,null,null,null,null,null,null,null,null,null,null,null,null,null,null,null,null,null,null,null,null,null,null,null,null,null,null,null,null,null,null,null,null,null,null,null,null,null,null,null,null,null,null,null,null,null,{"$f":"IF(OR(AZ168=\"-\",AZ168=\"\"),\"-\",COUNTA(AZ$2:AZ168)-COUNTBLANK(AZ$2:AZ168))","v":"-"},{"$f":"IF(OR(INDEX(Data!A:A,0,1)=0,INDEX(Data!A:A,0,1)=\"-\"),\"\",INDEX(Data!A:A,0,1))","v":""}]
[null,null,null,null,null,null,null,null,null,null,null,null,null,null,null,null,null,null,null,null,null,null,null,null,null,null,null,null,null,null,null,null,null,null,null,null,null,null,null,null,null,null,null,null,null,null,null,null,null,null,{"$f":"IF(OR(AZ169=\"-\",AZ169=\"\"),\"-\",COUNTA(AZ$2:AZ169)-COUNTBLANK(AZ$2:AZ169))","v":"-"},{"$f":"IF(OR(INDEX(Data!A:A,0,1)=0,INDEX(Data!A:A,0,1)=\"-\"),\"\",INDEX(Data!A:A,0,1))","v":""}]
[null,null,null,null,null,null,null,null,null,null,null,null,null,null,null,null,null,null,null,null,null,null,null,null,null,null,null,null,null,null,null,null,null,null,null,null,null,null,null,null,null,null,null,null,null,null,null,null,null,null,{"$f":"IF(OR(AZ170=\"-\",AZ170=\"\"),\"-\",COUNTA(AZ$2:AZ170)-COUNTBLANK(AZ$2:AZ170))","v":"-"},{"$f":"IF(OR(INDEX(Data!A:A,0,1)=0,INDEX(Data!A:A,0,1)=\"-\"),\"\",INDEX(Data!A:A,0,1))","v":""},null,null,null,null,null,null,null,null,null,null,null,null,null,null,null,null,null,null,null,null,null,null,null,null,null,null,null,null,null,null,null,null,null,null,null,null,null,null,null,null,null,null,null,null,null,null,null,null,null,null,null,null,null,null,null,null,null,null,null,null,null,null,null,null,null,null,null,null,null,null,null,null,null,null,null,null,null,null,null,null,null,null,null,null,null,null,null,null,null,null,null,null,null,null,null,null,null,null,null,null,null,null,null,{"$f":"IF(AND(tgl_2-tgl_1>300,tgl_3-tgl_2>300),\"Tahun \"&TEXT(tgl_2,\"YYY\"),IF(AND(tgl_2-tgl_1<300,tgl_3-tgl_2<300),\"Bulan \"&TEXT(tgl_2,\"MMM-YYY\"),\"No Konsiten\"))","v":"Tahun 2016"}]
[null,null,null,null,null,null,null,null,null,null,null,null,null,null,null,null,null,null,null,null,null,null,null,null,null,null,null,null,null,null,null,null,null,null,null,null,null,null,null,null,null,null,null,null,null,null,null,null,null,null,{"$f":"IF(OR(AZ171=\"-\",AZ171=\"\"),\"-\",COUNTA(AZ$2:AZ171)-COUNTBLANK(AZ$2:AZ171))","v":"-"},{"$f":"IF(OR(INDEX(Data!A:A,0,1)=0,INDEX(Data!A:A,0,1)=\"-\"),\"\",INDEX(Data!A:A,0,1))","v":""}]
[null,null,null,null,null,null,null,null,null,null,null,null,null,null,null,null,null,null,null,null,null,null,null,null,null,null,null,null,null,null,null,null,null,null,null,null,null,null,null,null,null,null,null,null,null,null,null,null,null,null,{"$f":"IF(OR(AZ172=\"-\",AZ172=\"\"),\"-\",COUNTA(AZ$2:AZ172)-COUNTBLANK(AZ$2:AZ172))","v":"-"},{"$f":"IF(OR(INDEX(Data!A:A,0,1)=0,INDEX(Data!A:A,0,1)=\"-\"),\"\",INDEX(Data!A:A,0,1))","v":""},null,null,null,null,null,null,null,null,null,null,null,null,null,null,null,null,null,null,null,null,null,null,null,null,null,null,null,null,null,null,null,null,null,null,null,null,null,null,null,null,null,null,null,null,null,null,null,null,null,null,null,null,{"$f":"IF(AND(HD!B2000=0,HD!B3000=0,HD!B4000=0),\"DNA-\",\"#\")","v":"DNA-"}]
[null,null,null,null,null,null,null,null,null,null,null,null,null,null,null,null,null,null,null,null,null,null,null,null,null,null,null,null,null,null,null,null,null,null,null,null,null,null,null,null,null,null,null,null,null,null,null,null,null,null,{"$f":"IF(OR(AZ173=\"-\",AZ173=\"\"),\"-\",COUNTA(AZ$2:AZ173)-COUNTBLANK(AZ$2:AZ173))","v":"-"},{"$f":"IF(OR(INDEX(Data!A:A,0,1)=0,INDEX(Data!A:A,0,1)=\"-\"),\"\",INDEX(Data!A:A,0,1))","v":""}]
[null,null,null,null,null,null,null,null,null,null,null,null,null,null,null,null,null,null,null,null,null,null,null,null,null,null,null,null,null,null,null,null,null,null,null,null,null,null,null,null,null,null,null,null,null,null,null,null,null,null,{"$f":"IF(OR(AZ174=\"-\",AZ174=\"\"),\"-\",COUNTA(AZ$2:AZ174)-COUNTBLANK(AZ$2:AZ174))","v":"-"},{"$f":"IF(OR(INDEX(Data!A:A,0,1)=0,INDEX(Data!A:A,0,1)=\"-\"),\"\",INDEX(Data!A:A,0,1))","v":""}]
[null,null,null,null,null,null,null,null,null,null,null,null,null,null,null,null,null,null,null,null,null,null,null,null,null,null,null,null,null,null,null,null,null,null,null,null,null,null,null,null,null,null,null,null,null,null,null,null,null,null,{"$f":"IF(OR(AZ175=\"-\",AZ175=\"\"),\"-\",COUNTA(AZ$2:AZ175)-COUNTBLANK(AZ$2:AZ175))","v":"-"},{"$f":"IF(OR(INDEX(Data!A:A,0,1)=0,INDEX(Data!A:A,0,1)=\"-\"),\"\",INDEX(Data!A:A,0,1))","v":""}]
[null,null,null,null,null,null,null,null,null,null,null,null,null,null,null,null,null,null,null,null,null,null,null,null,null,null,null,null,null,null,null,null,null,null,null,null,null,null,null,null,null,null,null,null,null,null,null,null,null,null,{"$f":"IF(OR(AZ176=\"-\",AZ176=\"\"),\"-\",COUNTA(AZ$2:AZ176)-COUNTBLANK(AZ$2:AZ176))","v":"-"},{"$f":"IF(OR(INDEX(Data!A:A,0,1)=0,INDEX(Data!A:A,0,1)=\"-\"),\"\",INDEX(Data!A:A,0,1))","v":""}]
[null,null,null,null,null,null,null,null,null,null,null,null,null,null,null,null,null,null,null,null,null,null,null,null,null,null,null,null,null,null,null,null,null,null,null,null,null,null,null,null,null,null,null,null,null,null,null,null,null,null,{"$f":"IF(OR(AZ177=\"-\",AZ177=\"\"),\"-\",COUNTA(AZ$2:AZ177)-COUNTBLANK(AZ$2:AZ177))","v":"-"},{"$f":"IF(OR(INDEX(Data!A:A,0,1)=0,INDEX(Data!A:A,0,1)=\"-\"),\"\",INDEX(Data!A:A,0,1))","v":""}]
[null,null,null,null,null,null,null,null,null,null,null,null,null,null,null,null,null,null,null,null,null,null,null,null,null,null,null,null,null,null,null,null,null,null,null,null,null,null,null,null,null,null,null,null,null,null,null,null,null,null,{"$f":"IF(OR(AZ178=\"-\",AZ178=\"\"),\"-\",COUNTA(AZ$2:AZ178)-COUNTBLANK(AZ$2:AZ178))","v":"-"},{"$f":"IF(OR(INDEX(Data!A:A,0,1)=0,INDEX(Data!A:A,0,1)=\"-\"),\"\",INDEX(Data!A:A,0,1))","v":""}]
[null,null,null,null,null,null,null,null,null,null,null,null,null,null,null,null,null,null,null,null,null,null,null,null,null,null,null,null,null,null,null,null,null,null,null,null,null,null,null,null,null,null,null,null,null,null,null,null,null,null,{"$f":"IF(OR(AZ179=\"-\",AZ179=\"\"),\"-\",COUNTA(AZ$2:AZ179)-COUNTBLANK(AZ$2:AZ179))","v":"-"},{"$f":"IF(OR(INDEX(Data!A:A,0,1)=0,INDEX(Data!A:A,0,1)=\"-\"),\"\",INDEX(Data!A:A,0,1))","v":""}]
[null,null,null,null,null,null,null,null,null,null,null,null,null,null,null,null,null,null,null,null,null,null,null,null,null,null,null,null,null,null,null,null,null,null,null,null,null,null,null,null,null,null,null,null,null,null,null,null,null,null,{"$f":"IF(OR(AZ180=\"-\",AZ180=\"\"),\"-\",COUNTA(AZ$2:AZ180)-COUNTBLANK(AZ$2:AZ180))","v":"-"},{"$f":"IF(OR(INDEX(Data!A:A,0,1)=0,INDEX(Data!A:A,0,1)=\"-\"),\"\",INDEX(Data!A:A,0,1))","v":""}]
[null,null,null,null,null,null,null,null,null,null,null,null,null,null,null,null,null,null,null,null,null,null,null,null,null,null,null,null,null,null,null,null,null,null,null,null,null,null,null,null,null,null,null,null,null,null,null,null,null,null,{"$f":"IF(OR(AZ181=\"-\",AZ181=\"\"),\"-\",COUNTA(AZ$2:AZ181)-COUNTBLANK(AZ$2:AZ181))","v":"-"},{"$f":"IF(OR(INDEX(Data!A:A,0,1)=0,INDEX(Data!A:A,0,1)=\"-\"),\"\",INDEX(Data!A:A,0,1))","v":""}]
[null,null,null,null,null,null,null,null,null,null,null,null,null,null,null,null,null,null,null,null,null,null,null,null,null,null,null,null,null,null,null,null,null,null,null,null,null,null,null,null,null,null,null,null,null,null,null,null,null,null,{"$f":"IF(OR(AZ182=\"-\",AZ182=\"\"),\"-\",COUNTA(AZ$2:AZ182)-COUNTBLANK(AZ$2:AZ182))","v":"-"},{"$f":"IF(OR(INDEX(Data!A:A,0,1)=0,INDEX(Data!A:A,0,1)=\"-\"),\"\",INDEX(Data!A:A,0,1))","v":""},null,null,null,null,null,null,null,null,null,null,null,null,null,null,null,null,null,null,null,null,null,null,null,null,null,null,null,null,null,null,null,null,null,null,null,null,null,null,null,null,null,null,null,null,null,null,null,null,null,null,null,null,null,null,null,null,null,null,null,null,null,null,null,null,null,null,null,null,null,null,null,null,null,null,null,null,null,null,null,null,null,null,null,null,null,null,null,null,null,null,null,null,null,null,null,null,null,null,null,null,null,null,null,{"$f":"IF(AND(tgl_2-tgl_1>300,tgl_3-tgl_2>300),\"Tahun \"&TEXT(tgl_3,\"YYY\"),IF(AND(tgl_2-tgl_1<300,tgl_3-tgl_2<300),\"Bulan \"&TEXT(tgl_3,\"MMM-YYY\"),\"No Konsiten\"))","v":"Tahun 2017"}]
[null,null,null,null,null,null,null,null,null,null,null,null,null,null,null,null,null,null,null,null,null,null,null,null,null,null,null,null,null,null,null,null,null,null,null,null,null,null,null,null,null,null,null,null,null,null,null,null,null,null,{"$f":"IF(OR(AZ183=\"-\",AZ183=\"\"),\"-\",COUNTA(AZ$2:AZ183)-COUNTBLANK(AZ$2:AZ183))","v":"-"},{"$f":"IF(OR(INDEX(Data!A:A,0,1)=0,INDEX(Data!A:A,0,1)=\"-\"),\"\",INDEX(Data!A:A,0,1))","v":""}]
[null,null,null,null,null,null,null,null,null,null,null,null,null,null,null,null,null,null,null,null,null,null,null,null,null,null,null,null,null,null,null,null,null,null,null,null,null,null,null,null,null,null,null,null,null,null,null,null,null,null,{"$f":"IF(OR(AZ184=\"-\",AZ184=\"\"),\"-\",COUNTA(AZ$2:AZ184)-COUNTBLANK(AZ$2:AZ184))","v":"-"},{"$f":"IF(OR(INDEX(Data!A:A,0,1)=0,INDEX(Data!A:A,0,1)=\"-\"),\"\",INDEX(Data!A:A,0,1))","v":""},null,null,null,null,null,null,null,null,null,null,null,null,null,null,null,null,null,null,null,null,null,null,null,null,null,null,null,null,null,null,null,null,null,null,null,null,null,null,null,null,null,null,null,null,null,null,null,null,null,null,null,null,{"$f":"IF(AND(HD!B2000=0,HD!B3000=0,HD!B4000=0),\"LBD-0\",\"#\")","v":"LBD-0"}]
[null,null,null,null,null,null,null,null,null,null,null,null,null,null,null,null,null,null,null,null,null,null,null,null,null,null,null,null,null,null,null,null,null,null,null,null,null,null,null,null,null,null,null,null,null,null,null,null,null,null,{"$f":"IF(OR(AZ185=\"-\",AZ185=\"\"),\"-\",COUNTA(AZ$2:AZ185)-COUNTBLANK(AZ$2:AZ185))","v":"-"},{"$f":"IF(OR(INDEX(Data!A:A,0,1)=0,INDEX(Data!A:A,0,1)=\"-\"),\"\",INDEX(Data!A:A,0,1))","v":""}]
[null,null,null,null,null,null,null,null,null,null,null,null,null,null,null,null,null,null,null,null,null,null,null,null,null,null,null,null,null,null,null,null,null,null,null,null,null,null,null,null,null,null,null,null,null,null,null,null,null,null,{"$f":"IF(OR(AZ186=\"-\",AZ186=\"\"),\"-\",COUNTA(AZ$2:AZ186)-COUNTBLANK(AZ$2:AZ186))","v":"-"},{"$f":"IF(OR(INDEX(Data!A:A,0,1)=0,INDEX(Data!A:A,0,1)=\"-\"),\"\",INDEX(Data!A:A,0,1))","v":""}]
[null,null,null,null,null,null,null,null,null,null,null,null,null,null,null,null,null,null,null,null,null,null,null,null,null,null,null,null,null,null,null,null,null,null,null,null,null,null,null,null,null,null,null,null,null,null,null,null,null,null,{"$f":"IF(OR(AZ187=\"-\",AZ187=\"\"),\"-\",COUNTA(AZ$2:AZ187)-COUNTBLANK(AZ$2:AZ187))","v":"-"},{"$f":"IF(OR(INDEX(Data!A:A,0,1)=0,INDEX(Data!A:A,0,1)=\"-\"),\"\",INDEX(Data!A:A,0,1))","v":""}]
[null,null,null,null,null,null,null,null,null,null,null,null,null,null,null,null,null,null,null,null,null,null,null,null,null,null,null,null,null,null,null,null,null,null,null,null,null,null,null,null,null,null,null,null,null,null,null,null,null,null,{"$f":"IF(OR(AZ188=\"-\",AZ188=\"\"),\"-\",COUNTA(AZ$2:AZ188)-COUNTBLANK(AZ$2:AZ188))","v":"-"},{"$f":"IF(OR(INDEX(Data!A:A,0,1)=0,INDEX(Data!A:A,0,1)=\"-\"),\"\",INDEX(Data!A:A,0,1))","v":""}]
[null,null,null,null,null,null,null,null,null,null,null,null,null,null,null,null,null,null,null,null,null,null,null,null,null,null,null,null,null,null,null,null,null,null,null,null,null,null,null,null,null,null,null,null,null,null,null,null,null,null,{"$f":"IF(OR(AZ189=\"-\",AZ189=\"\"),\"-\",COUNTA(AZ$2:AZ189)-COUNTBLANK(AZ$2:AZ189))","v":"-"},{"$f":"IF(OR(INDEX(Data!A:A,0,1)=0,INDEX(Data!A:A,0,1)=\"-\"),\"\",INDEX(Data!A:A,0,1))","v":""}]
[null,null,null,null,null,null,null,null,null,null,null,null,null,null,null,null,null,null,null,null,null,null,null,null,null,null,null,null,null,null,null,null,null,null,null,null,null,null,null,null,null,null,null,null,null,null,null,null,null,null,{"$f":"IF(OR(AZ190=\"-\",AZ190=\"\"),\"-\",COUNTA(AZ$2:AZ190)-COUNTBLANK(AZ$2:AZ190))","v":"-"},{"$f":"IF(OR(INDEX(Data!A:A,0,1)=0,INDEX(Data!A:A,0,1)=\"-\"),\"\",INDEX(Data!A:A,0,1))","v":""}]
[null,null,null,null,null,null,null,null,null,null,null,null,null,null,null,null,null,null,null,null,null,null,null,null,null,null,null,null,null,null,null,null,null,null,null,null,null,null,null,null,null,null,null,null,null,null,null,null,null,null,{"$f":"IF(OR(AZ191=\"-\",AZ191=\"\"),\"-\",COUNTA(AZ$2:AZ191)-COUNTBLANK(AZ$2:AZ191))","v":"-"},{"$f":"IF(OR(INDEX(Data!A:A,0,1)=0,INDEX(Data!A:A,0,1)=\"-\"),\"\",INDEX(Data!A:A,0,1))","v":""}]
[null,null,null,null,null,null,null,null,null,null,null,null,null,null,null,null,null,null,null,null,null,null,null,null,null,null,null,null,null,null,null,null,null,null,null,null,null,null,null,null,null,null,null,null,null,null,null,null,null,null,{"$f":"IF(OR(AZ192=\"-\",AZ192=\"\"),\"-\",COUNTA(AZ$2:AZ192)-COUNTBLANK(AZ$2:AZ192))","v":"-"},{"$f":"IF(OR(INDEX(Data!A:A,0,1)=0,INDEX(Data!A:A,0,1)=\"-\"),\"\",INDEX(Data!A:A,0,1))","v":""}]
[null,null,null,null,null,null,null,null,null,null,null,null,null,null,null,null,null,null,null,null,null,null,null,null,null,null,null,null,null,null,null,null,null,null,null,null,null,null,null,null,null,null,null,null,null,null,null,null,null,null,{"$f":"IF(OR(AZ193=\"-\",AZ193=\"\"),\"-\",COUNTA(AZ$2:AZ193)-COUNTBLANK(AZ$2:AZ193))","v":"-"},{"$f":"IF(OR(INDEX(Data!A:A,0,1)=0,INDEX(Data!A:A,0,1)=\"-\"),\"\",INDEX(Data!A:A,0,1))","v":""}]
[null,null,null,null,null,null,null,null,null,null,null,null,null,null,null,null,null,null,null,null,null,null,null,null,null,null,null,null,null,null,null,null,null,null,null,null,null,null,null,null,null,null,null,null,null,null,null,null,null,null,{"$f":"IF(OR(AZ194=\"-\",AZ194=\"\"),\"-\",COUNTA(AZ$2:AZ194)-COUNTBLANK(AZ$2:AZ194))","v":"-"},{"$f":"IF(OR(INDEX(Data!A:A,0,1)=0,INDEX(Data!A:A,0,1)=\"-\"),\"\",INDEX(Data!A:A,0,1))","v":""}]
[null,null,null,null,null,null,null,null,null,null,null,null,null,null,null,null,null,null,null,null,null,null,null,null,null,null,null,null,null,null,null,null,null,null,null,null,null,null,null,null,null,null,null,null,null,null,null,null,null,null,{"$f":"IF(OR(AZ195=\"-\",AZ195=\"\"),\"-\",COUNTA(AZ$2:AZ195)-COUNTBLANK(AZ$2:AZ195))","v":"-"},{"$f":"IF(OR(INDEX(Data!A:A,0,1)=0,INDEX(Data!A:A,0,1)=\"-\"),\"\",INDEX(Data!A:A,0,1))","v":""}]
[null,null,null,null,null,null,null,null,null,null,null,null,null,null,null,null,null,null,null,null,null,null,null,null,null,null,null,null,null,null,null,null,null,null,null,null,null,null,null,null,null,null,null,null,null,null,null,null,null,null,{"$f":"IF(OR(AZ196=\"-\",AZ196=\"\"),\"-\",COUNTA(AZ$2:AZ196)-COUNTBLANK(AZ$2:AZ196))","v":"-"},{"$f":"IF(OR(INDEX(Data!A:A,0,1)=0,INDEX(Data!A:A,0,1)=\"-\"),\"\",INDEX(Data!A:A,0,1))","v":""},null,null,null,null,null,null,null,null,null,null,null,null,null,null,null,null,null,null,null,null,null,null,null,null,null,null,null,null,null,null,null,null,null,null,null,null,null,null,null,null,null,null,null,null,null,null,null,null,null,null,null,null,{"$f":"IF(AND(HD!B2000=0,HD!B3000=0,HD!B4000=0),\"LBD-\",\"#\")","v":"LBD-"}]
[null,null,null,null,null,null,null,null,null,null,null,null,null,null,null,null,null,null,null,null,null,null,null,null,null,null,null,null,null,null,null,null,null,null,null,null,null,null,null,null,null,null,null,null,null,null,null,null,null,null,{"$f":"IF(OR(AZ197=\"-\",AZ197=\"\"),\"-\",COUNTA(AZ$2:AZ197)-COUNTBLANK(AZ$2:AZ197))","v":"-"},{"$f":"IF(OR(INDEX(Data!A:A,0,1)=0,INDEX(Data!A:A,0,1)=\"-\"),\"\",INDEX(Data!A:A,0,1))","v":""}]
[null,null,null,null,null,null,null,null,null,null,null,null,null,null,null,null,null,null,null,null,null,null,null,null,null,null,null,null,null,null,null,null,null,null,null,null,null,null,null,null,null,null,null,null,null,null,null,null,null,null,{"$f":"IF(OR(AZ198=\"-\",AZ198=\"\"),\"-\",COUNTA(AZ$2:AZ198)-COUNTBLANK(AZ$2:AZ198))","v":"-"},{"$f":"IF(OR(INDEX(Data!A:A,0,1)=0,INDEX(Data!A:A,0,1)=\"-\"),\"\",INDEX(Data!A:A,0,1))","v":""}]
[null,null,null,null,null,null,null,null,null,null,null,null,null,null,null,null,null,null,null,null,null,null,null,null,null,null,null,null,null,null,null,null,null,null,null,null,null,null,null,null,null,null,null,null,null,null,null,null,null,null,{"$f":"IF(OR(AZ199=\"-\",AZ199=\"\"),\"-\",COUNTA(AZ$2:AZ199)-COUNTBLANK(AZ$2:AZ199))","v":"-"},{"$f":"IF(OR(INDEX(Data!A:A,0,1)=0,INDEX(Data!A:A,0,1)=\"-\"),\"\",INDEX(Data!A:A,0,1))","v":""}]
[null,null,null,null,null,null,null,null,null,null,null,null,null,null,null,null,null,null,null,null,null,null,null,null,null,null,null,null,null,null,null,null,null,null,null,null,null,null,null,null,null,null,null,null,null,null,null,null,null,null,{"$f":"IF(OR(AZ200=\"-\",AZ200=\"\"),\"-\",COUNTA(AZ$2:AZ200)-COUNTBLANK(AZ$2:AZ200))","v":"-"},{"$f":"IF(OR(INDEX(Data!A:A,0,1)=0,INDEX(Data!A:A,0,1)=\"-\"),\"\",INDEX(Data!A:A,0,1))","v":""}]
[null,null,null,null,null,null,null,null,null,null,null,null,null,null,null,null,null,null,null,null,null,null,null,null,null,null,null,null,null,null,null,null,null,null,null,null,null,null,null,null,null,null,null,null,null,null,null,null,null,null,{"$f":"IF(OR(AZ201=\"-\",AZ201=\"\"),\"-\",COUNTA(AZ$2:AZ201)-COUNTBLANK(AZ$2:AZ201))","v":"-"},{"$f":"IF(OR(INDEX(Data!A:A,0,1)=0,INDEX(Data!A:A,0,1)=\"-\"),\"\",INDEX(Data!A:A,0,1))","v":""}]
[null,null,null,null,null,null,null,null,null,null,null,null,null,null,null,null,null,null,null,null,null,null,null,null,null,null,null,null,null,null,null,null,null,null,null,null,null,null,null,null,null,null,null,null,null,null,null,null,null,null,{"$f":"IF(OR(AZ202=\"-\",AZ202=\"\"),\"-\",COUNTA(AZ$2:AZ202)-COUNTBLANK(AZ$2:AZ202))","v":"-"},{"$f":"IF(OR(INDEX(Data!A:A,0,1)=0,INDEX(Data!A:A,0,1)=\"-\"),\"\",INDEX(Data!A:A,0,1))","v":""}]
[null,null,null,null,null,null,null,null,null,null,null,null,null,null,null,null,null,null,null,null,null,null,null,null,null,null,null,null,null,null,null,null,null,null,null,null,null,null,null,null,null,null,null,null,null,null,null,null,null,null,{"$f":"IF(OR(AZ203=\"-\",AZ203=\"\"),\"-\",COUNTA(AZ$2:AZ203)-COUNTBLANK(AZ$2:AZ203))","v":"-"},{"$f":"IF(OR(INDEX(Data!A:A,0,1)=0,INDEX(Data!A:A,0,1)=\"-\"),\"\",INDEX(Data!A:A,0,1))","v":""}]
[null,null,null,null,null,null,null,null,null,null,null,null,null,null,null,null,null,null,null,null,null,null,null,null,null,null,null,null,null,null,null,null,null,null,null,null,null,null,null,null,null,null,null,null,null,null,null,null,null,null,{"$f":"IF(OR(AZ204=\"-\",AZ204=\"\"),\"-\",COUNTA(AZ$2:AZ204)-COUNTBLANK(AZ$2:AZ204))","v":"-"},{"$f":"IF(OR(INDEX(Data!A:A,0,1)=0,INDEX(Data!A:A,0,1)=\"-\"),\"\",INDEX(Data!A:A,0,1))","v":""}]
[null,null,null,null,null,null,null,null,null,null,null,null,null,null,null,null,null,null,null,null,null,null,null,null,null,null,null,null,null,null,null,null,null,null,null,null,null,null,null,null,null,null,null,null,null,null,null,null,null,null,{"$f":"IF(OR(AZ205=\"-\",AZ205=\"\"),\"-\",COUNTA(AZ$2:AZ205)-COUNTBLANK(AZ$2:AZ205))","v":"-"},{"$f":"IF(OR(INDEX(Data!A:A,0,1)=0,INDEX(Data!A:A,0,1)=\"-\"),\"\",INDEX(Data!A:A,0,1))","v":""}]
[null,null,null,null,null,null,null,null,null,null,null,null,null,null,null,null,null,null,null,null,null,null,null,null,null,null,null,null,null,null,null,null,null,null,null,null,null,null,null,null,null,null,null,null,null,null,null,null,null,null,{"$f":"IF(OR(AZ206=\"-\",AZ206=\"\"),\"-\",COUNTA(AZ$2:AZ206)-COUNTBLANK(AZ$2:AZ206))","v":"-"},{"$f":"IF(OR(INDEX(Data!A:A,0,1)=0,INDEX(Data!A:A,0,1)=\"-\"),\"\",INDEX(Data!A:A,0,1))","v":""}]
[null,null,null,null,null,null,null,null,null,null,null,null,null,null,null,null,null,null,null,null,null,null,null,null,null,null,null,null,null,null,null,null,null,null,null,null,null,null,null,null,null,null,null,null,null,null,null,null,null,null,{"$f":"IF(OR(AZ207=\"-\",AZ207=\"\"),\"-\",COUNTA(AZ$2:AZ207)-COUNTBLANK(AZ$2:AZ207))","v":"-"},{"$f":"IF(OR(INDEX(Data!A:A,0,1)=0,INDEX(Data!A:A,0,1)=\"-\"),\"\",INDEX(Data!A:A,0,1))","v":""}]
[null,null,null,null,null,null,null,null,null,null,null,null,null,null,null,null,null,null,null,null,null,null,null,null,null,null,null,null,null,null,null,null,null,null,null,null,null,null,null,null,null,null,null,null,null,null,null,null,null,null,{"$f":"IF(OR(AZ208=\"-\",AZ208=\"\"),\"-\",COUNTA(AZ$2:AZ208)-COUNTBLANK(AZ$2:AZ208))","v":"-"},{"$f":"IF(OR(INDEX(Data!A:A,0,1)=0,INDEX(Data!A:A,0,1)=\"-\"),\"\",INDEX(Data!A:A,0,1))","v":""},null,null,null,null,null,null,null,null,null,null,null,null,null,null,null,null,null,null,null,null,null,null,null,null,null,null,null,null,null,null,null,null,null,null,null,null,null,null,null,null,null,null,null,null,null,null,null,null,null,null,null,null,{"$f":"IF(AND(HD!B2000=0,HD!B3000=0,HD!B4000=0),\"\",\"#\")","v":""}]
[null,null,null,null,null,null,null,null,null,null,null,null,null,null,null,null,null,null,null,null,null,null,null,null,null,null,null,null,null,null,null,null,null,null,null,null,null,null,null,null,null,null,null,null,null,null,null,null,null,null,{"$f":"IF(OR(AZ209=\"-\",AZ209=\"\"),\"-\",COUNTA(AZ$2:AZ209)-COUNTBLANK(AZ$2:AZ209))","v":"-"},{"$f":"IF(OR(INDEX(Data!A:A,0,1)=0,INDEX(Data!A:A,0,1)=\"-\"),\"\",INDEX(Data!A:A,0,1))","v":""}]
[null,null,null,null,null,null,null,null,null,null,null,null,null,null,null,null,null,null,null,null,null,null,null,null,null,null,null,null,null,null,null,null,null,null,null,null,null,null,null,null,null,null,null,null,null,null,null,null,null,null,{"$f":"IF(OR(AZ210=\"-\",AZ210=\"\"),\"-\",COUNTA(AZ$2:AZ210)-COUNTBLANK(AZ$2:AZ210))","v":"-"},{"$f":"IF(OR(INDEX(Data!A:A,0,1)=0,INDEX(Data!A:A,0,1)=\"-\"),\"\",INDEX(Data!A:A,0,1))","v":""}]
[null,null,null,null,null,null,null,null,null,null,null,null,null,null,null,null,null,null,null,null,null,null,null,null,null,null,null,null,null,null,null,null,null,null,null,null,null,null,null,null,null,null,null,null,null,null,null,null,null,null,{"$f":"IF(OR(AZ211=\"-\",AZ211=\"\"),\"-\",COUNTA(AZ$2:AZ211)-COUNTBLANK(AZ$2:AZ211))","v":"-"},{"$f":"IF(OR(INDEX(Data!A:A,0,1)=0,INDEX(Data!A:A,0,1)=\"-\"),\"\",INDEX(Data!A:A,0,1))","v":""}]
[null,null,null,null,null,null,null,null,null,null,null,null,null,null,null,null,null,null,null,null,null,null,null,null,null,null,null,null,null,null,null,null,null,null,null,null,null,null,null,null,null,null,null,null,null,null,null,null,null,null,{"$f":"IF(OR(AZ212=\"-\",AZ212=\"\"),\"-\",COUNTA(AZ$2:AZ212)-COUNTBLANK(AZ$2:AZ212))","v":"-"},{"$f":"IF(OR(INDEX(Data!A:A,0,1)=0,INDEX(Data!A:A,0,1)=\"-\"),\"\",INDEX(Data!A:A,0,1))","v":""}]
[null,null,null,null,null,null,null,null,null,null,null,null,null,null,null,null,null,null,null,null,null,null,null,null,null,null,null,null,null,null,null,null,null,null,null,null,null,null,null,null,null,null,null,null,null,null,null,null,null,null,{"$f":"IF(OR(AZ213=\"-\",AZ213=\"\"),\"-\",COUNTA(AZ$2:AZ213)-COUNTBLANK(AZ$2:AZ213))","v":"-"},{"$f":"IF(OR(INDEX(Data!A:A,0,1)=0,INDEX(Data!A:A,0,1)=\"-\"),\"\",INDEX(Data!A:A,0,1))","v":""}]
[null,null,null,null,null,null,null,null,null,null,null,null,null,null,null,null,null,null,null,null,null,null,null,null,null,null,null,null,null,null,null,null,null,null,null,null,null,null,null,null,null,null,null,null,null,null,null,null,null,null,{"$f":"IF(OR(AZ214=\"-\",AZ214=\"\"),\"-\",COUNTA(AZ$2:AZ214)-COUNTBLANK(AZ$2:AZ214))","v":"-"},{"$f":"IF(OR(INDEX(Data!A:A,0,1)=0,INDEX(Data!A:A,0,1)=\"-\"),\"\",INDEX(Data!A:A,0,1))","v":""}]
[null,null,null,null,null,null,null,null,null,null,null,null,null,null,null,null,null,null,null,null,null,null,null,null,null,null,null,null,null,null,null,null,null,null,null,null,null,null,null,null,null,null,null,null,null,null,null,null,null,null,{"$f":"IF(OR(AZ215=\"-\",AZ215=\"\"),\"-\",COUNTA(AZ$2:AZ215)-COUNTBLANK(AZ$2:AZ215))","v":"-"},{"$f":"IF(OR(INDEX(Data!A:A,0,1)=0,INDEX(Data!A:A,0,1)=\"-\"),\"\",INDEX(Data!A:A,0,1))","v":""}]
[null,null,null,null,null,null,null,null,null,null,null,null,null,null,null,null,null,null,null,null,null,null,null,null,null,null,null,null,null,null,null,null,null,null,null,null,null,null,null,null,null,null,null,null,null,null,null,null,null,null,{"$f":"IF(OR(AZ216=\"-\",AZ216=\"\"),\"-\",COUNTA(AZ$2:AZ216)-COUNTBLANK(AZ$2:AZ216))","v":"-"},{"$f":"IF(OR(INDEX(Data!A:A,0,1)=0,INDEX(Data!A:A,0,1)=\"-\"),\"\",INDEX(Data!A:A,0,1))","v":""}]
[null,null,null,null,null,null,null,null,null,null,null,null,null,null,null,null,null,null,null,null,null,null,null,null,null,null,null,null,null,null,null,null,null,null,null,null,null,null,null,null,null,null,null,null,null,null,null,null,null,null,{"$f":"IF(OR(AZ217=\"-\",AZ217=\"\"),\"-\",COUNTA(AZ$2:AZ217)-COUNTBLANK(AZ$2:AZ217))","v":"-"},{"$f":"IF(OR(INDEX(Data!A:A,0,1)=0,INDEX(Data!A:A,0,1)=\"-\"),\"\",INDEX(Data!A:A,0,1))","v":""}]
[null,null,null,null,null,null,null,null,null,null,null,null,null,null,null,null,null,null,null,null,null,null,null,null,null,null,null,null,null,null,null,null,null,null,null,null,null,null,null,null,null,null,null,null,null,null,null,null,null,null,{"$f":"IF(OR(AZ218=\"-\",AZ218=\"\"),\"-\",COUNTA(AZ$2:AZ218)-COUNTBLANK(AZ$2:AZ218))","v":"-"},{"$f":"IF(OR(INDEX(Data!A:A,0,1)=0,INDEX(Data!A:A,0,1)=\"-\"),\"\",INDEX(Data!A:A,0,1))","v":""}]
[null,null,null,null,null,null,null,null,null,null,null,null,null,null,null,null,null,null,null,null,null,null,null,null,null,null,null,null,null,null,null,null,null,null,null,null,null,null,null,null,null,null,null,null,null,null,null,null,null,null,{"$f":"IF(OR(AZ219=\"-\",AZ219=\"\"),\"-\",COUNTA(AZ$2:AZ219)-COUNTBLANK(AZ$2:AZ219))","v":"-"},{"$f":"IF(OR(INDEX(Data!A:A,0,1)=0,INDEX(Data!A:A,0,1)=\"-\"),\"\",INDEX(Data!A:A,0,1))","v":""}]
[null,null,null,null,null,null,null,null,null,null,null,null,null,null,null,null,null,null,null,null,null,null,null,null,null,null,null,null,null,null,null,null,null,null,null,null,null,null,null,null,null,null,null,null,null,null,null,null,null,null,{"$f":"IF(OR(AZ220=\"-\",AZ220=\"\"),\"-\",COUNTA(AZ$2:AZ220)-COUNTBLANK(AZ$2:AZ220))","v":"-"},{"$f":"IF(OR(INDEX(Data!A:A,0,1)=0,INDEX(Data!A:A,0,1)=\"-\"),\"\",INDEX(Data!A:A,0,1))","v":""},null,null,null,null,null,null,null,null,null,null,null,null,null,null,null,null,null,null,null,null,null,null,null,null,null,null,null,null,null,null,null,null,null,null,null,null,null,null,null,null,null,null,null,null,null,null,null,null,null,null,null,null,{"$f":"IF(AND(HD!B2000=0,HD!B3000=0,HD!B4000=0),\"-\",\"#\")","v":"-"}]
[null,null,null,null,null,null,null,null,null,null,null,null,null,null,null,null,null,null,null,null,null,null,null,null,null,null,null,null,null,null,null,null,null,null,null,null,null,null,null,null,null,null,null,null,null,null,null,null,null,null,{"$f":"IF(OR(AZ221=\"-\",AZ221=\"\"),\"-\",COUNTA(AZ$2:AZ221)-COUNTBLANK(AZ$2:AZ221))","v":"-"},{"$f":"IF(OR(INDEX(Data!A:A,0,1)=0,INDEX(Data!A:A,0,1)=\"-\"),\"\",INDEX(Data!A:A,0,1))","v":""}]
[null,null,null,null,null,null,null,null,null,null,null,null,null,null,null,null,null,null,null,null,null,null,null,null,null,null,null,null,null,null,null,null,null,null,null,null,null,null,null,null,null,null,null,null,null,null,null,null,null,null,{"$f":"IF(OR(AZ222=\"-\",AZ222=\"\"),\"-\",COUNTA(AZ$2:AZ222)-COUNTBLANK(AZ$2:AZ222))","v":"-"},{"$f":"IF(OR(INDEX(Data!A:A,0,1)=0,INDEX(Data!A:A,0,1)=\"-\"),\"\",INDEX(Data!A:A,0,1))","v":""}]
[null,null,null,null,null,null,null,null,null,null,null,null,null,null,null,null,null,null,null,null,null,null,null,null,null,null,null,null,null,null,null,null,null,null,null,null,null,null,null,null,null,null,null,null,null,null,null,null,null,null,{"$f":"IF(OR(AZ223=\"-\",AZ223=\"\"),\"-\",COUNTA(AZ$2:AZ223)-COUNTBLANK(AZ$2:AZ223))","v":"-"},{"$f":"IF(OR(INDEX(Data!A:A,0,1)=0,INDEX(Data!A:A,0,1)=\"-\"),\"\",INDEX(Data!A:A,0,1))","v":""}]
[null,null,null,null,null,null,null,null,null,null,null,null,null,null,null,null,null,null,null,null,null,null,null,null,null,null,null,null,null,null,null,null,null,null,null,null,null,null,null,null,null,null,null,null,null,null,null,null,null,null,{"$f":"IF(OR(AZ224=\"-\",AZ224=\"\"),\"-\",COUNTA(AZ$2:AZ224)-COUNTBLANK(AZ$2:AZ224))","v":"-"},{"$f":"IF(OR(INDEX(Data!A:A,0,1)=0,INDEX(Data!A:A,0,1)=\"-\"),\"\",INDEX(Data!A:A,0,1))","v":""}]
[null,null,null,null,null,null,null,null,null,null,null,null,null,null,null,null,null,null,null,null,null,null,null,null,null,null,null,null,null,null,null,null,null,null,null,null,null,null,null,null,null,null,null,null,null,null,null,null,null,null,{"$f":"IF(OR(AZ225=\"-\",AZ225=\"\"),\"-\",COUNTA(AZ$2:AZ225)-COUNTBLANK(AZ$2:AZ225))","v":"-"},{"$f":"IF(OR(INDEX(Data!A:A,0,1)=0,INDEX(Data!A:A,0,1)=\"-\"),\"\",INDEX(Data!A:A,0,1))","v":""}]
[null,null,null,null,null,null,null,null,null,null,null,null,null,null,null,null,null,null,null,null,null,null,null,null,null,null,null,null,null,null,null,null,null,null,null,null,null,null,null,null,null,null,null,null,null,null,null,null,null,null,{"$f":"IF(OR(AZ226=\"-\",AZ226=\"\"),\"-\",COUNTA(AZ$2:AZ226)-COUNTBLANK(AZ$2:AZ226))","v":"-"},{"$f":"IF(OR(INDEX(Data!A:A,0,1)=0,INDEX(Data!A:A,0,1)=\"-\"),\"\",INDEX(Data!A:A,0,1))","v":""}]
[null,null,null,null,null,null,null,null,null,null,null,null,null,null,null,null,null,null,null,null,null,null,null,null,null,null,null,null,null,null,null,null,null,null,null,null,null,null,null,null,null,null,null,null,null,null,null,null,null,null,{"$f":"IF(OR(AZ227=\"-\",AZ227=\"\"),\"-\",COUNTA(AZ$2:AZ227)-COUNTBLANK(AZ$2:AZ227))","v":"-"},{"$f":"IF(OR(INDEX(Data!A:A,0,1)=0,INDEX(Data!A:A,0,1)=\"-\"),\"\",INDEX(Data!A:A,0,1))","v":""}]
[null,null,null,null,null,null,null,null,null,null,null,null,null,null,null,null,null,null,null,null,null,null,null,null,null,null,null,null,null,null,null,null,null,null,null,null,null,null,null,null,null,null,null,null,null,null,null,null,null,null,{"$f":"IF(OR(AZ228=\"-\",AZ228=\"\"),\"-\",COUNTA(AZ$2:AZ228)-COUNTBLANK(AZ$2:AZ228))","v":"-"},{"$f":"IF(OR(INDEX(Data!A:A,0,1)=0,INDEX(Data!A:A,0,1)=\"-\"),\"\",INDEX(Data!A:A,0,1))","v":""}]
[null,null,null,null,null,null,null,null,null,null,null,null,null,null,null,null,null,null,null,null,null,null,null,null,null,null,null,null,null,null,null,null,null,null,null,null,null,null,null,null,null,null,null,null,null,null,null,null,null,null,{"$f":"IF(OR(AZ229=\"-\",AZ229=\"\"),\"-\",COUNTA(AZ$2:AZ229)-COUNTBLANK(AZ$2:AZ229))","v":"-"},{"$f":"IF(OR(INDEX(Data!A:A,0,1)=0,INDEX(Data!A:A,0,1)=\"-\"),\"\",INDEX(Data!A:A,0,1))","v":""}]
[null,null,null,null,null,null,null,null,null,null,null,null,null,null,null,null,null,null,null,null,null,null,null,null,null,null,null,null,null,null,null,null,null,null,null,null,null,null,null,null,null,null,null,null,null,null,null,null,null,null,{"$f":"IF(OR(AZ230=\"-\",AZ230=\"\"),\"-\",COUNTA(AZ$2:AZ230)-COUNTBLANK(AZ$2:AZ230))","v":"-"},{"$f":"IF(OR(INDEX(Data!A:A,0,1)=0,INDEX(Data!A:A,0,1)=\"-\"),\"\",INDEX(Data!A:A,0,1))","v":""}]
[null,null,null,null,null,null,null,null,null,null,null,null,null,null,null,null,null,null,null,null,null,null,null,null,null,null,null,null,null,null,null,null,null,null,null,null,null,null,null,null,null,null,null,null,null,null,null,null,null,null,{"$f":"IF(OR(AZ231=\"-\",AZ231=\"\"),\"-\",COUNTA(AZ$2:AZ231)-COUNTBLANK(AZ$2:AZ231))","v":"-"},{"$f":"IF(OR(INDEX(Data!A:A,0,1)=0,INDEX(Data!A:A,0,1)=\"-\"),\"\",INDEX(Data!A:A,0,1))","v":""}]
[null,null,null,null,null,null,null,null,null,null,null,null,null,null,null,null,null,null,null,null,null,null,null,null,null,null,null,null,null,null,null,null,null,null,null,null,null,null,null,null,null,null,null,null,null,null,null,null,null,null,{"$f":"IF(OR(AZ232=\"-\",AZ232=\"\"),\"-\",COUNTA(AZ$2:AZ232)-COUNTBLANK(AZ$2:AZ232))","v":"-"},{"$f":"IF(OR(INDEX(Data!A:A,0,1)=0,INDEX(Data!A:A,0,1)=\"-\"),\"\",INDEX(Data!A:A,0,1))","v":""},null,null,null,null,null,null,null,null,null,null,null,null,null,null,null,null,null,null,null,null,null,null,null,null,null,null,null,null,null,null,null,null,null,null,null,null,null,null,null,null,null,null,null,null,null,null,null,null,null,null,null,null,{"$f":"IF(AND(HD!B2000=0,HD!B3000=0,HD!B4000=0),10,\"#\")","v":10}]
[null,null,null,null,null,null,null,null,null,null,null,null,null,null,null,null,null,null,null,null,null,null,null,null,null,null,null,null,null,null,null,null,null,null,null,null,null,null,null,null,null,null,null,null,null,null,null,null,null,null,{"$f":"IF(OR(AZ233=\"-\",AZ233=\"\"),\"-\",COUNTA(AZ$2:AZ233)-COUNTBLANK(AZ$2:AZ233))","v":"-"},{"$f":"IF(OR(INDEX(Data!A:A,0,1)=0,INDEX(Data!A:A,0,1)=\"-\"),\"\",INDEX(Data!A:A,0,1))","v":""}]
[null,null,null,null,null,null,null,null,null,null,null,null,null,null,null,null,null,null,null,null,null,null,null,null,null,null,null,null,null,null,null,null,null,null,null,null,null,null,null,null,null,null,null,null,null,null,null,null,null,null,{"$f":"IF(OR(AZ234=\"-\",AZ234=\"\"),\"-\",COUNTA(AZ$2:AZ234)-COUNTBLANK(AZ$2:AZ234))","v":"-"},{"$f":"IF(OR(INDEX(Data!A:A,0,1)=0,INDEX(Data!A:A,0,1)=\"-\"),\"\",INDEX(Data!A:A,0,1))","v":""}]
[null,null,null,null,null,null,null,null,null,null,null,null,null,null,null,null,null,null,null,null,null,null,null,null,null,null,null,null,null,null,null,null,null,null,null,null,null,null,null,null,null,null,null,null,null,null,null,null,null,null,{"$f":"IF(OR(AZ235=\"-\",AZ235=\"\"),\"-\",COUNTA(AZ$2:AZ235)-COUNTBLANK(AZ$2:AZ235))","v":"-"},{"$f":"IF(OR(INDEX(Data!A:A,0,1)=0,INDEX(Data!A:A,0,1)=\"-\"),\"\",INDEX(Data!A:A,0,1))","v":""}]
[null,null,null,null,null,null,null,null,null,null,null,null,null,null,null,null,null,null,null,null,null,null,null,null,null,null,null,null,null,null,null,null,null,null,null,null,null,null,null,null,null,null,null,null,null,null,null,null,null,null,{"$f":"IF(OR(AZ236=\"-\",AZ236=\"\"),\"-\",COUNTA(AZ$2:AZ236)-COUNTBLANK(AZ$2:AZ236))","v":"-"},{"$f":"IF(OR(INDEX(Data!A:A,0,1)=0,INDEX(Data!A:A,0,1)=\"-\"),\"\",INDEX(Data!A:A,0,1))","v":""}]
[null,null,null,null,null,null,null,null,null,null,null,null,null,null,null,null,null,null,null,null,null,null,null,null,null,null,null,null,null,null,null,null,null,null,null,null,null,null,null,null,null,null,null,null,null,null,null,null,null,null,{"$f":"IF(OR(AZ237=\"-\",AZ237=\"\"),\"-\",COUNTA(AZ$2:AZ237)-COUNTBLANK(AZ$2:AZ237))","v":"-"},{"$f":"IF(OR(INDEX(Data!A:A,0,1)=0,INDEX(Data!A:A,0,1)=\"-\"),\"\",INDEX(Data!A:A,0,1))","v":""}]
[null,null,null,null,null,null,null,null,null,null,null,null,null,null,null,null,null,null,null,null,null,null,null,null,null,null,null,null,null,null,null,null,null,null,null,null,null,null,null,null,null,null,null,null,null,null,null,null,null,null,{"$f":"IF(OR(AZ238=\"-\",AZ238=\"\"),\"-\",COUNTA(AZ$2:AZ238)-COUNTBLANK(AZ$2:AZ238))","v":"-"},{"$f":"IF(OR(INDEX(Data!A:A,0,1)=0,INDEX(Data!A:A,0,1)=\"-\"),\"\",INDEX(Data!A:A,0,1))","v":""}]
[null,null,null,null,null,null,null,null,null,null,null,null,null,null,null,null,null,null,null,null,null,null,null,null,null,null,null,null,null,null,null,null,null,null,null,null,null,null,null,null,null,null,null,null,null,null,null,null,null,null,{"$f":"IF(OR(AZ239=\"-\",AZ239=\"\"),\"-\",COUNTA(AZ$2:AZ239)-COUNTBLANK(AZ$2:AZ239))","v":"-"},{"$f":"IF(OR(INDEX(Data!A:A,0,1)=0,INDEX(Data!A:A,0,1)=\"-\"),\"\",INDEX(Data!A:A,0,1))","v":""}]
[null,null,null,null,null,null,null,null,null,null,null,null,null,null,null,null,null,null,null,null,null,null,null,null,null,null,null,null,null,null,null,null,null,null,null,null,null,null,null,null,null,null,null,null,null,null,null,null,null,null,{"$f":"IF(OR(AZ240=\"-\",AZ240=\"\"),\"-\",COUNTA(AZ$2:AZ240)-COUNTBLANK(AZ$2:AZ240))","v":"-"},{"$f":"IF(OR(INDEX(Data!A:A,0,1)=0,INDEX(Data!A:A,0,1)=\"-\"),\"\",INDEX(Data!A:A,0,1))","v":""}]
[null,null,null,null,null,null,null,null,null,null,null,null,null,null,null,null,null,null,null,null,null,null,null,null,null,null,null,null,null,null,null,null,null,null,null,null,null,null,null,null,null,null,null,null,null,null,null,null,null,null,{"$f":"IF(OR(AZ241=\"-\",AZ241=\"\"),\"-\",COUNTA(AZ$2:AZ241)-COUNTBLANK(AZ$2:AZ241))","v":"-"},{"$f":"IF(OR(INDEX(Data!A:A,0,1)=0,INDEX(Data!A:A,0,1)=\"-\"),\"\",INDEX(Data!A:A,0,1))","v":""}]
[null,null,null,null,null,null,null,null,null,null,null,null,null,null,null,null,null,null,null,null,null,null,null,null,null,null,null,null,null,null,null,null,null,null,null,null,null,null,null,null,null,null,null,null,null,null,null,null,null,null,{"$f":"IF(OR(AZ242=\"-\",AZ242=\"\"),\"-\",COUNTA(AZ$2:AZ242)-COUNTBLANK(AZ$2:AZ242))","v":"-"},{"$f":"IF(OR(INDEX(Data!A:A,0,1)=0,INDEX(Data!A:A,0,1)=\"-\"),\"\",INDEX(Data!A:A,0,1))","v":""}]
[null,null,null,null,null,null,null,null,null,null,null,null,null,null,null,null,null,null,null,null,null,null,null,null,null,null,null,null,null,null,null,null,null,null,null,null,null,null,null,null,null,null,null,null,null,null,null,null,null,null,{"$f":"IF(OR(AZ243=\"-\",AZ243=\"\"),\"-\",COUNTA(AZ$2:AZ243)-COUNTBLANK(AZ$2:AZ243))","v":"-"},{"$f":"IF(OR(INDEX(Data!A:A,0,1)=0,INDEX(Data!A:A,0,1)=\"-\"),\"\",INDEX(Data!A:A,0,1))","v":""}]
[null,null,null,null,null,null,null,null,null,null,null,null,null,null,null,null,null,null,null,null,null,null,null,null,null,null,null,null,null,null,null,null,null,null,null,null,null,null,null,null,null,null,null,null,null,null,null,null,null,null,{"$f":"IF(OR(AZ244=\"-\",AZ244=\"\"),\"-\",COUNTA(AZ$2:AZ244)-COUNTBLANK(AZ$2:AZ244))","v":"-"},{"$f":"IF(OR(INDEX(Data!A:A,0,1)=0,INDEX(Data!A:A,0,1)=\"-\"),\"\",INDEX(Data!A:A,0,1))","v":""},null,null,null,null,null,null,null,null,null,null,null,null,null,null,null,null,null,null,null,null,null,null,null,null,null,null,null,null,null,null,null,null,null,null,null,null,null,null,null,null,null,null,null,null,null,null,null,null,null,null,null,null,{"$f":"IF(AND(HD!B2000=0,HD!B3000=0,HD!B4000=0),\"LABA DITAHAN\",\"#\")","v":"LABA DITAHAN"}]
[null,null,null,null,null,null,null,null,null,null,null,null,null,null,null,null,null,null,null,null,null,null,null,null,null,null,null,null,null,null,null,null,null,null,null,null,null,null,null,null,null,null,null,null,null,null,null,null,null,null,{"$f":"IF(OR(AZ245=\"-\",AZ245=\"\"),\"-\",COUNTA(AZ$2:AZ245)-COUNTBLANK(AZ$2:AZ245))","v":"-"},{"$f":"IF(OR(INDEX(Data!A:A,0,1)=0,INDEX(Data!A:A,0,1)=\"-\"),\"\",INDEX(Data!A:A,0,1))","v":""}]
[null,null,null,null,null,null,null,null,null,null,null,null,null,null,null,null,null,null,null,null,null,null,null,null,null,null,null,null,null,null,null,null,null,null,null,null,null,null,null,null,null,null,null,null,null,null,null,null,null,null,{"$f":"IF(OR(AZ246=\"-\",AZ246=\"\"),\"-\",COUNTA(AZ$2:AZ246)-COUNTBLANK(AZ$2:AZ246))","v":"-"},{"$f":"IF(OR(INDEX(Data!A:A,0,1)=0,INDEX(Data!A:A,0,1)=\"-\"),\"\",INDEX(Data!A:A,0,1))","v":""}]
[null,null,null,null,null,null,null,null,null,null,null,null,null,null,null,null,null,null,null,null,null,null,null,null,null,null,null,null,null,null,null,null,null,null,null,null,null,null,null,null,null,null,null,null,null,null,null,null,null,null,{"$f":"IF(OR(AZ247=\"-\",AZ247=\"\"),\"-\",COUNTA(AZ$2:AZ247)-COUNTBLANK(AZ$2:AZ247))","v":"-"},{"$f":"IF(OR(INDEX(Data!A:A,0,1)=0,INDEX(Data!A:A,0,1)=\"-\"),\"\",INDEX(Data!A:A,0,1))","v":""}]
[null,null,null,null,null,null,null,null,null,null,null,null,null,null,null,null,null,null,null,null,null,null,null,null,null,null,null,null,null,null,null,null,null,null,null,null,null,null,null,null,null,null,null,null,null,null,null,null,null,null,{"$f":"IF(OR(AZ248=\"-\",AZ248=\"\"),\"-\",COUNTA(AZ$2:AZ248)-COUNTBLANK(AZ$2:AZ248))","v":"-"},{"$f":"IF(OR(INDEX(Data!A:A,0,1)=0,INDEX(Data!A:A,0,1)=\"-\"),\"\",INDEX(Data!A:A,0,1))","v":""}]
[null,null,null,null,null,null,null,null,null,null,null,null,null,null,null,null,null,null,null,null,null,null,null,null,null,null,null,null,null,null,null,null,null,null,null,null,null,null,null,null,null,null,null,null,null,null,null,null,null,null,{"$f":"IF(OR(AZ249=\"-\",AZ249=\"\"),\"-\",COUNTA(AZ$2:AZ249)-COUNTBLANK(AZ$2:AZ249))","v":"-"},{"$f":"IF(OR(INDEX(Data!A:A,0,1)=0,INDEX(Data!A:A,0,1)=\"-\"),\"\",INDEX(Data!A:A,0,1))","v":""}]
[null,null,null,null,null,null,null,null,null,null,null,null,null,null,null,null,null,null,null,null,null,null,null,null,null,null,null,null,null,null,null,null,null,null,null,null,null,null,null,null,null,null,null,null,null,null,null,null,null,null,{"$f":"IF(OR(AZ250=\"-\",AZ250=\"\"),\"-\",COUNTA(AZ$2:AZ250)-COUNTBLANK(AZ$2:AZ250))","v":"-"},{"$f":"IF(OR(INDEX(Data!A:A,0,1)=0,INDEX(Data!A:A,0,1)=\"-\"),\"\",INDEX(Data!A:A,0,1))","v":""}]
[null,null,null,null,null,null,null,null,null,null,null,null,null,null,null,null,null,null,null,null,null,null,null,null,null,null,null,null,null,null,null,null,null,null,null,null,null,null,null,null,null,null,null,null,null,null,null,null,null,null,{"$f":"IF(OR(AZ251=\"-\",AZ251=\"\"),\"-\",COUNTA(AZ$2:AZ251)-COUNTBLANK(AZ$2:AZ251))","v":"-"},{"$f":"IF(OR(INDEX(Data!A:A,0,1)=0,INDEX(Data!A:A,0,1)=\"-\"),\"\",INDEX(Data!A:A,0,1))","v":""}]
[null,null,null,null,null,null,null,null,null,null,null,null,null,null,null,null,null,null,null,null,null,null,null,null,null,null,null,null,null,null,null,null,null,null,null,null,null,null,null,null,null,null,null,null,null,null,null,null,null,null,{"$f":"IF(OR(AZ252=\"-\",AZ252=\"\"),\"-\",COUNTA(AZ$2:AZ252)-COUNTBLANK(AZ$2:AZ252))","v":"-"},{"$f":"IF(OR(INDEX(Data!A:A,0,1)=0,INDEX(Data!A:A,0,1)=\"-\"),\"\",INDEX(Data!A:A,0,1))","v":""}]
[null,null,null,null,null,null,null,null,null,null,null,null,null,null,null,null,null,null,null,null,null,null,null,null,null,null,null,null,null,null,null,null,null,null,null,null,null,null,null,null,null,null,null,null,null,null,null,null,null,null,{"$f":"IF(OR(AZ253=\"-\",AZ253=\"\"),\"-\",COUNTA(AZ$2:AZ253)-COUNTBLANK(AZ$2:AZ253))","v":"-"},{"$f":"IF(OR(INDEX(Data!A:A,0,1)=0,INDEX(Data!A:A,0,1)=\"-\"),\"\",INDEX(Data!A:A,0,1))","v":""}]
[null,null,null,null,null,null,null,null,null,null,null,null,null,null,null,null,null,null,null,null,null,null,null,null,null,null,null,null,null,null,null,null,null,null,null,null,null,null,null,null,null,null,null,null,null,null,null,null,null,null,{"$f":"IF(OR(AZ254=\"-\",AZ254=\"\"),\"-\",COUNTA(AZ$2:AZ254)-COUNTBLANK(AZ$2:AZ254))","v":"-"},{"$f":"IF(OR(INDEX(Data!A:A,0,1)=0,INDEX(Data!A:A,0,1)=\"-\"),\"\",INDEX(Data!A:A,0,1))","v":""}]
[null,null,null,null,null,null,null,null,null,null,null,null,null,null,null,null,null,null,null,null,null,null,null,null,null,null,null,null,null,null,null,null,null,null,null,null,null,null,null,null,null,null,null,null,null,null,null,null,null,null,{"$f":"IF(OR(AZ255=\"-\",AZ255=\"\"),\"-\",COUNTA(AZ$2:AZ255)-COUNTBLANK(AZ$2:AZ255))","v":"-"},{"$f":"IF(OR(INDEX(Data!A:A,0,1)=0,INDEX(Data!A:A,0,1)=\"-\"),\"\",INDEX(Data!A:A,0,1))","v":""}]
[null,null,null,null,null,null,null,null,null,null,null,null,null,null,null,null,null,null,null,null,null,null,null,null,null,null,null,null,null,null,null,null,null,null,null,null,null,null,null,null,null,null,null,null,null,null,null,null,null,null,{"$f":"IF(OR(AZ256=\"-\",AZ256=\"\"),\"-\",COUNTA(AZ$2:AZ256)-COUNTBLANK(AZ$2:AZ256))","v":"-"},{"$f":"IF(OR(INDEX(Data!A:A,0,1)=0,INDEX(Data!A:A,0,1)=\"-\"),\"\",INDEX(Data!A:A,0,1))","v":""},null,null,null,null,null,null,null,null,null,null,null,null,null,null,null,null,null,null,null,null,null,null,null,null,null,null,null,null,null,null,null,null,null,null,null,null,null,null,null,null,null,null,null,null,null,null,null,null,null,null,null,null,{"$f":"IF(AND(HD!B2000=0,HD!B3000=0,HD!B4000=0),\"LABA BERSIH\",\"#\")","v":"LABA BERSIH"}]
[null,null,null,null,null,null,null,null,null,null,null,null,null,null,null,null,null,null,null,null,null,null,null,null,null,null,null,null,null,null,null,null,null,null,null,null,null,null,null,null,null,null,null,null,null,null,null,null,null,null,{"$f":"IF(OR(AZ257=\"-\",AZ257=\"\"),\"-\",COUNTA(AZ$2:AZ257)-COUNTBLANK(AZ$2:AZ257))","v":"-"},{"$f":"IF(OR(INDEX(Data!A:A,0,1)=0,INDEX(Data!A:A,0,1)=\"-\"),\"\",INDEX(Data!A:A,0,1))","v":""}]
[null,null,null,null,null,null,null,null,null,null,null,null,null,null,null,null,null,null,null,null,null,null,null,null,null,null,null,null,null,null,null,null,null,null,null,null,null,null,null,null,null,null,null,null,null,null,null,null,null,null,{"$f":"IF(OR(AZ258=\"-\",AZ258=\"\"),\"-\",COUNTA(AZ$2:AZ258)-COUNTBLANK(AZ$2:AZ258))","v":"-"},{"$f":"IF(OR(INDEX(Data!A:A,0,1)=0,INDEX(Data!A:A,0,1)=\"-\"),\"\",INDEX(Data!A:A,0,1))","v":""}]
[null,null,null,null,null,null,null,null,null,null,null,null,null,null,null,null,null,null,null,null,null,null,null,null,null,null,null,null,null,null,null,null,null,null,null,null,null,null,null,null,null,null,null,null,null,null,null,null,null,null,{"$f":"IF(OR(AZ259=\"-\",AZ259=\"\"),\"-\",COUNTA(AZ$2:AZ259)-COUNTBLANK(AZ$2:AZ259))","v":"-"},{"$f":"IF(OR(INDEX(Data!A:A,0,1)=0,INDEX(Data!A:A,0,1)=\"-\"),\"\",INDEX(Data!A:A,0,1))","v":""}]
[null,null,null,null,null,null,null,null,null,null,null,null,null,null,null,null,null,null,null,null,null,null,null,null,null,null,null,null,null,null,null,null,null,null,null,null,null,null,null,null,null,null,null,null,null,null,null,null,null,null,{"$f":"IF(OR(AZ260=\"-\",AZ260=\"\"),\"-\",COUNTA(AZ$2:AZ260)-COUNTBLANK(AZ$2:AZ260))","v":"-"},{"$f":"IF(OR(INDEX(Data!A:A,0,1)=0,INDEX(Data!A:A,0,1)=\"-\"),\"\",INDEX(Data!A:A,0,1))","v":""}]
[null,null,null,null,null,null,null,null,null,null,null,null,null,null,null,null,null,null,null,null,null,null,null,null,null,null,null,null,null,null,null,null,null,null,null,null,null,null,null,null,null,null,null,null,null,null,null,null,null,null,{"$f":"IF(OR(AZ261=\"-\",AZ261=\"\"),\"-\",COUNTA(AZ$2:AZ261)-COUNTBLANK(AZ$2:AZ261))","v":"-"},{"$f":"IF(OR(INDEX(Data!A:A,0,1)=0,INDEX(Data!A:A,0,1)=\"-\"),\"\",INDEX(Data!A:A,0,1))","v":""}]
[null,null,null,null,null,null,null,null,null,null,null,null,null,null,null,null,null,null,null,null,null,null,null,null,null,null,null,null,null,null,null,null,null,null,null,null,null,null,null,null,null,null,null,null,null,null,null,null,null,null,{"$f":"IF(OR(AZ262=\"-\",AZ262=\"\"),\"-\",COUNTA(AZ$2:AZ262)-COUNTBLANK(AZ$2:AZ262))","v":"-"},{"$f":"IF(OR(INDEX(Data!A:A,0,1)=0,INDEX(Data!A:A,0,1)=\"-\"),\"\",INDEX(Data!A:A,0,1))","v":""}]
[null,null,null,null,null,null,null,null,null,null,null,null,null,null,null,null,null,null,null,null,null,null,null,null,null,null,null,null,null,null,null,null,null,null,null,null,null,null,null,null,null,null,null,null,null,null,null,null,null,null,{"$f":"IF(OR(AZ263=\"-\",AZ263=\"\"),\"-\",COUNTA(AZ$2:AZ263)-COUNTBLANK(AZ$2:AZ263))","v":"-"},{"$f":"IF(OR(INDEX(Data!A:A,0,1)=0,INDEX(Data!A:A,0,1)=\"-\"),\"\",INDEX(Data!A:A,0,1))","v":""}]
[null,null,null,null,null,null,null,null,null,null,null,null,null,null,null,null,null,null,null,null,null,null,null,null,null,null,null,null,null,null,null,null,null,null,null,null,null,null,null,null,null,null,null,null,null,null,null,null,null,null,{"$f":"IF(OR(AZ264=\"-\",AZ264=\"\"),\"-\",COUNTA(AZ$2:AZ264)-COUNTBLANK(AZ$2:AZ264))","v":"-"},{"$f":"IF(OR(INDEX(Data!A:A,0,1)=0,INDEX(Data!A:A,0,1)=\"-\"),\"\",INDEX(Data!A:A,0,1))","v":""}]
[null,null,null,null,null,null,null,null,null,null,null,null,null,null,null,null,null,null,null,null,null,null,null,null,null,null,null,null,null,null,null,null,null,null,null,null,null,null,null,null,null,null,null,null,null,null,null,null,null,null,{"$f":"IF(OR(AZ265=\"-\",AZ265=\"\"),\"-\",COUNTA(AZ$2:AZ265)-COUNTBLANK(AZ$2:AZ265))","v":"-"},{"$f":"IF(OR(INDEX(Data!A:A,0,1)=0,INDEX(Data!A:A,0,1)=\"-\"),\"\",INDEX(Data!A:A,0,1))","v":""}]
[null,null,null,null,null,null,null,null,null,null,null,null,null,null,null,null,null,null,null,null,null,null,null,null,null,null,null,null,null,null,null,null,null,null,null,null,null,null,null,null,null,null,null,null,null,null,null,null,null,null,{"$f":"IF(OR(AZ266=\"-\",AZ266=\"\"),\"-\",COUNTA(AZ$2:AZ266)-COUNTBLANK(AZ$2:AZ266))","v":"-"},{"$f":"IF(OR(INDEX(Data!A:A,0,1)=0,INDEX(Data!A:A,0,1)=\"-\"),\"\",INDEX(Data!A:A,0,1))","v":""}]
[null,null,null,null,null,null,null,null,null,null,null,null,null,null,null,null,null,null,null,null,null,null,null,null,null,null,null,null,null,null,null,null,null,null,null,null,null,null,null,null,null,null,null,null,null,null,null,null,null,null,{"$f":"IF(OR(AZ267=\"-\",AZ267=\"\"),\"-\",COUNTA(AZ$2:AZ267)-COUNTBLANK(AZ$2:AZ267))","v":"-"},{"$f":"IF(OR(INDEX(Data!A:A,0,1)=0,INDEX(Data!A:A,0,1)=\"-\"),\"\",INDEX(Data!A:A,0,1))","v":""}]
[null,null,null,null,null,null,null,null,null,null,null,null,null,null,null,null,null,null,null,null,null,null,null,null,null,null,null,null,null,null,null,null,null,null,null,null,null,null,null,null,null,null,null,null,null,null,null,null,null,null,{"$f":"IF(OR(AZ268=\"-\",AZ268=\"\"),\"-\",COUNTA(AZ$2:AZ268)-COUNTBLANK(AZ$2:AZ268))","v":"-"},{"$f":"IF(OR(INDEX(Data!A:A,0,1)=0,INDEX(Data!A:A,0,1)=\"-\"),\"\",INDEX(Data!A:A,0,1))","v":""},null,null,null,null,null,null,null,null,null,null,null,null,null,null,null,null,null,null,null,null,null,null,null,null,null,null,null,null,null,null,null,null,null,null,null,null,null,null,null,null,null,null,null,null,null,null,null,null,null,null,null,null,{"$f":"IF(AND(HD!B2000=0,HD!B3000=0,HD!B4000=0),\"AKTIVA\",\"#\")","v":"AKTIVA"}]
[null,null,null,null,null,null,null,null,null,null,null,null,null,null,null,null,null,null,null,null,null,null,null,null,null,null,null,null,null,null,null,null,null,null,null,null,null,null,null,null,null,null,null,null,null,null,null,null,null,null,{"$f":"IF(OR(AZ269=\"-\",AZ269=\"\"),\"-\",COUNTA(AZ$2:AZ269)-COUNTBLANK(AZ$2:AZ269))","v":"-"},{"$f":"IF(OR(INDEX(Data!A:A,0,1)=0,INDEX(Data!A:A,0,1)=\"-\"),\"\",INDEX(Data!A:A,0,1))","v":""}]
[null,null,null,null,null,null,null,null,null,null,null,null,null,null,null,null,null,null,null,null,null,null,null,null,null,null,null,null,null,null,null,null,null,null,null,null,null,null,null,null,null,null,null,null,null,null,null,null,null,null,{"$f":"IF(OR(AZ270=\"-\",AZ270=\"\"),\"-\",COUNTA(AZ$2:AZ270)-COUNTBLANK(AZ$2:AZ270))","v":"-"},{"$f":"IF(OR(INDEX(Data!A:A,0,1)=0,INDEX(Data!A:A,0,1)=\"-\"),\"\",INDEX(Data!A:A,0,1))","v":""}]
[null,null,null,null,null,null,null,null,null,null,null,null,null,null,null,null,null,null,null,null,null,null,null,null,null,null,null,null,null,null,null,null,null,null,null,null,null,null,null,null,null,null,null,null,null,null,null,null,null,null,{"$f":"IF(OR(AZ271=\"-\",AZ271=\"\"),\"-\",COUNTA(AZ$2:AZ271)-COUNTBLANK(AZ$2:AZ271))","v":"-"},{"$f":"IF(OR(INDEX(Data!A:A,0,1)=0,INDEX(Data!A:A,0,1)=\"-\"),\"\",INDEX(Data!A:A,0,1))","v":""}]
[null,null,null,null,null,null,null,null,null,null,null,null,null,null,null,null,null,null,null,null,null,null,null,null,null,null,null,null,null,null,null,null,null,null,null,null,null,null,null,null,null,null,null,null,null,null,null,null,null,null,{"$f":"IF(OR(AZ272=\"-\",AZ272=\"\"),\"-\",COUNTA(AZ$2:AZ272)-COUNTBLANK(AZ$2:AZ272))","v":"-"},{"$f":"IF(OR(INDEX(Data!A:A,0,1)=0,INDEX(Data!A:A,0,1)=\"-\"),\"\",INDEX(Data!A:A,0,1))","v":""}]
[null,null,null,null,null,null,null,null,null,null,null,null,null,null,null,null,null,null,null,null,null,null,null,null,null,null,null,null,null,null,null,null,null,null,null,null,null,null,null,null,null,null,null,null,null,null,null,null,null,null,{"$f":"IF(OR(AZ273=\"-\",AZ273=\"\"),\"-\",COUNTA(AZ$2:AZ273)-COUNTBLANK(AZ$2:AZ273))","v":"-"},{"$f":"IF(OR(INDEX(Data!A:A,0,1)=0,INDEX(Data!A:A,0,1)=\"-\"),\"\",INDEX(Data!A:A,0,1))","v":""}]
[null,null,null,null,null,null,null,null,null,null,null,null,null,null,null,null,null,null,null,null,null,null,null,null,null,null,null,null,null,null,null,null,null,null,null,null,null,null,null,null,null,null,null,null,null,null,null,null,null,null,{"$f":"IF(OR(AZ274=\"-\",AZ274=\"\"),\"-\",COUNTA(AZ$2:AZ274)-COUNTBLANK(AZ$2:AZ274))","v":"-"},{"$f":"IF(OR(INDEX(Data!A:A,0,1)=0,INDEX(Data!A:A,0,1)=\"-\"),\"\",INDEX(Data!A:A,0,1))","v":""}]
[null,null,null,null,null,null,null,null,null,null,null,null,null,null,null,null,null,null,null,null,null,null,null,null,null,null,null,null,null,null,null,null,null,null,null,null,null,null,null,null,null,null,null,null,null,null,null,null,null,null,{"$f":"IF(OR(AZ275=\"-\",AZ275=\"\"),\"-\",COUNTA(AZ$2:AZ275)-COUNTBLANK(AZ$2:AZ275))","v":"-"},{"$f":"IF(OR(INDEX(Data!A:A,0,1)=0,INDEX(Data!A:A,0,1)=\"-\"),\"\",INDEX(Data!A:A,0,1))","v":""}]
[null,null,null,null,null,null,null,null,null,null,null,null,null,null,null,null,null,null,null,null,null,null,null,null,null,null,null,null,null,null,null,null,null,null,null,null,null,null,null,null,null,null,null,null,null,null,null,null,null,null,{"$f":"IF(OR(AZ276=\"-\",AZ276=\"\"),\"-\",COUNTA(AZ$2:AZ276)-COUNTBLANK(AZ$2:AZ276))","v":"-"},{"$f":"IF(OR(INDEX(Data!A:A,0,1)=0,INDEX(Data!A:A,0,1)=\"-\"),\"\",INDEX(Data!A:A,0,1))","v":""}]
[null,null,null,null,null,null,null,null,null,null,null,null,null,null,null,null,null,null,null,null,null,null,null,null,null,null,null,null,null,null,null,null,null,null,null,null,null,null,null,null,null,null,null,null,null,null,null,null,null,null,{"$f":"IF(OR(AZ277=\"-\",AZ277=\"\"),\"-\",COUNTA(AZ$2:AZ277)-COUNTBLANK(AZ$2:AZ277))","v":"-"},{"$f":"IF(OR(INDEX(Data!A:A,0,1)=0,INDEX(Data!A:A,0,1)=\"-\"),\"\",INDEX(Data!A:A,0,1))","v":""}]
[null,null,null,null,null,null,null,null,null,null,null,null,null,null,null,null,null,null,null,null,null,null,null,null,null,null,null,null,null,null,null,null,null,null,null,null,null,null,null,null,null,null,null,null,null,null,null,null,null,null,{"$f":"IF(OR(AZ278=\"-\",AZ278=\"\"),\"-\",COUNTA(AZ$2:AZ278)-COUNTBLANK(AZ$2:AZ278))","v":"-"},{"$f":"IF(OR(INDEX(Data!A:A,0,1)=0,INDEX(Data!A:A,0,1)=\"-\"),\"\",INDEX(Data!A:A,0,1))","v":""}]
[null,null,null,null,null,null,null,null,null,null,null,null,null,null,null,null,null,null,null,null,null,null,null,null,null,null,null,null,null,null,null,null,null,null,null,null,null,null,null,null,null,null,null,null,null,null,null,null,null,null,{"$f":"IF(OR(AZ279=\"-\",AZ279=\"\"),\"-\",COUNTA(AZ$2:AZ279)-COUNTBLANK(AZ$2:AZ279))","v":"-"},{"$f":"IF(OR(INDEX(Data!A:A,0,1)=0,INDEX(Data!A:A,0,1)=\"-\"),\"\",INDEX(Data!A:A,0,1))","v":""}]
[null,null,null,null,null,null,null,null,null,null,null,null,null,null,null,null,null,null,null,null,null,null,null,null,null,null,null,null,null,null,null,null,null,null,null,null,null,null,null,null,null,null,null,null,null,null,null,null,null,null,{"$f":"IF(OR(AZ280=\"-\",AZ280=\"\"),\"-\",COUNTA(AZ$2:AZ280)-COUNTBLANK(AZ$2:AZ280))","v":"-"},{"$f":"IF(OR(INDEX(Data!A:A,0,1)=0,INDEX(Data!A:A,0,1)=\"-\"),\"\",INDEX(Data!A:A,0,1))","v":""},null,null,null,null,null,null,null,null,null,null,null,null,null,null,null,null,null,null,null,null,null,null,null,null,null,null,null,null,null,null,null,null,null,null,null,null,null,null,null,null,null,null,null,null,null,null,null,null,null,null,null,null,{"$f":"IF(AND(HD!B2000=0,HD!B3000=0,HD!B4000=0),\"PASIVA\",\"#\")","v":"PASIVA"}]
[null,null,null,null,null,null,null,null,null,null,null,null,null,null,null,null,null,null,null,null,null,null,null,null,null,null,null,null,null,null,null,null,null,null,null,null,null,null,null,null,null,null,null,null,null,null,null,null,null,null,{"$f":"IF(OR(AZ281=\"-\",AZ281=\"\"),\"-\",COUNTA(AZ$2:AZ281)-COUNTBLANK(AZ$2:AZ281))","v":"-"},{"$f":"IF(OR(INDEX(Data!A:A,0,1)=0,INDEX(Data!A:A,0,1)=\"-\"),\"\",INDEX(Data!A:A,0,1))","v":""}]
[null,null,null,null,null,null,null,null,null,null,null,null,null,null,null,null,null,null,null,null,null,null,null,null,null,null,null,null,null,null,null,null,null,null,null,null,null,null,null,null,null,null,null,null,null,null,null,null,null,null,{"$f":"IF(OR(AZ282=\"-\",AZ282=\"\"),\"-\",COUNTA(AZ$2:AZ282)-COUNTBLANK(AZ$2:AZ282))","v":"-"},{"$f":"IF(OR(INDEX(Data!A:A,0,1)=0,INDEX(Data!A:A,0,1)=\"-\"),\"\",INDEX(Data!A:A,0,1))","v":""}]
[null,null,null,null,null,null,null,null,null,null,null,null,null,null,null,null,null,null,null,null,null,null,null,null,null,null,null,null,null,null,null,null,null,null,null,null,null,null,null,null,null,null,null,null,null,null,null,null,null,null,{"$f":"IF(OR(AZ283=\"-\",AZ283=\"\"),\"-\",COUNTA(AZ$2:AZ283)-COUNTBLANK(AZ$2:AZ283))","v":"-"},{"$f":"IF(OR(INDEX(Data!A:A,0,1)=0,INDEX(Data!A:A,0,1)=\"-\"),\"\",INDEX(Data!A:A,0,1))","v":""}]
[null,null,null,null,null,null,null,null,null,null,null,null,null,null,null,null,null,null,null,null,null,null,null,null,null,null,null,null,null,null,null,null,null,null,null,null,null,null,null,null,null,null,null,null,null,null,null,null,null,null,{"$f":"IF(OR(AZ284=\"-\",AZ284=\"\"),\"-\",COUNTA(AZ$2:AZ284)-COUNTBLANK(AZ$2:AZ284))","v":"-"},{"$f":"IF(OR(INDEX(Data!A:A,0,1)=0,INDEX(Data!A:A,0,1)=\"-\"),\"\",INDEX(Data!A:A,0,1))","v":""}]
[null,null,null,null,null,null,null,null,null,null,null,null,null,null,null,null,null,null,null,null,null,null,null,null,null,null,null,null,null,null,null,null,null,null,null,null,null,null,null,null,null,null,null,null,null,null,null,null,null,null,{"$f":"IF(OR(AZ285=\"-\",AZ285=\"\"),\"-\",COUNTA(AZ$2:AZ285)-COUNTBLANK(AZ$2:AZ285))","v":"-"},{"$f":"IF(OR(INDEX(Data!A:A,0,1)=0,INDEX(Data!A:A,0,1)=\"-\"),\"\",INDEX(Data!A:A,0,1))","v":""}]
[null,null,null,null,null,null,null,null,null,null,null,null,null,null,null,null,null,null,null,null,null,null,null,null,null,null,null,null,null,null,null,null,null,null,null,null,null,null,null,null,null,null,null,null,null,null,null,null,null,null,{"$f":"IF(OR(AZ286=\"-\",AZ286=\"\"),\"-\",COUNTA(AZ$2:AZ286)-COUNTBLANK(AZ$2:AZ286))","v":"-"},{"$f":"IF(OR(INDEX(Data!A:A,0,1)=0,INDEX(Data!A:A,0,1)=\"-\"),\"\",INDEX(Data!A:A,0,1))","v":""}]
[null,null,null,null,null,null,null,null,null,null,null,null,null,null,null,null,null,null,null,null,null,null,null,null,null,null,null,null,null,null,null,null,null,null,null,null,null,null,null,null,null,null,null,null,null,null,null,null,null,null,{"$f":"IF(OR(AZ287=\"-\",AZ287=\"\"),\"-\",COUNTA(AZ$2:AZ287)-COUNTBLANK(AZ$2:AZ287))","v":"-"},{"$f":"IF(OR(INDEX(Data!A:A,0,1)=0,INDEX(Data!A:A,0,1)=\"-\"),\"\",INDEX(Data!A:A,0,1))","v":""}]
[null,null,null,null,null,null,null,null,null,null,null,null,null,null,null,null,null,null,null,null,null,null,null,null,null,null,null,null,null,null,null,null,null,null,null,null,null,null,null,null,null,null,null,null,null,null,null,null,null,null,{"$f":"IF(OR(AZ288=\"-\",AZ288=\"\"),\"-\",COUNTA(AZ$2:AZ288)-COUNTBLANK(AZ$2:AZ288))","v":"-"},{"$f":"IF(OR(INDEX(Data!A:A,0,1)=0,INDEX(Data!A:A,0,1)=\"-\"),\"\",INDEX(Data!A:A,0,1))","v":""}]
[null,null,null,null,null,null,null,null,null,null,null,null,null,null,null,null,null,null,null,null,null,null,null,null,null,null,null,null,null,null,null,null,null,null,null,null,null,null,null,null,null,null,null,null,null,null,null,null,null,null,{"$f":"IF(OR(AZ289=\"-\",AZ289=\"\"),\"-\",COUNTA(AZ$2:AZ289)-COUNTBLANK(AZ$2:AZ289))","v":"-"},{"$f":"IF(OR(INDEX(Data!A:A,0,1)=0,INDEX(Data!A:A,0,1)=\"-\"),\"\",INDEX(Data!A:A,0,1))","v":""}]
[null,null,null,null,null,null,null,null,null,null,null,null,null,null,null,null,null,null,null,null,null,null,null,null,null,null,null,null,null,null,null,null,null,null,null,null,null,null,null,null,null,null,null,null,null,null,null,null,null,null,{"$f":"IF(OR(AZ290=\"-\",AZ290=\"\"),\"-\",COUNTA(AZ$2:AZ290)-COUNTBLANK(AZ$2:AZ290))","v":"-"},{"$f":"IF(OR(INDEX(Data!A:A,0,1)=0,INDEX(Data!A:A,0,1)=\"-\"),\"\",INDEX(Data!A:A,0,1))","v":""}]
[null,null,null,null,null,null,null,null,null,null,null,null,null,null,null,null,null,null,null,null,null,null,null,null,null,null,null,null,null,null,null,null,null,null,null,null,null,null,null,null,null,null,null,null,null,null,null,null,null,null,{"$f":"IF(OR(AZ291=\"-\",AZ291=\"\"),\"-\",COUNTA(AZ$2:AZ291)-COUNTBLANK(AZ$2:AZ291))","v":"-"},{"$f":"IF(OR(INDEX(Data!A:A,0,1)=0,INDEX(Data!A:A,0,1)=\"-\"),\"\",INDEX(Data!A:A,0,1))","v":""}]
[null,null,null,null,null,null,null,null,null,null,null,null,null,null,null,null,null,null,null,null,null,null,null,null,null,null,null,null,null,null,null,null,null,null,null,null,null,null,null,null,null,null,null,null,null,null,null,null,null,null,{"$f":"IF(OR(AZ292=\"-\",AZ292=\"\"),\"-\",COUNTA(AZ$2:AZ292)-COUNTBLANK(AZ$2:AZ292))","v":"-"},{"$f":"IF(OR(INDEX(Data!A:A,0,1)=0,INDEX(Data!A:A,0,1)=\"-\"),\"\",INDEX(Data!A:A,0,1))","v":""},null,null,null,null,null,null,null,null,null,null,null,null,null,null,null,null,null,null,null,null,null,null,null,null,null,null,null,null,null,null,null,null,null,null,null,null,null,null,null,null,null,null,null,null,null,null,null,null,null,null,null,null,{"$f":"HD!XY5000","v":"info@xclmedia.com"}]
[null,null,null,null,null,null,null,null,null,null,null,null,null,null,null,null,null,null,null,null,null,null,null,null,null,null,null,null,null,null,null,null,null,null,null,null,null,null,null,null,null,null,null,null,null,null,null,null,null,null,{"$f":"IF(OR(AZ293=\"-\",AZ293=\"\"),\"-\",COUNTA(AZ$2:AZ293)-COUNTBLANK(AZ$2:AZ293))","v":"-"},{"$f":"IF(OR(INDEX(Data!A:A,0,1)=0,INDEX(Data!A:A,0,1)=\"-\"),\"\",INDEX(Data!A:A,0,1))","v":""}]
[null,null,null,null,null,null,null,null,null,null,null,null,null,null,null,null,null,null,null,null,null,null,null,null,null,null,null,null,null,null,null,null,null,null,null,null,null,null,null,null,null,null,null,null,null,null,null,null,null,null,{"$f":"IF(OR(AZ294=\"-\",AZ294=\"\"),\"-\",COUNTA(AZ$2:AZ294)-COUNTBLANK(AZ$2:AZ294))","v":"-"},{"$f":"IF(OR(INDEX(Data!A:A,0,1)=0,INDEX(Data!A:A,0,1)=\"-\"),\"\",INDEX(Data!A:A,0,1))","v":""}]
[null,null,null,null,null,null,null,null,null,null,null,null,null,null,null,null,null,null,null,null,null,null,null,null,null,null,null,null,null,null,null,null,null,null,null,null,null,null,null,null,null,null,null,null,null,null,null,null,null,null,{"$f":"IF(OR(AZ295=\"-\",AZ295=\"\"),\"-\",COUNTA(AZ$2:AZ295)-COUNTBLANK(AZ$2:AZ295))","v":"-"},{"$f":"IF(OR(INDEX(Data!A:A,0,1)=0,INDEX(Data!A:A,0,1)=\"-\"),\"\",INDEX(Data!A:A,0,1))","v":""}]
[null,null,null,null,null,null,null,null,null,null,null,null,null,null,null,null,null,null,null,null,null,null,null,null,null,null,null,null,null,null,null,null,null,null,null,null,null,null,null,null,null,null,null,null,null,null,null,null,null,null,{"$f":"IF(OR(AZ296=\"-\",AZ296=\"\"),\"-\",COUNTA(AZ$2:AZ296)-COUNTBLANK(AZ$2:AZ296))","v":"-"},{"$f":"IF(OR(INDEX(Data!A:A,0,1)=0,INDEX(Data!A:A,0,1)=\"-\"),\"\",INDEX(Data!A:A,0,1))","v":""}]
[null,null,null,null,null,null,null,null,null,null,null,null,null,null,null,null,null,null,null,null,null,null,null,null,null,null,null,null,null,null,null,null,null,null,null,null,null,null,null,null,null,null,null,null,null,null,null,null,null,null,{"$f":"IF(OR(AZ297=\"-\",AZ297=\"\"),\"-\",COUNTA(AZ$2:AZ297)-COUNTBLANK(AZ$2:AZ297))","v":"-"},{"$f":"IF(OR(INDEX(Data!A:A,0,1)=0,INDEX(Data!A:A,0,1)=\"-\"),\"\",INDEX(Data!A:A,0,1))","v":""}]
[null,null,null,null,null,null,null,null,null,null,null,null,null,null,null,null,null,null,null,null,null,null,null,null,null,null,null,null,null,null,null,null,null,null,null,null,null,null,null,null,null,null,null,null,null,null,null,null,null,null,{"$f":"IF(OR(AZ298=\"-\",AZ298=\"\"),\"-\",COUNTA(AZ$2:AZ298)-COUNTBLANK(AZ$2:AZ298))","v":"-"},{"$f":"IF(OR(INDEX(Data!A:A,0,1)=0,INDEX(Data!A:A,0,1)=\"-\"),\"\",INDEX(Data!A:A,0,1))","v":""}]
[null,null,null,null,null,null,null,null,null,null,null,null,null,null,null,null,null,null,null,null,null,null,null,null,null,null,null,null,null,null,null,null,null,null,null,null,null,null,null,null,null,null,null,null,null,null,null,null,null,null,{"$f":"IF(OR(AZ299=\"-\",AZ299=\"\"),\"-\",COUNTA(AZ$2:AZ299)-COUNTBLANK(AZ$2:AZ299))","v":"-"},{"$f":"IF(OR(INDEX(Data!A:A,0,1)=0,INDEX(Data!A:A,0,1)=\"-\"),\"\",INDEX(Data!A:A,0,1))","v":""}]
[null,null,null,null,null,null,null,null,null,null,null,null,null,null,null,null,null,null,null,null,null,null,null,null,null,null,null,null,null,null,null,null,null,null,null,null,null,null,null,null,null,null,null,null,null,null,null,null,null,null,{"$f":"IF(OR(AZ300=\"-\",AZ300=\"\"),\"-\",COUNTA(AZ$2:AZ300)-COUNTBLANK(AZ$2:AZ300))","v":"-"},{"$f":"IF(OR(INDEX(Data!A:A,0,1)=0,INDEX(Data!A:A,0,1)=\"-\"),\"\",INDEX(Data!A:A,0,1))","v":""}]
[null,null,null,null,null,null,null,null,null,null,null,null,null,null,null,null,null,null,null,null,null,null,null,null,null,null,null,null,null,null,null,null,null,null,null,null,null,null,null,null,null,null,null,null,null,null,null,null,null,null,{"$f":"IF(OR(AZ301=\"-\",AZ301=\"\"),\"-\",COUNTA(AZ$2:AZ301)-COUNTBLANK(AZ$2:AZ301))","v":"-"},{"$f":"IF(OR(INDEX(Data!A:A,0,1)=0,INDEX(Data!A:A,0,1)=\"-\"),\"\",INDEX(Data!A:A,0,1))","v":""}]
[null,null,null,null,null,null,null,null,null,null,null,null,null,null,null,null,null,null,null,null,null,null,null,null,null,null,null,null,null,null,null,null,null,null,null,null,null,null,null,null,null,null,null,null,null,null,null,null,null,null,{"$f":"IF(OR(AZ302=\"-\",AZ302=\"\"),\"-\",COUNTA(AZ$2:AZ302)-COUNTBLANK(AZ$2:AZ302))","v":"-"},{"$f":"IF(OR(INDEX(Data!A:A,0,1)=0,INDEX(Data!A:A,0,1)=\"-\"),\"\",INDEX(Data!A:A,0,1))","v":""}]
[null,null,null,null,null,null,null,null,null,null,null,null,null,null,null,null,null,null,null,null,null,null,null,null,null,null,null,null,null,null,null,null,null,null,null,null,null,null,null,null,null,null,null,null,null,null,null,null,null,null,{"$f":"IF(OR(AZ303=\"-\",AZ303=\"\"),\"-\",COUNTA(AZ$2:AZ303)-COUNTBLANK(AZ$2:AZ303))","v":"-"},{"$f":"IF(OR(INDEX(Data!A:A,0,1)=0,INDEX(Data!A:A,0,1)=\"-\"),\"\",INDEX(Data!A:A,0,1))","v":""}]
[null,null,null,null,null,null,null,null,null,null,null,null,null,null,null,null,null,null,null,null,null,null,null,null,null,null,null,null,null,null,null,null,null,null,null,null,null,null,null,null,null,null,null,null,null,null,null,null,null,null,{"$f":"IF(OR(AZ304=\"-\",AZ304=\"\"),\"-\",COUNTA(AZ$2:AZ304)-COUNTBLANK(AZ$2:AZ304))","v":"-"},{"$f":"IF(OR(INDEX(Data!A:A,0,1)=0,INDEX(Data!A:A,0,1)=\"-\"),\"\",INDEX(Data!A:A,0,1))","v":""},null,null,null,null,null,null,null,null,null,null,null,null,null,null,null,null,null,null,null,null,null,null,null,null,null,null,null,null,null,null,null,null,null,null,null,null,null,null,null,null,null,null,null,null,null,null,null,null,null,null,null,null,{"$f":"IF(AND(HD!B2000=0,HD!B3000=0,HD!B4000=0),\"Naik\",\"#\")","v":"Naik"}]
[null,null,null,null,null,null,null,null,null,null,null,null,null,null,null,null,null,null,null,null,null,null,null,null,null,null,null,null,null,null,null,null,null,null,null,null,null,null,null,null,null,null,null,null,null,null,null,null,null,null,{"$f":"IF(OR(AZ305=\"-\",AZ305=\"\"),\"-\",COUNTA(AZ$2:AZ305)-COUNTBLANK(AZ$2:AZ305))","v":"-"},{"$f":"IF(OR(INDEX(Data!A:A,0,1)=0,INDEX(Data!A:A,0,1)=\"-\"),\"\",INDEX(Data!A:A,0,1))","v":""}]
[null,null,null,null,null,null,null,null,null,null,null,null,null,null,null,null,null,null,null,null,null,null,null,null,null,null,null,null,null,null,null,null,null,null,null,null,null,null,null,null,null,null,null,null,null,null,null,null,null,null,{"$f":"IF(OR(AZ306=\"-\",AZ306=\"\"),\"-\",COUNTA(AZ$2:AZ306)-COUNTBLANK(AZ$2:AZ306))","v":"-"},{"$f":"IF(OR(INDEX(Data!A:A,0,1)=0,INDEX(Data!A:A,0,1)=\"-\"),\"\",INDEX(Data!A:A,0,1))","v":""}]
[null,null,null,null,null,null,null,null,null,null,null,null,null,null,null,null,null,null,null,null,null,null,null,null,null,null,null,null,null,null,null,null,null,null,null,null,null,null,null,null,null,null,null,null,null,null,null,null,null,null,{"$f":"IF(OR(AZ307=\"-\",AZ307=\"\"),\"-\",COUNTA(AZ$2:AZ307)-COUNTBLANK(AZ$2:AZ307))","v":"-"},{"$f":"IF(OR(INDEX(Data!A:A,0,1)=0,INDEX(Data!A:A,0,1)=\"-\"),\"\",INDEX(Data!A:A,0,1))","v":""}]
[null,null,null,null,null,null,null,null,null,null,null,null,null,null,null,null,null,null,null,null,null,null,null,null,null,null,null,null,null,null,null,null,null,null,null,null,null,null,null,null,null,null,null,null,null,null,null,null,null,null,{"$f":"IF(OR(AZ308=\"-\",AZ308=\"\"),\"-\",COUNTA(AZ$2:AZ308)-COUNTBLANK(AZ$2:AZ308))","v":"-"},{"$f":"IF(OR(INDEX(Data!A:A,0,1)=0,INDEX(Data!A:A,0,1)=\"-\"),\"\",INDEX(Data!A:A,0,1))","v":""}]
[null,null,null,null,null,null,null,null,null,null,null,null,null,null,null,null,null,null,null,null,null,null,null,null,null,null,null,null,null,null,null,null,null,null,null,null,null,null,null,null,null,null,null,null,null,null,null,null,null,null,{"$f":"IF(OR(AZ309=\"-\",AZ309=\"\"),\"-\",COUNTA(AZ$2:AZ309)-COUNTBLANK(AZ$2:AZ309))","v":"-"},{"$f":"IF(OR(INDEX(Data!A:A,0,1)=0,INDEX(Data!A:A,0,1)=\"-\"),\"\",INDEX(Data!A:A,0,1))","v":""}]
[null,null,null,null,null,null,null,null,null,null,null,null,null,null,null,null,null,null,null,null,null,null,null,null,null,null,null,null,null,null,null,null,null,null,null,null,null,null,null,null,null,null,null,null,null,null,null,null,null,null,{"$f":"IF(OR(AZ310=\"-\",AZ310=\"\"),\"-\",COUNTA(AZ$2:AZ310)-COUNTBLANK(AZ$2:AZ310))","v":"-"},{"$f":"IF(OR(INDEX(Data!A:A,0,1)=0,INDEX(Data!A:A,0,1)=\"-\"),\"\",INDEX(Data!A:A,0,1))","v":""}]
[null,null,null,null,null,null,null,null,null,null,null,null,null,null,null,null,null,null,null,null,null,null,null,null,null,null,null,null,null,null,null,null,null,null,null,null,null,null,null,null,null,null,null,null,null,null,null,null,null,null,{"$f":"IF(OR(AZ311=\"-\",AZ311=\"\"),\"-\",COUNTA(AZ$2:AZ311)-COUNTBLANK(AZ$2:AZ311))","v":"-"},{"$f":"IF(OR(INDEX(Data!A:A,0,1)=0,INDEX(Data!A:A,0,1)=\"-\"),\"\",INDEX(Data!A:A,0,1))","v":""}]
[null,null,null,null,null,null,null,null,null,null,null,null,null,null,null,null,null,null,null,null,null,null,null,null,null,null,null,null,null,null,null,null,null,null,null,null,null,null,null,null,null,null,null,null,null,null,null,null,null,null,{"$f":"IF(OR(AZ312=\"-\",AZ312=\"\"),\"-\",COUNTA(AZ$2:AZ312)-COUNTBLANK(AZ$2:AZ312))","v":"-"},{"$f":"IF(OR(INDEX(Data!A:A,0,1)=0,INDEX(Data!A:A,0,1)=\"-\"),\"\",INDEX(Data!A:A,0,1))","v":""}]
[null,null,null,null,null,null,null,null,null,null,null,null,null,null,null,null,null,null,null,null,null,null,null,null,null,null,null,null,null,null,null,null,null,null,null,null,null,null,null,null,null,null,null,null,null,null,null,null,null,null,{"$f":"IF(OR(AZ313=\"-\",AZ313=\"\"),\"-\",COUNTA(AZ$2:AZ313)-COUNTBLANK(AZ$2:AZ313))","v":"-"},{"$f":"IF(OR(INDEX(Data!A:A,0,1)=0,INDEX(Data!A:A,0,1)=\"-\"),\"\",INDEX(Data!A:A,0,1))","v":""}]
[null,null,null,null,null,null,null,null,null,null,null,null,null,null,null,null,null,null,null,null,null,null,null,null,null,null,null,null,null,null,null,null,null,null,null,null,null,null,null,null,null,null,null,null,null,null,null,null,null,null,{"$f":"IF(OR(AZ314=\"-\",AZ314=\"\"),\"-\",COUNTA(AZ$2:AZ314)-COUNTBLANK(AZ$2:AZ314))","v":"-"},{"$f":"IF(OR(INDEX(Data!A:A,0,1)=0,INDEX(Data!A:A,0,1)=\"-\"),\"\",INDEX(Data!A:A,0,1))","v":""}]
[null,null,null,null,null,null,null,null,null,null,null,null,null,null,null,null,null,null,null,null,null,null,null,null,null,null,null,null,null,null,null,null,null,null,null,null,null,null,null,null,null,null,null,null,null,null,null,null,null,null,{"$f":"IF(OR(AZ315=\"-\",AZ315=\"\"),\"-\",COUNTA(AZ$2:AZ315)-COUNTBLANK(AZ$2:AZ315))","v":"-"},{"$f":"IF(OR(INDEX(Data!A:A,0,1)=0,INDEX(Data!A:A,0,1)=\"-\"),\"\",INDEX(Data!A:A,0,1))","v":""}]
[null,null,null,null,null,null,null,null,null,null,null,null,null,null,null,null,null,null,null,null,null,null,null,null,null,null,null,null,null,null,null,null,null,null,null,null,null,null,null,null,null,null,null,null,null,null,null,null,null,null,{"$f":"IF(OR(AZ316=\"-\",AZ316=\"\"),\"-\",COUNTA(AZ$2:AZ316)-COUNTBLANK(AZ$2:AZ316))","v":"-"},{"$f":"IF(OR(INDEX(Data!A:A,0,1)=0,INDEX(Data!A:A,0,1)=\"-\"),\"\",INDEX(Data!A:A,0,1))","v":""},null,null,null,null,null,null,null,null,null,null,null,null,null,null,null,null,null,null,null,null,null,null,null,null,null,null,null,null,null,null,null,null,null,null,null,null,null,null,null,null,null,null,null,null,null,null,null,null,null,null,null,null,{"$f":"IF(AND(HD!B2000=0,HD!B3000=0,HD!B4000=0),\"Turun\",\"#\")","v":"Turun"}]
[null,null,null,null,null,null,null,null,null,null,null,null,null,null,null,null,null,null,null,null,null,null,null,null,null,null,null,null,null,null,null,null,null,null,null,null,null,null,null,null,null,null,null,null,null,null,null,null,null,null,{"$f":"IF(OR(AZ317=\"-\",AZ317=\"\"),\"-\",COUNTA(AZ$2:AZ317)-COUNTBLANK(AZ$2:AZ317))","v":"-"},{"$f":"IF(OR(INDEX(Data!A:A,0,1)=0,INDEX(Data!A:A,0,1)=\"-\"),\"\",INDEX(Data!A:A,0,1))","v":""}]
[null,null,null,null,null,null,null,null,null,null,null,null,null,null,null,null,null,null,null,null,null,null,null,null,null,null,null,null,null,null,null,null,null,null,null,null,null,null,null,null,null,null,null,null,null,null,null,null,null,null,{"$f":"IF(OR(AZ318=\"-\",AZ318=\"\"),\"-\",COUNTA(AZ$2:AZ318)-COUNTBLANK(AZ$2:AZ318))","v":"-"},{"$f":"IF(OR(INDEX(Data!A:A,0,1)=0,INDEX(Data!A:A,0,1)=\"-\"),\"\",INDEX(Data!A:A,0,1))","v":""}]
[null,null,null,null,null,null,null,null,null,null,null,null,null,null,null,null,null,null,null,null,null,null,null,null,null,null,null,null,null,null,null,null,null,null,null,null,null,null,null,null,null,null,null,null,null,null,null,null,null,null,{"$f":"IF(OR(AZ319=\"-\",AZ319=\"\"),\"-\",COUNTA(AZ$2:AZ319)-COUNTBLANK(AZ$2:AZ319))","v":"-"},{"$f":"IF(OR(INDEX(Data!A:A,0,1)=0,INDEX(Data!A:A,0,1)=\"-\"),\"\",INDEX(Data!A:A,0,1))","v":""}]
[null,null,null,null,null,null,null,null,null,null,null,null,null,null,null,null,null,null,null,null,null,null,null,null,null,null,null,null,null,null,null,null,null,null,null,null,null,null,null,null,null,null,null,null,null,null,null,null,null,null,{"$f":"IF(OR(AZ320=\"-\",AZ320=\"\"),\"-\",COUNTA(AZ$2:AZ320)-COUNTBLANK(AZ$2:AZ320))","v":"-"},{"$f":"IF(OR(INDEX(Data!A:A,0,1)=0,INDEX(Data!A:A,0,1)=\"-\"),\"\",INDEX(Data!A:A,0,1))","v":""}]
[null,null,null,null,null,null,null,null,null,null,null,null,null,null,null,null,null,null,null,null,null,null,null,null,null,null,null,null,null,null,null,null,null,null,null,null,null,null,null,null,null,null,null,null,null,null,null,null,null,null,{"$f":"IF(OR(AZ321=\"-\",AZ321=\"\"),\"-\",COUNTA(AZ$2:AZ321)-COUNTBLANK(AZ$2:AZ321))","v":"-"},{"$f":"IF(OR(INDEX(Data!A:A,0,1)=0,INDEX(Data!A:A,0,1)=\"-\"),\"\",INDEX(Data!A:A,0,1))","v":""}]
[null,null,null,null,null,null,null,null,null,null,null,null,null,null,null,null,null,null,null,null,null,null,null,null,null,null,null,null,null,null,null,null,null,null,null,null,null,null,null,null,null,null,null,null,null,null,null,null,null,null,{"$f":"IF(OR(AZ322=\"-\",AZ322=\"\"),\"-\",COUNTA(AZ$2:AZ322)-COUNTBLANK(AZ$2:AZ322))","v":"-"},{"$f":"IF(OR(INDEX(Data!A:A,0,1)=0,INDEX(Data!A:A,0,1)=\"-\"),\"\",INDEX(Data!A:A,0,1))","v":""}]
[null,null,null,null,null,null,null,null,null,null,null,null,null,null,null,null,null,null,null,null,null,null,null,null,null,null,null,null,null,null,null,null,null,null,null,null,null,null,null,null,null,null,null,null,null,null,null,null,null,null,{"$f":"IF(OR(AZ323=\"-\",AZ323=\"\"),\"-\",COUNTA(AZ$2:AZ323)-COUNTBLANK(AZ$2:AZ323))","v":"-"},{"$f":"IF(OR(INDEX(Data!A:A,0,1)=0,INDEX(Data!A:A,0,1)=\"-\"),\"\",INDEX(Data!A:A,0,1))","v":""}]
[null,null,null,null,null,null,null,null,null,null,null,null,null,null,null,null,null,null,null,null,null,null,null,null,null,null,null,null,null,null,null,null,null,null,null,null,null,null,null,null,null,null,null,null,null,null,null,null,null,null,{"$f":"IF(OR(AZ324=\"-\",AZ324=\"\"),\"-\",COUNTA(AZ$2:AZ324)-COUNTBLANK(AZ$2:AZ324))","v":"-"},{"$f":"IF(OR(INDEX(Data!A:A,0,1)=0,INDEX(Data!A:A,0,1)=\"-\"),\"\",INDEX(Data!A:A,0,1))","v":""}]
[null,null,null,null,null,null,null,null,null,null,null,null,null,null,null,null,null,null,null,null,null,null,null,null,null,null,null,null,null,null,null,null,null,null,null,null,null,null,null,null,null,null,null,null,null,null,null,null,null,null,{"$f":"IF(OR(AZ325=\"-\",AZ325=\"\"),\"-\",COUNTA(AZ$2:AZ325)-COUNTBLANK(AZ$2:AZ325))","v":"-"},{"$f":"IF(OR(INDEX(Data!A:A,0,1)=0,INDEX(Data!A:A,0,1)=\"-\"),\"\",INDEX(Data!A:A,0,1))","v":""}]
[null,null,null,null,null,null,null,null,null,null,null,null,null,null,null,null,null,null,null,null,null,null,null,null,null,null,null,null,null,null,null,null,null,null,null,null,null,null,null,null,null,null,null,null,null,null,null,null,null,null,{"$f":"IF(OR(AZ326=\"-\",AZ326=\"\"),\"-\",COUNTA(AZ$2:AZ326)-COUNTBLANK(AZ$2:AZ326))","v":"-"},{"$f":"IF(OR(INDEX(Data!A:A,0,1)=0,INDEX(Data!A:A,0,1)=\"-\"),\"\",INDEX(Data!A:A,0,1))","v":""}]
[null,null,null,null,null,null,null,null,null,null,null,null,null,null,null,null,null,null,null,null,null,null,null,null,null,null,null,null,null,null,null,null,null,null,null,null,null,null,null,null,null,null,null,null,null,null,null,null,null,null,{"$f":"IF(OR(AZ327=\"-\",AZ327=\"\"),\"-\",COUNTA(AZ$2:AZ327)-COUNTBLANK(AZ$2:AZ327))","v":"-"},{"$f":"IF(OR(INDEX(Data!A:A,0,1)=0,INDEX(Data!A:A,0,1)=\"-\"),\"\",INDEX(Data!A:A,0,1))","v":""}]
[null,null,null,null,null,null,null,null,null,null,null,null,null,null,null,null,null,null,null,null,null,null,null,null,null,null,null,null,null,null,null,null,null,null,null,null,null,null,null,null,null,null,null,null,null,null,null,null,null,null,{"$f":"IF(OR(AZ328=\"-\",AZ328=\"\"),\"-\",COUNTA(AZ$2:AZ328)-COUNTBLANK(AZ$2:AZ328))","v":"-"},{"$f":"IF(OR(INDEX(Data!A:A,0,1)=0,INDEX(Data!A:A,0,1)=\"-\"),\"\",INDEX(Data!A:A,0,1))","v":""}]
[null,null,null,null,null,null,null,null,null,null,null,null,null,null,null,null,null,null,null,null,null,null,null,null,null,null,null,null,null,null,null,null,null,null,null,null,null,null,null,null,null,null,null,null,null,null,null,null,null,null,{"$f":"IF(OR(AZ329=\"-\",AZ329=\"\"),\"-\",COUNTA(AZ$2:AZ329)-COUNTBLANK(AZ$2:AZ329))","v":"-"},{"$f":"IF(OR(INDEX(Data!A:A,0,1)=0,INDEX(Data!A:A,0,1)=\"-\"),\"\",INDEX(Data!A:A,0,1))","v":""}]
[null,null,null,null,null,null,null,null,null,null,null,null,null,null,null,null,null,null,null,null,null,null,null,null,null,null,null,null,null,null,null,null,null,null,null,null,null,null,null,null,null,null,null,null,null,null,null,null,null,null,{"$f":"IF(OR(AZ330=\"-\",AZ330=\"\"),\"-\",COUNTA(AZ$2:AZ330)-COUNTBLANK(AZ$2:AZ330))","v":"-"},{"$f":"IF(OR(INDEX(Data!A:A,0,1)=0,INDEX(Data!A:A,0,1)=\"-\"),\"\",INDEX(Data!A:A,0,1))","v":""}]
[null,null,null,null,null,null,null,null,null,null,null,null,null,null,null,null,null,null,null,null,null,null,null,null,null,null,null,null,null,null,null,null,null,null,null,null,null,null,null,null,null,null,null,null,null,null,null,null,null,null,{"$f":"IF(OR(AZ331=\"-\",AZ331=\"\"),\"-\",COUNTA(AZ$2:AZ331)-COUNTBLANK(AZ$2:AZ331))","v":"-"},{"$f":"IF(OR(INDEX(Data!A:A,0,1)=0,INDEX(Data!A:A,0,1)=\"-\"),\"\",INDEX(Data!A:A,0,1))","v":""}]
[null,null,null,null,null,null,null,null,null,null,null,null,null,null,null,null,null,null,null,null,null,null,null,null,null,null,null,null,null,null,null,null,null,null,null,null,null,null,null,null,null,null,null,null,null,null,null,null,null,null,{"$f":"IF(OR(AZ332=\"-\",AZ332=\"\"),\"-\",COUNTA(AZ$2:AZ332)-COUNTBLANK(AZ$2:AZ332))","v":"-"},{"$f":"IF(OR(INDEX(Data!A:A,0,1)=0,INDEX(Data!A:A,0,1)=\"-\"),\"\",INDEX(Data!A:A,0,1))","v":""}]
[null,null,null,null,null,null,null,null,null,null,null,null,null,null,null,null,null,null,null,null,null,null,null,null,null,null,null,null,null,null,null,null,null,null,null,null,null,null,null,null,null,null,null,null,null,null,null,null,null,null,{"$f":"IF(OR(AZ333=\"-\",AZ333=\"\"),\"-\",COUNTA(AZ$2:AZ333)-COUNTBLANK(AZ$2:AZ333))","v":"-"},{"$f":"IF(OR(INDEX(Data!A:A,0,1)=0,INDEX(Data!A:A,0,1)=\"-\"),\"\",INDEX(Data!A:A,0,1))","v":""}]
[null,null,null,null,null,null,null,null,null,null,null,null,null,null,null,null,null,null,null,null,null,null,null,null,null,null,null,null,null,null,null,null,null,null,null,null,null,null,null,null,null,null,null,null,null,null,null,null,null,null,{"$f":"IF(OR(AZ334=\"-\",AZ334=\"\"),\"-\",COUNTA(AZ$2:AZ334)-COUNTBLANK(AZ$2:AZ334))","v":"-"},{"$f":"IF(OR(INDEX(Data!A:A,0,1)=0,INDEX(Data!A:A,0,1)=\"-\"),\"\",INDEX(Data!A:A,0,1))","v":""}]
[null,null,null,null,null,null,null,null,null,null,null,null,null,null,null,null,null,null,null,null,null,null,null,null,null,null,null,null,null,null,null,null,null,null,null,null,null,null,null,null,null,null,null,null,null,null,null,null,null,null,{"$f":"IF(OR(AZ335=\"-\",AZ335=\"\"),\"-\",COUNTA(AZ$2:AZ335)-COUNTBLANK(AZ$2:AZ335))","v":"-"},{"$f":"IF(OR(INDEX(Data!A:A,0,1)=0,INDEX(Data!A:A,0,1)=\"-\"),\"\",INDEX(Data!A:A,0,1))","v":""}]
[null,null,null,null,null,null,null,null,null,null,null,null,null,null,null,null,null,null,null,null,null,null,null,null,null,null,null,null,null,null,null,null,null,null,null,null,null,null,null,null,null,null,null,null,null,null,null,null,null,null,{"$f":"IF(OR(AZ336=\"-\",AZ336=\"\"),\"-\",COUNTA(AZ$2:AZ336)-COUNTBLANK(AZ$2:AZ336))","v":"-"},{"$f":"IF(OR(INDEX(Data!A:A,0,1)=0,INDEX(Data!A:A,0,1)=\"-\"),\"\",INDEX(Data!A:A,0,1))","v":""}]
[null,null,null,null,null,null,null,null,null,null,null,null,null,null,null,null,null,null,null,null,null,null,null,null,null,null,null,null,null,null,null,null,null,null,null,null,null,null,null,null,null,null,null,null,null,null,null,null,null,null,{"$f":"IF(OR(AZ337=\"-\",AZ337=\"\"),\"-\",COUNTA(AZ$2:AZ337)-COUNTBLANK(AZ$2:AZ337))","v":"-"},{"$f":"IF(OR(INDEX(Data!A:A,0,1)=0,INDEX(Data!A:A,0,1)=\"-\"),\"\",INDEX(Data!A:A,0,1))","v":""}]
[null,null,null,null,null,null,null,null,null,null,null,null,null,null,null,null,null,null,null,null,null,null,null,null,null,null,null,null,null,null,null,null,null,null,null,null,null,null,null,null,null,null,null,null,null,null,null,null,null,null,{"$f":"IF(OR(AZ338=\"-\",AZ338=\"\"),\"-\",COUNTA(AZ$2:AZ338)-COUNTBLANK(AZ$2:AZ338))","v":"-"},{"$f":"IF(OR(INDEX(Data!A:A,0,1)=0,INDEX(Data!A:A,0,1)=\"-\"),\"\",INDEX(Data!A:A,0,1))","v":""}]
[null,null,null,null,null,null,null,null,null,null,null,null,null,null,null,null,null,null,null,null,null,null,null,null,null,null,null,null,null,null,null,null,null,null,null,null,null,null,null,null,null,null,null,null,null,null,null,null,null,null,{"$f":"IF(OR(AZ339=\"-\",AZ339=\"\"),\"-\",COUNTA(AZ$2:AZ339)-COUNTBLANK(AZ$2:AZ339))","v":"-"},{"$f":"IF(OR(INDEX(Data!A:A,0,1)=0,INDEX(Data!A:A,0,1)=\"-\"),\"\",INDEX(Data!A:A,0,1))","v":""}]
[null,null,null,null,null,null,null,null,null,null,null,null,null,null,null,null,null,null,null,null,null,null,null,null,null,null,null,null,null,null,null,null,null,null,null,null,null,null,null,null,null,null,null,null,null,null,null,null,null,null,{"$f":"IF(OR(AZ340=\"-\",AZ340=\"\"),\"-\",COUNTA(AZ$2:AZ340)-COUNTBLANK(AZ$2:AZ340))","v":"-"},{"$f":"IF(OR(INDEX(Data!A:A,0,1)=0,INDEX(Data!A:A,0,1)=\"-\"),\"\",INDEX(Data!A:A,0,1))","v":""}]
[null,null,null,null,null,null,null,null,null,null,null,null,null,null,null,null,null,null,null,null,null,null,null,null,null,null,null,null,null,null,null,null,null,null,null,null,null,null,null,null,null,null,null,null,null,null,null,null,null,null,{"$f":"IF(OR(AZ341=\"-\",AZ341=\"\"),\"-\",COUNTA(AZ$2:AZ341)-COUNTBLANK(AZ$2:AZ341))","v":"-"},{"$f":"IF(OR(INDEX(Data!A:A,0,1)=0,INDEX(Data!A:A,0,1)=\"-\"),\"\",INDEX(Data!A:A,0,1))","v":""}]
[null,null,null,null,null,null,null,null,null,null,null,null,null,null,null,null,null,null,null,null,null,null,null,null,null,null,null,null,null,null,null,null,null,null,null,null,null,null,null,null,null,null,null,null,null,null,null,null,null,null,{"$f":"IF(OR(AZ342=\"-\",AZ342=\"\"),\"-\",COUNTA(AZ$2:AZ342)-COUNTBLANK(AZ$2:AZ342))","v":"-"},{"$f":"IF(OR(INDEX(Data!A:A,0,1)=0,INDEX(Data!A:A,0,1)=\"-\"),\"\",INDEX(Data!A:A,0,1))","v":""}]
[null,null,null,null,null,null,null,null,null,null,null,null,null,null,null,null,null,null,null,null,null,null,null,null,null,null,null,null,null,null,null,null,null,null,null,null,null,null,null,null,null,null,null,null,null,null,null,null,null,null,{"$f":"IF(OR(AZ343=\"-\",AZ343=\"\"),\"-\",COUNTA(AZ$2:AZ343)-COUNTBLANK(AZ$2:AZ343))","v":"-"},{"$f":"IF(OR(INDEX(Data!A:A,0,1)=0,INDEX(Data!A:A,0,1)=\"-\"),\"\",INDEX(Data!A:A,0,1))","v":""}]
[null,null,null,null,null,null,null,null,null,null,null,null,null,null,null,null,null,null,null,null,null,null,null,null,null,null,null,null,null,null,null,null,null,null,null,null,null,null,null,null,null,null,null,null,null,null,null,null,null,null,{"$f":"IF(OR(AZ344=\"-\",AZ344=\"\"),\"-\",COUNTA(AZ$2:AZ344)-COUNTBLANK(AZ$2:AZ344))","v":"-"},{"$f":"IF(OR(INDEX(Data!A:A,0,1)=0,INDEX(Data!A:A,0,1)=\"-\"),\"\",INDEX(Data!A:A,0,1))","v":""}]
[null,null,null,null,null,null,null,null,null,null,null,null,null,null,null,null,null,null,null,null,null,null,null,null,null,null,null,null,null,null,null,null,null,null,null,null,null,null,null,null,null,null,null,null,null,null,null,null,null,null,{"$f":"IF(OR(AZ345=\"-\",AZ345=\"\"),\"-\",COUNTA(AZ$2:AZ345)-COUNTBLANK(AZ$2:AZ345))","v":"-"},{"$f":"IF(OR(INDEX(Data!A:A,0,1)=0,INDEX(Data!A:A,0,1)=\"-\"),\"\",INDEX(Data!A:A,0,1))","v":""}]
[null,null,null,null,null,null,null,null,null,null,null,null,null,null,null,null,null,null,null,null,null,null,null,null,null,null,null,null,null,null,null,null,null,null,null,null,null,null,null,null,null,null,null,null,null,null,null,null,null,null,{"$f":"IF(OR(AZ346=\"-\",AZ346=\"\"),\"-\",COUNTA(AZ$2:AZ346)-COUNTBLANK(AZ$2:AZ346))","v":"-"},{"$f":"IF(OR(INDEX(Data!A:A,0,1)=0,INDEX(Data!A:A,0,1)=\"-\"),\"\",INDEX(Data!A:A,0,1))","v":""}]
[null,null,null,null,null,null,null,null,null,null,null,null,null,null,null,null,null,null,null,null,null,null,null,null,null,null,null,null,null,null,null,null,null,null,null,null,null,null,null,null,null,null,null,null,null,null,null,null,null,null,{"$f":"IF(OR(AZ347=\"-\",AZ347=\"\"),\"-\",COUNTA(AZ$2:AZ347)-COUNTBLANK(AZ$2:AZ347))","v":"-"},{"$f":"IF(OR(INDEX(Data!A:A,0,1)=0,INDEX(Data!A:A,0,1)=\"-\"),\"\",INDEX(Data!A:A,0,1))","v":""}]
[null,null,null,null,null,null,null,null,null,null,null,null,null,null,null,null,null,null,null,null,null,null,null,null,null,null,null,null,null,null,null,null,null,null,null,null,null,null,null,null,null,null,null,null,null,null,null,null,null,null,{"$f":"IF(OR(AZ348=\"-\",AZ348=\"\"),\"-\",COUNTA(AZ$2:AZ348)-COUNTBLANK(AZ$2:AZ348))","v":"-"},{"$f":"IF(OR(INDEX(Data!A:A,0,1)=0,INDEX(Data!A:A,0,1)=\"-\"),\"\",INDEX(Data!A:A,0,1))","v":""}]
[null,null,null,null,null,null,null,null,null,null,null,null,null,null,null,null,null,null,null,null,null,null,null,null,null,null,null,null,null,null,null,null,null,null,null,null,null,null,null,null,null,null,null,null,null,null,null,null,null,null,{"$f":"IF(OR(AZ349=\"-\",AZ349=\"\"),\"-\",COUNTA(AZ$2:AZ349)-COUNTBLANK(AZ$2:AZ349))","v":"-"},{"$f":"IF(OR(INDEX(Data!A:A,0,1)=0,INDEX(Data!A:A,0,1)=\"-\"),\"\",INDEX(Data!A:A,0,1))","v":""}]
[null,null,null,null,null,null,null,null,null,null,null,null,null,null,null,null,null,null,null,null,null,null,null,null,null,null,null,null,null,null,null,null,null,null,null,null,null,null,null,null,null,null,null,null,null,null,null,null,null,null,{"$f":"IF(OR(AZ350=\"-\",AZ350=\"\"),\"-\",COUNTA(AZ$2:AZ350)-COUNTBLANK(AZ$2:AZ350))","v":"-"},{"$f":"IF(OR(INDEX(Data!A:A,0,1)=0,INDEX(Data!A:A,0,1)=\"-\"),\"\",INDEX(Data!A:A,0,1))","v":""}]
[null,null,null,null,null,null,null,null,null,null,null,null,null,null,null,null,null,null,null,null,null,null,null,null,null,null,null,null,null,null,null,null,null,null,null,null,null,null,null,null,null,null,null,null,null,null,null,null,null,null,{"$f":"IF(OR(AZ351=\"-\",AZ351=\"\"),\"-\",COUNTA(AZ$2:AZ351)-COUNTBLANK(AZ$2:AZ351))","v":"-"},{"$f":"IF(OR(INDEX(Data!A:A,0,1)=0,INDEX(Data!A:A,0,1)=\"-\"),\"\",INDEX(Data!A:A,0,1))","v":""}]
[null,null,null,null,null,null,null,null,null,null,null,null,null,null,null,null,null,null,null,null,null,null,null,null,null,null,null,null,null,null,null,null,null,null,null,null,null,null,null,null,null,null,null,null,null,null,null,null,null,null,{"$f":"IF(OR(AZ352=\"-\",AZ352=\"\"),\"-\",COUNTA(AZ$2:AZ352)-COUNTBLANK(AZ$2:AZ352))","v":"-"},{"$f":"IF(OR(INDEX(Data!A:A,0,1)=0,INDEX(Data!A:A,0,1)=\"-\"),\"\",INDEX(Data!A:A,0,1))","v":""}]
[null,null,null,null,null,null,null,null,null,null,null,null,null,null,null,null,null,null,null,null,null,null,null,null,null,null,null,null,null,null,null,null,null,null,null,null,null,null,null,null,null,null,null,null,null,null,null,null,null,null,{"$f":"IF(OR(AZ353=\"-\",AZ353=\"\"),\"-\",COUNTA(AZ$2:AZ353)-COUNTBLANK(AZ$2:AZ353))","v":"-"},{"$f":"IF(OR(INDEX(Data!A:A,0,1)=0,INDEX(Data!A:A,0,1)=\"-\"),\"\",INDEX(Data!A:A,0,1))","v":""}]
[null,null,null,null,null,null,null,null,null,null,null,null,null,null,null,null,null,null,null,null,null,null,null,null,null,null,null,null,null,null,null,null,null,null,null,null,null,null,null,null,null,null,null,null,null,null,null,null,null,null,{"$f":"IF(OR(AZ354=\"-\",AZ354=\"\"),\"-\",COUNTA(AZ$2:AZ354)-COUNTBLANK(AZ$2:AZ354))","v":"-"},{"$f":"IF(OR(INDEX(Data!A:A,0,1)=0,INDEX(Data!A:A,0,1)=\"-\"),\"\",INDEX(Data!A:A,0,1))","v":""}]
[null,null,null,null,null,null,null,null,null,null,null,null,null,null,null,null,null,null,null,null,null,null,null,null,null,null,null,null,null,null,null,null,null,null,null,null,null,null,null,null,null,null,null,null,null,null,null,null,null,null,{"$f":"IF(OR(AZ355=\"-\",AZ355=\"\"),\"-\",COUNTA(AZ$2:AZ355)-COUNTBLANK(AZ$2:AZ355))","v":"-"},{"$f":"IF(OR(INDEX(Data!A:A,0,1)=0,INDEX(Data!A:A,0,1)=\"-\"),\"\",INDEX(Data!A:A,0,1))","v":""}]
[null,null,null,null,null,null,null,null,null,null,null,null,null,null,null,null,null,null,null,null,null,null,null,null,null,null,null,null,null,null,null,null,null,null,null,null,null,null,null,null,null,null,null,null,null,null,null,null,null,null,{"$f":"IF(OR(AZ356=\"-\",AZ356=\"\"),\"-\",COUNTA(AZ$2:AZ356)-COUNTBLANK(AZ$2:AZ356))","v":"-"},{"$f":"IF(OR(INDEX(Data!A:A,0,1)=0,INDEX(Data!A:A,0,1)=\"-\"),\"\",INDEX(Data!A:A,0,1))","v":""}]
[null,null,null,null,null,null,null,null,null,null,null,null,null,null,null,null,null,null,null,null,null,null,null,null,null,null,null,null,null,null,null,null,null,null,null,null,null,null,null,null,null,null,null,null,null,null,null,null,null,null,{"$f":"IF(OR(AZ357=\"-\",AZ357=\"\"),\"-\",COUNTA(AZ$2:AZ357)-COUNTBLANK(AZ$2:AZ357))","v":"-"},{"$f":"IF(OR(INDEX(Data!A:A,0,1)=0,INDEX(Data!A:A,0,1)=\"-\"),\"\",INDEX(Data!A:A,0,1))","v":""}]
[null,null,null,null,null,null,null,null,null,null,null,null,null,null,null,null,null,null,null,null,null,null,null,null,null,null,null,null,null,null,null,null,null,null,null,null,null,null,null,null,null,null,null,null,null,null,null,null,null,null,{"$f":"IF(OR(AZ358=\"-\",AZ358=\"\"),\"-\",COUNTA(AZ$2:AZ358)-COUNTBLANK(AZ$2:AZ358))","v":"-"},{"$f":"IF(OR(INDEX(Data!A:A,0,1)=0,INDEX(Data!A:A,0,1)=\"-\"),\"\",INDEX(Data!A:A,0,1))","v":""}]
[null,null,null,null,null,null,null,null,null,null,null,null,null,null,null,null,null,null,null,null,null,null,null,null,null,null,null,null,null,null,null,null,null,null,null,null,null,null,null,null,null,null,null,null,null,null,null,null,null,null,{"$f":"IF(OR(AZ359=\"-\",AZ359=\"\"),\"-\",COUNTA(AZ$2:AZ359)-COUNTBLANK(AZ$2:AZ359))","v":"-"},{"$f":"IF(OR(INDEX(Data!A:A,0,1)=0,INDEX(Data!A:A,0,1)=\"-\"),\"\",INDEX(Data!A:A,0,1))","v":""}]
[null,null,null,null,null,null,null,null,null,null,null,null,null,null,null,null,null,null,null,null,null,null,null,null,null,null,null,null,null,null,null,null,null,null,null,null,null,null,null,null,null,null,null,null,null,null,null,null,null,null,{"$f":"IF(OR(AZ360=\"-\",AZ360=\"\"),\"-\",COUNTA(AZ$2:AZ360)-COUNTBLANK(AZ$2:AZ360))","v":"-"},{"$f":"IF(OR(INDEX(Data!A:A,0,1)=0,INDEX(Data!A:A,0,1)=\"-\"),\"\",INDEX(Data!A:A,0,1))","v":""}]
[null,null,null,null,null,null,null,null,null,null,null,null,null,null,null,null,null,null,null,null,null,null,null,null,null,null,null,null,null,null,null,null,null,null,null,null,null,null,null,null,null,null,null,null,null,null,null,null,null,null,{"$f":"IF(OR(AZ361=\"-\",AZ361=\"\"),\"-\",COUNTA(AZ$2:AZ361)-COUNTBLANK(AZ$2:AZ361))","v":"-"},{"$f":"IF(OR(INDEX(Data!A:A,0,1)=0,INDEX(Data!A:A,0,1)=\"-\"),\"\",INDEX(Data!A:A,0,1))","v":""}]
[null,null,null,null,null,null,null,null,null,null,null,null,null,null,null,null,null,null,null,null,null,null,null,null,null,null,null,null,null,null,null,null,null,null,null,null,null,null,null,null,null,null,null,null,null,null,null,null,null,null,{"$f":"IF(OR(AZ362=\"-\",AZ362=\"\"),\"-\",COUNTA(AZ$2:AZ362)-COUNTBLANK(AZ$2:AZ362))","v":"-"},{"$f":"IF(OR(INDEX(Data!A:A,0,1)=0,INDEX(Data!A:A,0,1)=\"-\"),\"\",INDEX(Data!A:A,0,1))","v":""}]
[null,null,null,null,null,null,null,null,null,null,null,null,null,null,null,null,null,null,null,null,null,null,null,null,null,null,null,null,null,null,null,null,null,null,null,null,null,null,null,null,null,null,null,null,null,null,null,null,null,null,{"$f":"IF(OR(AZ363=\"-\",AZ363=\"\"),\"-\",COUNTA(AZ$2:AZ363)-COUNTBLANK(AZ$2:AZ363))","v":"-"},{"$f":"IF(OR(INDEX(Data!A:A,0,1)=0,INDEX(Data!A:A,0,1)=\"-\"),\"\",INDEX(Data!A:A,0,1))","v":""}]
[null,null,null,null,null,null,null,null,null,null,null,null,null,null,null,null,null,null,null,null,null,null,null,null,null,null,null,null,null,null,null,null,null,null,null,null,null,null,null,null,null,null,null,null,null,null,null,null,null,null,{"$f":"IF(OR(AZ364=\"-\",AZ364=\"\"),\"-\",COUNTA(AZ$2:AZ364)-COUNTBLANK(AZ$2:AZ364))","v":"-"},{"$f":"IF(OR(INDEX(Data!A:A,0,1)=0,INDEX(Data!A:A,0,1)=\"-\"),\"\",INDEX(Data!A:A,0,1))","v":""}]
[null,null,null,null,null,null,null,null,null,null,null,null,null,null,null,null,null,null,null,null,null,null,null,null,null,null,null,null,null,null,null,null,null,null,null,null,null,null,null,null,null,null,null,null,null,null,null,null,null,null,{"$f":"IF(OR(AZ365=\"-\",AZ365=\"\"),\"-\",COUNTA(AZ$2:AZ365)-COUNTBLANK(AZ$2:AZ365))","v":"-"},{"$f":"IF(OR(INDEX(Data!A:A,0,1)=0,INDEX(Data!A:A,0,1)=\"-\"),\"\",INDEX(Data!A:A,0,1))","v":""}]
[null,null,null,null,null,null,null,null,null,null,null,null,null,null,null,null,null,null,null,null,null,null,null,null,null,null,null,null,null,null,null,null,null,null,null,null,null,null,null,null,null,null,null,null,null,null,null,null,null,null,{"$f":"IF(OR(AZ366=\"-\",AZ366=\"\"),\"-\",COUNTA(AZ$2:AZ366)-COUNTBLANK(AZ$2:AZ366))","v":"-"},{"$f":"IF(OR(INDEX(Data!A:A,0,1)=0,INDEX(Data!A:A,0,1)=\"-\"),\"\",INDEX(Data!A:A,0,1))","v":""}]
[null,null,null,null,null,null,null,null,null,null,null,null,null,null,null,null,null,null,null,null,null,null,null,null,null,null,null,null,null,null,null,null,null,null,null,null,null,null,null,null,null,null,null,null,null,null,null,null,null,null,{"$f":"IF(OR(AZ367=\"-\",AZ367=\"\"),\"-\",COUNTA(AZ$2:AZ367)-COUNTBLANK(AZ$2:AZ367))","v":"-"},{"$f":"IF(OR(INDEX(Data!A:A,0,1)=0,INDEX(Data!A:A,0,1)=\"-\"),\"\",INDEX(Data!A:A,0,1))","v":""}]
[null,null,null,null,null,null,null,null,null,null,null,null,null,null,null,null,null,null,null,null,null,null,null,null,null,null,null,null,null,null,null,null,null,null,null,null,null,null,null,null,null,null,null,null,null,null,null,null,null,null,{"$f":"IF(OR(AZ368=\"-\",AZ368=\"\"),\"-\",COUNTA(AZ$2:AZ368)-COUNTBLANK(AZ$2:AZ368))","v":"-"},{"$f":"IF(OR(INDEX(Data!A:A,0,1)=0,INDEX(Data!A:A,0,1)=\"-\"),\"\",INDEX(Data!A:A,0,1))","v":""}]
[null,null,null,null,null,null,null,null,null,null,null,null,null,null,null,null,null,null,null,null,null,null,null,null,null,null,null,null,null,null,null,null,null,null,null,null,null,null,null,null,null,null,null,null,null,null,null,null,null,null,{"$f":"IF(OR(AZ369=\"-\",AZ369=\"\"),\"-\",COUNTA(AZ$2:AZ369)-COUNTBLANK(AZ$2:AZ369))","v":"-"},{"$f":"IF(OR(INDEX(Data!A:A,0,1)=0,INDEX(Data!A:A,0,1)=\"-\"),\"\",INDEX(Data!A:A,0,1))","v":""}]
[null,null,null,null,null,null,null,null,null,null,null,null,null,null,null,null,null,null,null,null,null,null,null,null,null,null,null,null,null,null,null,null,null,null,null,null,null,null,null,null,null,null,null,null,null,null,null,null,null,null,{"$f":"IF(OR(AZ370=\"-\",AZ370=\"\"),\"-\",COUNTA(AZ$2:AZ370)-COUNTBLANK(AZ$2:AZ370))","v":"-"},{"$f":"IF(OR(INDEX(Data!A:A,0,1)=0,INDEX(Data!A:A,0,1)=\"-\"),\"\",INDEX(Data!A:A,0,1))","v":""}]
[null,null,null,null,null,null,null,null,null,null,null,null,null,null,null,null,null,null,null,null,null,null,null,null,null,null,null,null,null,null,null,null,null,null,null,null,null,null,null,null,null,null,null,null,null,null,null,null,null,null,{"$f":"IF(OR(AZ371=\"-\",AZ371=\"\"),\"-\",COUNTA(AZ$2:AZ371)-COUNTBLANK(AZ$2:AZ371))","v":"-"},{"$f":"IF(OR(INDEX(Data!A:A,0,1)=0,INDEX(Data!A:A,0,1)=\"-\"),\"\",INDEX(Data!A:A,0,1))","v":""}]
[null,null,null,null,null,null,null,null,null,null,null,null,null,null,null,null,null,null,null,null,null,null,null,null,null,null,null,null,null,null,null,null,null,null,null,null,null,null,null,null,null,null,null,null,null,null,null,null,null,null,{"$f":"IF(OR(AZ372=\"-\",AZ372=\"\"),\"-\",COUNTA(AZ$2:AZ372)-COUNTBLANK(AZ$2:AZ372))","v":"-"},{"$f":"IF(OR(INDEX(Data!A:A,0,1)=0,INDEX(Data!A:A,0,1)=\"-\"),\"\",INDEX(Data!A:A,0,1))","v":""}]
[null,null,null,null,null,null,null,null,null,null,null,null,null,null,null,null,null,null,null,null,null,null,null,null,null,null,null,null,null,null,null,null,null,null,null,null,null,null,null,null,null,null,null,null,null,null,null,null,null,null,{"$f":"IF(OR(AZ373=\"-\",AZ373=\"\"),\"-\",COUNTA(AZ$2:AZ373)-COUNTBLANK(AZ$2:AZ373))","v":"-"},{"$f":"IF(OR(INDEX(Data!A:A,0,1)=0,INDEX(Data!A:A,0,1)=\"-\"),\"\",INDEX(Data!A:A,0,1))","v":""}]
[null,null,null,null,null,null,null,null,null,null,null,null,null,null,null,null,null,null,null,null,null,null,null,null,null,null,null,null,null,null,null,null,null,null,null,null,null,null,null,null,null,null,null,null,null,null,null,null,null,null,{"$f":"IF(OR(AZ374=\"-\",AZ374=\"\"),\"-\",COUNTA(AZ$2:AZ374)-COUNTBLANK(AZ$2:AZ374))","v":"-"},{"$f":"IF(OR(INDEX(Data!A:A,0,1)=0,INDEX(Data!A:A,0,1)=\"-\"),\"\",INDEX(Data!A:A,0,1))","v":""}]
[null,null,null,null,null,null,null,null,null,null,null,null,null,null,null,null,null,null,null,null,null,null,null,null,null,null,null,null,null,null,null,null,null,null,null,null,null,null,null,null,null,null,null,null,null,null,null,null,null,null,{"$f":"IF(OR(AZ375=\"-\",AZ375=\"\"),\"-\",COUNTA(AZ$2:AZ375)-COUNTBLANK(AZ$2:AZ375))","v":"-"},{"$f":"IF(OR(INDEX(Data!A:A,0,1)=0,INDEX(Data!A:A,0,1)=\"-\"),\"\",INDEX(Data!A:A,0,1))","v":""}]
[null,null,null,null,null,null,null,null,null,null,null,null,null,null,null,null,null,null,null,null,null,null,null,null,null,null,null,null,null,null,null,null,null,null,null,null,null,null,null,null,null,null,null,null,null,null,null,null,null,null,{"$f":"IF(OR(AZ376=\"-\",AZ376=\"\"),\"-\",COUNTA(AZ$2:AZ376)-COUNTBLANK(AZ$2:AZ376))","v":"-"},{"$f":"IF(OR(INDEX(Data!A:A,0,1)=0,INDEX(Data!A:A,0,1)=\"-\"),\"\",INDEX(Data!A:A,0,1))","v":""}]
[null,null,null,null,null,null,null,null,null,null,null,null,null,null,null,null,null,null,null,null,null,null,null,null,null,null,null,null,null,null,null,null,null,null,null,null,null,null,null,null,null,null,null,null,null,null,null,null,null,null,{"$f":"IF(OR(AZ377=\"-\",AZ377=\"\"),\"-\",COUNTA(AZ$2:AZ377)-COUNTBLANK(AZ$2:AZ377))","v":"-"},{"$f":"IF(OR(INDEX(Data!A:A,0,1)=0,INDEX(Data!A:A,0,1)=\"-\"),\"\",INDEX(Data!A:A,0,1))","v":""}]
[null,null,null,null,null,null,null,null,null,null,null,null,null,null,null,null,null,null,null,null,null,null,null,null,null,null,null,null,null,null,null,null,null,null,null,null,null,null,null,null,null,null,null,null,null,null,null,null,null,null,{"$f":"IF(OR(AZ378=\"-\",AZ378=\"\"),\"-\",COUNTA(AZ$2:AZ378)-COUNTBLANK(AZ$2:AZ378))","v":"-"},{"$f":"IF(OR(INDEX(Data!A:A,0,1)=0,INDEX(Data!A:A,0,1)=\"-\"),\"\",INDEX(Data!A:A,0,1))","v":""}]
[null,null,null,null,null,null,null,null,null,null,null,null,null,null,null,null,null,null,null,null,null,null,null,null,null,null,null,null,null,null,null,null,null,null,null,null,null,null,null,null,null,null,null,null,null,null,null,null,null,null,{"$f":"IF(OR(AZ379=\"-\",AZ379=\"\"),\"-\",COUNTA(AZ$2:AZ379)-COUNTBLANK(AZ$2:AZ379))","v":"-"},{"$f":"IF(OR(INDEX(Data!A:A,0,1)=0,INDEX(Data!A:A,0,1)=\"-\"),\"\",INDEX(Data!A:A,0,1))","v":""}]
[null,null,null,null,null,null,null,null,null,null,null,null,null,null,null,null,null,null,null,null,null,null,null,null,null,null,null,null,null,null,null,null,null,null,null,null,null,null,null,null,null,null,null,null,null,null,null,null,null,null,{"$f":"IF(OR(AZ380=\"-\",AZ380=\"\"),\"-\",COUNTA(AZ$2:AZ380)-COUNTBLANK(AZ$2:AZ380))","v":"-"},{"$f":"IF(OR(INDEX(Data!A:A,0,1)=0,INDEX(Data!A:A,0,1)=\"-\"),\"\",INDEX(Data!A:A,0,1))","v":""}]
[null,null,null,null,null,null,null,null,null,null,null,null,null,null,null,null,null,null,null,null,null,null,null,null,null,null,null,null,null,null,null,null,null,null,null,null,null,null,null,null,null,null,null,null,null,null,null,null,null,null,{"$f":"IF(OR(AZ381=\"-\",AZ381=\"\"),\"-\",COUNTA(AZ$2:AZ381)-COUNTBLANK(AZ$2:AZ381))","v":"-"},{"$f":"IF(OR(INDEX(Data!A:A,0,1)=0,INDEX(Data!A:A,0,1)=\"-\"),\"\",INDEX(Data!A:A,0,1))","v":""}]
[null,null,null,null,null,null,null,null,null,null,null,null,null,null,null,null,null,null,null,null,null,null,null,null,null,null,null,null,null,null,null,null,null,null,null,null,null,null,null,null,null,null,null,null,null,null,null,null,null,null,{"$f":"IF(OR(AZ382=\"-\",AZ382=\"\"),\"-\",COUNTA(AZ$2:AZ382)-COUNTBLANK(AZ$2:AZ382))","v":"-"},{"$f":"IF(OR(INDEX(Data!A:A,0,1)=0,INDEX(Data!A:A,0,1)=\"-\"),\"\",INDEX(Data!A:A,0,1))","v":""}]
[null,null,null,null,null,null,null,null,null,null,null,null,null,null,null,null,null,null,null,null,null,null,null,null,null,null,null,null,null,null,null,null,null,null,null,null,null,null,null,null,null,null,null,null,null,null,null,null,null,null,{"$f":"IF(OR(AZ383=\"-\",AZ383=\"\"),\"-\",COUNTA(AZ$2:AZ383)-COUNTBLANK(AZ$2:AZ383))","v":"-"},{"$f":"IF(OR(INDEX(Data!A:A,0,1)=0,INDEX(Data!A:A,0,1)=\"-\"),\"\",INDEX(Data!A:A,0,1))","v":""}]
[null,null,null,null,null,null,null,null,null,null,null,null,null,null,null,null,null,null,null,null,null,null,null,null,null,null,null,null,null,null,null,null,null,null,null,null,null,null,null,null,null,null,null,null,null,null,null,null,null,null,{"$f":"IF(OR(AZ384=\"-\",AZ384=\"\"),\"-\",COUNTA(AZ$2:AZ384)-COUNTBLANK(AZ$2:AZ384))","v":"-"},{"$f":"IF(OR(INDEX(Data!A:A,0,1)=0,INDEX(Data!A:A,0,1)=\"-\"),\"\",INDEX(Data!A:A,0,1))","v":""}]
[null,null,null,null,null,null,null,null,null,null,null,null,null,null,null,null,null,null,null,null,null,null,null,null,null,null,null,null,null,null,null,null,null,null,null,null,null,null,null,null,null,null,null,null,null,null,null,null,null,null,{"$f":"IF(OR(AZ385=\"-\",AZ385=\"\"),\"-\",COUNTA(AZ$2:AZ385)-COUNTBLANK(AZ$2:AZ385))","v":"-"},{"$f":"IF(OR(INDEX(Data!A:A,0,1)=0,INDEX(Data!A:A,0,1)=\"-\"),\"\",INDEX(Data!A:A,0,1))","v":""}]
[null,null,null,null,null,null,null,null,null,null,null,null,null,null,null,null,null,null,null,null,null,null,null,null,null,null,null,null,null,null,null,null,null,null,null,null,null,null,null,null,null,null,null,null,null,null,null,null,null,null,{"$f":"IF(OR(AZ386=\"-\",AZ386=\"\"),\"-\",COUNTA(AZ$2:AZ386)-COUNTBLANK(AZ$2:AZ386))","v":"-"},{"$f":"IF(OR(INDEX(Data!A:A,0,1)=0,INDEX(Data!A:A,0,1)=\"-\"),\"\",INDEX(Data!A:A,0,1))","v":""}]
[null,null,null,null,null,null,null,null,null,null,null,null,null,null,null,null,null,null,null,null,null,null,null,null,null,null,null,null,null,null,null,null,null,null,null,null,null,null,null,null,null,null,null,null,null,null,null,null,null,null,{"$f":"IF(OR(AZ387=\"-\",AZ387=\"\"),\"-\",COUNTA(AZ$2:AZ387)-COUNTBLANK(AZ$2:AZ387))","v":"-"},{"$f":"IF(OR(INDEX(Data!A:A,0,1)=0,INDEX(Data!A:A,0,1)=\"-\"),\"\",INDEX(Data!A:A,0,1))","v":""}]
[null,null,null,null,null,null,null,null,null,null,null,null,null,null,null,null,null,null,null,null,null,null,null,null,null,null,null,null,null,null,null,null,null,null,null,null,null,null,null,null,null,null,null,null,null,null,null,null,null,null,{"$f":"IF(OR(AZ388=\"-\",AZ388=\"\"),\"-\",COUNTA(AZ$2:AZ388)-COUNTBLANK(AZ$2:AZ388))","v":"-"},{"$f":"IF(OR(INDEX(Data!A:A,0,1)=0,INDEX(Data!A:A,0,1)=\"-\"),\"\",INDEX(Data!A:A,0,1))","v":""}]
[null,null,null,null,null,null,null,null,null,null,null,null,null,null,null,null,null,null,null,null,null,null,null,null,null,null,null,null,null,null,null,null,null,null,null,null,null,null,null,null,null,null,null,null,null,null,null,null,null,null,{"$f":"IF(OR(AZ389=\"-\",AZ389=\"\"),\"-\",COUNTA(AZ$2:AZ389)-COUNTBLANK(AZ$2:AZ389))","v":"-"},{"$f":"IF(OR(INDEX(Data!A:A,0,1)=0,INDEX(Data!A:A,0,1)=\"-\"),\"\",INDEX(Data!A:A,0,1))","v":""}]
[null,null,null,null,null,null,null,null,null,null,null,null,null,null,null,null,null,null,null,null,null,null,null,null,null,null,null,null,null,null,null,null,null,null,null,null,null,null,null,null,null,null,null,null,null,null,null,null,null,null,{"$f":"IF(OR(AZ390=\"-\",AZ390=\"\"),\"-\",COUNTA(AZ$2:AZ390)-COUNTBLANK(AZ$2:AZ390))","v":"-"},{"$f":"IF(OR(INDEX(Data!A:A,0,1)=0,INDEX(Data!A:A,0,1)=\"-\"),\"\",INDEX(Data!A:A,0,1))","v":""}]
[null,null,null,null,null,null,null,null,null,null,null,null,null,null,null,null,null,null,null,null,null,null,null,null,null,null,null,null,null,null,null,null,null,null,null,null,null,null,null,null,null,null,null,null,null,null,null,null,null,null,{"$f":"IF(OR(AZ391=\"-\",AZ391=\"\"),\"-\",COUNTA(AZ$2:AZ391)-COUNTBLANK(AZ$2:AZ391))","v":"-"},{"$f":"IF(OR(INDEX(Data!A:A,0,1)=0,INDEX(Data!A:A,0,1)=\"-\"),\"\",INDEX(Data!A:A,0,1))","v":""}]
[null,null,null,null,null,null,null,null,null,null,null,null,null,null,null,null,null,null,null,null,null,null,null,null,null,null,null,null,null,null,null,null,null,null,null,null,null,null,null,null,null,null,null,null,null,null,null,null,null,null,{"$f":"IF(OR(AZ392=\"-\",AZ392=\"\"),\"-\",COUNTA(AZ$2:AZ392)-COUNTBLANK(AZ$2:AZ392))","v":"-"},{"$f":"IF(OR(INDEX(Data!A:A,0,1)=0,INDEX(Data!A:A,0,1)=\"-\"),\"\",INDEX(Data!A:A,0,1))","v":""}]
[null,null,null,null,null,null,null,null,null,null,null,null,null,null,null,null,null,null,null,null,null,null,null,null,null,null,null,null,null,null,null,null,null,null,null,null,null,null,null,null,null,null,null,null,null,null,null,null,null,null,{"$f":"IF(OR(AZ393=\"-\",AZ393=\"\"),\"-\",COUNTA(AZ$2:AZ393)-COUNTBLANK(AZ$2:AZ393))","v":"-"},{"$f":"IF(OR(INDEX(Data!A:A,0,1)=0,INDEX(Data!A:A,0,1)=\"-\"),\"\",INDEX(Data!A:A,0,1))","v":""}]
[null,null,null,null,null,null,null,null,null,null,null,null,null,null,null,null,null,null,null,null,null,null,null,null,null,null,null,null,null,null,null,null,null,null,null,null,null,null,null,null,null,null,null,null,null,null,null,null,null,null,{"$f":"IF(OR(AZ394=\"-\",AZ394=\"\"),\"-\",COUNTA(AZ$2:AZ394)-COUNTBLANK(AZ$2:AZ394))","v":"-"},{"$f":"IF(OR(INDEX(Data!A:A,0,1)=0,INDEX(Data!A:A,0,1)=\"-\"),\"\",INDEX(Data!A:A,0,1))","v":""}]
[null,null,null,null,null,null,null,null,null,null,null,null,null,null,null,null,null,null,null,null,null,null,null,null,null,null,null,null,null,null,null,null,null,null,null,null,null,null,null,null,null,null,null,null,null,null,null,null,null,null,{"$f":"IF(OR(AZ395=\"-\",AZ395=\"\"),\"-\",COUNTA(AZ$2:AZ395)-COUNTBLANK(AZ$2:AZ395))","v":"-"},{"$f":"IF(OR(INDEX(Data!A:A,0,1)=0,INDEX(Data!A:A,0,1)=\"-\"),\"\",INDEX(Data!A:A,0,1))","v":""}]
[null,null,null,null,null,null,null,null,null,null,null,null,null,null,null,null,null,null,null,null,null,null,null,null,null,null,null,null,null,null,null,null,null,null,null,null,null,null,null,null,null,null,null,null,null,null,null,null,null,null,{"$f":"IF(OR(AZ396=\"-\",AZ396=\"\"),\"-\",COUNTA(AZ$2:AZ396)-COUNTBLANK(AZ$2:AZ396))","v":"-"},{"$f":"IF(OR(INDEX(Data!A:A,0,1)=0,INDEX(Data!A:A,0,1)=\"-\"),\"\",INDEX(Data!A:A,0,1))","v":""}]
[null,null,null,null,null,null,null,null,null,null,null,null,null,null,null,null,null,null,null,null,null,null,null,null,null,null,null,null,null,null,null,null,null,null,null,null,null,null,null,null,null,null,null,null,null,null,null,null,null,null,{"$f":"IF(OR(AZ397=\"-\",AZ397=\"\"),\"-\",COUNTA(AZ$2:AZ397)-COUNTBLANK(AZ$2:AZ397))","v":"-"},{"$f":"IF(OR(INDEX(Data!A:A,0,1)=0,INDEX(Data!A:A,0,1)=\"-\"),\"\",INDEX(Data!A:A,0,1))","v":""}]
[null,null,null,null,null,null,null,null,null,null,null,null,null,null,null,null,null,null,null,null,null,null,null,null,null,null,null,null,null,null,null,null,null,null,null,null,null,null,null,null,null,null,null,null,null,null,null,null,null,null,{"$f":"IF(OR(AZ398=\"-\",AZ398=\"\"),\"-\",COUNTA(AZ$2:AZ398)-COUNTBLANK(AZ$2:AZ398))","v":"-"},{"$f":"IF(OR(INDEX(Data!A:A,0,1)=0,INDEX(Data!A:A,0,1)=\"-\"),\"\",INDEX(Data!A:A,0,1))","v":""}]
[null,null,null,null,null,null,null,null,null,null,null,null,null,null,null,null,null,null,null,null,null,null,null,null,null,null,null,null,null,null,null,null,null,null,null,null,null,null,null,null,null,null,null,null,null,null,null,null,null,null,{"$f":"IF(OR(AZ399=\"-\",AZ399=\"\"),\"-\",COUNTA(AZ$2:AZ399)-COUNTBLANK(AZ$2:AZ399))","v":"-"},{"$f":"IF(OR(INDEX(Data!A:A,0,1)=0,INDEX(Data!A:A,0,1)=\"-\"),\"\",INDEX(Data!A:A,0,1))","v":""}]
[null,null,null,null,null,null,null,null,null,null,null,null,null,null,null,null,null,null,null,null,null,null,null,null,null,null,null,null,null,null,null,null,null,null,null,null,null,null,null,null,null,null,null,null,null,null,null,null,null,null,{"$f":"IF(OR(AZ400=\"-\",AZ400=\"\"),\"-\",COUNTA(AZ$2:AZ400)-COUNTBLANK(AZ$2:AZ400))","v":"-"},{"$f":"IF(OR(INDEX(Data!A:A,0,1)=0,INDEX(Data!A:A,0,1)=\"-\"),\"\",INDEX(Data!A:A,0,1))","v":""}]
[null,null,null,null,null,null,null,null,null,null,null,null,null,null,null,null,null,null,null,null,null,null,null,null,null,null,null,null,null,null,null,null,null,null,null,null,null,null,null,null,null,null,null,null,null,null,null,null,null,null,{"$f":"IF(OR(AZ401=\"-\",AZ401=\"\"),\"-\",COUNTA(AZ$2:AZ401)-COUNTBLANK(AZ$2:AZ401))","v":"-"},{"$f":"IF(OR(INDEX(Data!A:A,0,1)=0,INDEX(Data!A:A,0,1)=\"-\"),\"\",INDEX(Data!A:A,0,1))","v":""}]
[null,null,null,null,null,null,null,null,null,null,null,null,null,null,null,null,null,null,null,null,null,null,null,null,null,null,null,null,null,null,null,null,null,null,null,null,null,null,null,null,null,null,null,null,null,null,null,null,null,null,{"$f":"IF(OR(AZ402=\"-\",AZ402=\"\"),\"-\",COUNTA(AZ$2:AZ402)-COUNTBLANK(AZ$2:AZ402))","v":"-"},{"$f":"IF(OR(INDEX(Data!A:A,0,1)=0,INDEX(Data!A:A,0,1)=\"-\"),\"\",INDEX(Data!A:A,0,1))","v":""}]
[null,null,null,null,null,null,null,null,null,null,null,null,null,null,null,null,null,null,null,null,null,null,null,null,null,null,null,null,null,null,null,null,null,null,null,null,null,null,null,null,null,null,null,null,null,null,null,null,null,null,{"$f":"IF(OR(AZ403=\"-\",AZ403=\"\"),\"-\",COUNTA(AZ$2:AZ403)-COUNTBLANK(AZ$2:AZ403))","v":"-"},{"$f":"IF(OR(INDEX(Data!A:A,0,1)=0,INDEX(Data!A:A,0,1)=\"-\"),\"\",INDEX(Data!A:A,0,1))","v":""}]
[null,null,null,null,null,null,null,null,null,null,null,null,null,null,null,null,null,null,null,null,null,null,null,null,null,null,null,null,null,null,null,null,null,null,null,null,null,null,null,null,null,null,null,null,null,null,null,null,null,null,{"$f":"IF(OR(AZ404=\"-\",AZ404=\"\"),\"-\",COUNTA(AZ$2:AZ404)-COUNTBLANK(AZ$2:AZ404))","v":"-"},{"$f":"IF(OR(INDEX(Data!A:A,0,1)=0,INDEX(Data!A:A,0,1)=\"-\"),\"\",INDEX(Data!A:A,0,1))","v":""}]
[null,null,null,null,null,null,null,null,null,null,null,null,null,null,null,null,null,null,null,null,null,null,null,null,null,null,null,null,null,null,null,null,null,null,null,null,null,null,null,null,null,null,null,null,null,null,null,null,null,null,{"$f":"IF(OR(AZ405=\"-\",AZ405=\"\"),\"-\",COUNTA(AZ$2:AZ405)-COUNTBLANK(AZ$2:AZ405))","v":"-"},{"$f":"IF(OR(INDEX(Data!A:A,0,1)=0,INDEX(Data!A:A,0,1)=\"-\"),\"\",INDEX(Data!A:A,0,1))","v":""}]
[null,null,null,null,null,null,null,null,null,null,null,null,null,null,null,null,null,null,null,null,null,null,null,null,null,null,null,null,null,null,null,null,null,null,null,null,null,null,null,null,null,null,null,null,null,null,null,null,null,null,{"$f":"IF(OR(AZ406=\"-\",AZ406=\"\"),\"-\",COUNTA(AZ$2:AZ406)-COUNTBLANK(AZ$2:AZ406))","v":"-"},{"$f":"IF(OR(INDEX(Data!A:A,0,1)=0,INDEX(Data!A:A,0,1)=\"-\"),\"\",INDEX(Data!A:A,0,1))","v":""}]
[null,null,null,null,null,null,null,null,null,null,null,null,null,null,null,null,null,null,null,null,null,null,null,null,null,null,null,null,null,null,null,null,null,null,null,null,null,null,null,null,null,null,null,null,null,null,null,null,null,null,{"$f":"IF(OR(AZ407=\"-\",AZ407=\"\"),\"-\",COUNTA(AZ$2:AZ407)-COUNTBLANK(AZ$2:AZ407))","v":"-"},{"$f":"IF(OR(INDEX(Data!A:A,0,1)=0,INDEX(Data!A:A,0,1)=\"-\"),\"\",INDEX(Data!A:A,0,1))","v":""}]
[null,null,null,null,null,null,null,null,null,null,null,null,null,null,null,null,null,null,null,null,null,null,null,null,null,null,null,null,null,null,null,null,null,null,null,null,null,null,null,null,null,null,null,null,null,null,null,null,null,null,{"$f":"IF(OR(AZ408=\"-\",AZ408=\"\"),\"-\",COUNTA(AZ$2:AZ408)-COUNTBLANK(AZ$2:AZ408))","v":"-"},{"$f":"IF(OR(INDEX(Data!A:A,0,1)=0,INDEX(Data!A:A,0,1)=\"-\"),\"\",INDEX(Data!A:A,0,1))","v":""}]
[null,null,null,null,null,null,null,null,null,null,null,null,null,null,null,null,null,null,null,null,null,null,null,null,null,null,null,null,null,null,null,null,null,null,null,null,null,null,null,null,null,null,null,null,null,null,null,null,null,null,{"$f":"IF(OR(AZ409=\"-\",AZ409=\"\"),\"-\",COUNTA(AZ$2:AZ409)-COUNTBLANK(AZ$2:AZ409))","v":"-"},{"$f":"IF(OR(INDEX(Data!A:A,0,1)=0,INDEX(Data!A:A,0,1)=\"-\"),\"\",INDEX(Data!A:A,0,1))","v":""}]
[null,null,null,null,null,null,null,null,null,null,null,null,null,null,null,null,null,null,null,null,null,null,null,null,null,null,null,null,null,null,null,null,null,null,null,null,null,null,null,null,null,null,null,null,null,null,null,null,null,null,{"$f":"IF(OR(AZ410=\"-\",AZ410=\"\"),\"-\",COUNTA(AZ$2:AZ410)-COUNTBLANK(AZ$2:AZ410))","v":"-"},{"$f":"IF(OR(INDEX(Data!A:A,0,1)=0,INDEX(Data!A:A,0,1)=\"-\"),\"\",INDEX(Data!A:A,0,1))","v":""}]
[null,null,null,null,null,null,null,null,null,null,null,null,null,null,null,null,null,null,null,null,null,null,null,null,null,null,null,null,null,null,null,null,null,null,null,null,null,null,null,null,null,null,null,null,null,null,null,null,null,null,{"$f":"IF(OR(AZ411=\"-\",AZ411=\"\"),\"-\",COUNTA(AZ$2:AZ411)-COUNTBLANK(AZ$2:AZ411))","v":"-"},{"$f":"IF(OR(INDEX(Data!A:A,0,1)=0,INDEX(Data!A:A,0,1)=\"-\"),\"\",INDEX(Data!A:A,0,1))","v":""}]
[null,null,null,null,null,null,null,null,null,null,null,null,null,null,null,null,null,null,null,null,null,null,null,null,null,null,null,null,null,null,null,null,null,null,null,null,null,null,null,null,null,null,null,null,null,null,null,null,null,null,{"$f":"IF(OR(AZ412=\"-\",AZ412=\"\"),\"-\",COUNTA(AZ$2:AZ412)-COUNTBLANK(AZ$2:AZ412))","v":"-"},{"$f":"IF(OR(INDEX(Data!A:A,0,1)=0,INDEX(Data!A:A,0,1)=\"-\"),\"\",INDEX(Data!A:A,0,1))","v":""}]
[null,null,null,null,null,null,null,null,null,null,null,null,null,null,null,null,null,null,null,null,null,null,null,null,null,null,null,null,null,null,null,null,null,null,null,null,null,null,null,null,null,null,null,null,null,null,null,null,null,null,{"$f":"IF(OR(AZ413=\"-\",AZ413=\"\"),\"-\",COUNTA(AZ$2:AZ413)-COUNTBLANK(AZ$2:AZ413))","v":"-"},{"$f":"IF(OR(INDEX(Data!A:A,0,1)=0,INDEX(Data!A:A,0,1)=\"-\"),\"\",INDEX(Data!A:A,0,1))","v":""}]
[null,null,null,null,null,null,null,null,null,null,null,null,null,null,null,null,null,null,null,null,null,null,null,null,null,null,null,null,null,null,null,null,null,null,null,null,null,null,null,null,null,null,null,null,null,null,null,null,null,null,{"$f":"IF(OR(AZ414=\"-\",AZ414=\"\"),\"-\",COUNTA(AZ$2:AZ414)-COUNTBLANK(AZ$2:AZ414))","v":"-"},{"$f":"IF(OR(INDEX(Data!A:A,0,1)=0,INDEX(Data!A:A,0,1)=\"-\"),\"\",INDEX(Data!A:A,0,1))","v":""}]
[null,null,null,null,null,null,null,null,null,null,null,null,null,null,null,null,null,null,null,null,null,null,null,null,null,null,null,null,null,null,null,null,null,null,null,null,null,null,null,null,null,null,null,null,null,null,null,null,null,null,{"$f":"IF(OR(AZ415=\"-\",AZ415=\"\"),\"-\",COUNTA(AZ$2:AZ415)-COUNTBLANK(AZ$2:AZ415))","v":"-"},{"$f":"IF(OR(INDEX(Data!A:A,0,1)=0,INDEX(Data!A:A,0,1)=\"-\"),\"\",INDEX(Data!A:A,0,1))","v":""}]
[null,null,null,null,null,null,null,null,null,null,null,null,null,null,null,null,null,null,null,null,null,null,null,null,null,null,null,null,null,null,null,null,null,null,null,null,null,null,null,null,null,null,null,null,null,null,null,null,null,null,{"$f":"IF(OR(AZ416=\"-\",AZ416=\"\"),\"-\",COUNTA(AZ$2:AZ416)-COUNTBLANK(AZ$2:AZ416))","v":"-"},{"$f":"IF(OR(INDEX(Data!A:A,0,1)=0,INDEX(Data!A:A,0,1)=\"-\"),\"\",INDEX(Data!A:A,0,1))","v":""}]
[null,null,null,null,null,null,null,null,null,null,null,null,null,null,null,null,null,null,null,null,null,null,null,null,null,null,null,null,null,null,null,null,null,null,null,null,null,null,null,null,null,null,null,null,null,null,null,null,null,null,{"$f":"IF(OR(AZ417=\"-\",AZ417=\"\"),\"-\",COUNTA(AZ$2:AZ417)-COUNTBLANK(AZ$2:AZ417))","v":"-"},{"$f":"IF(OR(INDEX(Data!A:A,0,1)=0,INDEX(Data!A:A,0,1)=\"-\"),\"\",INDEX(Data!A:A,0,1))","v":""}]
[null,null,null,null,null,null,null,null,null,null,null,null,null,null,null,null,null,null,null,null,null,null,null,null,null,null,null,null,null,null,null,null,null,null,null,null,null,null,null,null,null,null,null,null,null,null,null,null,null,null,{"$f":"IF(OR(AZ418=\"-\",AZ418=\"\"),\"-\",COUNTA(AZ$2:AZ418)-COUNTBLANK(AZ$2:AZ418))","v":"-"},{"$f":"IF(OR(INDEX(Data!A:A,0,1)=0,INDEX(Data!A:A,0,1)=\"-\"),\"\",INDEX(Data!A:A,0,1))","v":""}]
[null,null,null,null,null,null,null,null,null,null,null,null,null,null,null,null,null,null,null,null,null,null,null,null,null,null,null,null,null,null,null,null,null,null,null,null,null,null,null,null,null,null,null,null,null,null,null,null,null,null,{"$f":"IF(OR(AZ419=\"-\",AZ419=\"\"),\"-\",COUNTA(AZ$2:AZ419)-COUNTBLANK(AZ$2:AZ419))","v":"-"},{"$f":"IF(OR(INDEX(Data!A:A,0,1)=0,INDEX(Data!A:A,0,1)=\"-\"),\"\",INDEX(Data!A:A,0,1))","v":""}]
[null,null,null,null,null,null,null,null,null,null,null,null,null,null,null,null,null,null,null,null,null,null,null,null,null,null,null,null,null,null,null,null,null,null,null,null,null,null,null,null,null,null,null,null,null,null,null,null,null,null,{"$f":"IF(OR(AZ420=\"-\",AZ420=\"\"),\"-\",COUNTA(AZ$2:AZ420)-COUNTBLANK(AZ$2:AZ420))","v":"-"},{"$f":"IF(OR(INDEX(Data!A:A,0,1)=0,INDEX(Data!A:A,0,1)=\"-\"),\"\",INDEX(Data!A:A,0,1))","v":""}]
[null,null,null,null,null,null,null,null,null,null,null,null,null,null,null,null,null,null,null,null,null,null,null,null,null,null,null,null,null,null,null,null,null,null,null,null,null,null,null,null,null,null,null,null,null,null,null,null,null,null,{"$f":"IF(OR(AZ421=\"-\",AZ421=\"\"),\"-\",COUNTA(AZ$2:AZ421)-COUNTBLANK(AZ$2:AZ421))","v":"-"},{"$f":"IF(OR(INDEX(Data!A:A,0,1)=0,INDEX(Data!A:A,0,1)=\"-\"),\"\",INDEX(Data!A:A,0,1))","v":""}]
[null,null,null,null,null,null,null,null,null,null,null,null,null,null,null,null,null,null,null,null,null,null,null,null,null,null,null,null,null,null,null,null,null,null,null,null,null,null,null,null,null,null,null,null,null,null,null,null,null,null,{"$f":"IF(OR(AZ422=\"-\",AZ422=\"\"),\"-\",COUNTA(AZ$2:AZ422)-COUNTBLANK(AZ$2:AZ422))","v":"-"},{"$f":"IF(OR(INDEX(Data!A:A,0,1)=0,INDEX(Data!A:A,0,1)=\"-\"),\"\",INDEX(Data!A:A,0,1))","v":""}]
[null,null,null,null,null,null,null,null,null,null,null,null,null,null,null,null,null,null,null,null,null,null,null,null,null,null,null,null,null,null,null,null,null,null,null,null,null,null,null,null,null,null,null,null,null,null,null,null,null,null,{"$f":"IF(OR(AZ423=\"-\",AZ423=\"\"),\"-\",COUNTA(AZ$2:AZ423)-COUNTBLANK(AZ$2:AZ423))","v":"-"},{"$f":"IF(OR(INDEX(Data!A:A,0,1)=0,INDEX(Data!A:A,0,1)=\"-\"),\"\",INDEX(Data!A:A,0,1))","v":""}]
[null,null,null,null,null,null,null,null,null,null,null,null,null,null,null,null,null,null,null,null,null,null,null,null,null,null,null,null,null,null,null,null,null,null,null,null,null,null,null,null,null,null,null,null,null,null,null,null,null,null,{"$f":"IF(OR(AZ424=\"-\",AZ424=\"\"),\"-\",COUNTA(AZ$2:AZ424)-COUNTBLANK(AZ$2:AZ424))","v":"-"},{"$f":"IF(OR(INDEX(Data!A:A,0,1)=0,INDEX(Data!A:A,0,1)=\"-\"),\"\",INDEX(Data!A:A,0,1))","v":""}]
[null,null,null,null,null,null,null,null,null,null,null,null,null,null,null,null,null,null,null,null,null,null,null,null,null,null,null,null,null,null,null,null,null,null,null,null,null,null,null,null,null,null,null,null,null,null,null,null,null,null,{"$f":"IF(OR(AZ425=\"-\",AZ425=\"\"),\"-\",COUNTA(AZ$2:AZ425)-COUNTBLANK(AZ$2:AZ425))","v":"-"},{"$f":"IF(OR(INDEX(Data!A:A,0,1)=0,INDEX(Data!A:A,0,1)=\"-\"),\"\",INDEX(Data!A:A,0,1))","v":""}]
[null,null,null,null,null,null,null,null,null,null,null,null,null,null,null,null,null,null,null,null,null,null,null,null,null,null,null,null,null,null,null,null,null,null,null,null,null,null,null,null,null,null,null,null,null,null,null,null,null,null,{"$f":"IF(OR(AZ426=\"-\",AZ426=\"\"),\"-\",COUNTA(AZ$2:AZ426)-COUNTBLANK(AZ$2:AZ426))","v":"-"},{"$f":"IF(OR(INDEX(Data!A:A,0,1)=0,INDEX(Data!A:A,0,1)=\"-\"),\"\",INDEX(Data!A:A,0,1))","v":""}]
[null,null,null,null,null,null,null,null,null,null,null,null,null,null,null,null,null,null,null,null,null,null,null,null,null,null,null,null,null,null,null,null,null,null,null,null,null,null,null,null,null,null,null,null,null,null,null,null,null,null,{"$f":"IF(OR(AZ427=\"-\",AZ427=\"\"),\"-\",COUNTA(AZ$2:AZ427)-COUNTBLANK(AZ$2:AZ427))","v":"-"},{"$f":"IF(OR(INDEX(Data!A:A,0,1)=0,INDEX(Data!A:A,0,1)=\"-\"),\"\",INDEX(Data!A:A,0,1))","v":""}]
[null,null,null,null,null,null,null,null,null,null,null,null,null,null,null,null,null,null,null,null,null,null,null,null,null,null,null,null,null,null,null,null,null,null,null,null,null,null,null,null,null,null,null,null,null,null,null,null,null,null,{"$f":"IF(OR(AZ428=\"-\",AZ428=\"\"),\"-\",COUNTA(AZ$2:AZ428)-COUNTBLANK(AZ$2:AZ428))","v":"-"},{"$f":"IF(OR(INDEX(Data!A:A,0,1)=0,INDEX(Data!A:A,0,1)=\"-\"),\"\",INDEX(Data!A:A,0,1))","v":""}]
[null,null,null,null,null,null,null,null,null,null,null,null,null,null,null,null,null,null,null,null,null,null,null,null,null,null,null,null,null,null,null,null,null,null,null,null,null,null,null,null,null,null,null,null,null,null,null,null,null,null,{"$f":"IF(OR(AZ429=\"-\",AZ429=\"\"),\"-\",COUNTA(AZ$2:AZ429)-COUNTBLANK(AZ$2:AZ429))","v":"-"},{"$f":"IF(OR(INDEX(Data!A:A,0,1)=0,INDEX(Data!A:A,0,1)=\"-\"),\"\",INDEX(Data!A:A,0,1))","v":""}]
[null,null,null,null,null,null,null,null,null,null,null,null,null,null,null,null,null,null,null,null,null,null,null,null,null,null,null,null,null,null,null,null,null,null,null,null,null,null,null,null,null,null,null,null,null,null,null,null,null,null,{"$f":"IF(OR(AZ430=\"-\",AZ430=\"\"),\"-\",COUNTA(AZ$2:AZ430)-COUNTBLANK(AZ$2:AZ430))","v":"-"},{"$f":"IF(OR(INDEX(Data!A:A,0,1)=0,INDEX(Data!A:A,0,1)=\"-\"),\"\",INDEX(Data!A:A,0,1))","v":""}]
[null,null,null,null,null,null,null,null,null,null,null,null,null,null,null,null,null,null,null,null,null,null,null,null,null,null,null,null,null,null,null,null,null,null,null,null,null,null,null,null,null,null,null,null,null,null,null,null,null,null,{"$f":"IF(OR(AZ431=\"-\",AZ431=\"\"),\"-\",COUNTA(AZ$2:AZ431)-COUNTBLANK(AZ$2:AZ431))","v":"-"},{"$f":"IF(OR(INDEX(Data!A:A,0,1)=0,INDEX(Data!A:A,0,1)=\"-\"),\"\",INDEX(Data!A:A,0,1))","v":""}]
[null,null,null,null,null,null,null,null,null,null,null,null,null,null,null,null,null,null,null,null,null,null,null,null,null,null,null,null,null,null,null,null,null,null,null,null,null,null,null,null,null,null,null,null,null,null,null,null,null,null,{"$f":"IF(OR(AZ432=\"-\",AZ432=\"\"),\"-\",COUNTA(AZ$2:AZ432)-COUNTBLANK(AZ$2:AZ432))","v":"-"},{"$f":"IF(OR(INDEX(Data!A:A,0,1)=0,INDEX(Data!A:A,0,1)=\"-\"),\"\",INDEX(Data!A:A,0,1))","v":""}]
[null,null,null,null,null,null,null,null,null,null,null,null,null,null,null,null,null,null,null,null,null,null,null,null,null,null,null,null,null,null,null,null,null,null,null,null,null,null,null,null,null,null,null,null,null,null,null,null,null,null,{"$f":"IF(OR(AZ433=\"-\",AZ433=\"\"),\"-\",COUNTA(AZ$2:AZ433)-COUNTBLANK(AZ$2:AZ433))","v":"-"},{"$f":"IF(OR(INDEX(Data!A:A,0,1)=0,INDEX(Data!A:A,0,1)=\"-\"),\"\",INDEX(Data!A:A,0,1))","v":""}]
[null,null,null,null,null,null,null,null,null,null,null,null,null,null,null,null,null,null,null,null,null,null,null,null,null,null,null,null,null,null,null,null,null,null,null,null,null,null,null,null,null,null,null,null,null,null,null,null,null,null,{"$f":"IF(OR(AZ434=\"-\",AZ434=\"\"),\"-\",COUNTA(AZ$2:AZ434)-COUNTBLANK(AZ$2:AZ434))","v":"-"},{"$f":"IF(OR(INDEX(Data!A:A,0,1)=0,INDEX(Data!A:A,0,1)=\"-\"),\"\",INDEX(Data!A:A,0,1))","v":""}]
[null,null,null,null,null,null,null,null,null,null,null,null,null,null,null,null,null,null,null,null,null,null,null,null,null,null,null,null,null,null,null,null,null,null,null,null,null,null,null,null,null,null,null,null,null,null,null,null,null,null,{"$f":"IF(OR(AZ435=\"-\",AZ435=\"\"),\"-\",COUNTA(AZ$2:AZ435)-COUNTBLANK(AZ$2:AZ435))","v":"-"},{"$f":"IF(OR(INDEX(Data!A:A,0,1)=0,INDEX(Data!A:A,0,1)=\"-\"),\"\",INDEX(Data!A:A,0,1))","v":""}]
[null,null,null,null,null,null,null,null,null,null,null,null,null,null,null,null,null,null,null,null,null,null,null,null,null,null,null,null,null,null,null,null,null,null,null,null,null,null,null,null,null,null,null,null,null,null,null,null,null,null,{"$f":"IF(OR(AZ436=\"-\",AZ436=\"\"),\"-\",COUNTA(AZ$2:AZ436)-COUNTBLANK(AZ$2:AZ436))","v":"-"},{"$f":"IF(OR(INDEX(Data!A:A,0,1)=0,INDEX(Data!A:A,0,1)=\"-\"),\"\",INDEX(Data!A:A,0,1))","v":""}]
[null,null,null,null,null,null,null,null,null,null,null,null,null,null,null,null,null,null,null,null,null,null,null,null,null,null,null,null,null,null,null,null,null,null,null,null,null,null,null,null,null,null,null,null,null,null,null,null,null,null,{"$f":"IF(OR(AZ437=\"-\",AZ437=\"\"),\"-\",COUNTA(AZ$2:AZ437)-COUNTBLANK(AZ$2:AZ437))","v":"-"},{"$f":"IF(OR(INDEX(Data!A:A,0,1)=0,INDEX(Data!A:A,0,1)=\"-\"),\"\",INDEX(Data!A:A,0,1))","v":""}]
[null,null,null,null,null,null,null,null,null,null,null,null,null,null,null,null,null,null,null,null,null,null,null,null,null,null,null,null,null,null,null,null,null,null,null,null,null,null,null,null,null,null,null,null,null,null,null,null,null,null,{"$f":"IF(OR(AZ438=\"-\",AZ438=\"\"),\"-\",COUNTA(AZ$2:AZ438)-COUNTBLANK(AZ$2:AZ438))","v":"-"},{"$f":"IF(OR(INDEX(Data!A:A,0,1)=0,INDEX(Data!A:A,0,1)=\"-\"),\"\",INDEX(Data!A:A,0,1))","v":""}]
[null,null,null,null,null,null,null,null,null,null,null,null,null,null,null,null,null,null,null,null,null,null,null,null,null,null,null,null,null,null,null,null,null,null,null,null,null,null,null,null,null,null,null,null,null,null,null,null,null,null,{"$f":"IF(OR(AZ439=\"-\",AZ439=\"\"),\"-\",COUNTA(AZ$2:AZ439)-COUNTBLANK(AZ$2:AZ439))","v":"-"},{"$f":"IF(OR(INDEX(Data!A:A,0,1)=0,INDEX(Data!A:A,0,1)=\"-\"),\"\",INDEX(Data!A:A,0,1))","v":""}]
[null,null,null,null,null,null,null,null,null,null,null,null,null,null,null,null,null,null,null,null,null,null,null,null,null,null,null,null,null,null,null,null,null,null,null,null,null,null,null,null,null,null,null,null,null,null,null,null,null,null,{"$f":"IF(OR(AZ440=\"-\",AZ440=\"\"),\"-\",COUNTA(AZ$2:AZ440)-COUNTBLANK(AZ$2:AZ440))","v":"-"},{"$f":"IF(OR(INDEX(Data!A:A,0,1)=0,INDEX(Data!A:A,0,1)=\"-\"),\"\",INDEX(Data!A:A,0,1))","v":""}]
[null,null,null,null,null,null,null,null,null,null,null,null,null,null,null,null,null,null,null,null,null,null,null,null,null,null,null,null,null,null,null,null,null,null,null,null,null,null,null,null,null,null,null,null,null,null,null,null,null,null,{"$f":"IF(OR(AZ441=\"-\",AZ441=\"\"),\"-\",COUNTA(AZ$2:AZ441)-COUNTBLANK(AZ$2:AZ441))","v":"-"},{"$f":"IF(OR(INDEX(Data!A:A,0,1)=0,INDEX(Data!A:A,0,1)=\"-\"),\"\",INDEX(Data!A:A,0,1))","v":""}]
[null,null,null,null,null,null,null,null,null,null,null,null,null,null,null,null,null,null,null,null,null,null,null,null,null,null,null,null,null,null,null,null,null,null,null,null,null,null,null,null,null,null,null,null,null,null,null,null,null,null,{"$f":"IF(OR(AZ442=\"-\",AZ442=\"\"),\"-\",COUNTA(AZ$2:AZ442)-COUNTBLANK(AZ$2:AZ442))","v":"-"},{"$f":"IF(OR(INDEX(Data!A:A,0,1)=0,INDEX(Data!A:A,0,1)=\"-\"),\"\",INDEX(Data!A:A,0,1))","v":""}]
[null,null,null,null,null,null,null,null,null,null,null,null,null,null,null,null,null,null,null,null,null,null,null,null,null,null,null,null,null,null,null,null,null,null,null,null,null,null,null,null,null,null,null,null,null,null,null,null,null,null,{"$f":"IF(OR(AZ443=\"-\",AZ443=\"\"),\"-\",COUNTA(AZ$2:AZ443)-COUNTBLANK(AZ$2:AZ443))","v":"-"},{"$f":"IF(OR(INDEX(Data!A:A,0,1)=0,INDEX(Data!A:A,0,1)=\"-\"),\"\",INDEX(Data!A:A,0,1))","v":""}]
[null,null,null,null,null,null,null,null,null,null,null,null,null,null,null,null,null,null,null,null,null,null,null,null,null,null,null,null,null,null,null,null,null,null,null,null,null,null,null,null,null,null,null,null,null,null,null,null,null,null,{"$f":"IF(OR(AZ444=\"-\",AZ444=\"\"),\"-\",COUNTA(AZ$2:AZ444)-COUNTBLANK(AZ$2:AZ444))","v":"-"},{"$f":"IF(OR(INDEX(Data!A:A,0,1)=0,INDEX(Data!A:A,0,1)=\"-\"),\"\",INDEX(Data!A:A,0,1))","v":""}]
[null,null,null,null,null,null,null,null,null,null,null,null,null,null,null,null,null,null,null,null,null,null,null,null,null,null,null,null,null,null,null,null,null,null,null,null,null,null,null,null,null,null,null,null,null,null,null,null,null,null,{"$f":"IF(OR(AZ445=\"-\",AZ445=\"\"),\"-\",COUNTA(AZ$2:AZ445)-COUNTBLANK(AZ$2:AZ445))","v":"-"},{"$f":"IF(OR(INDEX(Data!A:A,0,1)=0,INDEX(Data!A:A,0,1)=\"-\"),\"\",INDEX(Data!A:A,0,1))","v":""}]
[null,null,null,null,null,null,null,null,null,null,null,null,null,null,null,null,null,null,null,null,null,null,null,null,null,null,null,null,null,null,null,null,null,null,null,null,null,null,null,null,null,null,null,null,null,null,null,null,null,null,{"$f":"IF(OR(AZ446=\"-\",AZ446=\"\"),\"-\",COUNTA(AZ$2:AZ446)-COUNTBLANK(AZ$2:AZ446))","v":"-"},{"$f":"IF(OR(INDEX(Data!A:A,0,1)=0,INDEX(Data!A:A,0,1)=\"-\"),\"\",INDEX(Data!A:A,0,1))","v":""}]
[null,null,null,null,null,null,null,null,null,null,null,null,null,null,null,null,null,null,null,null,null,null,null,null,null,null,null,null,null,null,null,null,null,null,null,null,null,null,null,null,null,null,null,null,null,null,null,null,null,null,{"$f":"IF(OR(AZ447=\"-\",AZ447=\"\"),\"-\",COUNTA(AZ$2:AZ447)-COUNTBLANK(AZ$2:AZ447))","v":"-"},{"$f":"IF(OR(INDEX(Data!A:A,0,1)=0,INDEX(Data!A:A,0,1)=\"-\"),\"\",INDEX(Data!A:A,0,1))","v":""}]
[null,null,null,null,null,null,null,null,null,null,null,null,null,null,null,null,null,null,null,null,null,null,null,null,null,null,null,null,null,null,null,null,null,null,null,null,null,null,null,null,null,null,null,null,null,null,null,null,null,null,{"$f":"IF(OR(AZ448=\"-\",AZ448=\"\"),\"-\",COUNTA(AZ$2:AZ448)-COUNTBLANK(AZ$2:AZ448))","v":"-"},{"$f":"IF(OR(INDEX(Data!A:A,0,1)=0,INDEX(Data!A:A,0,1)=\"-\"),\"\",INDEX(Data!A:A,0,1))","v":""}]
[null,null,null,null,null,null,null,null,null,null,null,null,null,null,null,null,null,null,null,null,null,null,null,null,null,null,null,null,null,null,null,null,null,null,null,null,null,null,null,null,null,null,null,null,null,null,null,null,null,null,{"$f":"IF(OR(AZ449=\"-\",AZ449=\"\"),\"-\",COUNTA(AZ$2:AZ449)-COUNTBLANK(AZ$2:AZ449))","v":"-"},{"$f":"IF(OR(INDEX(Data!A:A,0,1)=0,INDEX(Data!A:A,0,1)=\"-\"),\"\",INDEX(Data!A:A,0,1))","v":""}]
[null,null,null,null,null,null,null,null,null,null,null,null,null,null,null,null,null,null,null,null,null,null,null,null,null,null,null,null,null,null,null,null,null,null,null,null,null,null,null,null,null,null,null,null,null,null,null,null,null,null,{"$f":"IF(OR(AZ450=\"-\",AZ450=\"\"),\"-\",COUNTA(AZ$2:AZ450)-COUNTBLANK(AZ$2:AZ450))","v":"-"},{"$f":"IF(OR(INDEX(Data!A:A,0,1)=0,INDEX(Data!A:A,0,1)=\"-\"),\"\",INDEX(Data!A:A,0,1))","v":""}]
[null,null,null,null,null,null,null,null,null,null,null,null,null,null,null,null,null,null,null,null,null,null,null,null,null,null,null,null,null,null,null,null,null,null,null,null,null,null,null,null,null,null,null,null,null,null,null,null,null,null,{"$f":"IF(OR(AZ451=\"-\",AZ451=\"\"),\"-\",COUNTA(AZ$2:AZ451)-COUNTBLANK(AZ$2:AZ451))","v":"-"},{"$f":"IF(OR(INDEX(Data!A:A,0,1)=0,INDEX(Data!A:A,0,1)=\"-\"),\"\",INDEX(Data!A:A,0,1))","v":""}]
[null,null,null,null,null,null,null,null,null,null,null,null,null,null,null,null,null,null,null,null,null,null,null,null,null,null,null,null,null,null,null,null,null,null,null,null,null,null,null,null,null,null,null,null,null,null,null,null,null,null,{"$f":"IF(OR(AZ452=\"-\",AZ452=\"\"),\"-\",COUNTA(AZ$2:AZ452)-COUNTBLANK(AZ$2:AZ452))","v":"-"},{"$f":"IF(OR(INDEX(Data!A:A,0,1)=0,INDEX(Data!A:A,0,1)=\"-\"),\"\",INDEX(Data!A:A,0,1))","v":""}]
[null,null,null,null,null,null,null,null,null,null,null,null,null,null,null,null,null,null,null,null,null,null,null,null,null,null,null,null,null,null,null,null,null,null,null,null,null,null,null,null,null,null,null,null,null,null,null,null,null,null,{"$f":"IF(OR(AZ453=\"-\",AZ453=\"\"),\"-\",COUNTA(AZ$2:AZ453)-COUNTBLANK(AZ$2:AZ453))","v":"-"},{"$f":"IF(OR(INDEX(Data!A:A,0,1)=0,INDEX(Data!A:A,0,1)=\"-\"),\"\",INDEX(Data!A:A,0,1))","v":""}]
[null,null,null,null,null,null,null,null,null,null,null,null,null,null,null,null,null,null,null,null,null,null,null,null,null,null,null,null,null,null,null,null,null,null,null,null,null,null,null,null,null,null,null,null,null,null,null,null,null,null,{"$f":"IF(OR(AZ454=\"-\",AZ454=\"\"),\"-\",COUNTA(AZ$2:AZ454)-COUNTBLANK(AZ$2:AZ454))","v":"-"},{"$f":"IF(OR(INDEX(Data!A:A,0,1)=0,INDEX(Data!A:A,0,1)=\"-\"),\"\",INDEX(Data!A:A,0,1))","v":""}]
[null,null,null,null,null,null,null,null,null,null,null,null,null,null,null,null,null,null,null,null,null,null,null,null,null,null,null,null,null,null,null,null,null,null,null,null,null,null,null,null,null,null,null,null,null,null,null,null,null,null,{"$f":"IF(OR(AZ455=\"-\",AZ455=\"\"),\"-\",COUNTA(AZ$2:AZ455)-COUNTBLANK(AZ$2:AZ455))","v":"-"},{"$f":"IF(OR(INDEX(Data!A:A,0,1)=0,INDEX(Data!A:A,0,1)=\"-\"),\"\",INDEX(Data!A:A,0,1))","v":""}]
[null,null,null,null,null,null,null,null,null,null,null,null,null,null,null,null,null,null,null,null,null,null,null,null,null,null,null,null,null,null,null,null,null,null,null,null,null,null,null,null,null,null,null,null,null,null,null,null,null,null,{"$f":"IF(OR(AZ456=\"-\",AZ456=\"\"),\"-\",COUNTA(AZ$2:AZ456)-COUNTBLANK(AZ$2:AZ456))","v":"-"},{"$f":"IF(OR(INDEX(Data!A:A,0,1)=0,INDEX(Data!A:A,0,1)=\"-\"),\"\",INDEX(Data!A:A,0,1))","v":""}]
[null,null,null,null,null,null,null,null,null,null,null,null,null,null,null,null,null,null,null,null,null,null,null,null,null,null,null,null,null,null,null,null,null,null,null,null,null,null,null,null,null,null,null,null,null,null,null,null,null,null,{"$f":"IF(OR(AZ457=\"-\",AZ457=\"\"),\"-\",COUNTA(AZ$2:AZ457)-COUNTBLANK(AZ$2:AZ457))","v":"-"},{"$f":"IF(OR(INDEX(Data!A:A,0,1)=0,INDEX(Data!A:A,0,1)=\"-\"),\"\",INDEX(Data!A:A,0,1))","v":""}]
[null,null,null,null,null,null,null,null,null,null,null,null,null,null,null,null,null,null,null,null,null,null,null,null,null,null,null,null,null,null,null,null,null,null,null,null,null,null,null,null,null,null,null,null,null,null,null,null,null,null,{"$f":"IF(OR(AZ458=\"-\",AZ458=\"\"),\"-\",COUNTA(AZ$2:AZ458)-COUNTBLANK(AZ$2:AZ458))","v":"-"},{"$f":"IF(OR(INDEX(Data!A:A,0,1)=0,INDEX(Data!A:A,0,1)=\"-\"),\"\",INDEX(Data!A:A,0,1))","v":""}]
[null,null,null,null,null,null,null,null,null,null,null,null,null,null,null,null,null,null,null,null,null,null,null,null,null,null,null,null,null,null,null,null,null,null,null,null,null,null,null,null,null,null,null,null,null,null,null,null,null,null,{"$f":"IF(OR(AZ459=\"-\",AZ459=\"\"),\"-\",COUNTA(AZ$2:AZ459)-COUNTBLANK(AZ$2:AZ459))","v":"-"},{"$f":"IF(OR(INDEX(Data!A:A,0,1)=0,INDEX(Data!A:A,0,1)=\"-\"),\"\",INDEX(Data!A:A,0,1))","v":""}]
[null,null,null,null,null,null,null,null,null,null,null,null,null,null,null,null,null,null,null,null,null,null,null,null,null,null,null,null,null,null,null,null,null,null,null,null,null,null,null,null,null,null,null,null,null,null,null,null,null,null,{"$f":"IF(OR(AZ460=\"-\",AZ460=\"\"),\"-\",COUNTA(AZ$2:AZ460)-COUNTBLANK(AZ$2:AZ460))","v":"-"},{"$f":"IF(OR(INDEX(Data!A:A,0,1)=0,INDEX(Data!A:A,0,1)=\"-\"),\"\",INDEX(Data!A:A,0,1))","v":""}]
[null,null,null,null,null,null,null,null,null,null,null,null,null,null,null,null,null,null,null,null,null,null,null,null,null,null,null,null,null,null,null,null,null,null,null,null,null,null,null,null,null,null,null,null,null,null,null,null,null,null,{"$f":"IF(OR(AZ461=\"-\",AZ461=\"\"),\"-\",COUNTA(AZ$2:AZ461)-COUNTBLANK(AZ$2:AZ461))","v":"-"},{"$f":"IF(OR(INDEX(Data!A:A,0,1)=0,INDEX(Data!A:A,0,1)=\"-\"),\"\",INDEX(Data!A:A,0,1))","v":""}]
[null,null,null,null,null,null,null,null,null,null,null,null,null,null,null,null,null,null,null,null,null,null,null,null,null,null,null,null,null,null,null,null,null,null,null,null,null,null,null,null,null,null,null,null,null,null,null,null,null,null,{"$f":"IF(OR(AZ462=\"-\",AZ462=\"\"),\"-\",COUNTA(AZ$2:AZ462)-COUNTBLANK(AZ$2:AZ462))","v":"-"},{"$f":"IF(OR(INDEX(Data!A:A,0,1)=0,INDEX(Data!A:A,0,1)=\"-\"),\"\",INDEX(Data!A:A,0,1))","v":""}]
[null,null,null,null,null,null,null,null,null,null,null,null,null,null,null,null,null,null,null,null,null,null,null,null,null,null,null,null,null,null,null,null,null,null,null,null,null,null,null,null,null,null,null,null,null,null,null,null,null,null,{"$f":"IF(OR(AZ463=\"-\",AZ463=\"\"),\"-\",COUNTA(AZ$2:AZ463)-COUNTBLANK(AZ$2:AZ463))","v":"-"},{"$f":"IF(OR(INDEX(Data!A:A,0,1)=0,INDEX(Data!A:A,0,1)=\"-\"),\"\",INDEX(Data!A:A,0,1))","v":""}]
[null,null,null,null,null,null,null,null,null,null,null,null,null,null,null,null,null,null,null,null,null,null,null,null,null,null,null,null,null,null,null,null,null,null,null,null,null,null,null,null,null,null,null,null,null,null,null,null,null,null,{"$f":"IF(OR(AZ464=\"-\",AZ464=\"\"),\"-\",COUNTA(AZ$2:AZ464)-COUNTBLANK(AZ$2:AZ464))","v":"-"},{"$f":"IF(OR(INDEX(Data!A:A,0,1)=0,INDEX(Data!A:A,0,1)=\"-\"),\"\",INDEX(Data!A:A,0,1))","v":""}]
[null,null,null,null,null,null,null,null,null,null,null,null,null,null,null,null,null,null,null,null,null,null,null,null,null,null,null,null,null,null,null,null,null,null,null,null,null,null,null,null,null,null,null,null,null,null,null,null,null,null,{"$f":"IF(OR(AZ465=\"-\",AZ465=\"\"),\"-\",COUNTA(AZ$2:AZ465)-COUNTBLANK(AZ$2:AZ465))","v":"-"},{"$f":"IF(OR(INDEX(Data!A:A,0,1)=0,INDEX(Data!A:A,0,1)=\"-\"),\"\",INDEX(Data!A:A,0,1))","v":""}]
[null,null,null,null,null,null,null,null,null,null,null,null,null,null,null,null,null,null,null,null,null,null,null,null,null,null,null,null,null,null,null,null,null,null,null,null,null,null,null,null,null,null,null,null,null,null,null,null,null,null,{"$f":"IF(OR(AZ466=\"-\",AZ466=\"\"),\"-\",COUNTA(AZ$2:AZ466)-COUNTBLANK(AZ$2:AZ466))","v":"-"},{"$f":"IF(OR(INDEX(Data!A:A,0,1)=0,INDEX(Data!A:A,0,1)=\"-\"),\"\",INDEX(Data!A:A,0,1))","v":""}]
[null,null,null,null,null,null,null,null,null,null,null,null,null,null,null,null,null,null,null,null,null,null,null,null,null,null,null,null,null,null,null,null,null,null,null,null,null,null,null,null,null,null,null,null,null,null,null,null,null,null,{"$f":"IF(OR(AZ467=\"-\",AZ467=\"\"),\"-\",COUNTA(AZ$2:AZ467)-COUNTBLANK(AZ$2:AZ467))","v":"-"},{"$f":"IF(OR(INDEX(Data!A:A,0,1)=0,INDEX(Data!A:A,0,1)=\"-\"),\"\",INDEX(Data!A:A,0,1))","v":""}]
[null,null,null,null,null,null,null,null,null,null,null,null,null,null,null,null,null,null,null,null,null,null,null,null,null,null,null,null,null,null,null,null,null,null,null,null,null,null,null,null,null,null,null,null,null,null,null,null,null,null,{"$f":"IF(OR(AZ468=\"-\",AZ468=\"\"),\"-\",COUNTA(AZ$2:AZ468)-COUNTBLANK(AZ$2:AZ468))","v":"-"},{"$f":"IF(OR(INDEX(Data!A:A,0,1)=0,INDEX(Data!A:A,0,1)=\"-\"),\"\",INDEX(Data!A:A,0,1))","v":""}]
[null,null,null,null,null,null,null,null,null,null,null,null,null,null,null,null,null,null,null,null,null,null,null,null,null,null,null,null,null,null,null,null,null,null,null,null,null,null,null,null,null,null,null,null,null,null,null,null,null,null,{"$f":"IF(OR(AZ469=\"-\",AZ469=\"\"),\"-\",COUNTA(AZ$2:AZ469)-COUNTBLANK(AZ$2:AZ469))","v":"-"},{"$f":"IF(OR(INDEX(Data!A:A,0,1)=0,INDEX(Data!A:A,0,1)=\"-\"),\"\",INDEX(Data!A:A,0,1))","v":""}]
[null,null,null,null,null,null,null,null,null,null,null,null,null,null,null,null,null,null,null,null,null,null,null,null,null,null,null,null,null,null,null,null,null,null,null,null,null,null,null,null,null,null,null,null,null,null,null,null,null,null,{"$f":"IF(OR(AZ470=\"-\",AZ470=\"\"),\"-\",COUNTA(AZ$2:AZ470)-COUNTBLANK(AZ$2:AZ470))","v":"-"},{"$f":"IF(OR(INDEX(Data!A:A,0,1)=0,INDEX(Data!A:A,0,1)=\"-\"),\"\",INDEX(Data!A:A,0,1))","v":""}]
[null,null,null,null,null,null,null,null,null,null,null,null,null,null,null,null,null,null,null,null,null,null,null,null,null,null,null,null,null,null,null,null,null,null,null,null,null,null,null,null,null,null,null,null,null,null,null,null,null,null,{"$f":"IF(OR(AZ471=\"-\",AZ471=\"\"),\"-\",COUNTA(AZ$2:AZ471)-COUNTBLANK(AZ$2:AZ471))","v":"-"},{"$f":"IF(OR(INDEX(Data!A:A,0,1)=0,INDEX(Data!A:A,0,1)=\"-\"),\"\",INDEX(Data!A:A,0,1))","v":""}]
[null,null,null,null,null,null,null,null,null,null,null,null,null,null,null,null,null,null,null,null,null,null,null,null,null,null,null,null,null,null,null,null,null,null,null,null,null,null,null,null,null,null,null,null,null,null,null,null,null,null,{"$f":"IF(OR(AZ472=\"-\",AZ472=\"\"),\"-\",COUNTA(AZ$2:AZ472)-COUNTBLANK(AZ$2:AZ472))","v":"-"},{"$f":"IF(OR(INDEX(Data!A:A,0,1)=0,INDEX(Data!A:A,0,1)=\"-\"),\"\",INDEX(Data!A:A,0,1))","v":""}]
[null,null,null,null,null,null,null,null,null,null,null,null,null,null,null,null,null,null,null,null,null,null,null,null,null,null,null,null,null,null,null,null,null,null,null,null,null,null,null,null,null,null,null,null,null,null,null,null,null,null,{"$f":"IF(OR(AZ473=\"-\",AZ473=\"\"),\"-\",COUNTA(AZ$2:AZ473)-COUNTBLANK(AZ$2:AZ473))","v":"-"},{"$f":"IF(OR(INDEX(Data!A:A,0,1)=0,INDEX(Data!A:A,0,1)=\"-\"),\"\",INDEX(Data!A:A,0,1))","v":""}]
[null,null,null,null,null,null,null,null,null,null,null,null,null,null,null,null,null,null,null,null,null,null,null,null,null,null,null,null,null,null,null,null,null,null,null,null,null,null,null,null,null,null,null,null,null,null,null,null,null,null,{"$f":"IF(OR(AZ474=\"-\",AZ474=\"\"),\"-\",COUNTA(AZ$2:AZ474)-COUNTBLANK(AZ$2:AZ474))","v":"-"},{"$f":"IF(OR(INDEX(Data!A:A,0,1)=0,INDEX(Data!A:A,0,1)=\"-\"),\"\",INDEX(Data!A:A,0,1))","v":""}]
[null,null,null,null,null,null,null,null,null,null,null,null,null,null,null,null,null,null,null,null,null,null,null,null,null,null,null,null,null,null,null,null,null,null,null,null,null,null,null,null,null,null,null,null,null,null,null,null,null,null,{"$f":"IF(OR(AZ475=\"-\",AZ475=\"\"),\"-\",COUNTA(AZ$2:AZ475)-COUNTBLANK(AZ$2:AZ475))","v":"-"},{"$f":"IF(OR(INDEX(Data!A:A,0,1)=0,INDEX(Data!A:A,0,1)=\"-\"),\"\",INDEX(Data!A:A,0,1))","v":""}]
[null,null,null,null,null,null,null,null,null,null,null,null,null,null,null,null,null,null,null,null,null,null,null,null,null,null,null,null,null,null,null,null,null,null,null,null,null,null,null,null,null,null,null,null,null,null,null,null,null,null,{"$f":"IF(OR(AZ476=\"-\",AZ476=\"\"),\"-\",COUNTA(AZ$2:AZ476)-COUNTBLANK(AZ$2:AZ476))","v":"-"},{"$f":"IF(OR(INDEX(Data!A:A,0,1)=0,INDEX(Data!A:A,0,1)=\"-\"),\"\",INDEX(Data!A:A,0,1))","v":""}]
[null,null,null,null,null,null,null,null,null,null,null,null,null,null,null,null,null,null,null,null,null,null,null,null,null,null,null,null,null,null,null,null,null,null,null,null,null,null,null,null,null,null,null,null,null,null,null,null,null,null,{"$f":"IF(OR(AZ477=\"-\",AZ477=\"\"),\"-\",COUNTA(AZ$2:AZ477)-COUNTBLANK(AZ$2:AZ477))","v":"-"},{"$f":"IF(OR(INDEX(Data!A:A,0,1)=0,INDEX(Data!A:A,0,1)=\"-\"),\"\",INDEX(Data!A:A,0,1))","v":""}]
[null,null,null,null,null,null,null,null,null,null,null,null,null,null,null,null,null,null,null,null,null,null,null,null,null,null,null,null,null,null,null,null,null,null,null,null,null,null,null,null,null,null,null,null,null,null,null,null,null,null,{"$f":"IF(OR(AZ478=\"-\",AZ478=\"\"),\"-\",COUNTA(AZ$2:AZ478)-COUNTBLANK(AZ$2:AZ478))","v":"-"},{"$f":"IF(OR(INDEX(Data!A:A,0,1)=0,INDEX(Data!A:A,0,1)=\"-\"),\"\",INDEX(Data!A:A,0,1))","v":""}]
[null,null,null,null,null,null,null,null,null,null,null,null,null,null,null,null,null,null,null,null,null,null,null,null,null,null,null,null,null,null,null,null,null,null,null,null,null,null,null,null,null,null,null,null,null,null,null,null,null,null,{"$f":"IF(OR(AZ479=\"-\",AZ479=\"\"),\"-\",COUNTA(AZ$2:AZ479)-COUNTBLANK(AZ$2:AZ479))","v":"-"},{"$f":"IF(OR(INDEX(Data!A:A,0,1)=0,INDEX(Data!A:A,0,1)=\"-\"),\"\",INDEX(Data!A:A,0,1))","v":""}]
[null,null,null,null,null,null,null,null,null,null,null,null,null,null,null,null,null,null,null,null,null,null,null,null,null,null,null,null,null,null,null,null,null,null,null,null,null,null,null,null,null,null,null,null,null,null,null,null,null,null,{"$f":"IF(OR(AZ480=\"-\",AZ480=\"\"),\"-\",COUNTA(AZ$2:AZ480)-COUNTBLANK(AZ$2:AZ480))","v":"-"},{"$f":"IF(OR(INDEX(Data!A:A,0,1)=0,INDEX(Data!A:A,0,1)=\"-\"),\"\",INDEX(Data!A:A,0,1))","v":""}]
[null,null,null,null,null,null,null,null,null,null,null,null,null,null,null,null,null,null,null,null,null,null,null,null,null,null,null,null,null,null,null,null,null,null,null,null,null,null,null,null,null,null,null,null,null,null,null,null,null,null,{"$f":"IF(OR(AZ481=\"-\",AZ481=\"\"),\"-\",COUNTA(AZ$2:AZ481)-COUNTBLANK(AZ$2:AZ481))","v":"-"},{"$f":"IF(OR(INDEX(Data!A:A,0,1)=0,INDEX(Data!A:A,0,1)=\"-\"),\"\",INDEX(Data!A:A,0,1))","v":""}]
[null,null,null,null,null,null,null,null,null,null,null,null,null,null,null,null,null,null,null,null,null,null,null,null,null,null,null,null,null,null,null,null,null,null,null,null,null,null,null,null,null,null,null,null,null,null,null,null,null,null,{"$f":"IF(OR(AZ482=\"-\",AZ482=\"\"),\"-\",COUNTA(AZ$2:AZ482)-COUNTBLANK(AZ$2:AZ482))","v":"-"},{"$f":"IF(OR(INDEX(Data!A:A,0,1)=0,INDEX(Data!A:A,0,1)=\"-\"),\"\",INDEX(Data!A:A,0,1))","v":""}]
[null,null,null,null,null,null,null,null,null,null,null,null,null,null,null,null,null,null,null,null,null,null,null,null,null,null,null,null,null,null,null,null,null,null,null,null,null,null,null,null,null,null,null,null,null,null,null,null,null,null,{"$f":"IF(OR(AZ483=\"-\",AZ483=\"\"),\"-\",COUNTA(AZ$2:AZ483)-COUNTBLANK(AZ$2:AZ483))","v":"-"},{"$f":"IF(OR(INDEX(Data!A:A,0,1)=0,INDEX(Data!A:A,0,1)=\"-\"),\"\",INDEX(Data!A:A,0,1))","v":""}]
[null,null,null,null,null,null,null,null,null,null,null,null,null,null,null,null,null,null,null,null,null,null,null,null,null,null,null,null,null,null,null,null,null,null,null,null,null,null,null,null,null,null,null,null,null,null,null,null,null,null,{"$f":"IF(OR(AZ484=\"-\",AZ484=\"\"),\"-\",COUNTA(AZ$2:AZ484)-COUNTBLANK(AZ$2:AZ484))","v":"-"},{"$f":"IF(OR(INDEX(Data!A:A,0,1)=0,INDEX(Data!A:A,0,1)=\"-\"),\"\",INDEX(Data!A:A,0,1))","v":""}]
[null,null,null,null,null,null,null,null,null,null,null,null,null,null,null,null,null,null,null,null,null,null,null,null,null,null,null,null,null,null,null,null,null,null,null,null,null,null,null,null,null,null,null,null,null,null,null,null,null,null,{"$f":"IF(OR(AZ485=\"-\",AZ485=\"\"),\"-\",COUNTA(AZ$2:AZ485)-COUNTBLANK(AZ$2:AZ485))","v":"-"},{"$f":"IF(OR(INDEX(Data!A:A,0,1)=0,INDEX(Data!A:A,0,1)=\"-\"),\"\",INDEX(Data!A:A,0,1))","v":""}]
[null,null,null,null,null,null,null,null,null,null,null,null,null,null,null,null,null,null,null,null,null,null,null,null,null,null,null,null,null,null,null,null,null,null,null,null,null,null,null,null,null,null,null,null,null,null,null,null,null,null,{"$f":"IF(OR(AZ486=\"-\",AZ486=\"\"),\"-\",COUNTA(AZ$2:AZ486)-COUNTBLANK(AZ$2:AZ486))","v":"-"},{"$f":"IF(OR(INDEX(Data!A:A,0,1)=0,INDEX(Data!A:A,0,1)=\"-\"),\"\",INDEX(Data!A:A,0,1))","v":""}]
[null,null,null,null,null,null,null,null,null,null,null,null,null,null,null,null,null,null,null,null,null,null,null,null,null,null,null,null,null,null,null,null,null,null,null,null,null,null,null,null,null,null,null,null,null,null,null,null,null,null,{"$f":"IF(OR(AZ487=\"-\",AZ487=\"\"),\"-\",COUNTA(AZ$2:AZ487)-COUNTBLANK(AZ$2:AZ487))","v":"-"},{"$f":"IF(OR(INDEX(Data!A:A,0,1)=0,INDEX(Data!A:A,0,1)=\"-\"),\"\",INDEX(Data!A:A,0,1))","v":""}]
[null,null,null,null,null,null,null,null,null,null,null,null,null,null,null,null,null,null,null,null,null,null,null,null,null,null,null,null,null,null,null,null,null,null,null,null,null,null,null,null,null,null,null,null,null,null,null,null,null,null,{"$f":"IF(OR(AZ488=\"-\",AZ488=\"\"),\"-\",COUNTA(AZ$2:AZ488)-COUNTBLANK(AZ$2:AZ488))","v":"-"},{"$f":"IF(OR(INDEX(Data!A:A,0,1)=0,INDEX(Data!A:A,0,1)=\"-\"),\"\",INDEX(Data!A:A,0,1))","v":""}]
[null,null,null,null,null,null,null,null,null,null,null,null,null,null,null,null,null,null,null,null,null,null,null,null,null,null,null,null,null,null,null,null,null,null,null,null,null,null,null,null,null,null,null,null,null,null,null,null,null,null,{"$f":"IF(OR(AZ489=\"-\",AZ489=\"\"),\"-\",COUNTA(AZ$2:AZ489)-COUNTBLANK(AZ$2:AZ489))","v":"-"},{"$f":"IF(OR(INDEX(Data!A:A,0,1)=0,INDEX(Data!A:A,0,1)=\"-\"),\"\",INDEX(Data!A:A,0,1))","v":""}]
[null,null,null,null,null,null,null,null,null,null,null,null,null,null,null,null,null,null,null,null,null,null,null,null,null,null,null,null,null,null,null,null,null,null,null,null,null,null,null,null,null,null,null,null,null,null,null,null,null,null,{"$f":"IF(OR(AZ490=\"-\",AZ490=\"\"),\"-\",COUNTA(AZ$2:AZ490)-COUNTBLANK(AZ$2:AZ490))","v":"-"},{"$f":"IF(OR(INDEX(Data!A:A,0,1)=0,INDEX(Data!A:A,0,1)=\"-\"),\"\",INDEX(Data!A:A,0,1))","v":""}]
[null,null,null,null,null,null,null,null,null,null,null,null,null,null,null,null,null,null,null,null,null,null,null,null,null,null,null,null,null,null,null,null,null,null,null,null,null,null,null,null,null,null,null,null,null,null,null,null,null,null,{"$f":"IF(OR(AZ491=\"-\",AZ491=\"\"),\"-\",COUNTA(AZ$2:AZ491)-COUNTBLANK(AZ$2:AZ491))","v":"-"},{"$f":"IF(OR(INDEX(Data!A:A,0,1)=0,INDEX(Data!A:A,0,1)=\"-\"),\"\",INDEX(Data!A:A,0,1))","v":""}]
[null,null,null,null,null,null,null,null,null,null,null,null,null,null,null,null,null,null,null,null,null,null,null,null,null,null,null,null,null,null,null,null,null,null,null,null,null,null,null,null,null,null,null,null,null,null,null,null,null,null,{"$f":"IF(OR(AZ492=\"-\",AZ492=\"\"),\"-\",COUNTA(AZ$2:AZ492)-COUNTBLANK(AZ$2:AZ492))","v":"-"},{"$f":"IF(OR(INDEX(Data!A:A,0,1)=0,INDEX(Data!A:A,0,1)=\"-\"),\"\",INDEX(Data!A:A,0,1))","v":""}]
[null,null,null,null,null,null,null,null,null,null,null,null,null,null,null,null,null,null,null,null,null,null,null,null,null,null,null,null,null,null,null,null,null,null,null,null,null,null,null,null,null,null,null,null,null,null,null,null,null,null,{"$f":"IF(OR(AZ493=\"-\",AZ493=\"\"),\"-\",COUNTA(AZ$2:AZ493)-COUNTBLANK(AZ$2:AZ493))","v":"-"},{"$f":"IF(OR(INDEX(Data!A:A,0,1)=0,INDEX(Data!A:A,0,1)=\"-\"),\"\",INDEX(Data!A:A,0,1))","v":""}]
[null,null,null,null,null,null,null,null,null,null,null,null,null,null,null,null,null,null,null,null,null,null,null,null,null,null,null,null,null,null,null,null,null,null,null,null,null,null,null,null,null,null,null,null,null,null,null,null,null,null,{"$f":"IF(OR(AZ494=\"-\",AZ494=\"\"),\"-\",COUNTA(AZ$2:AZ494)-COUNTBLANK(AZ$2:AZ494))","v":"-"},{"$f":"IF(OR(INDEX(Data!A:A,0,1)=0,INDEX(Data!A:A,0,1)=\"-\"),\"\",INDEX(Data!A:A,0,1))","v":""}]
[null,null,null,null,null,null,null,null,null,null,null,null,null,null,null,null,null,null,null,null,null,null,null,null,null,null,null,null,null,null,null,null,null,null,null,null,null,null,null,null,null,null,null,null,null,null,null,null,null,null,{"$f":"IF(OR(AZ495=\"-\",AZ495=\"\"),\"-\",COUNTA(AZ$2:AZ495)-COUNTBLANK(AZ$2:AZ495))","v":"-"},{"$f":"IF(OR(INDEX(Data!A:A,0,1)=0,INDEX(Data!A:A,0,1)=\"-\"),\"\",INDEX(Data!A:A,0,1))","v":""}]
[null,null,null,null,null,null,null,null,null,null,null,null,null,null,null,null,null,null,null,null,null,null,null,null,null,null,null,null,null,null,null,null,null,null,null,null,null,null,null,null,null,null,null,null,null,null,null,null,null,null,{"$f":"IF(OR(AZ496=\"-\",AZ496=\"\"),\"-\",COUNTA(AZ$2:AZ496)-COUNTBLANK(AZ$2:AZ496))","v":"-"},{"$f":"IF(OR(INDEX(Data!A:A,0,1)=0,INDEX(Data!A:A,0,1)=\"-\"),\"\",INDEX(Data!A:A,0,1))","v":""}]
[null,null,null,null,null,null,null,null,null,null,null,null,null,null,null,null,null,null,null,null,null,null,null,null,null,null,null,null,null,null,null,null,null,null,null,null,null,null,null,null,null,null,null,null,null,null,null,null,null,null,{"$f":"IF(OR(AZ497=\"-\",AZ497=\"\"),\"-\",COUNTA(AZ$2:AZ497)-COUNTBLANK(AZ$2:AZ497))","v":"-"},{"$f":"IF(OR(INDEX(Data!A:A,0,1)=0,INDEX(Data!A:A,0,1)=\"-\"),\"\",INDEX(Data!A:A,0,1))","v":""}]
[null,null,null,null,null,null,null,null,null,null,null,null,null,null,null,null,null,null,null,null,null,null,null,null,null,null,null,null,null,null,null,null,null,null,null,null,null,null,null,null,null,null,null,null,null,null,null,null,null,null,{"$f":"IF(OR(AZ498=\"-\",AZ498=\"\"),\"-\",COUNTA(AZ$2:AZ498)-COUNTBLANK(AZ$2:AZ498))","v":"-"},{"$f":"IF(OR(INDEX(Data!A:A,0,1)=0,INDEX(Data!A:A,0,1)=\"-\"),\"\",INDEX(Data!A:A,0,1))","v":""}]
[null,null,null,null,null,null,null,null,null,null,null,null,null,null,null,null,null,null,null,null,null,null,null,null,null,null,null,null,null,null,null,null,null,null,null,null,null,null,null,null,null,null,null,null,null,null,null,null,null,null,{"$f":"IF(OR(AZ499=\"-\",AZ499=\"\"),\"-\",COUNTA(AZ$2:AZ499)-COUNTBLANK(AZ$2:AZ499))","v":"-"},{"$f":"IF(OR(INDEX(Data!A:A,0,1)=0,INDEX(Data!A:A,0,1)=\"-\"),\"\",INDEX(Data!A:A,0,1))","v":""}]
[null,null,null,null,null,null,null,null,null,null,null,null,null,null,null,null,null,null,null,null,null,null,null,null,null,null,null,null,null,null,null,null,null,null,null,null,null,null,null,null,null,null,null,null,null,null,null,null,null,null,{"$f":"IF(OR(AZ500=\"-\",AZ500=\"\"),\"-\",COUNTA(AZ$2:AZ500)-COUNTBLANK(AZ$2:AZ500))","v":"-"},{"$f":"IF(OR(INDEX(Data!A:A,0,1)=0,INDEX(Data!A:A,0,1)=\"-\"),\"\",INDEX(Data!A:A,0,1))","v":""}]
[null,null,null,null,null,null,null,null,null,null,null,null,null,null,null,null,null,null,null,null,null,null,null,null,null,null,null,null,null,null,null,null,null,null,null,null,null,null,null,null,null,null,null,null,null,null,null,null,null,null,{"$f":"IF(OR(AZ501=\"-\",AZ501=\"\"),\"-\",COUNTA(AZ$2:AZ501)-COUNTBLANK(AZ$2:AZ501))","v":"-"},{"$f":"IF(OR(INDEX(Data!A:A,0,1)=0,INDEX(Data!A:A,0,1)=\"-\"),\"\",INDEX(Data!A:A,0,1))","v":""}]

{"sheet":"Info","index":1,"n_rows":12,"n_cols":7,"rows_kept":12,"cut":false,"hidden":false,"merged":[[4,3,4,4],[9,3,9,4]]}
["  ","  ","  ","  ","  ","  ","  "]
["  ","  ","  ","  ","  ","  ","  "]
["  ","  ","  ","  ","  ","  ","  "]
["  ","  ","  ","  ","  ","  ","  "]
["  ","  ","PERUSAHAAN","PT. EXPRESS GEMBOL",null,"  ","  "]
["  ","  ","TGL LAPORAN 1","2015-12-31","  ","  ","  "]
["  ","  ","TGL LAPORAN 2","2016-12-31","  ","  ","  "]
["  ","  ","TGL LAPORAN 3","2017-12-31","  ","  ","  "]
["  ","  ","  ","  ","  ","  ","  "]
["  ","  ","USER","info@xclmedia.com",null,"  ","  "]
["  ","  ","  ","  ","  ","  ","  "]
[{"$f":"IF(REG=D10,\"Reg: \"&REG&\" - @copyright: xclmedia.com\",\"Reg: Error - @copyright: xclmedia.com\")","v":"Reg: info@xclmedia.com - @copyright: xclmedia.com"}]

{"sheet":"Data","index":2,"n_rows":73,"n_cols":11,"rows_kept":73,"cut":false,"hidden":false,"merged":[[2,4,2,6],[44,4,44,6]]}
[null,null,null,null,{"$f":"Perusahaan","v":"PT. EXPRESS GEMBOL"},null,null,null,null,null,"Copyright by xclmedia"]
[null,null,null,null,"NERACA"]
["KODE","ARUS KAS","NERACA",null,"POS-POS",null,null,{"$f":"Tanggal_1","v":"Per 31-Des-2015"},{"$f":"Tanggal_2","v":"Per 31-Des-2016"},{"$f":"Tanggal_3","v":"Per 31-Des-2017"}]
[{"$f":"IF(B4=BLK,TEXT,IF(B4=KAS,B4,IF(B4=LB_BERSIH,LBS,IF(B4=PENYU,PNY,IF(AND(B4=OPERA,COUNTIF(B$1:B4,B4)<O.O1),OPR_0&COUNTIF(B$1:B4,B4),IF(AND(B4=OPERA,COUNTIF(B$1:B4,B4)>O.O1),OPR_&COUNTIF(B$1:B4,B4),IF(AND(B4=INVES,COUNTIF(B$1:B4,B4)<O.O1),INV_0&COUNTIF(B$1:B4,B4),IF(AND(B4=INVES,COUNTIF(B$1:B4,B4)>O.O1),INV_&COUNTIF(B$1:B4,B4),IF(AND(B4=PENDA,COUNTIF(B$1:B4,B4)<O.O1),DNA_0&COUNTIF(B$1:B4,B4),IF(AND(B4=PENDA,COUNTIF(B$1:B4,B4)>O.O1),DNA_&COUNTIF(B$1:B4,B4),IF(AND(B4=LB_DTAHAN,COUNTIF(B$1:B4,B4)<O.O1),LBD_0&COUNTIF(B$1:B4,B4),IF(AND(B4=LB_DTAHAN,COUNTIF(B$1:B4,B4)>O.O1),LBD_&COUNTIF(B$1:B4,B4),TEXT))))))))))))","v":"-"}]
[{"$f":"IF(B5=BLK,TEXT,IF(B5=KAS,B5,IF(B5=LB_BERSIH,LBS,IF(B5=PENYU,PNY,IF(AND(B5=OPERA,COUNTIF(B$1:B5,B5)<O.O1),OPR_0&COUNTIF(B$1:B5,B5),IF(AND(B5=OPERA,COUNTIF(B$1:B5,B5)>O.O1),OPR_&COUNTIF(B$1:B5,B5),IF(AND(B5=INVES,COUNTIF(B$1:B5,B5)<O.O1),INV_0&COUNTIF(B$1:B5,B5),IF(AND(B5=INVES,COUNTIF(B$1:B5,B5)>O.O1),INV_&COUNTIF(B$1:B5,B5),IF(AND(B5=PENDA,COUNTIF(B$1:B5,B5)<O.O1),DNA_0&COUNTIF(B$1:B5,B5),IF(AND(B5=PENDA,COUNTIF(B$1:B5,B5)>O.O1),DNA_&COUNTIF(B$1:B5,B5),IF(AND(B5=LB_DTAHAN,COUNTIF(B$1:B5,B5)<O.O1),LBD_0&COUNTIF(B$1:B5,B5),IF(AND(B5=LB_DTAHAN,COUNTIF(B$1:B5,B5)>O.O1),LBD_&COUNTIF(B$1:B5,B5),TEXT))))))))))))","v":"-"},null,null,null,null,"ASET"]
[{"$f":"IF(B6=BLK,TEXT,IF(B6=KAS,B6,IF(B6=LB_BERSIH,LBS,IF(B6=PENYU,PNY,IF(AND(B6=OPERA,COUNTIF(B$1:B6,B6)<O.O1),OPR_0&COUNTIF(B$1:B6,B6),IF(AND(B6=OPERA,COUNTIF(B$1:B6,B6)>O.O1),OPR_&COUNTIF(B$1:B6,B6),IF(AND(B6=INVES,COUNTIF(B$1:B6,B6)<O.O1),INV_0&COUNTIF(B$1:B6,B6),IF(AND(B6=INVES,COUNTIF(B$1:B6,B6)>O.O1),INV_&COUNTIF(B$1:B6,B6),IF(AND(B6=PENDA,COUNTIF(B$1:B6,B6)<O.O1),DNA_0&COUNTIF(B$1:B6,B6),IF(AND(B6=PENDA,COUNTIF(B$1:B6,B6)>O.O1),DNA_&COUNTIF(B$1:B6,B6),IF(AND(B6=LB_DTAHAN,COUNTIF(B$1:B6,B6)<O.O1),LBD_0&COUNTIF(B$1:B6,B6),IF(AND(B6=LB_DTAHAN,COUNTIF(B$1:B6,B6)>O.O1),LBD_&COUNTIF(B$1:B6,B6),TEXT))))))))))))","v":"-"},null,null,null,null,"ASET LANCAR"]
[{"$f":"IF(B7=BLK,TEXT,IF(B7=KAS,B7,IF(B7=LB_BERSIH,LBS,IF(B7=PENYU,PNY,IF(AND(B7=OPERA,COUNTIF(B$1:B7,B7)<O.O1),OPR_0&COUNTIF(B$1:B7,B7),IF(AND(B7=OPERA,COUNTIF(B$1:B7,B7)>O.O1),OPR_&COUNTIF(B$1:B7,B7),IF(AND(B7=INVES,COUNTIF(B$1:B7,B7)<O.O1),INV_0&COUNTIF(B$1:B7,B7),IF(AND(B7=INVES,COUNTIF(B$1:B7,B7)>O.O1),INV_&COUNTIF(B$1:B7,B7),IF(AND(B7=PENDA,COUNTIF(B$1:B7,B7)<O.O1),DNA_0&COUNTIF(B$1:B7,B7),IF(AND(B7=PENDA,COUNTIF(B$1:B7,B7)>O.O1),DNA_&COUNTIF(B$1:B7,B7),IF(AND(B7=LB_DTAHAN,COUNTIF(B$1:B7,B7)<O.O1),LBD_0&COUNTIF(B$1:B7,B7),IF(AND(B7=LB_DTAHAN,COUNTIF(B$1:B7,B7)>O.O1),LBD_&COUNTIF(B$1:B7,B7),TEXT))))))))))))","v":"KAS"},"KAS","AKTIVA",null,null,"Kas & Setara Kas",null,540521097,844562963,1244562963]
[{"$f":"IF(B8=BLK,TEXT,IF(B8=KAS,B8,IF(B8=LB_BERSIH,LBS,IF(B8=PENYU,PNY,IF(AND(B8=OPERA,COUNTIF(B$1:B8,B8)<O.O1),OPR_0&COUNTIF(B$1:B8,B8),IF(AND(B8=OPERA,COUNTIF(B$1:B8,B8)>O.O1),OPR_&COUNTIF(B$1:B8,B8),IF(AND(B8=INVES,COUNTIF(B$1:B8,B8)<O.O1),INV_0&COUNTIF(B$1:B8,B8),IF(AND(B8=INVES,COUNTIF(B$1:B8,B8)>O.O1),INV_&COUNTIF(B$1:B8,B8),IF(AND(B8=PENDA,COUNTIF(B$1:B8,B8)<O.O1),DNA_0&COUNTIF(B$1:B8,B8),IF(AND(B8=PENDA,COUNTIF(B$1:B8,B8)>O.O1),DNA_&COUNTIF(B$1:B8,B8),IF(AND(B8=LB_DTAHAN,COUNTIF(B$1:B8,B8)<O.O1),LBD_0&COUNTIF(B$1:B8,B8),IF(AND(B8=LB_DTAHAN,COUNTIF(B$1:B8,B8)>O.O1),LBD_&COUNTIF(B$1:B8,B8),TEXT))))))))))))","v":"OPR-01"},"OPERASIONAL","AKTIVA",null,null,"Piutang Usaha",null,2315402899,2386402450,2585402450]
[{"$f":"IF(B9=BLK,TEXT,IF(B9=KAS,B9,IF(B9=LB_BERSIH,LBS,IF(B9=PENYU,PNY,IF(AND(B9=OPERA,COUNTIF(B$1:B9,B9)<O.O1),OPR_0&COUNTIF(B$1:B9,B9),IF(AND(B9=OPERA,COUNTIF(B$1:B9,B9)>O.O1),OPR_&COUNTIF(B$1:B9,B9),IF(AND(B9=INVES,COUNTIF(B$1:B9,B9)<O.O1),INV_0&COUNTIF(B$1:B9,B9),IF(AND(B9=INVES,COUNTIF(B$1:B9,B9)>O.O1),INV_&COUNTIF(B$1:B9,B9),IF(AND(B9=PENDA,COUNTIF(B$1:B9,B9)<O.O1),DNA_0&COUNTIF(B$1:B9,B9),IF(AND(B9=PENDA,COUNTIF(B$1:B9,B9)>O.O1),DNA_&COUNTIF(B$1:B9,B9),IF(AND(B9=LB_DTAHAN,COUNTIF(B$1:B9,B9)<O.O1),LBD_0&COUNTIF(B$1:B9,B9),IF(AND(B9=LB_DTAHAN,COUNTIF(B$1:B9,B9)>O.O1),LBD_&COUNTIF(B$1:B9,B9),TEXT))))))))))))","v":"OPR-02"},"OPERASIONAL","AKTIVA",null,null,"Piutang Lain-lain",null,92500650,51875000,101875000]
[{"$f":"IF(B10=BLK,TEXT,IF(B10=KAS,B10,IF(B10=LB_BERSIH,LBS,IF(B10=PENYU,PNY,IF(AND(B10=OPERA,COUNTIF(B$1:B10,B10)<O.O1),OPR_0&COUNTIF(B$1:B10,B10),IF(AND(B10=OPERA,COUNTIF(B$1:B10,B10)>O.O1),OPR_&COUNTIF(B$1:B10,B10),IF(AND(B10=INVES,COUNTIF(B$1:B10,B10)<O.O1),INV_0&COUNTIF(B$1:B10,B10),IF(AND(B10=INVES,COUNTIF(B$1:B10,B10)>O.O1),INV_&COUNTIF(B$1:B10,B10),IF(AND(B10=PENDA,COUNTIF(B$1:B10,B10)<O.O1),DNA_0&COUNTIF(B$1:B10,B10),IF(AND(B10=PENDA,COUNTIF(B$1:B10,B10)>O.O1),DNA_&COUNTIF(B$1:B10,B10),IF(AND(B10=LB_DTAHAN,COUNTIF(B$1:B10,B10)<O.O1),LBD_0&COUNTIF(B$1:B10,B10),IF(AND(B10=LB_DTAHAN,COUNTIF(B$1:B10,B10)>O.O1),LBD_&COUNTIF(B$1:B10,B10),TEXT))))))))))))","v":"OPR-03"},"OPERASIONAL","AKTIVA",null,null,"Persediaan",null,3507429049,3366894009,3766894009]
[{"$f":"IF(B11=BLK,TEXT,IF(B11=KAS,B11,IF(B11=LB_BERSIH,LBS,IF(B11=PENYU,PNY,IF(AND(B11=OPERA,COUNTIF(B$1:B11,B11)<O.O1),OPR_0&COUNTIF(B$1:B11,B11),IF(AND(B11=OPERA,COUNTIF(B$1:B11,B11)>O.O1),OPR_&COUNTIF(B$1:B11,B11),IF(AND(B11=INVES,COUNTIF(B$1:B11,B11)<O.O1),INV_0&COUNTIF(B$1:B11,B11),IF(AND(B11=INVES,COUNTIF(B$1:B11,B11)>O.O1),INV_&COUNTIF(B$1:B11,B11),IF(AND(B11=PENDA,COUNTIF(B$1:B11,B11)<O.O1),DNA_0&COUNTIF(B$1:B11,B11),IF(AND(B11=PENDA,COUNTIF(B$1:B11,B11)>O.O1),DNA_&COUNTIF(B$1:B11,B11),IF(AND(B11=LB_DTAHAN,COUNTIF(B$1:B11,B11)<O.O1),LBD_0&COUNTIF(B$1:B11,B11),IF(AND(B11=LB_DTAHAN,COUNTIF(B$1:B11,B11)>O.O1),LBD_&COUNTIF(B$1:B11,B11),TEXT))))))))))))","v":"OPR-04"},"OPERASIONAL","AKTIVA",null,null,"Uang Muka Biaya",null,467090919.52908325,607737515,607737515]
[{"$f":"IF(B12=BLK,TEXT,IF(B12=KAS,B12,IF(B12=LB_BERSIH,LBS,IF(B12=PENYU,PNY,IF(AND(B12=OPERA,COUNTIF(B$1:B12,B12)<O.O1),OPR_0&COUNTIF(B$1:B12,B12),IF(AND(B12=OPERA,COUNTIF(B$1:B12,B12)>O.O1),OPR_&COUNTIF(B$1:B12,B12),IF(AND(B12=INVES,COUNTIF(B$1:B12,B12)<O.O1),INV_0&COUNTIF(B$1:B12,B12),IF(AND(B12=INVES,COUNTIF(B$1:B12,B12)>O.O1),INV_&COUNTIF(B$1:B12,B12),IF(AND(B12=PENDA,COUNTIF(B$1:B12,B12)<O.O1),DNA_0&COUNTIF(B$1:B12,B12),IF(AND(B12=PENDA,COUNTIF(B$1:B12,B12)>O.O1),DNA_&COUNTIF(B$1:B12,B12),IF(AND(B12=LB_DTAHAN,COUNTIF(B$1:B12,B12)<O.O1),LBD_0&COUNTIF(B$1:B12,B12),IF(AND(B12=LB_DTAHAN,COUNTIF(B$1:B12,B12)>O.O1),LBD_&COUNTIF(B$1:B12,B12),TEXT))))))))))))","v":"OPR-05"},"OPERASIONAL","AKTIVA",null,null,"Uang Muka Pajak",null,288637883,196506707,196506707]
[{"$f":"IF(B13=BLK,TEXT,IF(B13=KAS,B13,IF(B13=LB_BERSIH,LBS,IF(B13=PENYU,PNY,IF(AND(B13=OPERA,COUNTIF(B$1:B13,B13)<O.O1),OPR_0&COUNTIF(B$1:B13,B13),IF(AND(B13=OPERA,COUNTIF(B$1:B13,B13)>O.O1),OPR_&COUNTIF(B$1:B13,B13),IF(AND(B13=INVES,COUNTIF(B$1:B13,B13)<O.O1),INV_0&COUNTIF(B$1:B13,B13),IF(AND(B13=INVES,COUNTIF(B$1:B13,B13)>O.O1),INV_&COUNTIF(B$1:B13,B13),IF(AND(B13=PENDA,COUNTIF(B$1:B13,B13)<O.O1),DNA_0&COUNTIF(B$1:B13,B13),IF(AND(B13=PENDA,COUNTIF(B$1:B13,B13)>O.O1),DNA_&COUNTIF(B$1:B13,B13),IF(AND(B13=LB_DTAHAN,COUNTIF(B$1:B13,B13)<O.O1),LBD_0&COUNTIF(B$1:B13,B13),IF(AND(B13=LB_DTAHAN,COUNTIF(B$1:B13,B13)>O.O1),LBD_&COUNTIF(B$1:B13,B13),TEXT))))))))))))","v":"-"},null,null,null,null,"ASET TETAP"]
[{"$f":"IF(B14=BLK,TEXT,IF(B14=KAS,B14,IF(B14=LB_BERSIH,LBS,IF(B14=PENYU,PNY,IF(AND(B14=OPERA,COUNTIF(B$1:B14,B14)<O.O1),OPR_0&COUNTIF(B$1:B14,B14),IF(AND(B14=OPERA,COUNTIF(B$1:B14,B14)>O.O1),OPR_&COUNTIF(B$1:B14,B14),IF(AND(B14=INVES,COUNTIF(B$1:B14,B14)<O.O1),INV_0&COUNTIF(B$1:B14,B14),IF(AND(B14=INVES,COUNTIF(B$1:B14,B14)>O.O1),INV_&COUNTIF(B$1:B14,B14),IF(AND(B14=PENDA,COUNTIF(B$1:B14,B14)<O.O1),DNA_0&COUNTIF(B$1:B14,B14),IF(AND(B14=PENDA,COUNTIF(B$1:B14,B14)>O.O1),DNA_&COUNTIF(B$1:B14,B14),IF(AND(B14=LB_DTAHAN,COUNTIF(B$1:B14,B14)<O.O1),LBD_0&COUNTIF(B$1:B14,B14),IF(AND(B14=LB_DTAHAN,COUNTIF(B$1:B14,B14)>O.O1),LBD_&COUNTIF(B$1:B14,B14),TEXT))))))))))))","v":"INV-01"},"INVESTASI","AKTIVA",null,null,"Perolehan Aktiva Tetap",null,35668384715,35668384715.300003,35668384715.300003]
[{"$f":"IF(B15=BLK,TEXT,IF(B15=KAS,B15,IF(B15=LB_BERSIH,LBS,IF(B15=PENYU,PNY,IF(AND(B15=OPERA,COUNTIF(B$1:B15,B15)<O.O1),OPR_0&COUNTIF(B$1:B15,B15),IF(AND(B15=OPERA,COUNTIF(B$1:B15,B15)>O.O1),OPR_&COUNTIF(B$1:B15,B15),IF(AND(B15=INVES,COUNTIF(B$1:B15,B15)<O.O1),INV_0&COUNTIF(B$1:B15,B15),IF(AND(B15=INVES,COUNTIF(B$1:B15,B15)>O.O1),INV_&COUNTIF(B$1:B15,B15),IF(AND(B15=PENDA,COUNTIF(B$1:B15,B15)<O.O1),DNA_0&COUNTIF(B$1:B15,B15),IF(AND(B15=PENDA,COUNTIF(B$1:B15,B15)>O.O1),DNA_&COUNTIF(B$1:B15,B15),IF(AND(B15=LB_DTAHAN,COUNTIF(B$1:B15,B15)<O.O1),LBD_0&COUNTIF(B$1:B15,B15),IF(AND(B15=LB_DTAHAN,COUNTIF(B$1:B15,B15)>O.O1),LBD_&COUNTIF(B$1:B15,B15),TEXT))))))))))))","v":"PNY"},"PENYUSUTAN","AKTIVA",null,null,"Akumulasi Penyusutan",null,-4425710157,-4528660434,-4631610711]
[{"$f":"IF(B16=BLK,TEXT,IF(B16=KAS,B16,IF(B16=LB_BERSIH,LBS,IF(B16=PENYU,PNY,IF(AND(B16=OPERA,COUNTIF(B$1:B16,B16)<O.O1),OPR_0&COUNTIF(B$1:B16,B16),IF(AND(B16=OPERA,COUNTIF(B$1:B16,B16)>O.O1),OPR_&COUNTIF(B$1:B16,B16),IF(AND(B16=INVES,COUNTIF(B$1:B16,B16)<O.O1),INV_0&COUNTIF(B$1:B16,B16),IF(AND(B16=INVES,COUNTIF(B$1:B16,B16)>O.O1),INV_&COUNTIF(B$1:B16,B16),IF(AND(B16=PENDA,COUNTIF(B$1:B16,B16)<O.O1),DNA_0&COUNTIF(B$1:B16,B16),IF(AND(B16=PENDA,COUNTIF(B$1:B16,B16)>O.O1),DNA_&COUNTIF(B$1:B16,B16),IF(AND(B16=LB_DTAHAN,COUNTIF(B$1:B16,B16)<O.O1),LBD_0&COUNTIF(B$1:B16,B16),IF(AND(B16=LB_DTAHAN,COUNTIF(B$1:B16,B16)>O.O1),LBD_&COUNTIF(B$1:B16,B16),TEXT))))))))))))","v":"-"},null,null,null,null,"ASET LAIN-LAIN"]
[{"$f":"IF(B17=BLK,TEXT,IF(B17=KAS,B17,IF(B17=LB_BERSIH,LBS,IF(B17=PENYU,PNY,IF(AND(B17=OPERA,COUNTIF(B$1:B17,B17)<O.O1),OPR_0&COUNTIF(B$1:B17,B17),IF(AND(B17=OPERA,COUNTIF(B$1:B17,B17)>O.O1),OPR_&COUNTIF(B$1:B17,B17),IF(AND(B17=INVES,COUNTIF(B$1:B17,B17)<O.O1),INV_0&COUNTIF(B$1:B17,B17),IF(AND(B17=INVES,COUNTIF(B$1:B17,B17)>O.O1),INV_&COUNTIF(B$1:B17,B17),IF(AND(B17=PENDA,COUNTIF(B$1:B17,B17)<O.O1),DNA_0&COUNTIF(B$1:B17,B17),IF(AND(B17=PENDA,COUNTIF(B$1:B17,B17)>O.O1),DNA_&COUNTIF(B$1:B17,B17),IF(AND(B17=LB_DTAHAN,COUNTIF(B$1:B17,B17)<O.O1),LBD_0&COUNTIF(B$1:B17,B17),IF(AND(B17=LB_DTAHAN,COUNTIF(B$1:B17,B17)>O.O1),LBD_&COUNTIF(B$1:B17,B17),TEXT))))))))))))","v":"INV-02"},"INVESTASI","AKTIVA",null,null,"Bangunan Dalam Proses",null,1100000000,1610000000,1710000000]
[{"$f":"IF(B18=BLK,TEXT,IF(B18=KAS,B18,IF(B18=LB_BERSIH,LBS,IF(B18=PENYU,PNY,IF(AND(B18=OPERA,COUNTIF(B$1:B18,B18)<O.O1),OPR_0&COUNTIF(B$1:B18,B18),IF(AND(B18=OPERA,COUNTIF(B$1:B18,B18)>O.O1),OPR_&COUNTIF(B$1:B18,B18),IF(AND(B18=INVES,COUNTIF(B$1:B18,B18)<O.O1),INV_0&COUNTIF(B$1:B18,B18),IF(AND(B18=INVES,COUNTIF(B$1:B18,B18)>O.O1),INV_&COUNTIF(B$1:B18,B18),IF(AND(B18=PENDA,COUNTIF(B$1:B18,B18)<O.O1),DNA_0&COUNTIF(B$1:B18,B18),IF(AND(B18=PENDA,COUNTIF(B$1:B18,B18)>O.O1),DNA_&COUNTIF(B$1:B18,B18),IF(AND(B18=LB_DTAHAN,COUNTIF(B$1:B18,B18)<O.O1),LBD_0&COUNTIF(B$1:B18,B18),IF(AND(B18=LB_DTAHAN,COUNTIF(B$1:B18,B18)>O.O1),LBD_&COUNTIF(B$1:B18,B18),TEXT))))))))))))","v":"OPR-06"},"OPERASIONAL","AKTIVA",null,null,"Beban Ditangguhkan",null,127958416,113122655.29999995,113122655.29999995]
[{"$f":"IF(B19=BLK,TEXT,IF(B19=KAS,B19,IF(B19=LB_BERSIH,LBS,IF(B19=PENYU,PNY,IF(AND(B19=OPERA,COUNTIF(B$1:B19,B19)<O.O1),OPR_0&COUNTIF(B$1:B19,B19),IF(AND(B19=OPERA,COUNTIF(B$1:B19,B19)>O.O1),OPR_&COUNTIF(B$1:B19,B19),IF(AND(B19=INVES,COUNTIF(B$1:B19,B19)<O.O1),INV_0&COUNTIF(B$1:B19,B19),IF(AND(B19=INVES,COUNTIF(B$1:B19,B19)>O.O1),INV_&COUNTIF(B$1:B19,B19),IF(AND(B19=PENDA,COUNTIF(B$1:B19,B19)<O.O1),DNA_0&COUNTIF(B$1:B19,B19),IF(AND(B19=PENDA,COUNTIF(B$1:B19,B19)>O.O1),DNA_&COUNTIF(B$1:B19,B19),IF(AND(B19=LB_DTAHAN,COUNTIF(B$1:B19,B19)<O.O1),LBD_0&COUNTIF(B$1:B19,B19),IF(AND(B19=LB_DTAHAN,COUNTIF(B$1:B19,B19)>O.O1),LBD_&COUNTIF(B$1:B19,B19),TEXT))))))))))))","v":"-"}]
[{"$f":"IF(B20=BLK,TEXT,IF(B20=KAS,B20,IF(B20=LB_BERSIH,LBS,IF(B20=PENYU,PNY,IF(AND(B20=OPERA,COUNTIF(B$1:B20,B20)<O.O1),OPR_0&COUNTIF(B$1:B20,B20),IF(AND(B20=OPERA,COUNTIF(B$1:B20,B20)>O.O1),OPR_&COUNTIF(B$1:B20,B20),IF(AND(B20=INVES,COUNTIF(B$1:B20,B20)<O.O1),INV_0&COUNTIF(B$1:B20,B20),IF(AND(B20=INVES,COUNTIF(B$1:B20,B20)>O.O1),INV_&COUNTIF(B$1:B20,B20),IF(AND(B20=PENDA,COUNTIF(B$1:B20,B20)<O.O1),DNA_0&COUNTIF(B$1:B20,B20),IF(AND(B20=PENDA,COUNTIF(B$1:B20,B20)>O.O1),DNA_&COUNTIF(B$1:B20,B20),IF(AND(B20=LB_DTAHAN,COUNTIF(B$1:B20,B20)<O.O1),LBD_0&COUNTIF(B$1:B20,B20),IF(AND(B20=LB_DTAHAN,COUNTIF(B$1:B20,B20)>O.O1),LBD_&COUNTIF(B$1:B20,B20),TEXT))))))))))))","v":"-"},null,null,null,null,"Total Aset",null,{"$f":"SUM(H4:H19)","v":39682215471.529083},{"$f":"SUM(I4:I19)","v":40316825580.600006},{"$f":"SUM(J4:J19)","v":41362875303.600006}]
[{"$f":"IF(B21=BLK,TEXT,IF(B21=KAS,B21,IF(B21=LB_BERSIH,LBS,IF(B21=PENYU,PNY,IF(AND(B21=OPERA,COUNTIF(B$1:B21,B21)<O.O1),OPR_0&COUNTIF(B$1:B21,B21),IF(AND(B21=OPERA,COUNTIF(B$1:B21,B21)>O.O1),OPR_&COUNTIF(B$1:B21,B21),IF(AND(B21=INVES,COUNTIF(B$1:B21,B21)<O.O1),INV_0&COUNTIF(B$1:B21,B21),IF(AND(B21=INVES,COUNTIF(B$1:B21,B21)>O.O1),INV_&COUNTIF(B$1:B21,B21),IF(AND(B21=PENDA,COUNTIF(B$1:B21,B21)<O.O1),DNA_0&COUNTIF(B$1:B21,B21),IF(AND(B21=PENDA,COUNTIF(B$1:B21,B21)>O.O1),DNA_&COUNTIF(B$1:B21,B21),IF(AND(B21=LB_DTAHAN,COUNTIF(B$1:B21,B21)<O.O1),LBD_0&COUNTIF(B$1:B21,B21),IF(AND(B21=LB_DTAHAN,COUNTIF(B$1:B21,B21)>O.O1),LBD_&COUNTIF(B$1:B21,B21),TEXT))))))))))))","v":"-"}]
[{"$f":"IF(B22=BLK,TEXT,IF(B22=KAS,B22,IF(B22=LB_BERSIH,LBS,IF(B22=PENYU,PNY,IF(AND(B22=OPERA,COUNTIF(B$1:B22,B22)<O.O1),OPR_0&COUNTIF(B$1:B22,B22),IF(AND(B22=OPERA,COUNTIF(B$1:B22,B22)>O.O1),OPR_&COUNTIF(B$1:B22,B22),IF(AND(B22=INVES,COUNTIF(B$1:B22,B22)<O.O1),INV_0&COUNTIF(B$1:B22,B22),IF(AND(B22=INVES,COUNTIF(B$1:B22,B22)>O.O1),INV_&COUNTIF(B$1:B22,B22),IF(AND(B22=PENDA,COUNTIF(B$1:B22,B22)<O.O1),DNA_0&COUNTIF(B$1:B22,B22),IF(AND(B22=PENDA,COUNTIF(B$1:B22,B22)>O.O1),DNA_&COUNTIF(B$1:B22,B22),IF(AND(B22=LB_DTAHAN,COUNTIF(B$1:B22,B22)<O.O1),LBD_0&COUNTIF(B$1:B22,B22),IF(AND(B22=LB_DTAHAN,COUNTIF(B$1:B22,B22)>O.O1),LBD_&COUNTIF(B$1:B22,B22),TEXT))))))))))))","v":"-"},null,null,null,null,"KEWAJIBAN"]
[{"$f":"IF(B23=BLK,TEXT,IF(B23=KAS,B23,IF(B23=LB_BERSIH,LBS,IF(B23=PENYU,PNY,IF(AND(B23=OPERA,COUNTIF(B$1:B23,B23)<O.O1),OPR_0&COUNTIF(B$1:B23,B23),IF(AND(B23=OPERA,COUNTIF(B$1:B23,B23)>O.O1),OPR_&COUNTIF(B$1:B23,B23),IF(AND(B23=INVES,COUNTIF(B$1:B23,B23)<O.O1),INV_0&COUNTIF(B$1:B23,B23),IF(AND(B23=INVES,COUNTIF(B$1:B23,B23)>O.O1),INV_&COUNTIF(B$1:B23,B23),IF(AND(B23=PENDA,COUNTIF(B$1:B23,B23)<O.O1),DNA_0&COUNTIF(B$1:B23,B23),IF(AND(B23=PENDA,COUNTIF(B$1:B23,B23)>O.O1),DNA_&COUNTIF(B$1:B23,B23),IF(AND(B23=LB_DTAHAN,COUNTIF(B$1:B23,B23)<O.O1),LBD_0&COUNTIF(B$1:B23,B23),IF(AND(B23=LB_DTAHAN,COUNTIF(B$1:B23,B23)>O.O1),LBD_&COUNTIF(B$1:B23,B23),TEXT))))))))))))","v":"-"},null,null,null,null,"KEWAJIBAN LANCAR"]
[{"$f":"IF(B24=BLK,TEXT,IF(B24=KAS,B24,IF(B24=LB_BERSIH,LBS,IF(B24=PENYU,PNY,IF(AND(B24=OPERA,COUNTIF(B$1:B24,B24)<O.O1),OPR_0&COUNTIF(B$1:B24,B24),IF(AND(B24=OPERA,COUNTIF(B$1:B24,B24)>O.O1),OPR_&COUNTIF(B$1:B24,B24),IF(AND(B24=INVES,COUNTIF(B$1:B24,B24)<O.O1),INV_0&COUNTIF(B$1:B24,B24),IF(AND(B24=INVES,COUNTIF(B$1:B24,B24)>O.O1),INV_&COUNTIF(B$1:B24,B24),IF(AND(B24=PENDA,COUNTIF(B$1:B24,B24)<O.O1),DNA_0&COUNTIF(B$1:B24,B24),IF(AND(B24=PENDA,COUNTIF(B$1:B24,B24)>O.O1),DNA_&COUNTIF(B$1:B24,B24),IF(AND(B24=LB_DTAHAN,COUNTIF(B$1:B24,B24)<O.O1),LBD_0&COUNTIF(B$1:B24,B24),IF(AND(B24=LB_DTAHAN,COUNTIF(B$1:B24,B24)>O.O1),LBD_&COUNTIF(B$1:B24,B24),TEXT))))))))))))","v":"OPR-07"},"OPERASIONAL","PASIVA",null,null,"Utang Usaha",null,2119950634,2237140137,2161440137]
[{"$f":"IF(B25=BLK,TEXT,IF(B25=KAS,B25,IF(B25=LB_BERSIH,LBS,IF(B25=PENYU,PNY,IF(AND(B25=OPERA,COUNTIF(B$1:B25,B25)<O.O1),OPR_0&COUNTIF(B$1:B25,B25),IF(AND(B25=OPERA,COUNTIF(B$1:B25,B25)>O.O1),OPR_&COUNTIF(B$1:B25,B25),IF(AND(B25=INVES,COUNTIF(B$1:B25,B25)<O.O1),INV_0&COUNTIF(B$1:B25,B25),IF(AND(B25=INVES,COUNTIF(B$1:B25,B25)>O.O1),INV_&COUNTIF(B$1:B25,B25),IF(AND(B25=PENDA,COUNTIF(B$1:B25,B25)<O.O1),DNA_0&COUNTIF(B$1:B25,B25),IF(AND(B25=PENDA,COUNTIF(B$1:B25,B25)>O.O1),DNA_&COUNTIF(B$1:B25,B25),IF(AND(B25=LB_DTAHAN,COUNTIF(B$1:B25,B25)<O.O1),LBD_0&COUNTIF(B$1:B25,B25),IF(AND(B25=LB_DTAHAN,COUNTIF(B$1:B25,B25)>O.O1),LBD_&COUNTIF(B$1:B25,B25),TEXT))))))))))))","v":"OPR-08"},"OPERASIONAL","PASIVA",null,null,"Utang Pajak",null,72650202,83750291,82672298.840400696]
[{"$f":"IF(B26=BLK,TEXT,IF(B26=KAS,B26,IF(B26=LB_BERSIH,LBS,IF(B26=PENYU,PNY,IF(AND(B26=OPERA,COUNTIF(B$1:B26,B26)<O.O1),OPR_0&COUNTIF(B$1:B26,B26),IF(AND(B26=OPERA,COUNTIF(B$1:B26,B26)>O.O1),OPR_&COUNTIF(B$1:B26,B26),IF(AND(B26=INVES,COUNTIF(B$1:B26,B26)<O.O1),INV_0&COUNTIF(B$1:B26,B26),IF(AND(B26=INVES,COUNTIF(B$1:B26,B26)>O.O1),INV_&COUNTIF(B$1:B26,B26),IF(AND(B26=PENDA,COUNTIF(B$1:B26,B26)<O.O1),DNA_0&COUNTIF(B$1:B26,B26),IF(AND(B26=PENDA,COUNTIF(B$1:B26,B26)>O.O1),DNA_&COUNTIF(B$1:B26,B26),IF(AND(B26=LB_DTAHAN,COUNTIF(B$1:B26,B26)<O.O1),LBD_0&COUNTIF(B$1:B26,B26),IF(AND(B26=LB_DTAHAN,COUNTIF(B$1:B26,B26)>O.O1),LBD_&COUNTIF(B$1:B26,B26),TEXT))))))))))))","v":"OPR-09"},"OPERASIONAL","PASIVA",null,null,"Utang Jangka Pendek Lainnya",null,352649102,130508468,127558191]
[{"$f":"IF(B27=BLK,TEXT,IF(B27=KAS,B27,IF(B27=LB_BERSIH,LBS,IF(B27=PENYU,PNY,IF(AND(B27=OPERA,COUNTIF(B$1:B27,B27)<O.O1),OPR_0&COUNTIF(B$1:B27,B27),IF(AND(B27=OPERA,COUNTIF(B$1:B27,B27)>O.O1),OPR_&COUNTIF(B$1:B27,B27),IF(AND(B27=INVES,COUNTIF(B$1:B27,B27)<O.O1),INV_0&COUNTIF(B$1:B27,B27),IF(AND(B27=INVES,COUNTIF(B$1:B27,B27)>O.O1),INV_&COUNTIF(B$1:B27,B27),IF(AND(B27=PENDA,COUNTIF(B$1:B27,B27)<O.O1),DNA_0&COUNTIF(B$1:B27,B27),IF(AND(B27=PENDA,COUNTIF(B$1:B27,B27)>O.O1),DNA_&COUNTIF(B$1:B27,B27),IF(AND(B27=LB_DTAHAN,COUNTIF(B$1:B27,B27)<O.O1),LBD_0&COUNTIF(B$1:B27,B27),IF(AND(B27=LB_DTAHAN,COUNTIF(B$1:B27,B27)>O.O1),LBD_&COUNTIF(B$1:B27,B27),TEXT))))))))))))","v":"-"},null,null,null,null,"KEWAJIBAN JANGKA PANJANG"]
[{"$f":"IF(B28=BLK,TEXT,IF(B28=KAS,B28,IF(B28=LB_BERSIH,LBS,IF(B28=PENYU,PNY,IF(AND(B28=OPERA,COUNTIF(B$1:B28,B28)<O.O1),OPR_0&COUNTIF(B$1:B28,B28),IF(AND(B28=OPERA,COUNTIF(B$1:B28,B28)>O.O1),OPR_&COUNTIF(B$1:B28,B28),IF(AND(B28=INVES,COUNTIF(B$1:B28,B28)<O.O1),INV_0&COUNTIF(B$1:B28,B28),IF(AND(B28=INVES,COUNTIF(B$1:B28,B28)>O.O1),INV_&COUNTIF(B$1:B28,B28),IF(AND(B28=PENDA,COUNTIF(B$1:B28,B28)<O.O1),DNA_0&COUNTIF(B$1:B28,B28),IF(AND(B28=PENDA,COUNTIF(B$1:B28,B28)>O.O1),DNA_&COUNTIF(B$1:B28,B28),IF(AND(B28=LB_DTAHAN,COUNTIF(B$1:B28,B28)<O.O1),LBD_0&COUNTIF(B$1:B28,B28),IF(AND(B28=LB_DTAHAN,COUNTIF(B$1:B28,B28)>O.O1),LBD_&COUNTIF(B$1:B28,B28),TEXT))))))))))))","v":"DNA-01"},"PENDANAAN","PASIVA",null,null,"Utang Bank",null,2179069752.1126938,1401580140.4440041,812117578.28800607]
[{"$f":"IF(B29=BLK,TEXT,IF(B29=KAS,B29,IF(B29=LB_BERSIH,LBS,IF(B29=PENYU,PNY,IF(AND(B29=OPERA,COUNTIF(B$1:B29,B29)<O.O1),OPR_0&COUNTIF(B$1:B29,B29),IF(AND(B29=OPERA,COUNTIF(B$1:B29,B29)>O.O1),OPR_&COUNTIF(B$1:B29,B29),IF(AND(B29=INVES,COUNTIF(B$1:B29,B29)<O.O1),INV_0&COUNTIF(B$1:B29,B29),IF(AND(B29=INVES,COUNTIF(B$1:B29,B29)>O.O1),INV_&COUNTIF(B$1:B29,B29),IF(AND(B29=PENDA,COUNTIF(B$1:B29,B29)<O.O1),DNA_0&COUNTIF(B$1:B29,B29),IF(AND(B29=PENDA,COUNTIF(B$1:B29,B29)>O.O1),DNA_&COUNTIF(B$1:B29,B29),IF(AND(B29=LB_DTAHAN,COUNTIF(B$1:B29,B29)<O.O1),LBD_0&COUNTIF(B$1:B29,B29),IF(AND(B29=LB_DTAHAN,COUNTIF(B$1:B29,B29)>O.O1),LBD_&COUNTIF(B$1:B29,B29),TEXT))))))))))))","v":"DNA-02"},"PENDANAAN","PASIVA",null,null,"Utang Komisaris",null,418538300,560610208.42401004,560610208.42401004]
[{"$f":"IF(B30=BLK,TEXT,IF(B30=KAS,B30,IF(B30=LB_BERSIH,LBS,IF(B30=PENYU,PNY,IF(AND(B30=OPERA,COUNTIF(B$1:B30,B30)<O.O1),OPR_0&COUNTIF(B$1:B30,B30),IF(AND(B30=OPERA,COUNTIF(B$1:B30,B30)>O.O1),OPR_&COUNTIF(B$1:B30,B30),IF(AND(B30=INVES,COUNTIF(B$1:B30,B30)<O.O1),INV_0&COUNTIF(B$1:B30,B30),IF(AND(B30=INVES,COUNTIF(B$1:B30,B30)>O.O1),INV_&COUNTIF(B$1:B30,B30),IF(AND(B30=PENDA,COUNTIF(B$1:B30,B30)<O.O1),DNA_0&COUNTIF(B$1:B30,B30),IF(AND(B30=PENDA,COUNTIF(B$1:B30,B30)>O.O1),DNA_&COUNTIF(B$1:B30,B30),IF(AND(B30=LB_DTAHAN,COUNTIF(B$1:B30,B30)<O.O1),LBD_0&COUNTIF(B$1:B30,B30),IF(AND(B30=LB_DTAHAN,COUNTIF(B$1:B30,B30)>O.O1),LBD_&COUNTIF(B$1:B30,B30),TEXT))))))))))))","v":"DNA-03"},"PENDANAAN","PASIVA",null,null,"Utang Jangka Panjang Lainnya",null,298396400,416934700,416934700]
[{"$f":"IF(B31=BLK,TEXT,IF(B31=KAS,B31,IF(B31=LB_BERSIH,LBS,IF(B31=PENYU,PNY,IF(AND(B31=OPERA,COUNTIF(B$1:B31,B31)<O.O1),OPR_0&COUNTIF(B$1:B31,B31),IF(AND(B31=OPERA,COUNTIF(B$1:B31,B31)>O.O1),OPR_&COUNTIF(B$1:B31,B31),IF(AND(B31=INVES,COUNTIF(B$1:B31,B31)<O.O1),INV_0&COUNTIF(B$1:B31,B31),IF(AND(B31=INVES,COUNTIF(B$1:B31,B31)>O.O1),INV_&COUNTIF(B$1:B31,B31),IF(AND(B31=PENDA,COUNTIF(B$1:B31,B31)<O.O1),DNA_0&COUNTIF(B$1:B31,B31),IF(AND(B31=PENDA,COUNTIF(B$1:B31,B31)>O.O1),DNA_&COUNTIF(B$1:B31,B31),IF(AND(B31=LB_DTAHAN,COUNTIF(B$1:B31,B31)<O.O1),LBD_0&COUNTIF(B$1:B31,B31),IF(AND(B31=LB_DTAHAN,COUNTIF(B$1:B31,B31)>O.O1),LBD_&COUNTIF(B$1:B31,B31),TEXT))))))))))))","v":"-"}]
[{"$f":"IF(B32=BLK,TEXT,IF(B32=KAS,B32,IF(B32=LB_BERSIH,LBS,IF(B32=PENYU,PNY,IF(AND(B32=OPERA,COUNTIF(B$1:B32,B32)<O.O1),OPR_0&COUNTIF(B$1:B32,B32),IF(AND(B32=OPERA,COUNTIF(B$1:B32,B32)>O.O1),OPR_&COUNTIF(B$1:B32,B32),IF(AND(B32=INVES,COUNTIF(B$1:B32,B32)<O.O1),INV_0&COUNTIF(B$1:B32,B32),IF(AND(B32=INVES,COUNTIF(B$1:B32,B32)>O.O1),INV_&COUNTIF(B$1:B32,B32),IF(AND(B32=PENDA,COUNTIF(B$1:B32,B32)<O.O1),DNA_0&COUNTIF(B$1:B32,B32),IF(AND(B32=PENDA,COUNTIF(B$1:B32,B32)>O.O1),DNA_&COUNTIF(B$1:B32,B32),IF(AND(B32=LB_DTAHAN,COUNTIF(B$1:B32,B32)<O.O1),LBD_0&COUNTIF(B$1:B32,B32),IF(AND(B32=LB_DTAHAN,COUNTIF(B$1:B32,B32)>O.O1),LBD_&COUNTIF(B$1:B32,B32),TEXT))))))))))))","v":"-"},null,null,null,null,"Total Kewajiban",null,{"$f":"SUM(H21:H31)","v":5441254390.1126938},{"$f":"SUM(I21:I31)","v":4830523944.8680143},{"$f":"SUM(J21:J31)","v":4161333113.5524168}]
[{"$f":"IF(B33=BLK,TEXT,IF(B33=KAS,B33,IF(B33=LB_BERSIH,LBS,IF(B33=PENYU,PNY,IF(AND(B33=OPERA,COUNTIF(B$1:B33,B33)<O.O1),OPR_0&COUNTIF(B$1:B33,B33),IF(AND(B33=OPERA,COUNTIF(B$1:B33,B33)>O.O1),OPR_&COUNTIF(B$1:B33,B33),IF(AND(B33=INVES,COUNTIF(B$1:B33,B33)<O.O1),INV_0&COUNTIF(B$1:B33,B33),IF(AND(B33=INVES,COUNTIF(B$1:B33,B33)>O.O1),INV_&COUNTIF(B$1:B33,B33),IF(AND(B33=PENDA,COUNTIF(B$1:B33,B33)<O.O1),DNA_0&COUNTIF(B$1:B33,B33),IF(AND(B33=PENDA,COUNTIF(B$1:B33,B33)>O.O1),DNA_&COUNTIF(B$1:B33,B33),IF(AND(B33=LB_DTAHAN,COUNTIF(B$1:B33,B33)<O.O1),LBD_0&COUNTIF(B$1:B33,B33),IF(AND(B33=LB_DTAHAN,COUNTIF(B$1:B33,B33)>O.O1),LBD_&COUNTIF(B$1:B33,B33),TEXT))))))))))))","v":"-"}]
[{"$f":"IF(B34=BLK,TEXT,IF(B34=KAS,B34,IF(B34=LB_BERSIH,LBS,IF(B34=PENYU,PNY,IF(AND(B34=OPERA,COUNTIF(B$1:B34,B34)<O.O1),OPR_0&COUNTIF(B$1:B34,B34),IF(AND(B34=OPERA,COUNTIF(B$1:B34,B34)>O.O1),OPR_&COUNTIF(B$1:B34,B34),IF(AND(B34=INVES,COUNTIF(B$1:B34,B34)<O.O1),INV_0&COUNTIF(B$1:B34,B34),IF(AND(B34=INVES,COUNTIF(B$1:B34,B34)>O.O1),INV_&COUNTIF(B$1:B34,B34),IF(AND(B34=PENDA,COUNTIF(B$1:B34,B34)<O.O1),DNA_0&COUNTIF(B$1:B34,B34),IF(AND(B34=PENDA,COUNTIF(B$1:B34,B34)>O.O1),DNA_&COUNTIF(B$1:B34,B34),IF(AND(B34=LB_DTAHAN,COUNTIF(B$1:B34,B34)<O.O1),LBD_0&COUNTIF(B$1:B34,B34),IF(AND(B34=LB_DTAHAN,COUNTIF(B$1:B34,B34)>O.O1),LBD_&COUNTIF(B$1:B34,B34),TEXT))))))))))))","v":"-"},null,null,null,null,"EKUITAS"]
[{"$f":"IF(B35=BLK,TEXT,IF(B35=KAS,B35,IF(B35=LB_BERSIH,LBS,IF(B35=PENYU,PNY,IF(AND(B35=OPERA,COUNTIF(B$1:B35,B35)<O.O1),OPR_0&COUNTIF(B$1:B35,B35),IF(AND(B35=OPERA,COUNTIF(B$1:B35,B35)>O.O1),OPR_&COUNTIF(B$1:B35,B35),IF(AND(B35=INVES,COUNTIF(B$1:B35,B35)<O.O1),INV_0&COUNTIF(B$1:B35,B35),IF(AND(B35=INVES,COUNTIF(B$1:B35,B35)>O.O1),INV_&COUNTIF(B$1:B35,B35),IF(AND(B35=PENDA,COUNTIF(B$1:B35,B35)<O.O1),DNA_0&COUNTIF(B$1:B35,B35),IF(AND(B35=PENDA,COUNTIF(B$1:B35,B35)>O.O1),DNA_&COUNTIF(B$1:B35,B35),IF(AND(B35=LB_DTAHAN,COUNTIF(B$1:B35,B35)<O.O1),LBD_0&COUNTIF(B$1:B35,B35),IF(AND(B35=LB_DTAHAN,COUNTIF(B$1:B35,B35)>O.O1),LBD_&COUNTIF(B$1:B35,B35),TEXT))))))))))))","v":"DNA-04"},"PENDANAAN","PASIVA",null,null,"Modal Saham",null,32000000000,32000000000,32000000000]
[{"$f":"IF(B36=BLK,TEXT,IF(B36=KAS,B36,IF(B36=LB_BERSIH,LBS,IF(B36=PENYU,PNY,IF(AND(B36=OPERA,COUNTIF(B$1:B36,B36)<O.O1),OPR_0&COUNTIF(B$1:B36,B36),IF(AND(B36=OPERA,COUNTIF(B$1:B36,B36)>O.O1),OPR_&COUNTIF(B$1:B36,B36),IF(AND(B36=INVES,COUNTIF(B$1:B36,B36)<O.O1),INV_0&COUNTIF(B$1:B36,B36),IF(AND(B36=INVES,COUNTIF(B$1:B36,B36)>O.O1),INV_&COUNTIF(B$1:B36,B36),IF(AND(B36=PENDA,COUNTIF(B$1:B36,B36)<O.O1),DNA_0&COUNTIF(B$1:B36,B36),IF(AND(B36=PENDA,COUNTIF(B$1:B36,B36)>O.O1),DNA_&COUNTIF(B$1:B36,B36),IF(AND(B36=LB_DTAHAN,COUNTIF(B$1:B36,B36)<O.O1),LBD_0&COUNTIF(B$1:B36,B36),IF(AND(B36=LB_DTAHAN,COUNTIF(B$1:B36,B36)>O.O1),LBD_&COUNTIF(B$1:B36,B36),TEXT))))))))))))","v":"LBD-01"},"LABA DITAHAN","PASIVA",null,null,"Laba Ditahan",null,779982674.07800293,2240961081.4163923,3486301635.7319922]
[{"$f":"IF(B37=BLK,TEXT,IF(B37=KAS,B37,IF(B37=LB_BERSIH,LBS,IF(B37=PENYU,PNY,IF(AND(B37=OPERA,COUNTIF(B$1:B37,B37)<O.O1),OPR_0&COUNTIF(B$1:B37,B37),IF(AND(B37=OPERA,COUNTIF(B$1:B37,B37)>O.O1),OPR_&COUNTIF(B$1:B37,B37),IF(AND(B37=INVES,COUNTIF(B$1:B37,B37)<O.O1),INV_0&COUNTIF(B$1:B37,B37),IF(AND(B37=INVES,COUNTIF(B$1:B37,B37)>O.O1),INV_&COUNTIF(B$1:B37,B37),IF(AND(B37=PENDA,COUNTIF(B$1:B37,B37)<O.O1),DNA_0&COUNTIF(B$1:B37,B37),IF(AND(B37=PENDA,COUNTIF(B$1:B37,B37)>O.O1),DNA_&COUNTIF(B$1:B37,B37),IF(AND(B37=LB_DTAHAN,COUNTIF(B$1:B37,B37)<O.O1),LBD_0&COUNTIF(B$1:B37,B37),IF(AND(B37=LB_DTAHAN,COUNTIF(B$1:B37,B37)>O.O1),LBD_&COUNTIF(B$1:B37,B37),TEXT))))))))))))","v":"LBD-02"},"LABA DITAHAN","PASIVA",null,null,"Laba Bersih",null,{"$f":"H73","v":1460978407.3383896},{"$f":"I73","v":1245340554.3155999},{"$f":"J73","v":1715240554.3155999}]
[{"$f":"IF(B38=BLK,TEXT,IF(B38=KAS,B38,IF(B38=LB_BERSIH,LBS,IF(B38=PENYU,PNY,IF(AND(B38=OPERA,COUNTIF(B$1:B38,B38)<O.O1),OPR_0&COUNTIF(B$1:B38,B38),IF(AND(B38=OPERA,COUNTIF(B$1:B38,B38)>O.O1),OPR_&COUNTIF(B$1:B38,B38),IF(AND(B38=INVES,COUNTIF(B$1:B38,B38)<O.O1),INV_0&COUNTIF(B$1:B38,B38),IF(AND(B38=INVES,COUNTIF(B$1:B38,B38)>O.O1),INV_&COUNTIF(B$1:B38,B38),IF(AND(B38=PENDA,COUNTIF(B$1:B38,B38)<O.O1),DNA_0&COUNTIF(B$1:B38,B38),IF(AND(B38=PENDA,COUNTIF(B$1:B38,B38)>O.O1),DNA_&COUNTIF(B$1:B38,B38),IF(AND(B38=LB_DTAHAN,COUNTIF(B$1:B38,B38)<O.O1),LBD_0&COUNTIF(B$1:B38,B38),IF(AND(B38=LB_DTAHAN,COUNTIF(B$1:B38,B38)>O.O1),LBD_&COUNTIF(B$1:B38,B38),TEXT))))))))))))","v":"-"}]
[{"$f":"IF(B39=BLK,TEXT,IF(B39=KAS,B39,IF(B39=LB_BERSIH,LBS,IF(B39=PENYU,PNY,IF(AND(B39=OPERA,COUNTIF(B$1:B39,B39)<O.O1),OPR_0&COUNTIF(B$1:B39,B39),IF(AND(B39=OPERA,COUNTIF(B$1:B39,B39)>O.O1),OPR_&COUNTIF(B$1:B39,B39),IF(AND(B39=INVES,COUNTIF(B$1:B39,B39)<O.O1),INV_0&COUNTIF(B$1:B39,B39),IF(AND(B39=INVES,COUNTIF(B$1:B39,B39)>O.O1),INV_&COUNTIF(B$1:B39,B39),IF(AND(B39=PENDA,COUNTIF(B$1:B39,B39)<O.O1),DNA_0&COUNTIF(B$1:B39,B39),IF(AND(B39=PENDA,COUNTIF(B$1:B39,B39)>O.O1),DNA_&COUNTIF(B$1:B39,B39),IF(AND(B39=LB_DTAHAN,COUNTIF(B$1:B39,B39)<O.O1),LBD_0&COUNTIF(B$1:B39,B39),IF(AND(B39=LB_DTAHAN,COUNTIF(B$1:B39,B39)>O.O1),LBD_&COUNTIF(B$1:B39,B39),TEXT))))))))))))","v":"-"},null,null,null,null,"Total Ekuitas",null,{"$f":"SUM(H33:H38)","v":34240961081.416393},{"$f":"SUM(I33:I38)","v":35486301635.731995},{"$f":"SUM(J33:J38)","v":37201542190.047592}]
[{"$f":"IF(B40=BLK,TEXT,IF(B40=KAS,B40,IF(B40=LB_BERSIH,LBS,IF(B40=PENYU,PNY,IF(AND(B40=OPERA,COUNTIF(B$1:B40,B40)<O.O1),OPR_0&COUNTIF(B$1:B40,B40),IF(AND(B40=OPERA,COUNTIF(B$1:B40,B40)>O.O1),OPR_&COUNTIF(B$1:B40,B40),IF(AND(B40=INVES,COUNTIF(B$1:B40,B40)<O.O1),INV_0&COUNTIF(B$1:B40,B40),IF(AND(B40=INVES,COUNTIF(B$1:B40,B40)>O.O1),INV_&COUNTIF(B$1:B40,B40),IF(AND(B40=PENDA,COUNTIF(B$1:B40,B40)<O.O1),DNA_0&COUNTIF(B$1:B40,B40),IF(AND(B40=PENDA,COUNTIF(B$1:B40,B40)>O.O1),DNA_&COUNTIF(B$1:B40,B40),IF(AND(B40=LB_DTAHAN,COUNTIF(B$1:B40,B40)<O.O1),LBD_0&COUNTIF(B$1:B40,B40),IF(AND(B40=LB_DTAHAN,COUNTIF(B$1:B40,B40)>O.O1),LBD_&COUNTIF(B$1:B40,B40),TEXT))))))))))))","v":"-"},null,null,null,null,"Total Liabilitas & Ekuitas",null,{"$f":"H32+H39","v":39682215471.529083},{"$f":"I32+I39","v":40316825580.600006},{"$f":"J32+J39","v":41362875303.600006}]
[{"$f":"IF(B41=BLK,TEXT,IF(B41=KAS,B41,IF(B41=LB_BERSIH,LBS,IF(B41=PENYU,PNY,IF(AND(B41=OPERA,COUNTIF(B$1:B41,B41)<O.O1),OPR_0&COUNTIF(B$1:B41,B41),IF(AND(B41=OPERA,COUNTIF(B$1:B41,B41)>O.O1),OPR_&COUNTIF(B$1:B41,B41),IF(AND(B41=INVES,COUNTIF(B$1:B41,B41)<O.O1),INV_0&COUNTIF(B$1:B41,B41),IF(AND(B41=INVES,COUNTIF(B$1:B41,B41)>O.O1),INV_&COUNTIF(B$1:B41,B41),IF(AND(B41=PENDA,COUNTIF(B$1:B41,B41)<O.O1),DNA_0&COUNTIF(B$1:B41,B41),IF(AND(B41=PENDA,COUNTIF(B$1:B41,B41)>O.O1),DNA_&COUNTIF(B$1:B41,B41),IF(AND(B41=LB_DTAHAN,COUNTIF(B$1:B41,B41)<O.O1),LBD_0&COUNTIF(B$1:B41,B41),IF(AND(B41=LB_DTAHAN,COUNTIF(B$1:B41,B41)>O.O1),LBD_&COUNTIF(B$1:B41,B41),TEXT))))))))))))","v":"-"}]
[{"$f":"IF(B42=BLK,TEXT,IF(B42=KAS,B42,IF(B42=LB_BERSIH,LBS,IF(B42=PENYU,PNY,IF(AND(B42=OPERA,COUNTIF(B$1:B42,B42)<O.O1),OPR_0&COUNTIF(B$1:B42,B42),IF(AND(B42=OPERA,COUNTIF(B$1:B42,B42)>O.O1),OPR_&COUNTIF(B$1:B42,B42),IF(AND(B42=INVES,COUNTIF(B$1:B42,B42)<O.O1),INV_0&COUNTIF(B$1:B42,B42),IF(AND(B42=INVES,COUNTIF(B$1:B42,B42)>O.O1),INV_&COUNTIF(B$1:B42,B42),IF(AND(B42=PENDA,COUNTIF(B$1:B42,B42)<O.O1),DNA_0&COUNTIF(B$1:B42,B42),IF(AND(B42=PENDA,COUNTIF(B$1:B42,B42)>O.O1),DNA_&COUNTIF(B$1:B42,B42),IF(AND(B42=LB_DTAHAN,COUNTIF(B$1:B42,B42)<O.O1),LBD_0&COUNTIF(B$1:B42,B42),IF(AND(B42=LB_DTAHAN,COUNTIF(B$1:B42,B42)>O.O1),LBD_&COUNTIF(B$1:B42,B42),TEXT))))))))))))","v":"-"},null,null,null,null,null,"Balance ",{"$f":"H20-H40","v":0},{"$f":"I20-I40","v":0},{"$f":"J20-J40","v":0}]
[{"$f":"IF(B43=BLK,TEXT,IF(B43=KAS,B43,IF(B43=LB_BERSIH,LBS,IF(B43=PENYU,PNY,IF(AND(B43=OPERA,COUNTIF(B$1:B43,B43)<O.O1),OPR_0&COUNTIF(B$1:B43,B43),IF(AND(B43=OPERA,COUNTIF(B$1:B43,B43)>O.O1),OPR_&COUNTIF(B$1:B43,B43),IF(AND(B43=INVES,COUNTIF(B$1:B43,B43)<O.O1),INV_0&COUNTIF(B$1:B43,B43),IF(AND(B43=INVES,COUNTIF(B$1:B43,B43)>O.O1),INV_&COUNTIF(B$1:B43,B43),IF(AND(B43=PENDA,COUNTIF(B$1:B43,B43)<O.O1),DNA_0&COUNTIF(B$1:B43,B43),IF(AND(B43=PENDA,COUNTIF(B$1:B43,B43)>O.O1),DNA_&COUNTIF(B$1:B43,B43),IF(AND(B43=LB_DTAHAN,COUNTIF(B$1:B43,B43)<O.O1),LBD_0&COUNTIF(B$1:B43,B43),IF(AND(B43=LB_DTAHAN,COUNTIF(B$1:B43,B43)>O.O1),LBD_&COUNTIF(B$1:B43,B43),TEXT))))))))))))","v":"-"}]
[{"$f":"IF(B44=BLK,TEXT,IF(B44=KAS,B44,IF(B44=LB_BERSIH,LBS,IF(B44=PENYU,PNY,IF(AND(B44=OPERA,COUNTIF(B$1:B44,B44)<O.O1),OPR_0&COUNTIF(B$1:B44,B44),IF(AND(B44=OPERA,COUNTIF(B$1:B44,B44)>O.O1),OPR_&COUNTIF(B$1:B44,B44),IF(AND(B44=INVES,COUNTIF(B$1:B44,B44)<O.O1),INV_0&COUNTIF(B$1:B44,B44),IF(AND(B44=INVES,COUNTIF(B$1:B44,B44)>O.O1),INV_&COUNTIF(B$1:B44,B44),IF(AND(B44=PENDA,COUNTIF(B$1:B44,B44)<O.O1),DNA_0&COUNTIF(B$1:B44,B44),IF(AND(B44=PENDA,COUNTIF(B$1:B44,B44)>O.O1),DNA_&COUNTIF(B$1:B44,B44),IF(AND(B44=LB_DTAHAN,COUNTIF(B$1:B44,B44)<O.O1),LBD_0&COUNTIF(B$1:B44,B44),IF(AND(B44=LB_DTAHAN,COUNTIF(B$1:B44,B44)>O.O1),LBD_&COUNTIF(B$1:B44,B44),TEXT))))))))))))","v":"-"},null,null,null,"LAPORAN LABA RUGI"]
[{"$f":"IF(B45=BLK,TEXT,IF(B45=KAS,B45,IF(B45=LB_BERSIH,LBS,IF(B45=PENYU,PNY,IF(AND(B45=OPERA,COUNTIF(B$1:B45,B45)<O.O1),OPR_0&COUNTIF(B$1:B45,B45),IF(AND(B45=OPERA,COUNTIF(B$1:B45,B45)>O.O1),OPR_&COUNTIF(B$1:B45,B45),IF(AND(B45=INVES,COUNTIF(B$1:B45,B45)<O.O1),INV_0&COUNTIF(B$1:B45,B45),IF(AND(B45=INVES,COUNTIF(B$1:B45,B45)>O.O1),INV_&COUNTIF(B$1:B45,B45),IF(AND(B45=PENDA,COUNTIF(B$1:B45,B45)<O.O1),DNA_0&COUNTIF(B$1:B45,B45),IF(AND(B45=PENDA,COUNTIF(B$1:B45,B45)>O.O1),DNA_&COUNTIF(B$1:B45,B45),IF(AND(B45=LB_DTAHAN,COUNTIF(B$1:B45,B45)<O.O1),LBD_0&COUNTIF(B$1:B45,B45),IF(AND(B45=LB_DTAHAN,COUNTIF(B$1:B45,B45)>O.O1),LBD_&COUNTIF(B$1:B45,B45),TEXT))))))))))))","v":"-"},null,null,null,"POS-POS",null,null,{"$f":"Period_1","v":"Tahun 2015"},{"$f":"Period_2","v":"Tahun 2016"},{"$f":"Period_3","v":"Tahun 2017"}]
[]
[{"$f":"IF(B47=BLK,TEXT,IF(B47=KAS,B47,IF(B47=LB_BERSIH,LBS,IF(B47=PENYU,PNY,IF(AND(B47=OPERA,COUNTIF(B$1:B47,B47)<O.O1),OPR_0&COUNTIF(B$1:B47,B47),IF(AND(B47=OPERA,COUNTIF(B$1:B47,B47)>O.O1),OPR_&COUNTIF(B$1:B47,B47),IF(AND(B47=INVES,COUNTIF(B$1:B47,B47)<O.O1),INV_0&COUNTIF(B$1:B47,B47),IF(AND(B47=INVES,COUNTIF(B$1:B47,B47)>O.O1),INV_&COUNTIF(B$1:B47,B47),IF(AND(B47=PENDA,COUNTIF(B$1:B47,B47)<O.O1),DNA_0&COUNTIF(B$1:B47,B47),IF(AND(B47=PENDA,COUNTIF(B$1:B47,B47)>O.O1),DNA_&COUNTIF(B$1:B47,B47),IF(AND(B47=LB_DTAHAN,COUNTIF(B$1:B47,B47)<O.O1),LBD_0&COUNTIF(B$1:B47,B47),IF(AND(B47=LB_DTAHAN,COUNTIF(B$1:B47,B47)>O.O1),LBD_&COUNTIF(B$1:B47,B47),TEXT))))))))))))","v":"-"},null,null,null,null,"Pendapatan"]
[{"$f":"IF(B48=BLK,TEXT,IF(B48=KAS,B48,IF(B48=LB_BERSIH,LBS,IF(B48=PENYU,PNY,IF(AND(B48=OPERA,COUNTIF(B$1:B48,B48)<O.O1),OPR_0&COUNTIF(B$1:B48,B48),IF(AND(B48=OPERA,COUNTIF(B$1:B48,B48)>O.O1),OPR_&COUNTIF(B$1:B48,B48),IF(AND(B48=INVES,COUNTIF(B$1:B48,B48)<O.O1),INV_0&COUNTIF(B$1:B48,B48),IF(AND(B48=INVES,COUNTIF(B$1:B48,B48)>O.O1),INV_&COUNTIF(B$1:B48,B48),IF(AND(B48=PENDA,COUNTIF(B$1:B48,B48)<O.O1),DNA_0&COUNTIF(B$1:B48,B48),IF(AND(B48=PENDA,COUNTIF(B$1:B48,B48)>O.O1),DNA_&COUNTIF(B$1:B48,B48),IF(AND(B48=LB_DTAHAN,COUNTIF(B$1:B48,B48)<O.O1),LBD_0&COUNTIF(B$1:B48,B48),IF(AND(B48=LB_DTAHAN,COUNTIF(B$1:B48,B48)>O.O1),LBD_&COUNTIF(B$1:B48,B48),TEXT))))))))))))","v":"-"},null,null,null,null,"Penjualan Barang (Bersih)",null,17759974138,17204945800,18204945800]
[{"$f":"IF(B49=BLK,TEXT,IF(B49=KAS,B49,IF(B49=LB_BERSIH,LBS,IF(B49=PENYU,PNY,IF(AND(B49=OPERA,COUNTIF(B$1:B49,B49)<O.O1),OPR_0&COUNTIF(B$1:B49,B49),IF(AND(B49=OPERA,COUNTIF(B$1:B49,B49)>O.O1),OPR_&COUNTIF(B$1:B49,B49),IF(AND(B49=INVES,COUNTIF(B$1:B49,B49)<O.O1),INV_0&COUNTIF(B$1:B49,B49),IF(AND(B49=INVES,COUNTIF(B$1:B49,B49)>O.O1),INV_&COUNTIF(B$1:B49,B49),IF(AND(B49=PENDA,COUNTIF(B$1:B49,B49)<O.O1),DNA_0&COUNTIF(B$1:B49,B49),IF(AND(B49=PENDA,COUNTIF(B$1:B49,B49)>O.O1),DNA_&COUNTIF(B$1:B49,B49),IF(AND(B49=LB_DTAHAN,COUNTIF(B$1:B49,B49)<O.O1),LBD_0&COUNTIF(B$1:B49,B49),IF(AND(B49=LB_DTAHAN,COUNTIF(B$1:B49,B49)>O.O1),LBD_&COUNTIF(B$1:B49,B49),TEXT))))))))))))","v":"-"}]
[{"$f":"IF(B50=BLK,TEXT,IF(B50=KAS,B50,IF(B50=LB_BERSIH,LBS,IF(B50=PENYU,PNY,IF(AND(B50=OPERA,COUNTIF(B$1:B50,B50)<O.O1),OPR_0&COUNTIF(B$1:B50,B50),IF(AND(B50=OPERA,COUNTIF(B$1:B50,B50)>O.O1),OPR_&COUNTIF(B$1:B50,B50),IF(AND(B50=INVES,COUNTIF(B$1:B50,B50)<O.O1),INV_0&COUNTIF(B$1:B50,B50),IF(AND(B50=INVES,COUNTIF(B$1:B50,B50)>O.O1),INV_&COUNTIF(B$1:B50,B50),IF(AND(B50=PENDA,COUNTIF(B$1:B50,B50)<O.O1),DNA_0&COUNTIF(B$1:B50,B50),IF(AND(B50=PENDA,COUNTIF(B$1:B50,B50)>O.O1),DNA_&COUNTIF(B$1:B50,B50),IF(AND(B50=LB_DTAHAN,COUNTIF(B$1:B50,B50)<O.O1),LBD_0&COUNTIF(B$1:B50,B50),IF(AND(B50=LB_DTAHAN,COUNTIF(B$1:B50,B50)>O.O1),LBD_&COUNTIF(B$1:B50,B50),TEXT))))))))))))","v":"-"},null,null,null,null,"Harga Pokok Pendapatan"]
[{"$f":"IF(B51=BLK,TEXT,IF(B51=KAS,B51,IF(B51=LB_BERSIH,LBS,IF(B51=PENYU,PNY,IF(AND(B51=OPERA,COUNTIF(B$1:B51,B51)<O.O1),OPR_0&COUNTIF(B$1:B51,B51),IF(AND(B51=OPERA,COUNTIF(B$1:B51,B51)>O.O1),OPR_&COUNTIF(B$1:B51,B51),IF(AND(B51=INVES,COUNTIF(B$1:B51,B51)<O.O1),INV_0&COUNTIF(B$1:B51,B51),IF(AND(B51=INVES,COUNTIF(B$1:B51,B51)>O.O1),INV_&COUNTIF(B$1:B51,B51),IF(AND(B51=PENDA,COUNTIF(B$1:B51,B51)<O.O1),DNA_0&COUNTIF(B$1:B51,B51),IF(AND(B51=PENDA,COUNTIF(B$1:B51,B51)>O.O1),DNA_&COUNTIF(B$1:B51,B51),IF(AND(B51=LB_DTAHAN,COUNTIF(B$1:B51,B51)<O.O1),LBD_0&COUNTIF(B$1:B51,B51),IF(AND(B51=LB_DTAHAN,COUNTIF(B$1:B51,B51)>O.O1),LBD_&COUNTIF(B$1:B51,B51),TEXT))))))))))))","v":"-"},null,null,null,null,"Harga Pokok Penjualan Barang",null,-13905046012.1709,-13316487256,-13816487256]
[{"$f":"IF(B52=BLK,TEXT,IF(B52=KAS,B52,IF(B52=LB_BERSIH,LBS,IF(B52=PENYU,PNY,IF(AND(B52=OPERA,COUNTIF(B$1:B52,B52)<O.O1),OPR_0&COUNTIF(B$1:B52,B52),IF(AND(B52=OPERA,COUNTIF(B$1:B52,B52)>O.O1),OPR_&COUNTIF(B$1:B52,B52),IF(AND(B52=INVES,COUNTIF(B$1:B52,B52)<O.O1),INV_0&COUNTIF(B$1:B52,B52),IF(AND(B52=INVES,COUNTIF(B$1:B52,B52)>O.O1),INV_&COUNTIF(B$1:B52,B52),IF(AND(B52=PENDA,COUNTIF(B$1:B52,B52)<O.O1),DNA_0&COUNTIF(B$1:B52,B52),IF(AND(B52=PENDA,COUNTIF(B$1:B52,B52)>O.O1),DNA_&COUNTIF(B$1:B52,B52),IF(AND(B52=LB_DTAHAN,COUNTIF(B$1:B52,B52)<O.O1),LBD_0&COUNTIF(B$1:B52,B52),IF(AND(B52=LB_DTAHAN,COUNTIF(B$1:B52,B52)>O.O1),LBD_&COUNTIF(B$1:B52,B52),TEXT))))))))))))","v":"-"}]
[{"$f":"IF(B53=BLK,TEXT,IF(B53=KAS,B53,IF(B53=LB_BERSIH,LBS,IF(B53=PENYU,PNY,IF(AND(B53=OPERA,COUNTIF(B$1:B53,B53)<O.O1),OPR_0&COUNTIF(B$1:B53,B53),IF(AND(B53=OPERA,COUNTIF(B$1:B53,B53)>O.O1),OPR_&COUNTIF(B$1:B53,B53),IF(AND(B53=INVES,COUNTIF(B$1:B53,B53)<O.O1),INV_0&COUNTIF(B$1:B53,B53),IF(AND(B53=INVES,COUNTIF(B$1:B53,B53)>O.O1),INV_&COUNTIF(B$1:B53,B53),IF(AND(B53=PENDA,COUNTIF(B$1:B53,B53)<O.O1),DNA_0&COUNTIF(B$1:B53,B53),IF(AND(B53=PENDA,COUNTIF(B$1:B53,B53)>O.O1),DNA_&COUNTIF(B$1:B53,B53),IF(AND(B53=LB_DTAHAN,COUNTIF(B$1:B53,B53)<O.O1),LBD_0&COUNTIF(B$1:B53,B53),IF(AND(B53=LB_DTAHAN,COUNTIF(B$1:B53,B53)>O.O1),LBD_&COUNTIF(B$1:B53,B53),TEXT))))))))))))","v":"-"},null,null,null,null,"Laba Kotor",null,{"$f":"+H48+H51","v":3854928125.8290997},{"$f":"+I48+I51","v":3888458544},{"$f":"+J48+J51","v":4388458544}]
[{"$f":"IF(B54=BLK,TEXT,IF(B54=KAS,B54,IF(B54=LB_BERSIH,LBS,IF(B54=PENYU,PNY,IF(AND(B54=OPERA,COUNTIF(B$1:B54,B54)<O.O1),OPR_0&COUNTIF(B$1:B54,B54),IF(AND(B54=OPERA,COUNTIF(B$1:B54,B54)>O.O1),OPR_&COUNTIF(B$1:B54,B54),IF(AND(B54=INVES,COUNTIF(B$1:B54,B54)<O.O1),INV_0&COUNTIF(B$1:B54,B54),IF(AND(B54=INVES,COUNTIF(B$1:B54,B54)>O.O1),INV_&COUNTIF(B$1:B54,B54),IF(AND(B54=PENDA,COUNTIF(B$1:B54,B54)<O.O1),DNA_0&COUNTIF(B$1:B54,B54),IF(AND(B54=PENDA,COUNTIF(B$1:B54,B54)>O.O1),DNA_&COUNTIF(B$1:B54,B54),IF(AND(B54=LB_DTAHAN,COUNTIF(B$1:B54,B54)<O.O1),LBD_0&COUNTIF(B$1:B54,B54),IF(AND(B54=LB_DTAHAN,COUNTIF(B$1:B54,B54)>O.O1),LBD_&COUNTIF(B$1:B54,B54),TEXT))))))))))))","v":"-"}]
[{"$f":"IF(B55=BLK,TEXT,IF(B55=KAS,B55,IF(B55=LB_BERSIH,LBS,IF(B55=PENYU,PNY,IF(AND(B55=OPERA,COUNTIF(B$1:B55,B55)<O.O1),OPR_0&COUNTIF(B$1:B55,B55),IF(AND(B55=OPERA,COUNTIF(B$1:B55,B55)>O.O1),OPR_&COUNTIF(B$1:B55,B55),IF(AND(B55=INVES,COUNTIF(B$1:B55,B55)<O.O1),INV_0&COUNTIF(B$1:B55,B55),IF(AND(B55=INVES,COUNTIF(B$1:B55,B55)>O.O1),INV_&COUNTIF(B$1:B55,B55),IF(AND(B55=PENDA,COUNTIF(B$1:B55,B55)<O.O1),DNA_0&COUNTIF(B$1:B55,B55),IF(AND(B55=PENDA,COUNTIF(B$1:B55,B55)>O.O1),DNA_&COUNTIF(B$1:B55,B55),IF(AND(B55=LB_DTAHAN,COUNTIF(B$1:B55,B55)<O.O1),LBD_0&COUNTIF(B$1:B55,B55),IF(AND(B55=LB_DTAHAN,COUNTIF(B$1:B55,B55)>O.O1),LBD_&COUNTIF(B$1:B55,B55),TEXT))))))))))))","v":"-"},null,null,null,null,"BEBAN USAHA"]
[{"$f":"IF(B56=BLK,TEXT,IF(B56=KAS,B56,IF(B56=LB_BERSIH,LBS,IF(B56=PENYU,PNY,IF(AND(B56=OPERA,COUNTIF(B$1:B56,B56)<O.O1),OPR_0&COUNTIF(B$1:B56,B56),IF(AND(B56=OPERA,COUNTIF(B$1:B56,B56)>O.O1),OPR_&COUNTIF(B$1:B56,B56),IF(AND(B56=INVES,COUNTIF(B$1:B56,B56)<O.O1),INV_0&COUNTIF(B$1:B56,B56),IF(AND(B56=INVES,COUNTIF(B$1:B56,B56)>O.O1),INV_&COUNTIF(B$1:B56,B56),IF(AND(B56=PENDA,COUNTIF(B$1:B56,B56)<O.O1),DNA_0&COUNTIF(B$1:B56,B56),IF(AND(B56=PENDA,COUNTIF(B$1:B56,B56)>O.O1),DNA_&COUNTIF(B$1:B56,B56),IF(AND(B56=LB_DTAHAN,COUNTIF(B$1:B56,B56)<O.O1),LBD_0&COUNTIF(B$1:B56,B56),IF(AND(B56=LB_DTAHAN,COUNTIF(B$1:B56,B56)>O.O1),LBD_&COUNTIF(B$1:B56,B56),TEXT))))))))))))","v":"-"},null,null,null,null,"Beban Pegawai",null,796982205,778259724.20000005,888259724.20000005]
[{"$f":"IF(B57=BLK,TEXT,IF(B57=KAS,B57,IF(B57=LB_BERSIH,LBS,IF(B57=PENYU,PNY,IF(AND(B57=OPERA,COUNTIF(B$1:B57,B57)<O.O1),OPR_0&COUNTIF(B$1:B57,B57),IF(AND(B57=OPERA,COUNTIF(B$1:B57,B57)>O.O1),OPR_&COUNTIF(B$1:B57,B57),IF(AND(B57=INVES,COUNTIF(B$1:B57,B57)<O.O1),INV_0&COUNTIF(B$1:B57,B57),IF(AND(B57=INVES,COUNTIF(B$1:B57,B57)>O.O1),INV_&COUNTIF(B$1:B57,B57),IF(AND(B57=PENDA,COUNTIF(B$1:B57,B57)<O.O1),DNA_0&COUNTIF(B$1:B57,B57),IF(AND(B57=PENDA,COUNTIF(B$1:B57,B57)>O.O1),DNA_&COUNTIF(B$1:B57,B57),IF(AND(B57=LB_DTAHAN,COUNTIF(B$1:B57,B57)<O.O1),LBD_0&COUNTIF(B$1:B57,B57),IF(AND(B57=LB_DTAHAN,COUNTIF(B$1:B57,B57)>O.O1),LBD_&COUNTIF(B$1:B57,B57),TEXT))))))))))))","v":"-"},null,null,null,null,"Beban Administrasi & Umum",null,1349898723,1321815001.8,1371815001.8]
[{"$f":"IF(B58=BLK,TEXT,IF(B58=KAS,B58,IF(B58=LB_BERSIH,LBS,IF(B58=PENYU,PNY,IF(AND(B58=OPERA,COUNTIF(B$1:B58,B58)<O.O1),OPR_0&COUNTIF(B$1:B58,B58),IF(AND(B58=OPERA,COUNTIF(B$1:B58,B58)>O.O1),OPR_&COUNTIF(B$1:B58,B58),IF(AND(B58=INVES,COUNTIF(B$1:B58,B58)<O.O1),INV_0&COUNTIF(B$1:B58,B58),IF(AND(B58=INVES,COUNTIF(B$1:B58,B58)>O.O1),INV_&COUNTIF(B$1:B58,B58),IF(AND(B58=PENDA,COUNTIF(B$1:B58,B58)<O.O1),DNA_0&COUNTIF(B$1:B58,B58),IF(AND(B58=PENDA,COUNTIF(B$1:B58,B58)>O.O1),DNA_&COUNTIF(B$1:B58,B58),IF(AND(B58=LB_DTAHAN,COUNTIF(B$1:B58,B58)<O.O1),LBD_0&COUNTIF(B$1:B58,B58),IF(AND(B58=LB_DTAHAN,COUNTIF(B$1:B58,B58)>O.O1),LBD_&COUNTIF(B$1:B58,B58),TEXT))))))))))))","v":"-"},null,null,null,null,"Beban Penyusutan",null,102950277,102950277,102950277]
[{"$f":"IF(B59=BLK,TEXT,IF(B59=KAS,B59,IF(B59=LB_BERSIH,LBS,IF(B59=PENYU,PNY,IF(AND(B59=OPERA,COUNTIF(B$1:B59,B59)<O.O1),OPR_0&COUNTIF(B$1:B59,B59),IF(AND(B59=OPERA,COUNTIF(B$1:B59,B59)>O.O1),OPR_&COUNTIF(B$1:B59,B59),IF(AND(B59=INVES,COUNTIF(B$1:B59,B59)<O.O1),INV_0&COUNTIF(B$1:B59,B59),IF(AND(B59=INVES,COUNTIF(B$1:B59,B59)>O.O1),INV_&COUNTIF(B$1:B59,B59),IF(AND(B59=PENDA,COUNTIF(B$1:B59,B59)<O.O1),DNA_0&COUNTIF(B$1:B59,B59),IF(AND(B59=PENDA,COUNTIF(B$1:B59,B59)>O.O1),DNA_&COUNTIF(B$1:B59,B59),IF(AND(B59=LB_DTAHAN,COUNTIF(B$1:B59,B59)<O.O1),LBD_0&COUNTIF(B$1:B59,B59),IF(AND(B59=LB_DTAHAN,COUNTIF(B$1:B59,B59)>O.O1),LBD_&COUNTIF(B$1:B59,B59),TEXT))))))))))))","v":"-"}]
[{"$f":"IF(B60=BLK,TEXT,IF(B60=KAS,B60,IF(B60=LB_BERSIH,LBS,IF(B60=PENYU,PNY,IF(AND(B60=OPERA,COUNTIF(B$1:B60,B60)<O.O1),OPR_0&COUNTIF(B$1:B60,B60),IF(AND(B60=OPERA,COUNTIF(B$1:B60,B60)>O.O1),OPR_&COUNTIF(B$1:B60,B60),IF(AND(B60=INVES,COUNTIF(B$1:B60,B60)<O.O1),INV_0&COUNTIF(B$1:B60,B60),IF(AND(B60=INVES,COUNTIF(B$1:B60,B60)>O.O1),INV_&COUNTIF(B$1:B60,B60),IF(AND(B60=PENDA,COUNTIF(B$1:B60,B60)<O.O1),DNA_0&COUNTIF(B$1:B60,B60),IF(AND(B60=PENDA,COUNTIF(B$1:B60,B60)>O.O1),DNA_&COUNTIF(B$1:B60,B60),IF(AND(B60=LB_DTAHAN,COUNTIF(B$1:B60,B60)<O.O1),LBD_0&COUNTIF(B$1:B60,B60),IF(AND(B60=LB_DTAHAN,COUNTIF(B$1:B60,B60)>O.O1),LBD_&COUNTIF(B$1:B60,B60),TEXT))))))))))))","v":"-"},null,null,null,null,"Jumlah Beban Usaha",null,{"$f":"SUM(H56:H59)","v":2249831205},{"$f":"SUM(I56:I59)","v":2203025003},{"$f":"SUM(J56:J59)","v":2363025003}]
[{"$f":"IF(B61=BLK,TEXT,IF(B61=KAS,B61,IF(B61=LB_BERSIH,LBS,IF(B61=PENYU,PNY,IF(AND(B61=OPERA,COUNTIF(B$1:B61,B61)<O.O1),OPR_0&COUNTIF(B$1:B61,B61),IF(AND(B61=OPERA,COUNTIF(B$1:B61,B61)>O.O1),OPR_&COUNTIF(B$1:B61,B61),IF(AND(B61=INVES,COUNTIF(B$1:B61,B61)<O.O1),INV_0&COUNTIF(B$1:B61,B61),IF(AND(B61=INVES,COUNTIF(B$1:B61,B61)>O.O1),INV_&COUNTIF(B$1:B61,B61),IF(AND(B61=PENDA,COUNTIF(B$1:B61,B61)<O.O1),DNA_0&COUNTIF(B$1:B61,B61),IF(AND(B61=PENDA,COUNTIF(B$1:B61,B61)>O.O1),DNA_&COUNTIF(B$1:B61,B61),IF(AND(B61=LB_DTAHAN,COUNTIF(B$1:B61,B61)<O.O1),LBD_0&COUNTIF(B$1:B61,B61),IF(AND(B61=LB_DTAHAN,COUNTIF(B$1:B61,B61)>O.O1),LBD_&COUNTIF(B$1:B61,B61),TEXT))))))))))))","v":"-"},null,null,null,null,"Laba Bersih Usaha",null,{"$f":"H53-H60","v":1605096920.8290997},{"$f":"I53-I60","v":1685433541},{"$f":"J53-J60","v":2025433541}]
[{"$f":"IF(B62=BLK,TEXT,IF(B62=KAS,B62,IF(B62=LB_BERSIH,LBS,IF(B62=PENYU,PNY,IF(AND(B62=OPERA,COUNTIF(B$1:B62,B62)<O.O1),OPR_0&COUNTIF(B$1:B62,B62),IF(AND(B62=OPERA,COUNTIF(B$1:B62,B62)>O.O1),OPR_&COUNTIF(B$1:B62,B62),IF(AND(B62=INVES,COUNTIF(B$1:B62,B62)<O.O1),INV_0&COUNTIF(B$1:B62,B62),IF(AND(B62=INVES,COUNTIF(B$1:B62,B62)>O.O1),INV_&COUNTIF(B$1:B62,B62),IF(AND(B62=PENDA,COUNTIF(B$1:B62,B62)<O.O1),DNA_0&COUNTIF(B$1:B62,B62),IF(AND(B62=PENDA,COUNTIF(B$1:B62,B62)>O.O1),DNA_&COUNTIF(B$1:B62,B62),IF(AND(B62=LB_DTAHAN,COUNTIF(B$1:B62,B62)<O.O1),LBD_0&COUNTIF(B$1:B62,B62),IF(AND(B62=LB_DTAHAN,COUNTIF(B$1:B62,B62)>O.O1),LBD_&COUNTIF(B$1:B62,B62),TEXT))))))))))))","v":"-"}]
[{"$f":"IF(B63=BLK,TEXT,IF(B63=KAS,B63,IF(B63=LB_BERSIH,LBS,IF(B63=PENYU,PNY,IF(AND(B63=OPERA,COUNTIF(B$1:B63,B63)<O.O1),OPR_0&COUNTIF(B$1:B63,B63),IF(AND(B63=OPERA,COUNTIF(B$1:B63,B63)>O.O1),OPR_&COUNTIF(B$1:B63,B63),IF(AND(B63=INVES,COUNTIF(B$1:B63,B63)<O.O1),INV_0&COUNTIF(B$1:B63,B63),IF(AND(B63=INVES,COUNTIF(B$1:B63,B63)>O.O1),INV_&COUNTIF(B$1:B63,B63),IF(AND(B63=PENDA,COUNTIF(B$1:B63,B63)<O.O1),DNA_0&COUNTIF(B$1:B63,B63),IF(AND(B63=PENDA,COUNTIF(B$1:B63,B63)>O.O1),DNA_&COUNTIF(B$1:B63,B63),IF(AND(B63=LB_DTAHAN,COUNTIF(B$1:B63,B63)<O.O1),LBD_0&COUNTIF(B$1:B63,B63),IF(AND(B63=LB_DTAHAN,COUNTIF(B$1:B63,B63)>O.O1),LBD_&COUNTIF(B$1:B63,B63),TEXT))))))))))))","v":"-"},null,null,null,null,"BEBAN (PENDAPATAN) LUAR USAHA"]
[{"$f":"IF(B64=BLK,TEXT,IF(B64=KAS,B64,IF(B64=LB_BERSIH,LBS,IF(B64=PENYU,PNY,IF(AND(B64=OPERA,COUNTIF(B$1:B64,B64)<O.O1),OPR_0&COUNTIF(B$1:B64,B64),IF(AND(B64=OPERA,COUNTIF(B$1:B64,B64)>O.O1),OPR_&COUNTIF(B$1:B64,B64),IF(AND(B64=INVES,COUNTIF(B$1:B64,B64)<O.O1),INV_0&COUNTIF(B$1:B64,B64),IF(AND(B64=INVES,COUNTIF(B$1:B64,B64)>O.O1),INV_&COUNTIF(B$1:B64,B64),IF(AND(B64=PENDA,COUNTIF(B$1:B64,B64)<O.O1),DNA_0&COUNTIF(B$1:B64,B64),IF(AND(B64=PENDA,COUNTIF(B$1:B64,B64)>O.O1),DNA_&COUNTIF(B$1:B64,B64),IF(AND(B64=LB_DTAHAN,COUNTIF(B$1:B64,B64)<O.O1),LBD_0&COUNTIF(B$1:B64,B64),IF(AND(B64=LB_DTAHAN,COUNTIF(B$1:B64,B64)>O.O1),LBD_&COUNTIF(B$1:B64,B64),TEXT))))))))))))","v":"-"},null,null,null,null,"Beban Lain Diluar Usaha",null,113832104,24959327,100959327]
[{"$f":"IF(B65=BLK,TEXT,IF(B65=KAS,B65,IF(B65=LB_BERSIH,LBS,IF(B65=PENYU,PNY,IF(AND(B65=OPERA,COUNTIF(B$1:B65,B65)<O.O1),OPR_0&COUNTIF(B$1:B65,B65),IF(AND(B65=OPERA,COUNTIF(B$1:B65,B65)>O.O1),OPR_&COUNTIF(B$1:B65,B65),IF(AND(B65=INVES,COUNTIF(B$1:B65,B65)<O.O1),INV_0&COUNTIF(B$1:B65,B65),IF(AND(B65=INVES,COUNTIF(B$1:B65,B65)>O.O1),INV_&COUNTIF(B$1:B65,B65),IF(AND(B65=PENDA,COUNTIF(B$1:B65,B65)<O.O1),DNA_0&COUNTIF(B$1:B65,B65),IF(AND(B65=PENDA,COUNTIF(B$1:B65,B65)>O.O1),DNA_&COUNTIF(B$1:B65,B65),IF(AND(B65=LB_DTAHAN,COUNTIF(B$1:B65,B65)<O.O1),LBD_0&COUNTIF(B$1:B65,B65),IF(AND(B65=LB_DTAHAN,COUNTIF(B$1:B65,B65)>O.O1),LBD_&COUNTIF(B$1:B65,B65),TEXT))))))))))))","v":"-"},null,null,null,null,"Pendapatan Lain Diluar Usaha",null,-114712967,-369954759,-261054759]
[{"$f":"IF(B66=BLK,TEXT,IF(B66=KAS,B66,IF(B66=LB_BERSIH,LBS,IF(B66=PENYU,PNY,IF(AND(B66=OPERA,COUNTIF(B$1:B66,B66)<O.O1),OPR_0&COUNTIF(B$1:B66,B66),IF(AND(B66=OPERA,COUNTIF(B$1:B66,B66)>O.O1),OPR_&COUNTIF(B$1:B66,B66),IF(AND(B66=INVES,COUNTIF(B$1:B66,B66)<O.O1),INV_0&COUNTIF(B$1:B66,B66),IF(AND(B66=INVES,COUNTIF(B$1:B66,B66)>O.O1),INV_&COUNTIF(B$1:B66,B66),IF(AND(B66=PENDA,COUNTIF(B$1:B66,B66)<O.O1),DNA_0&COUNTIF(B$1:B66,B66),IF(AND(B66=PENDA,COUNTIF(B$1:B66,B66)>O.O1),DNA_&COUNTIF(B$1:B66,B66),IF(AND(B66=LB_DTAHAN,COUNTIF(B$1:B66,B66)<O.O1),LBD_0&COUNTIF(B$1:B66,B66),IF(AND(B66=LB_DTAHAN,COUNTIF(B$1:B66,B66)>O.O1),LBD_&COUNTIF(B$1:B66,B66),TEXT))))))))))))","v":"-"}]
[{"$f":"IF(B67=BLK,TEXT,IF(B67=KAS,B67,IF(B67=LB_BERSIH,LBS,IF(B67=PENYU,PNY,IF(AND(B67=OPERA,COUNTIF(B$1:B67,B67)<O.O1),OPR_0&COUNTIF(B$1:B67,B67),IF(AND(B67=OPERA,COUNTIF(B$1:B67,B67)>O.O1),OPR_&COUNTIF(B$1:B67,B67),IF(AND(B67=INVES,COUNTIF(B$1:B67,B67)<O.O1),INV_0&COUNTIF(B$1:B67,B67),IF(AND(B67=INVES,COUNTIF(B$1:B67,B67)>O.O1),INV_&COUNTIF(B$1:B67,B67),IF(AND(B67=PENDA,COUNTIF(B$1:B67,B67)<O.O1),DNA_0&COUNTIF(B$1:B67,B67),IF(AND(B67=PENDA,COUNTIF(B$1:B67,B67)>O.O1),DNA_&COUNTIF(B$1:B67,B67),IF(AND(B67=LB_DTAHAN,COUNTIF(B$1:B67,B67)<O.O1),LBD_0&COUNTIF(B$1:B67,B67),IF(AND(B67=LB_DTAHAN,COUNTIF(B$1:B67,B67)>O.O1),LBD_&COUNTIF(B$1:B67,B67),TEXT))))))))))))","v":"-"},null,null,null,null,"Jumlah Beban (Pendapatan) Diluar Usaha",null,{"$f":"SUM(H64:H66)","v":-880863},{"$f":"SUM(I64:I66)","v":-344995432},{"$f":"SUM(J64:J66)","v":-160095432}]
[{"$f":"IF(B68=BLK,TEXT,IF(B68=KAS,B68,IF(B68=LB_BERSIH,LBS,IF(B68=PENYU,PNY,IF(AND(B68=OPERA,COUNTIF(B$1:B68,B68)<O.O1),OPR_0&COUNTIF(B$1:B68,B68),IF(AND(B68=OPERA,COUNTIF(B$1:B68,B68)>O.O1),OPR_&COUNTIF(B$1:B68,B68),IF(AND(B68=INVES,COUNTIF(B$1:B68,B68)<O.O1),INV_0&COUNTIF(B$1:B68,B68),IF(AND(B68=INVES,COUNTIF(B$1:B68,B68)>O.O1),INV_&COUNTIF(B$1:B68,B68),IF(AND(B68=PENDA,COUNTIF(B$1:B68,B68)<O.O1),DNA_0&COUNTIF(B$1:B68,B68),IF(AND(B68=PENDA,COUNTIF(B$1:B68,B68)>O.O1),DNA_&COUNTIF(B$1:B68,B68),IF(AND(B68=LB_DTAHAN,COUNTIF(B$1:B68,B68)<O.O1),LBD_0&COUNTIF(B$1:B68,B68),IF(AND(B68=LB_DTAHAN,COUNTIF(B$1:B68,B68)>O.O1),LBD_&COUNTIF(B$1:B68,B68),TEXT))))))))))))","v":"-"},null,null,null,null,"Laba Bersih Sebelum Pajak",null,{"$f":"H61+H67","v":1604216057.8290997},{"$f":"I61+I67","v":1340438109},{"$f":"J61+J67","v":1865338109}]
[{"$f":"IF(B69=BLK,TEXT,IF(B69=KAS,B69,IF(B69=LB_BERSIH,LBS,IF(B69=PENYU,PNY,IF(AND(B69=OPERA,COUNTIF(B$1:B69,B69)<O.O1),OPR_0&COUNTIF(B$1:B69,B69),IF(AND(B69=OPERA,COUNTIF(B$1:B69,B69)>O.O1),OPR_&COUNTIF(B$1:B69,B69),IF(AND(B69=INVES,COUNTIF(B$1:B69,B69)<O.O1),INV_0&COUNTIF(B$1:B69,B69),IF(AND(B69=INVES,COUNTIF(B$1:B69,B69)>O.O1),INV_&COUNTIF(B$1:B69,B69),IF(AND(B69=PENDA,COUNTIF(B$1:B69,B69)<O.O1),DNA_0&COUNTIF(B$1:B69,B69),IF(AND(B69=PENDA,COUNTIF(B$1:B69,B69)>O.O1),DNA_&COUNTIF(B$1:B69,B69),IF(AND(B69=LB_DTAHAN,COUNTIF(B$1:B69,B69)<O.O1),LBD_0&COUNTIF(B$1:B69,B69),IF(AND(B69=LB_DTAHAN,COUNTIF(B$1:B69,B69)>O.O1),LBD_&COUNTIF(B$1:B69,B69),TEXT))))))))))))","v":"-"}]
[{"$f":"IF(B70=BLK,TEXT,IF(B70=KAS,B70,IF(B70=LB_BERSIH,LBS,IF(B70=PENYU,PNY,IF(AND(B70=OPERA,COUNTIF(B$1:B70,B70)<O.O1),OPR_0&COUNTIF(B$1:B70,B70),IF(AND(B70=OPERA,COUNTIF(B$1:B70,B70)>O.O1),OPR_&COUNTIF(B$1:B70,B70),IF(AND(B70=INVES,COUNTIF(B$1:B70,B70)<O.O1),INV_0&COUNTIF(B$1:B70,B70),IF(AND(B70=INVES,COUNTIF(B$1:B70,B70)>O.O1),INV_&COUNTIF(B$1:B70,B70),IF(AND(B70=PENDA,COUNTIF(B$1:B70,B70)<O.O1),DNA_0&COUNTIF(B$1:B70,B70),IF(AND(B70=PENDA,COUNTIF(B$1:B70,B70)>O.O1),DNA_&COUNTIF(B$1:B70,B70),IF(AND(B70=LB_DTAHAN,COUNTIF(B$1:B70,B70)<O.O1),LBD_0&COUNTIF(B$1:B70,B70),IF(AND(B70=LB_DTAHAN,COUNTIF(B$1:B70,B70)>O.O1),LBD_&COUNTIF(B$1:B70,B70),TEXT))))))))))))","v":"-"},null,null,null,null,"PAJAK BADAN"]
[{"$f":"IF(B71=BLK,TEXT,IF(B71=KAS,B71,IF(B71=LB_BERSIH,LBS,IF(B71=PENYU,PNY,IF(AND(B71=OPERA,COUNTIF(B$1:B71,B71)<O.O1),OPR_0&COUNTIF(B$1:B71,B71),IF(AND(B71=OPERA,COUNTIF(B$1:B71,B71)>O.O1),OPR_&COUNTIF(B$1:B71,B71),IF(AND(B71=INVES,COUNTIF(B$1:B71,B71)<O.O1),INV_0&COUNTIF(B$1:B71,B71),IF(AND(B71=INVES,COUNTIF(B$1:B71,B71)>O.O1),INV_&COUNTIF(B$1:B71,B71),IF(AND(B71=PENDA,COUNTIF(B$1:B71,B71)<O.O1),DNA_0&COUNTIF(B$1:B71,B71),IF(AND(B71=PENDA,COUNTIF(B$1:B71,B71)>O.O1),DNA_&COUNTIF(B$1:B71,B71),IF(AND(B71=LB_DTAHAN,COUNTIF(B$1:B71,B71)<O.O1),LBD_0&COUNTIF(B$1:B71,B71),IF(AND(B71=LB_DTAHAN,COUNTIF(B$1:B71,B71)>O.O1),LBD_&COUNTIF(B$1:B71,B71),TEXT))))))))))))","v":"-"},null,null,null,null,"Pajak Badan PPh 25",null,143237650.49070999,95097554.684399962,150097554.68439999]
[{"$f":"IF(B72=BLK,TEXT,IF(B72=KAS,B72,IF(B72=LB_BERSIH,LBS,IF(B72=PENYU,PNY,IF(AND(B72=OPERA,COUNTIF(B$1:B72,B72)<O.O1),OPR_0&COUNTIF(B$1:B72,B72),IF(AND(B72=OPERA,COUNTIF(B$1:B72,B72)>O.O1),OPR_&COUNTIF(B$1:B72,B72),IF(AND(B72=INVES,COUNTIF(B$1:B72,B72)<O.O1),INV_0&COUNTIF(B$1:B72,B72),IF(AND(B72=INVES,COUNTIF(B$1:B72,B72)>O.O1),INV_&COUNTIF(B$1:B72,B72),IF(AND(B72=PENDA,COUNTIF(B$1:B72,B72)<O.O1),DNA_0&COUNTIF(B$1:B72,B72),IF(AND(B72=PENDA,COUNTIF(B$1:B72,B72)>O.O1),DNA_&COUNTIF(B$1:B72,B72),IF(AND(B72=LB_DTAHAN,COUNTIF(B$1:B72,B72)<O.O1),LBD_0&COUNTIF(B$1:B72,B72),IF(AND(B72=LB_DTAHAN,COUNTIF(B$1:B72,B72)>O.O1),LBD_&COUNTIF(B$1:B72,B72),TEXT))))))))))))","v":"-"}]
[{"$f":"IF(B73=BLK,TEXT,IF(B73=KAS,B73,IF(B73=LB_BERSIH,LBS,IF(B73=PENYU,PNY,IF(AND(B73=OPERA,COUNTIF(B$1:B73,B73)<O.O1),OPR_0&COUNTIF(B$1:B73,B73),IF(AND(B73=OPERA,COUNTIF(B$1:B73,B73)>O.O1),OPR_&COUNTIF(B$1:B73,B73),IF(AND(B73=INVES,COUNTIF(B$1:B73,B73)<O.O1),INV_0&COUNTIF(B$1:B73,B73),IF(AND(B73=INVES,COUNTIF(B$1:B73,B73)>O.O1),INV_&COUNTIF(B$1:B73,B73),IF(AND(B73=PENDA,COUNTIF(B$1:B73,B73)<O.O1),DNA_0&COUNTIF(B$1:B73,B73),IF(AND(B73=PENDA,COUNTIF(B$1:B73,B73)>O.O1),DNA_&COUNTIF(B$1:B73,B73),IF(AND(B73=LB_DTAHAN,COUNTIF(B$1:B73,B73)<O.O1),LBD_0&COUNTIF(B$1:B73,B73),IF(AND(B73=LB_DTAHAN,COUNTIF(B$1:B73,B73)>O.O1),LBD_&COUNTIF(B$1:B73,B73),TEXT))))))))))))","v":"LBS"},"LABA BERSIH",null,null,null,"Laba Bersih Setelah Pajak",null,{"$f":"H68-H71","v":1460978407.3383896},{"$f":"I68-I71","v":1245340554.3155999},1715240554.3155999]

{"sheet":"Arus Kas","index":3,"n_rows":58,"n_cols":28,"rows_kept":58,"cut":false,"hidden":false,"merged":[[4,0,5,1],[57,27,57,28],[57,14,57,15]]}
[]
[]
[null,null,null,null,{"$f":"Perusahaan","v":"PT. EXPRESS GEMBOL"},null,null,null,null,null,null,null,null,null,null,null,null,{"$f":"Perusahaan","v":"PT. EXPRESS GEMBOL"}]
[null,null,null,null,"LAPORAN ARUS KAS (TIDAK LANGSUNG)",null,null,null,null,null,null,null,null,null,null,null,null,"LAPORAN ARUS KAS (TIDAK LANGSUNG)"]
["KODE",null,null,null,{"$f":"Periode_1","v":"Periode 31-Des-2015 s/d 31-Des-2016"},null,null,null,null,null,null,null,null,null,null,null,null,{"$f":"Periode_2","v":"Periode 31-Des-2016 s/d 31-Des-2017"}]
[]
[]
[null,null,null,null,"1.","KENAIKAN / PENURUNAN KAS DARI AKTIVITAS OPERASIONAL",null,null,null,null,null,null,null,null,null,null,null,"1.","KENAIKAN / PENURUNAN KAS DARI AKTIVITAS OPERASIONAL"]
[null,null,null,null,null,null,"Laba (Rugi) Bersih",null,null,null,null,null,null,null,null,null,null,null,null,"Laba (Rugi) Bersih"]
["LBS",null,null,null,null,null,"-",{"$f":"IF(ISNA(VLOOKUP($A10,data,O.3,FALSE)),TEXT,VLOOKUP($A10,data,O.3,FALSE))","v":"Laba Bersih Setelah Pajak"},null,null,null,null,null,null,{"$f":"ERROR+IF(VLOOKUP($A10,data,O.1,FALSE)=LABA_2,SUMIF(data_0,$A10,data_2),IF(VLOOKUP($A10,data,O.1,FALSE)=KAS,SUMIF(data_0,$A10,data_1),IF(VLOOKUP($A10,data,O.1,FALSE)=LABA_1,SUMIF(data_0,$A10,data_2)-SUMIF(data_0,$A10,data_1)-SUMIF(data_0,$B10,data_1),IF(VLOOKUP($A10,data,O.2,FALSE)=AKT,SUMIF(data_0,$A10,data_1)-SUMIF(data_0,$A10,data_2),IF(VLOOKUP($A10,data,O.2,FALSE)=PSV,SUMIF(data_0,$A10,data_2)-SUMIF(data_0,$A10,data_1),ERROR)))))","v":1245340554.3155999},null,null,null,null,"-",{"$f":"IF(ISNA(VLOOKUP($A10,data,O.3,FALSE)),TEXT,VLOOKUP($A10,data,O.3,FALSE))","v":"Laba Bersih Setelah Pajak"},null,null,null,null,null,null,{"$f":"ERROR+IF(VLOOKUP($A10,data,O.1,FALSE)=LABA_2,SUMIF(data_0,$A10,data_3),IF(VLOOKUP($A10,data,O.1,FALSE)=KAS,SUMIF(data_0,$A10,data_2),IF(VLOOKUP($A10,data,O.1,FALSE)=LABA_1,SUMIF(data_0,$A10,data_3)-SUMIF(data_0,$A10,data_2)-SUMIF(data_0,$B10,data_2),IF(VLOOKUP($A10,data,O.2,FALSE)=AKT,SUMIF(data_0,$A10,data_2)-SUMIF(data_0,$A10,data_3),IF(VLOOKUP($A10,data,O.2,FALSE)=PSV,SUMIF(data_0,$A10,data_3)-SUMIF(data_0,$A10,data_2),ERROR)))))","v":1715240554.3155999}]
["PNY",null,null,null,null,null,"-",{"$f":"IF(ISNA(VLOOKUP($A11,data,O.3,FALSE)),TEXT,VLOOKUP($A11,data,O.3,FALSE))","v":"Akumulasi Penyusutan"},null,null,null,null,null,null,{"$f":"ERROR+IF(VLOOKUP($A11,data,O.1,FALSE)=LABA_2,SUMIF(data_0,$A11,data_2),IF(VLOOKUP($A11,data,O.1,FALSE)=KAS,SUMIF(data_0,$A11,data_1),IF(VLOOKUP($A11,data,O.1,FALSE)=LABA_1,SUMIF(data_0,$A11,data_2)-SUMIF(data_0,$A11,data_1)-SUMIF(data_0,$B11,data_1),IF(VLOOKUP($A11,data,O.2,FALSE)=AKT,SUMIF(data_0,$A11,data_1)-SUMIF(data_0,$A11,data_2),IF(VLOOKUP($A11,data,O.2,FALSE)=PSV,SUMIF(data_0,$A11,data_2)-SUMIF(data_0,$A11,data_1),ERROR)))))","v":102950277},null,null,null,null,"-",{"$f":"IF(ISNA(VLOOKUP($A11,data,O.3,FALSE)),TEXT,VLOOKUP($A11,data,O.3,FALSE))","v":"Akumulasi Penyusutan"},null,null,null,null,null,null,{"$f":"ERROR+IF(VLOOKUP($A11,data,O.1,FALSE)=LABA_2,SUMIF(data_0,$A11,data_3),IF(VLOOKUP($A11,data,O.1,FALSE)=KAS,SUMIF(data_0,$A11,data_2),IF(VLOOKUP($A11,data,O.1,FALSE)=LABA_1,SUMIF(data_0,$A11,data_3)-SUMIF(data_0,$A11,data_2)-SUMIF(data_0,$B11,data_2),IF(VLOOKUP($A11,data,O.2,FALSE)=AKT,SUMIF(data_0,$A11,data_2)-SUMIF(data_0,$A11,data_3),IF(VLOOKUP($A11,data,O.2,FALSE)=PSV,SUMIF(data_0,$A11,data_3)-SUMIF(data_0,$A11,data_2),ERROR)))))","v":102950277}]
[null,null,null,null,null,null,null,"Laba Bersih Koreksi Tanpa Penyusutan",null,null,null,null,null,null,{"$f":"SUM(O10:O11)","v":1348290831.3155999},null,null,null,null,null,"Laba Bersih Koreksi Tanpa Penyusutan",null,null,null,null,null,null,{"$f":"SUM(AB10:AB11)","v":1818190831.3155999}]
[null,null,null,null,null,null,"Kenaikan / Penurunan Pos-pos Aset Lancar dan Hutang Lancar",null,null,null,null,null,null,null,null,null,null,null,null,"Kenaikan / Penurunan Pos-pos Aset Lancar dan Hutang Lancar"]
["OPR-01",null,null,null,null,null,"-",{"$f":"IF(ISNA(VLOOKUP($A14,data,O.3,FALSE)),TEXT,VLOOKUP($A14,data,O.3,FALSE))","v":"Piutang Usaha"},null,null,null,null,null,{"$f":"IF(AND(VLOOKUP($A14,data,O.2,FALSE)=AKT,$O14<ERROR),NAIK,IF(AND(VLOOKUP($A14,data,O.2,FALSE)=AKT,$O14>ERROR),TURUN,IF(AND(VLOOKUP($A14,data,O.2,FALSE)=PSV,$O14>ERROR),NAIK,IF(AND(VLOOKUP($A14,data,O.2,FALSE)=PSV,$O14<ERROR),TURUN,TEXT))))","v":"Naik"},{"$f":"ERROR+IF(VLOOKUP($A14,data,O.1,FALSE)=LABA_2,SUMIF(data_0,$A14,data_2),IF(VLOOKUP($A14,data,O.1,FALSE)=KAS,SUMIF(data_0,$A14,data_1),IF(VLOOKUP($A14,data,O.1,FALSE)=LABA_1,SUMIF(data_0,$A14,data_2)-SUMIF(data_0,$A14,data_1)-SUMIF(data_0,$B14,data_1),IF(VLOOKUP($A14,data,O.2,FALSE)=AKT,SUMIF(data_0,$A14,data_1)-SUMIF(data_0,$A14,data_2),IF(VLOOKUP($A14,data,O.2,FALSE)=PSV,SUMIF(data_0,$A14,data_2)-SUMIF(data_0,$A14,data_1),ERROR)))))","v":-70999551},null,null,null,null,"-",{"$f":"IF(ISNA(VLOOKUP($A14,data,O.3,FALSE)),TEXT,VLOOKUP($A14,data,O.3,FALSE))","v":"Piutang Usaha"},null,null,null,null,null,{"$f":"IF(AND(VLOOKUP($A14,data,O.2,FALSE)=AKT,$O14<ERROR),NAIK,IF(AND(VLOOKUP($A14,data,O.2,FALSE)=AKT,$O14>ERROR),TURUN,IF(AND(VLOOKUP($A14,data,O.2,FALSE)=PSV,$O14>ERROR),NAIK,IF(AND(VLOOKUP($A14,data,O.2,FALSE)=PSV,$O14<ERROR),TURUN,TEXT))))","v":"Naik"},{"$f":"ERROR+IF(VLOOKUP($A14,data,O.1,FALSE)=LABA_2,SUMIF(data_0,$A14,data_3),IF(VLOOKUP($A14,data,O.1,FALSE)=KAS,SUMIF(data_0,$A14,data_2),IF(VLOOKUP($A14,data,O.1,FALSE)=LABA_1,SUMIF(data_0,$A14,data_3)-SUMIF(data_0,$A14,data_2)-SUMIF(data_0,$B14,data_2),IF(VLOOKUP($A14,data,O.2,FALSE)=AKT,SUMIF(data_0,$A14,data_2)-SUMIF(data_0,$A14,data_3),IF(VLOOKUP($A14,data,O.2,FALSE)=PSV,SUMIF(data_0,$A14,data_3)-SUMIF(data_0,$A14,data_2),ERROR)))))","v":-199000000}]
["OPR-02",null,null,null,null,null,"-","Piutang Lain-lain",null,null,null,null,null,"Turun",40625650,null,null,null,null,"-","Piutang Lain-lain",null,null,null,null,null,"Turun",-50000000]
["OPR-03",null,null,null,null,null,"-","Persediaan",null,null,null,null,null,"Turun",140535040,null,null,null,null,"-","Persediaan",null,null,null,null,null,"Turun",-400000000]
["OPR-04",null,null,null,null,null,"-","Uang Muka Biaya",null,null,null,null,null,"Naik",-140646595.47091675,null,null,null,null,"-","Uang Muka Biaya",null,null,null,null,null,"Naik",0]
["OPR-05",null,null,null,null,null,"-","Uang Muka Pajak",null,null,null,null,null,"Turun",92131176,null,null,null,null,"-","Uang Muka Pajak",null,null,null,null,null,"Turun",0]
["OPR-06",null,null,null,null,null,"-","Beban Ditangguhkan",null,null,null,null,null,"Turun",14835760.700000048,null,null,null,null,"-","Beban Ditangguhkan",null,null,null,null,null,"Turun",0]
["OPR-07",null,null,null,null,null,"-","Utang Usaha",null,null,null,null,null,"Naik",117189503,null,null,null,null,"-","Utang Usaha",null,null,null,null,null,"Naik",-75700000]
["OPR-08",null,null,null,null,null,"-","Utang Pajak",null,null,null,null,null,"Naik",11100089,null,null,null,null,"-","Utang Pajak",null,null,null,null,null,"Naik",-1077992.1595993042]
["OPR-09",null,null,null,null,null,"-","Utang Jangka Pendek Lainnya",null,null,null,null,null,"Turun",-222140634,null,null,null,null,"-","Utang Jangka Pendek Lainnya",null,null,null,null,null,"Turun",-2950277]
[null,null,null,null,null,null,null,{"$f":"IF($O23>ERROR,\"Jumlah (Kenaikan)\",IF($O23<ERROR,\"Jumlah (Penurunan)\",\".......................\"))&\" Kas dari Aktivitas Operasi\"","v":"Jumlah (Kenaikan) Kas dari Aktivitas Operasi"},null,null,null,null,null,null,{"$f":"SUM(O12:O22)","v":1330921269.5446832},null,null,null,null,null,{"$f":"IF($O23>ERROR,\"Jumlah (Kenaikan)\",IF($O23<ERROR,\"Jumlah (Penurunan)\",\".......................\"))&\" Kas dari Aktivitas Operasi\"","v":"Jumlah (Kenaikan) Kas dari Aktivitas Operasi"},null,null,null,null,null,null,{"$f":"SUM(AB12:AB22)","v":1089462562.1560006}]
[]
[null,null,null,null,"2.","KENAIKAN / PENURUNAN KAS DARI AKTIVITAS INVESTASI",null,null,null,null,null,null,null,null,null,null,null,"2.","KENAIKAN / PENURUNAN KAS DARI AKTIVITAS INVESTASI"]
["INV-01",null,null,null,null,null,"-",{"$f":"IF(ISNA(VLOOKUP($A26,data,O.3,FALSE)),TEXT,VLOOKUP($A26,data,O.3,FALSE))","v":"Perolehan Aktiva Tetap"},null,null,null,null,null,{"$f":"IF(AND(VLOOKUP($A26,data,O.2,FALSE)=AKT,$O26<ERROR),NAIK,IF(AND(VLOOKUP($A26,data,O.2,FALSE)=AKT,$O26>ERROR),TURUN,IF(AND(VLOOKUP($A26,data,O.2,FALSE)=PSV,$O26>ERROR),NAIK,IF(AND(VLOOKUP($A26,data,O.2,FALSE)=PSV,$O26<ERROR),TURUN,TEXT))))","v":"Naik"},{"$f":"ERROR+IF(VLOOKUP($A26,data,O.1,FALSE)=LABA_2,SUMIF(data_0,$A26,data_2),IF(VLOOKUP($A26,data,O.1,FALSE)=KAS,SUMIF(data_0,$A26,data_1),IF(VLOOKUP($A26,data,O.1,FALSE)=LABA_1,SUMIF(data_0,$A26,data_2)-SUMIF(data_0,$A26,data_1)-SUMIF(data_0,$B26,data_1),IF(VLOOKUP($A26,data,O.2,FALSE)=AKT,SUMIF(data_0,$A26,data_1)-SUMIF(data_0,$A26,data_2),IF(VLOOKUP($A26,data,O.2,FALSE)=PSV,SUMIF(data_0,$A26,data_2)-SUMIF(data_0,$A26,data_1),ERROR)))))","v":-0.3000030517578125},null,null,null,null,"-",{"$f":"IF(ISNA(VLOOKUP($A26,data,O.3,FALSE)),TEXT,VLOOKUP($A26,data,O.3,FALSE))","v":"Perolehan Aktiva Tetap"},null,null,null,null,null,{"$f":"IF(AND(VLOOKUP($A26,data,O.2,FALSE)=AKT,$O26<ERROR),NAIK,IF(AND(VLOOKUP($A26,data,O.2,FALSE)=AKT,$O26>ERROR),TURUN,IF(AND(VLOOKUP($A26,data,O.2,FALSE)=PSV,$O26>ERROR),NAIK,IF(AND(VLOOKUP($A26,data,O.2,FALSE)=PSV,$O26<ERROR),TURUN,TEXT))))","v":"Naik"},{"$f":"ERROR+IF(VLOOKUP($A26,data,O.1,FALSE)=LABA_2,SUMIF(data_0,$A26,data_3),IF(VLOOKUP($A26,data,O.1,FALSE)=KAS,SUMIF(data_0,$A26,data_2),IF(VLOOKUP($A26,data,O.1,FALSE)=LABA_1,SUMIF(data_0,$A26,data_3)-SUMIF(data_0,$A26,data_2)-SUMIF(data_0,$B26,data_2),IF(VLOOKUP($A26,data,O.2,FALSE)=AKT,SUMIF(data_0,$A26,data_2)-SUMIF(data_0,$A26,data_3),IF(VLOOKUP($A26,data,O.2,FALSE)=PSV,SUMIF(data_0,$A26,data_3)-SUMIF(data_0,$A26,data_2),ERROR)))))","v":0}]
["INV-02",null,null,null,null,null,"-",{"$f":"IF(ISNA(VLOOKUP($A27,data,O.3,FALSE)),TEXT,VLOOKUP($A27,data,O.3,FALSE))","v":"Bangunan Dalam Proses"},null,null,null,null,null,{"$f":"IF(AND(VLOOKUP($A27,data,O.2,FALSE)=AKT,$O27<ERROR),NAIK,IF(AND(VLOOKUP($A27,data,O.2,FALSE)=AKT,$O27>ERROR),TURUN,IF(AND(VLOOKUP($A27,data,O.2,FALSE)=PSV,$O27>ERROR),NAIK,IF(AND(VLOOKUP($A27,data,O.2,FALSE)=PSV,$O27<ERROR),TURUN,TEXT))))","v":"Naik"},{"$f":"ERROR+IF(VLOOKUP($A27,data,O.1,FALSE)=LABA_2,SUMIF(data_0,$A27,data_2),IF(VLOOKUP($A27,data,O.1,FALSE)=KAS,SUMIF(data_0,$A27,data_1),IF(VLOOKUP($A27,data,O.1,FALSE)=LABA_1,SUMIF(data_0,$A27,data_2)-SUMIF(data_0,$A27,data_1)-SUMIF(data_0,$B27,data_1),IF(VLOOKUP($A27,data,O.2,FALSE)=AKT,SUMIF(data_0,$A27,data_1)-SUMIF(data_0,$A27,data_2),IF(VLOOKUP($A27,data,O.2,FALSE)=PSV,SUMIF(data_0,$A27,data_2)-SUMIF(data_0,$A27,data_1),ERROR)))))","v":-510000000},null,null,null,null,"-",{"$f":"IF(ISNA(VLOOKUP($A27,data,O.3,FALSE)),TEXT,VLOOKUP($A27,data,O.3,FALSE))","v":"Bangunan Dalam Proses"},null,null,null,null,null,{"$f":"IF(AND(VLOOKUP($A27,data,O.2,FALSE)=AKT,$O27<ERROR),NAIK,IF(AND(VLOOKUP($A27,data,O.2,FALSE)=AKT,$O27>ERROR),TURUN,IF(AND(VLOOKUP($A27,data,O.2,FALSE)=PSV,$O27>ERROR),NAIK,IF(AND(VLOOKUP($A27,data,O.2,FALSE)=PSV,$O27<ERROR),TURUN,TEXT))))","v":"Naik"},{"$f":"ERROR+IF(VLOOKUP($A27,data,O.1,FALSE)=LABA_2,SUMIF(data_0,$A27,data_3),IF(VLOOKUP($A27,data,O.1,FALSE)=KAS,SUMIF(data_0,$A27,data_2),IF(VLOOKUP($A27,data,O.1,FALSE)=LABA_1,SUMIF(data_0,$A27,data_3)-SUMIF(data_0,$A27,data_2)-SUMIF(data_0,$B27,data_2),IF(VLOOKUP($A27,data,O.2,FALSE)=AKT,SUMIF(data_0,$A27,data_2)-SUMIF(data_0,$A27,data_3),IF(VLOOKUP($A27,data,O.2,FALSE)=PSV,SUMIF(data_0,$A27,data_3)-SUMIF(data_0,$A27,data_2),ERROR)))))","v":-100000000}]
[null,null,null,null,null,null,null,{"$f":"IF($O28>ERROR,\"Jumlah (Kenaikan)\",IF($O28<ERROR,\"Jumlah (Penurunan)\",\".......................\"))&\" Kas dari Aktivitas Investasi\"","v":"Jumlah (Penurunan) Kas dari Aktivitas Investasi"},null,null,null,null,null,null,{"$f":"SUM(O26:O27)","v":-510000000.30000305},null,null,null,null,null,{"$f":"IF($O28>ERROR,\"Jumlah (Kenaikan)\",IF($O28<ERROR,\"Jumlah (Penurunan)\",\".......................\"))&\" Kas dari Aktivitas Investasi\"","v":"Jumlah (Penurunan) Kas dari Aktivitas Investasi"},null,null,null,null,null,null,{"$f":"SUM(AB26:AB27)","v":-100000000}]
[]
[null,null,null,null,"3.","KENAIKAN / PENURUNAN KAS DARI AKTIVITAS PENDANAAN",null,null,null,null,null,null,null,null,null,null,null,"3.","KENAIKAN / PENURUNAN KAS DARI AKTIVITAS PENDANAAN"]
["DNA-01",null,null,null,null,null,"-",{"$f":"IF(ISNA(VLOOKUP($A31,data,O.3,FALSE)),TEXT,VLOOKUP($A31,data,O.3,FALSE))","v":"Utang Bank"},null,null,null,null,null,{"$f":"IF(AND(VLOOKUP($A31,data,O.2,FALSE)=AKT,$O31<ERROR),NAIK,IF(AND(VLOOKUP($A31,data,O.2,FALSE)=AKT,$O31>ERROR),TURUN,IF(AND(VLOOKUP($A31,data,O.2,FALSE)=PSV,$O31>ERROR),NAIK,IF(AND(VLOOKUP($A31,data,O.2,FALSE)=PSV,$O31<ERROR),TURUN,TEXT))))","v":"Turun"},{"$f":"ERROR+IF(VLOOKUP($A31,data,O.1,FALSE)=LABA_2,SUMIF(data_0,$A31,data_2),IF(VLOOKUP($A31,data,O.1,FALSE)=KAS,SUMIF(data_0,$A31,data_1),IF(VLOOKUP($A31,data,O.1,FALSE)=LABA_1,SUMIF(data_0,$A31,data_2)-SUMIF(data_0,$A31,data_1)-SUMIF(data_0,$B31,data_1),IF(VLOOKUP($A31,data,O.2,FALSE)=AKT,SUMIF(data_0,$A31,data_1)-SUMIF(data_0,$A31,data_2),IF(VLOOKUP($A31,data,O.2,FALSE)=PSV,SUMIF(data_0,$A31,data_2)-SUMIF(data_0,$A31,data_1),ERROR)))))","v":-777489611.66868973},null,null,null,null,"-",{"$f":"IF(ISNA(VLOOKUP($A31,data,O.3,FALSE)),TEXT,VLOOKUP($A31,data,O.3,FALSE))","v":"Utang Bank"},null,null,null,null,null,{"$f":"IF(AND(VLOOKUP($A31,data,O.2,FALSE)=AKT,$O31<ERROR),NAIK,IF(AND(VLOOKUP($A31,data,O.2,FALSE)=AKT,$O31>ERROR),TURUN,IF(AND(VLOOKUP($A31,data,O.2,FALSE)=PSV,$O31>ERROR),NAIK,IF(AND(VLOOKUP($A31,data,O.2,FALSE)=PSV,$O31<ERROR),TURUN,TEXT))))","v":"Turun"},{"$f":"ERROR+IF(VLOOKUP($A31,data,O.1,FALSE)=LABA_2,SUMIF(data_0,$A31,data_3),IF(VLOOKUP($A31,data,O.1,FALSE)=KAS,SUMIF(data_0,$A31,data_2),IF(VLOOKUP($A31,data,O.1,FALSE)=LABA_1,SUMIF(data_0,$A31,data_3)-SUMIF(data_0,$A31,data_2)-SUMIF(data_0,$B31,data_2),IF(VLOOKUP($A31,data,O.2,FALSE)=AKT,SUMIF(data_0,$A31,data_2)-SUMIF(data_0,$A31,data_3),IF(VLOOKUP($A31,data,O.2,FALSE)=PSV,SUMIF(data_0,$A31,data_3)-SUMIF(data_0,$A31,data_2),ERROR)))))","v":-589462562.15599799}]
["DNA-02",null,null,null,null,null,"-",{"$f":"IF(ISNA(VLOOKUP($A32,data,O.3,FALSE)),TEXT,VLOOKUP($A32,data,O.3,FALSE))","v":"Utang Komisaris"},null,null,null,null,null,{"$f":"IF(AND(VLOOKUP($A32,data,O.2,FALSE)=AKT,$O32<ERROR),NAIK,IF(AND(VLOOKUP($A32,data,O.2,FALSE)=AKT,$O32>ERROR),TURUN,IF(AND(VLOOKUP($A32,data,O.2,FALSE)=PSV,$O32>ERROR),NAIK,IF(AND(VLOOKUP($A32,data,O.2,FALSE)=PSV,$O32<ERROR),TURUN,TEXT))))","v":"Naik"},{"$f":"ERROR+IF(VLOOKUP($A32,data,O.1,FALSE)=LABA_2,SUMIF(data_0,$A32,data_2),IF(VLOOKUP($A32,data,O.1,FALSE)=KAS,SUMIF(data_0,$A32,data_1),IF(VLOOKUP($A32,data,O.1,FALSE)=LABA_1,SUMIF(data_0,$A32,data_2)-SUMIF(data_0,$A32,data_1)-SUMIF(data_0,$B32,data_1),IF(VLOOKUP($A32,data,O.2,FALSE)=AKT,SUMIF(data_0,$A32,data_1)-SUMIF(data_0,$A32,data_2),IF(VLOOKUP($A32,data,O.2,FALSE)=PSV,SUMIF(data_0,$A32,data_2)-SUMIF(data_0,$A32,data_1),ERROR)))))","v":142071908.42401004},null,null,null,null,"-",{"$f":"IF(ISNA(VLOOKUP($A32,data,O.3,FALSE)),TEXT,VLOOKUP($A32,data,O.3,FALSE))","v":"Utang Komisaris"},null,null,null,null,null,{"$f":"IF(AND(VLOOKUP($A32,data,O.2,FALSE)=AKT,$O32<ERROR),NAIK,IF(AND(VLOOKUP($A32,data,O.2,FALSE)=AKT,$O32>ERROR),TURUN,IF(AND(VLOOKUP($A32,data,O.2,FALSE)=PSV,$O32>ERROR),NAIK,IF(AND(VLOOKUP($A32,data,O.2,FALSE)=PSV,$O32<ERROR),TURUN,TEXT))))","v":"Naik"},{"$f":"ERROR+IF(VLOOKUP($A32,data,O.1,FALSE)=LABA_2,SUMIF(data_0,$A32,data_3),IF(VLOOKUP($A32,data,O.1,FALSE)=KAS,SUMIF(data_0,$A32,data_2),IF(VLOOKUP($A32,data,O.1,FALSE)=LABA_1,SUMIF(data_0,$A32,data_3)-SUMIF(data_0,$A32,data_2)-SUMIF(data_0,$B32,data_2),IF(VLOOKUP($A32,data,O.2,FALSE)=AKT,SUMIF(data_0,$A32,data_2)-SUMIF(data_0,$A32,data_3),IF(VLOOKUP($A32,data,O.2,FALSE)=PSV,SUMIF(data_0,$A32,data_3)-SUMIF(data_0,$A32,data_2),ERROR)))))","v":0}]
["DNA-03",null,null,null,null,null,"-",{"$f":"IF(ISNA(VLOOKUP($A33,data,O.3,FALSE)),TEXT,VLOOKUP($A33,data,O.3,FALSE))","v":"Utang Jangka Panjang Lainnya"},null,null,null,null,null,{"$f":"IF(AND(VLOOKUP($A33,data,O.2,FALSE)=AKT,$O33<ERROR),NAIK,IF(AND(VLOOKUP($A33,data,O.2,FALSE)=AKT,$O33>ERROR),TURUN,IF(AND(VLOOKUP($A33,data,O.2,FALSE)=PSV,$O33>ERROR),NAIK,IF(AND(VLOOKUP($A33,data,O.2,FALSE)=PSV,$O33<ERROR),TURUN,TEXT))))","v":"Naik"},{"$f":"ERROR+IF(VLOOKUP($A33,data,O.1,FALSE)=LABA_2,SUMIF(data_0,$A33,data_2),IF(VLOOKUP($A33,data,O.1,FALSE)=KAS,SUMIF(data_0,$A33,data_1),IF(VLOOKUP($A33,data,O.1,FALSE)=LABA_1,SUMIF(data_0,$A33,data_2)-SUMIF(data_0,$A33,data_1)-SUMIF(data_0,$B33,data_1),IF(VLOOKUP($A33,data,O.2,FALSE)=AKT,SUMIF(data_0,$A33,data_1)-SUMIF(data_0,$A33,data_2),IF(VLOOKUP($A33,data,O.2,FALSE)=PSV,SUMIF(data_0,$A33,data_2)-SUMIF(data_0,$A33,data_1),ERROR)))))","v":118538300},null,null,null,null,"-",{"$f":"IF(ISNA(VLOOKUP($A33,data,O.3,FALSE)),TEXT,VLOOKUP($A33,data,O.3,FALSE))","v":"Utang Jangka Panjang Lainnya"},null,null,null,null,null,{"$f":"IF(AND(VLOOKUP($A33,data,O.2,FALSE)=AKT,$O33<ERROR),NAIK,IF(AND(VLOOKUP($A33,data,O.2,FALSE)=AKT,$O33>ERROR),TURUN,IF(AND(VLOOKUP($A33,data,O.2,FALSE)=PSV,$O33>ERROR),NAIK,IF(AND(VLOOKUP($A33,data,O.2,FALSE)=PSV,$O33<ERROR),TURUN,TEXT))))","v":"Naik"},{"$f":"ERROR+IF(VLOOKUP($A33,data,O.1,FALSE)=LABA_2,SUMIF(data_0,$A33,data_3),IF(VLOOKUP($A33,data,O.1,FALSE)=KAS,SUMIF(data_0,$A33,data_2),IF(VLOOKUP($A33,data,O.1,FALSE)=LABA_1,SUMIF(data_0,$A33,data_3)-SUMIF(data_0,$A33,data_2)-SUMIF(data_0,$B33,data_2),IF(VLOOKUP($A33,data,O.2,FALSE)=AKT,SUMIF(data_0,$A33,data_2)-SUMIF(data_0,$A33,data_3),IF(VLOOKUP($A33,data,O.2,FALSE)=PSV,SUMIF(data_0,$A33,data_3)-SUMIF(data_0,$A33,data_2),ERROR)))))","v":0}]
["DNA-04",null,null,null,null,null,"-",{"$f":"IF(ISNA(VLOOKUP($A34,data,O.3,FALSE)),TEXT,VLOOKUP($A34,data,O.3,FALSE))","v":"Modal Saham"},null,null,null,null,null,{"$f":"IF(AND(VLOOKUP($A34,data,O.2,FALSE)=AKT,$O34<ERROR),NAIK,IF(AND(VLOOKUP($A34,data,O.2,FALSE)=AKT,$O34>ERROR),TURUN,IF(AND(VLOOKUP($A34,data,O.2,FALSE)=PSV,$O34>ERROR),NAIK,IF(AND(VLOOKUP($A34,data,O.2,FALSE)=PSV,$O34<ERROR),TURUN,TEXT))))","v":"-"},{"$f":"ERROR+IF(VLOOKUP($A34,data,O.1,FALSE)=LABA_2,SUMIF(data_0,$A34,data_2),IF(VLOOKUP($A34,data,O.1,FALSE)=KAS,SUMIF(data_0,$A34,data_1),IF(VLOOKUP($A34,data,O.1,FALSE)=LABA_1,SUMIF(data_0,$A34,data_2)-SUMIF(data_0,$A34,data_1)-SUMIF(data_0,$B34,data_1),IF(VLOOKUP($A34,data,O.2,FALSE)=AKT,SUMIF(data_0,$A34,data_1)-SUMIF(data_0,$A34,data_2),IF(VLOOKUP($A34,data,O.2,FALSE)=PSV,SUMIF(data_0,$A34,data_2)-SUMIF(data_0,$A34,data_1),ERROR)))))","v":0},null,null,null,null,"-",{"$f":"IF(ISNA(VLOOKUP($A34,data,O.3,FALSE)),TEXT,VLOOKUP($A34,data,O.3,FALSE))","v":"Modal Saham"},null,null,null,null,null,{"$f":"IF(AND(VLOOKUP($A34,data,O.2,FALSE)=AKT,$O34<ERROR),NAIK,IF(AND(VLOOKUP($A34,data,O.2,FALSE)=AKT,$O34>ERROR),TURUN,IF(AND(VLOOKUP($A34,data,O.2,FALSE)=PSV,$O34>ERROR),NAIK,IF(AND(VLOOKUP($A34,data,O.2,FALSE)=PSV,$O34<ERROR),TURUN,TEXT))))","v":"-"},{"$f":"ERROR+IF(VLOOKUP($A34,data,O.1,FALSE)=LABA_2,SUMIF(data_0,$A34,data_3),IF(VLOOKUP($A34,data,O.1,FALSE)=KAS,SUMIF(data_0,$A34,data_2),IF(VLOOKUP($A34,data,O.1,FALSE)=LABA_1,SUMIF(data_0,$A34,data_3)-SUMIF(data_0,$A34,data_2)-SUMIF(data_0,$B34,data_2),IF(VLOOKUP($A34,data,O.2,FALSE)=AKT,SUMIF(data_0,$A34,data_2)-SUMIF(data_0,$A34,data_3),IF(VLOOKUP($A34,data,O.2,FALSE)=PSV,SUMIF(data_0,$A34,data_3)-SUMIF(data_0,$A34,data_2),ERROR)))))","v":0}]
["LBD-01","LBD-02",null,null,null,null,"-",{"$f":"IF(ISNA(VLOOKUP($A35,data,O.3,FALSE)),TEXT,VLOOKUP($A35,data,O.3,FALSE))","v":"Laba Ditahan"},null,null,null,null,null,{"$f":"IF(AND(VLOOKUP($A35,data,O.2,FALSE)=AKT,$O35<ERROR),NAIK,IF(AND(VLOOKUP($A35,data,O.2,FALSE)=AKT,$O35>ERROR),TURUN,IF(AND(VLOOKUP($A35,data,O.2,FALSE)=PSV,$O35>ERROR),NAIK,IF(AND(VLOOKUP($A35,data,O.2,FALSE)=PSV,$O35<ERROR),TURUN,TEXT))))","v":"Turun"},{"$f":"ERROR+IF(VLOOKUP($A35,data,O.1,FALSE)=LABA_2,SUMIF(data_0,$A35,data_2),IF(VLOOKUP($A35,data,O.1,FALSE)=KAS,SUMIF(data_0,$A35,data_1),IF(VLOOKUP($A35,data,O.1,FALSE)=LABA_1,SUMIF(data_0,$A35,data_2)-SUMIF(data_0,$A35,data_1)-SUMIF(data_0,$B35,data_1),IF(VLOOKUP($A35,data,O.2,FALSE)=AKT,SUMIF(data_0,$A35,data_1)-SUMIF(data_0,$A35,data_2),IF(VLOOKUP($A35,data,O.2,FALSE)=PSV,SUMIF(data_0,$A35,data_2)-SUMIF(data_0,$A35,data_1),ERROR)))))","v":-2.384185791015625E-7},null,null,null,null,"-",{"$f":"IF(ISNA(VLOOKUP($A35,data,O.3,FALSE)),TEXT,VLOOKUP($A35,data,O.3,FALSE))","v":"Laba Ditahan"},null,null,null,null,null,{"$f":"IF(AND(VLOOKUP($A35,data,O.2,FALSE)=AKT,$O35<ERROR),NAIK,IF(AND(VLOOKUP($A35,data,O.2,FALSE)=AKT,$O35>ERROR),TURUN,IF(AND(VLOOKUP($A35,data,O.2,FALSE)=PSV,$O35>ERROR),NAIK,IF(AND(VLOOKUP($A35,data,O.2,FALSE)=PSV,$O35<ERROR),TURUN,TEXT))))","v":"Turun"},{"$f":"ERROR+IF(VLOOKUP($A35,data,O.1,FALSE)=LABA_2,SUMIF(data_0,$A35,data_3),IF(VLOOKUP($A35,data,O.1,FALSE)=KAS,SUMIF(data_0,$A35,data_2),IF(VLOOKUP($A35,data,O.1,FALSE)=LABA_1,SUMIF(data_0,$A35,data_3)-SUMIF(data_0,$A35,data_2)-SUMIF(data_0,$B35,data_2),IF(VLOOKUP($A35,data,O.2,FALSE)=AKT,SUMIF(data_0,$A35,data_2)-SUMIF(data_0,$A35,data_3),IF(VLOOKUP($A35,data,O.2,FALSE)=PSV,SUMIF(data_0,$A35,data_3)-SUMIF(data_0,$A35,data_2),ERROR)))))","v":0}]
[null,null,null,null,null,null,null,{"$f":"IF($O36>ERROR,\"Jumlah (Kenaikan)\",IF($O36<ERROR,\"Jumlah (Penurunan)\",\".......................\"))&\" Kas dari Aktivitas Pendanaan\"","v":"Jumlah (Penurunan) Kas dari Aktivitas Pendanaan"},null,null,null,null,null,null,{"$f":"SUM(O31:O35)","v":-516879403.24467993},null,null,null,null,null,{"$f":"IF($O36>ERROR,\"Jumlah (Kenaikan)\",IF($O36<ERROR,\"Jumlah (Penurunan)\",\".......................\"))&\" Kas dari Aktivitas Pendanaan\"","v":"Jumlah (Penurunan) Kas dari Aktivitas Pendanaan"},null,null,null,null,null,null,{"$f":"SUM(AB31:AB35)","v":-589462562.15599799}]
[]
[null,null,null,null,null,null,null,{"$f":"\"TOTAL \"&(IF($O38<ERROR,\"(PENURUNAN) ARUS KAS\",IF($O38>ERROR,\"(KENAIKAN) ARUS KAS\",\".......................\")))","v":"TOTAL (KENAIKAN) ARUS KAS"},null,null,null,null,null,null,{"$f":"O23+O28+O36","v":304041866.00000024},null,null,null,null,null,{"$f":"\"TOTAL \"&(IF($O38<ERROR,\"(PENURUNAN) ARUS KAS\",IF($O38>ERROR,\"(KENAIKAN) ARUS KAS\",\".......................\")))","v":"TOTAL (KENAIKAN) ARUS KAS"},null,null,null,null,null,null,{"$f":"AB23+AB28+AB36","v":400000000.00000262}]
[]
["KAS",null,null,null,null,null,null,{"$f":"IF(ISNA(VLOOKUP($A40,data,O.3,FALSE)),TEXT,UPPER(VLOOKUP($A40,data,O.3,FALSE)&\" AWAL\"))","v":"KAS & SETARA KAS AWAL"},null,null,null,null,null,null,{"$f":"ERROR+IF(VLOOKUP($A40,data,O.1,FALSE)=LABA_2,SUMIF(data_0,$A40,data_2),IF(VLOOKUP($A40,data,O.1,FALSE)=KAS,SUMIF(data_0,$A40,data_1),IF(VLOOKUP($A40,data,O.1,FALSE)=LABA_1,SUMIF(data_0,$A40,data_2)-SUMIF(data_0,$A40,data_1)-SUMIF(data_0,$B40,data_1),IF(VLOOKUP($A40,data,O.2,FALSE)=AKT,SUMIF(data_0,$A40,data_1)-SUMIF(data_0,$A40,data_2),IF(VLOOKUP($A40,data,O.2,FALSE)=PSV,SUMIF(data_0,$A40,data_2)-SUMIF(data_0,$A40,data_1),ERROR)))))","v":540521097},null,null,null,null,null,{"$f":"IF(ISNA(VLOOKUP($A40,data,O.3,FALSE)),TEXT,UPPER(VLOOKUP($A40,data,O.3,FALSE)&\" AWAL\"))","v":"KAS & SETARA KAS AWAL"},null,null,null,null,null,null,{"$f":"ERROR+IF(VLOOKUP($A40,data,O.1,FALSE)=LABA_2,SUMIF(data_0,$A40,data_3),IF(VLOOKUP($A40,data,O.1,FALSE)=KAS,SUMIF(data_0,$A40,data_2),IF(VLOOKUP($A40,data,O.1,FALSE)=LABA_1,SUMIF(data_0,$A40,data_3)-SUMIF(data_0,$A40,data_2)-SUMIF(data_0,$B40,data_2),IF(VLOOKUP($A40,data,O.2,FALSE)=AKT,SUMIF(data_0,$A40,data_2)-SUMIF(data_0,$A40,data_3),IF(VLOOKUP($A40,data,O.2,FALSE)=PSV,SUMIF(data_0,$A40,data_3)-SUMIF(data_0,$A40,data_2),ERROR)))))","v":844562963}]
[]
["KAS",null,null,null,null,null,null,{"$f":"IF(ISNA(VLOOKUP($A42,data,O.3,FALSE)),TEXT,UPPER(VLOOKUP($A42,data,O.3,FALSE)&\" AKHIR\"))","v":"KAS & SETARA KAS AKHIR"},null,null,null,null,null,null,{"$f":"O38+O40","v":844562963.00000024},null,null,null,null,null,{"$f":"IF(ISNA(VLOOKUP($A42,data,O.3,FALSE)),TEXT,UPPER(VLOOKUP($A42,data,O.3,FALSE)&\" AKHIR\"))","v":"KAS & SETARA KAS AKHIR"},null,null,null,null,null,null,{"$f":"AB38+AB40","v":1244562963.0000026}]
[]
[]
[null,null,null,null,null,"KESIMPULAN KENAIKAN / PENURUNAN KAS ",null,null,null,null,null,null,null,null,null,null,null,null,"KESIMPULAN KENAIKAN / PENURUNAN KAS "]
[]
["KAS",null,null,null,null,null,null,{"$f":"IF(ISNA(VLOOKUP($A47,data,O.3,FALSE)),TEXT,UPPER(VLOOKUP($A47,data,O.3,FALSE)&\" AWAL\"))","v":"KAS & SETARA KAS AWAL"},null,null,null,null,null,null,{"$f":"O40","v":540521097},null,null,null,null,null,{"$f":"IF(ISNA(VLOOKUP($A47,data,O.3,FALSE)),TEXT,UPPER(VLOOKUP($A47,data,O.3,FALSE)&\" AWAL\"))","v":"KAS & SETARA KAS AWAL"},null,null,null,null,null,null,{"$f":"AB40","v":844562963}]
[]
[null,null,null,null,null,null,null,"PENAMBAHAN / PENGURANGAN KAS",null,null,null,null,null,null,null,null,null,null,null,null,"PENAMBAHAN / PENGURANGAN KAS"]
[null,null,null,null,null,null,null,1,{"$f":"IF($O50>ERROR,\"KAS (BERTAMBAH) DARI AKTIVITAS OPERASI\",IF($O50<ERROR,\"KAS (BERKURANG) DARI AKTIVITAS OPERASI\",\".......................\"))","v":"KAS (BERTAMBAH) DARI AKTIVITAS OPERASI"},null,null,null,null,null,{"$f":"O23","v":1330921269.5446832},null,null,null,null,null,1,{"$f":"IF($O50>ERROR,\"KAS (BERTAMBAH) DARI AKTIVITAS OPERASI\",IF($O50<ERROR,\"KAS (BERKURANG) DARI AKTIVITAS OPERASI\",\".......................\"))","v":"KAS (BERTAMBAH) DARI AKTIVITAS OPERASI"},null,null,null,null,null,{"$f":"AB23","v":1089462562.1560006}]
[null,null,null,null,null,null,null,2,{"$f":"IF($O51>ERROR,\"KAS (BERTAMBAH) DARI AKTIVITAS INVESTASI\",IF($O51<ERROR,\"KAS (BERKURANG) DARI AKTIVITAS INVESTASI\",\".......................\"))","v":"KAS (BERKURANG) DARI AKTIVITAS INVESTASI"},null,null,null,null,null,{"$f":"O28","v":-510000000.30000305},null,null,null,null,null,2,{"$f":"IF($O51>ERROR,\"KAS (BERTAMBAH) DARI AKTIVITAS INVESTASI\",IF($O51<ERROR,\"KAS (BERKURANG) DARI AKTIVITAS INVESTASI\",\".......................\"))","v":"KAS (BERKURANG) DARI AKTIVITAS INVESTASI"},null,null,null,null,null,{"$f":"AB28","v":-100000000}]
[null,null,null,null,null,null,null,3,{"$f":"IF($O52>ERROR,\"KAS (BERTAMBAH) DARI AKTIVITAS PENDANAAN\",IF($O52<ERROR,\"KAS (BERKURANG) DARI AKTIVITAS PENDANAAN\",\".......................\"))","v":"KAS (BERKURANG) DARI AKTIVITAS PENDANAAN"},null,null,null,null,null,{"$f":"O36","v":-516879403.24467993},null,null,null,null,null,3,{"$f":"IF($O52>ERROR,\"KAS (BERTAMBAH) DARI AKTIVITAS PENDANAAN\",IF($O52<ERROR,\"KAS (BERKURANG) DARI AKTIVITAS PENDANAAN\",\".......................\"))","v":"KAS (BERKURANG) DARI AKTIVITAS PENDANAAN"},null,null,null,null,null,{"$f":"AB36","v":-589462562.15599799}]
[null,null,null,null,null,null,null,null,{"$f":"IF($O53>ERROR,\"JUMLAH KENAIKAN\",IF($O53<ERROR,\"JUMLAH PENURUNAN\",\".......................\"))&\" KAS DARI AKTIVITAS\"","v":"JUMLAH KENAIKAN KAS DARI AKTIVITAS"},null,null,null,null,null,{"$f":"SUM(O50:O52)","v":304041866.00000024},null,null,null,null,null,null,{"$f":"IF($O53>ERROR,\"JUMLAH KENAIKAN\",IF($O53<ERROR,\"JUMLAH PENURUNAN\",\".......................\"))&\" KAS DARI AKTIVITAS\"","v":"JUMLAH KENAIKAN KAS DARI AKTIVITAS"},null,null,null,null,null,{"$f":"SUM(AB50:AB52)","v":400000000.00000262}]
[]
["KAS",null,null,null,null,null,null,{"$f":"IF(ISNA(VLOOKUP($A55,data,O.3,FALSE)),TEXT,UPPER(VLOOKUP($A55,data,O.3,FALSE)&\" AKHIR\"))","v":"KAS & SETARA KAS AKHIR"},null,null,null,null,null,null,{"$f":"O47+O53","v":844562963.00000024},null,null,null,null,null,{"$f":"IF(ISNA(VLOOKUP($A55,data,O.3,FALSE)),TEXT,UPPER(VLOOKUP($A55,data,O.3,FALSE)&\" AKHIR\"))","v":"KAS & SETARA KAS AKHIR"},null,null,null,null,null,null,{"$f":"AB47+AB53","v":1244562963.0000026}]
[]
[]
[null,null,null,null,null,null,null,null,null,null,null,null,null,"Balance  ",{"$f":"O55-Data!I7","v":0},null,null,null,null,null,null,null,null,null,null,null,"Balance  ",{"$f":"AB55-Data!J7","v":2.6226043701171875E-6}]

{"sheet":"HD","index":4,"n_rows":6000,"n_cols":650,"rows_kept":6000,"cut":false,"hidden":true,"merged":[]}
[]
[null,"info"]
[]
[]
[]
[]
[]
[]
[]
[]
[]
[]
[]
[]
[]
[]
[]
[]
[]
[]
[]
[]
[]
[]
[]
[]
[]
[]
[]
[]
[]
[]
[]
[]
[]
[]
[]
[]
[]
[]
[]
[]
[]
[]
[]
[]
[]
[]
[]
[]
[]
[]
[]
[]
[]
[]
[]
[]
[]
[]
[]
[]
[]
[]
[]
[]
[]
[]
[]
[]
[]
[]
[]
[]
[]
[]
[]
[]
[]
[]
[]
[]
[]
[]
[]
[]
[]
[]
[]
[]
[]
[]
[]
[]
[]
[]
[]
[]
[]
[]
[]
[]
[]
[]
[]
[]
[]
[]
[]
[]
[]
[]
[]
[]
[]
[]
[]
[]
[]
[]
[]
[]
[]
[]
[]
[]
[]
[]
[]
[]
[]
[]
[]
[]
[]
[]
[]
[]
[]
[]
[]
[]
[]
[]
[]
[]
[]
[]
[]
[]
[]
[]
[]
[]
[]
[]
[]
[]
[]
[]
[]
[]
[]
[]
[]
[]
[]
[]
[]
[]
[]
[]
[]
[]
[]
[]
[]
[]
[]
[]
[]
[]
[]
[]
[]
[]
[]
[]
[]
[]
[]
[]
[]
[]
[]
[]
[]
[]
[]
[]
[]
[]
[]
[]
[]
[]
[]
[]
[]
[]
[]
[]
[]
[]
[]
[]
[]
[]
[]
[]
[]
[]
[]
[]
[]
[]
[]
[]
[]
[]
[]
[]
[]
[]
[]
[]
[]
[]
[]
[]
[]
[]
[]
[]
[]
[]
[]
[]
[]
[]
[]
[]
[]
[]
[]
[]
[]
[]
[]
[]
[]
[]
[]
[]
[]
[]
[]
[]
[]
[]
[]
[]
[]
[]
[]
[]
[]
[]
[]
[]
[]
[]
[]
[]
[]
[]
[]
[]
[]
[]
[]
[]
[]
[]
[]
[]
[]
[]
[]
[]
[]
[]
[]
[]
[]
[]
[]
[]
[]
[]
[]
[]
[]
[]
[]
[]
[]
[]
[]
[]
[]
[]
[]
[]
[]
[]
[]
[]
[]
[]
[]
[]
[]
[]
[]
[]
[]
[]
[]
[]
[]
[]
[]
[]
[]
[]
[]
[]
[]
[]
[]
[]
[]
[]
[]
[]
[]
[]
[]
[]
[]
[]
[]
[]
[]
[]
[]
[]
[]
[]
[]
[]
[]
[]
[]
[]
[]
[]
[]
[]
[]
[]
[]
[]
[]
[]
[]
[]
[]
[]
[]
[]
[]
[]
[]
[]
[]
[]
[]
[]
[]
[]
[]
[]
[]
[]
[]
[]
[]
[]
[]
[]
[]
[]
[]
[]
[]
[]
[]
[]
[]
[]
[]
[]
[]
[]
[]
[]
[]
[]
[]
[]
[]
[]
[]
[]
[]
[]
[]
[]
[]
[]
[]
[]
[]
[]
[]
[]
[]
[]
[]
[]
[]
[]
[]
[]
[]
[]
[]
[]
[]
[]
[]
[]
[]
[]
[]
[]
[]
[]
[]
[]
[]
[]
[]
[]
[]
[]
[]
[]
[]
[]
[]
[]
[]
[]
[]
[]
[]
[]
[]
[]
[]
[]
[]
[]
[]
[]
[]
[]
[]
[]
[]
[]
[]
[]
[]
[]
[]
[]
[]
[]
[]
[]
[]
[]
[]
[]
[]
[]
[]
[]
[]
[]
[]
[]
[]
[]
[]
[]
[]
[]
[]
[]
[]
[]
[]
[]
[]
[]
[]
[]
[]
[]
[]
[]
[]
[]
[]
[]
[]
[]
[]
[]
[]
[]
[]
[]
[]
[]
[]
[]
[]
[]
[]
[]
[]
[]
[]
[]
[]
[]
[]
[]
[]
[]
[]
[]
[]
[]
[]
[]
[]
[]
[]
[]
[]
[]
[]
[]
[]
[]
[]
[]
[]
[]
[]
[]
[]
[]
[]
[]
[]
[]
[]
[]
[]
[]
[]
[]
[]
[]
[]
[]
[]
[]
[]
[]
[]
[]
[]
[]
[]
[]
[]
[]
[]
[]
[]
[]
[]
[]
[]
[]
[]
[]
[]
[]
[]
[]
[]
[]
[]
[]
[]
[]
[]
[]
[]
[]
[]
[]
[]
[]
[]
[]
[]
[]
[]
[]
[]
[]
[]
[]
[]
[]
[]
[]
[]
[]
[]
[]
[]
[]
[]
[]
[]
[]
[]
[]
[]
[]
[]
[]
[]
[]
[]
[]
[]
[]
[]
[]
[]
[]
[]
[]
[]
[]
[]
[]
[]
[]
[]
[]
[]
[]
[]
[]
[]
[]
[]
[]
[]
[]
[]
[]
[]
[]
[]
[]
[]
[]
[]
[]
[]
[]
[]
[]
[]
[]
[]
[]
[]
[]
[]
[]
[]
[]
[]
[]
[]
[]
[]
[]
[]
[]
[]
[]
[]
[]
[]
[]
[]
[]
[]
[]
[]
[]
[]
[]
[]
[]
[]
[]
[]
[]
[]
[]
[]
[]
[]
[]
[]
[]
[]
[]
[]
[]
[]
[]
[]
[]
[]
[]
[]
[]
[]
[]
[]
[]
[]
[]
[]
[]
[]
[]
[]
[]
[]
[]
[]
[]
[]
[]
[]
[]
[]
[]
[]
[]
[]
[]
[]
[]
[]
[]
[]
[]
[]
[]
[]
[]
[]
[]
[]
[]
[]
[]
[]
[]
[]
[]
[]
[]
[]
[]
[]
[]
[]
[]
[]
[]
[]
[]
[]
[]
[]
[]
[]
[]
[]
[]
[]
[]
[]
[]
[]
[]
[]
[]
[]
[]
[]
[]
[]
[]
[]
[]
[]
[]
[]
[]
[]
[]
[]
[]
[]
[]
[]
[]
[]
[]
[]
[]
[]
[]
[]
[]
[]
[]
[]
[]
[]
[]
[]
[]
[]
[]
[]
[]
[]
[]
[]
[]
[]
[]
[]
[]
[]
[]
[]
[]
[]
[]
[]
[]
[]
[]
[]
[]
[]
[]
[]
[]
[]
[]
[]
[]
[]
[]
[]
[]
[]
[]
[]
[]
[]
[]
[]
[]
[]
[]
[]
[]
[]
[]
[]
[]
[]
[]
[]
[]
[]
[]
[]
[]
[]
[]
[]
[]
[]
[]
[]
[]
[]
[]
[]
[]
[]
[]
[]
[]
[]
[]
[]
[]
[]
[]
[]
[]
[]
[]
[]
[]
[]
[]
[]
[]
[]
[]
[]
[]
[]
[]
[]
[]
[]
[]
[]
[null,{"$f":"LEFT(RIGHT(Info!A12,12),8)","v":"xclmedia"},null,null,null,null,null,null,null,null,null,null,null,null,null,null,null,null,null,null,null,null,null,null,null,null,null,null,null,null,null,null,null,null,null,null,null,null,null,null,null,null,null,null,null,null,null,null,null,null,null,null,null,null,null,null,null,null,null,null,null,null,null,null,null,null,null,null,null,null,null,null,null,null,null,null,null,null,null,null,null,null,null,null,null,null,null,null,null,null,null,null,null,null,null,null,null,null,null,null,null,null,null,null,null,null,null,null,null,null,null,null,null,null,null,null,null,null,null,null,null,null,null,null,null,null,null,null,null,null,null,null,null,null,null,null,null,null,null,null,null,null,null,null,null,null,null,null,null,null,null,null,null,null,null,null,null,null,null,null,null,null,null,null,null,null,null,null,null,null,null,null,null,null,null,null,null,null,null,null,null,null,null,null,null,null,null,null,null,null,null,null,null,null,null,null,null,null,null,null,null,null,null,null,null,null,null,null,null,null,null,null,null,null,null,null,null,null,null,null,null,null,null,null,null,null,null,null,null,null,null,null,null,null,null,null,null,null,null,null,null,null,null,null,null,null,null,null,null,null,null,null,null,null,null,null,null,null,null,null,null,null,null,null,null,null,null,null,null,null,null,null,null,null,null,null,null,null,null,null,null,null,null,null,null,null,null,null,null,null,null,null,null,null,null,null,null,null,null,null,null,null,null,null,null,null,null,null,null,null,null,null,null,null,null,null,null,null,null,null,null,null,null,null,null,null,null,null,null,null,null,null,null,null,null,null,null,null,null,null,null,null,null,null,null,null,null,null,null,null,null,null,null,null,null,null,null,null,null,null,null,null,null,null,null,null,null,null,null,null,null,null,null,null,null,null,null,null,null,null,null,null,null,null,null,null,null,null,null,null,null,null,null,null,null,null,null,null,null,null,null,null,null,null,null,null,null,null,null,null,null,null,null,null,null,null,null,null,null,null,null,null,null,null,null,null,null,null,null,null,null,null,null,null,null,null,null,null,null,null,null,null,null,null,null,null,null,null,null,null,null,null,null,null,null,null,null,null,null,null,null,null,null,null,null,null,null,null,null,null,null,null,null,null,null,null,null,null,null,null,null,null,null,null,null,null,null,null,null,null,null,null,null,null,null,null,null,null,null,null,null,null,null,null,null,null,null,null,null,null,null,null,null,null,null,null,null,null,null,null,null,null,null,null,null,null,null,null,null,null,null,null,null,null,null,null,null,null,null,null,null,null,null,null,null,null,null,null,null,null,null,null,null,null,null,null,null,null,null,null,null,null,null,null,null,null,null,null,null,null,null,null,null,null,null,null,null,null,null,null,null,null,null,null,null,null,null,null,null,null,null,null,null,null,null,null,null,null,null,null,null,null,null,null,null,null,null,null,null,null,null,null,null,null,null,null,null,null,null,null,null,null,null,null,null,null,null,null,null,null,null,null,null,null,null,null,null,null,null,null,null,null,null,null,null,null,null,null,"o@xcl"]
[]
[]
[]
[]
[]
[]
[]
[]
[]
[]
[]
[]
[]
[]
[]
[]
[]
[]
[]
[]
[]
[]
[]
[]
[]
[]
[]
[]
[]
[]
[]
[]
[]
[]
[]
[]
[]
[]
[]
[]
[]
[]
[]
[]
[]
[]
[]
[]
[]
[]
[]
[]
[]
[]
[]
[]
[]
[]
[]
[]
[]
[]
[]
[]
[]
[]
[]
[]
[]
[]
[]
[]
[]
[]
[]
[]
[]
[]
[]
[]
[]
[]
[]
[]
[]
[]
[]
[]
[]
[]
[]
[]
[]
[]
[]
[]
[]
[]
[]
[]
[]
[]
[]
[]
[]
[]
[]
[]
[]
[]
[]
[]
[]
[]
[]
[]
[]
[]
[]
[]
[]
[]
[]
[]
[]
[]
[]
[]
[]
[]
[]
[]
[]
[]
[]
[]
[]
[]
[]
[]
[]
[]
[]
[]
[]
[]
[]
[]
[]
[]
[]
[]
[]
[]
[]
[]
[]
[]
[]
[]
[]
[]
[]
[]
[]
[]
[]
[]
[]
[]
[]
[]
[]
[]
[]
[]
[]
[]
[]
[]
[]
[]
[]
[]
[]
[]
[]
[]
[]
[]
[]
[]
[]
[]
[]
[]
[]
[]
[]
[]
[]
[]
[]
[]
[]
[]
[]
[]
[]
[]
[]
[]
[]
[]
[]
[]
[]
[]
[]
[]
[]
[]
[]
[]
[]
[]
[]
[]
[]
[]
[]
[]
[]
[]
[]
[]
[]
[]
[]
[]
[]
[]
[]
[]
[]
[]
[]
[]
[]
[]
[]
[]
[]
[]
[]
[]
[]
[]
[]
[]
[]
[]
[]
[]
[]
[]
[]
[]
[]
[]
[]
[]
[]
[]
[]
[]
[]
[]
[]
[]
[]
[]
[]
[]
[]
[]
[]
[]
[]
[]
[]
[]
[]
[]
[]
[]
[]
[]
[]
[]
[]
[]
[]
[]
[]
[]
[]
[]
[]
[]
[]
[]
[]
[]
[]
[]
[]
[]
[]
[]
[]
[]
[]
[]
[]
[]
[]
[]
[]
[]
[]
[]
[]
[]
[]
[]
[]
[]
[]
[]
[]
[]
[]
[]
[]
[]
[]
[]
[]
[]
[]
[]
[]
[]
[]
[]
[]
[]
[]
[]
[]
[]
[]
[]
[]
[]
[]
[]
[]
[]
[]
[]
[]
[]
[]
[]
[]
[]
[]
[]
[]
[]
[]
[]
[]
[]
[]
[]
[]
[]
[]
[]
[]
[]
[]
[]
[]
[]
[]
[]
[]
[]
[]
[]
[]
[]
[]
[]
[]
[]
[]
[]
[]
[]
[]
[]
[]
[]
[]
[]
[]
[]
[]
[]
[]
[]
[]
[]
[]
[]
[]
[]
[]
[]
[]
[]
[]
[]
[]
[]
[]
[]
[]
[]
[]
[]
[]
[]
[]
[]
[]
[]
[]
[]
[]
[]
[]
[]
[]
[]
[]
[]
[]
[]
[]
[]
[]
[]
[]
[]
[]
[]
[]
[]
[]
[]
[]
[]
[]
[]
[]
[]
[]
[]
[]
[]
[]
[]
[]
[]
[]
[]
[]
[]
[]
[]
[]
[]
[]
[]
[]
[]
[]
[]
[]
[]
[]
[]
[]
[]
[]
[]
[]
[]
[]
[]
[]
[]
[]
[]
[]
[]
[]
[]
[]
[]
[]
[]
[]
[]
[]
[]
[]
[]
[]
[]
[]
[]
[]
[]
[]
[]
[]
[]
[]
[]
[]
[]
[]
[]
[]
[]
[]
[]
[]
[]
[]
[]
[]
[]
[]
[]
[]
[]
[]
[]
[]
[]
[]
[]
[]
[]
[]
[]
[]
[]
[]
[]
[]
[]
[]
[]
[]
[]
[]
[]
[]
[]
[]
[]
[]
[]
[]
[]
[]
[]
[]
[]
[]
[]
[]
[]
[]
[]
[]
[]
[]
[]
[]
[]
[]
[]
[]
[]
[]
[]
[]
[]
[]
[]
[]
[]
[]
[]
[]
[]
[]
[]
[]
[]
[]
[]
[]
[]
[]
[]
[]
[]
[]
[]
[]
[]
[]
[]
[]
[]
[]
[]
[]
[]
[]
[]
[]
[]
[]
[]
[]
[]
[]
[]
[]
[]
[]
[]
[]
[]
[]
[]
[]
[]
[]
[]
[]
[]
[]
[]
[]
[]
[]
[]
[]
[]
[]
[]
[]
[]
[]
[]
[]
[]
[]
[]
[]
[]
[]
[]
[]
[]
[]
[]
[]
[]
[]
[]
[]
[]
[]
[]
[]
[]
[]
[]
[]
[]
[]
[]
[]
[]
[]
[]
[]
[]
[]
[]
[]
[]
[]
[]
[]
[]
[]
[]
[]
[]
[]
[]
[]
[]
[]
[]
[]
[]
[]
[]
[]
[]
[]
[]
[]
[]
[]
[]
[]
[]
[]
[]
[]
[]
[]
[]
[]
[]
[]
[]
[]
[]
[]
[]
[]
[]
[]
[]
[]
[]
[]
[]
[]
[]
[]
[]
[]
[]
[]
[]
[]
[]
[]
[]
[]
[]
[]
[]
[]
[]
[]
[]
[]
[]
[]
[]
[]
[]
[]
[]
[]
[]
[]
[]
[]
[]
[]
[]
[]
[]
[]
[]
[]
[]
[]
[]
[]
[]
[]
[]
[]
[]
[]
[]
[]
[]
[]
[]
[]
[]
[]
[]
[]
[]
[]
[]
[]
[]
[]
[]
[]
[]
[]
[]
[]
[]
[]
[]
[]
[]
[]
[]
[]
[]
[]
[]
[]
[]
[]
[]
[]
[]
[]
[]
[]
[]
[]
[]
[]
[]
[]
[]
[]
[]
[]
[]
[]
[]
[]
[]
[]
[]
[]
[]
[]
[]
[]
[]
[]
[]
[]
[]
[]
[]
[]
[]
[]
[]
[]
[]
[]
[]
[]
[]
[]
[]
[]
[]
[]
[]
[]
[]
[]
[]
[]
[]
[]
[]
[]
[]
[]
[]
[]
[]
[]
[]
[]
[]
[]
[]
[]
[]
[]
[]
[]
[]
[]
[]
[]
[]
[]
[]
[]
[]
[]
[]
[]
[]
[]
[]
[]
[]
[]
[]
[]
[]
[]
[]
[]
[]
[]
[]
[]
[]
[]
[]
[]
[]
[]
[]
[]
[]
[]
[]
[]
[]
[]
[]
[]
[]
[]
[]
[]
[]
[]
[]
[]
[]
[]
[]
[]
[]
[]
[]
[]
[null,{"$f":"IF(AND(COUNTBLANK(Info!A24:X24)=24,COUNTBLANK(Info!X1:X24)=24,RIGHT(Data!K1,8)=B1000,LEFT(RIGHT(REG,LEN(REG)-3),5)=XY1000,LEFT(Info!D10,4)=B2,REG=XY5000,'Arus Kas'!E3=\"PT. EXPRESS GEMBOL\",'Arus Kas'!R3=\"PT. EXPRESS GEMBOL\"),XY6000,\"#\")","v":0}]
[]
[]
[]
[]
[]
[]
[]
[]
[]
[]
[]
[]
[]
[]
[]
[]
[]
[]
[]
[]
[]
[]
[]
[]
[]
[]
[]
[]
[]
[]
[]
[]
[]
[]
[]
[]
[]
[]
[]
[]
[]
[]
[]
[]
[]
[]
[]
[]
[]
[]
[]
[]
[]
[]
[]
[]
[]
[]
[]
[]
[]
[]
[]
[]
[]
[]
[]
[]
[]
[]
[]
[]
[]
[]
[]
[]
[]
[]
[]
[]
[]
[]
[]
[]
[]
[]
[]
[]
[]
[]
[]
[]
[]
[]
[]
[]
[]
[]
[]
[]
[]
[]
[]
[]
[]
[]
[]
[]
[]
[]
[]
[]
[]
[]
[]
[]
[]
[]
[]
[]
[]
[]
[]
[]
[]
[]
[]
[]
[]
[]
[]
[]
[]
[]
[]
[]
[]
[]
[]
[]
[]
[]
[]
[]
[]
[]
[]
[]
[]
[]
[]
[]
[]
[]
[]
[]
[]
[]
[]
[]
[]
[]
[]
[]
[]
[]
[]
[]
[]
[]
[]
[]
[]
[]
[]
[]
[]
[]
[]
[]
[]
[]
[]
[]
[]
[]
[]
[]
[]
[]
[]
[]
[]
[]
[]
[]
[]
[]
[]
[]
[]
[]
[]
[]
[]
[]
[]
[]
[]
[]
[]
[]
[]
[]
[]
[]
[]
[]
[]
[]
[]
[]
[]
[]
[]
[]
[]
[]
[]
[]
[]
[]
[]
[]
[]
[]
[]
[]
[]
[]
[]
[]
[]
[]
[]
[]
[]
[]
[]
[]
[]
[]
[]
[]
[]
[]
[]
[]
[]
[]
[]
[]
[]
[]
[]
[]
[]
[]
[]
[]
[]
[]
[]
[]
[]
[]
[]
[]
[]
[]
[]
[]
[]
[]
[]
[]
[]
[]
[]
[]
[]
[]
[]
[]
[]
[]
[]
[]
[]
[]
[]
[]
[]
[]
[]
[]
[]
[]
[]
[]
[]
[]
[]
[]
[]
[]
[]
[]
[]
[]
[]
[]
[]
[]
[]
[]
[]
[]
[]
[]
[]
[]
[]
[]
[]
[]
[]
[]
[]
[]
[]
[]
[]
[]
[]
[]
[]
[]
[]
[]
[]
[]
[]
[]
[]
[]
[]
[]
[]
[]
[]
[]
[]
[]
[]
[]
[]
[]
[]
[]
[]
[]
[]
[]
[]
[]
[]
[]
[]
[]
[]
[]
[]
[]
[]
[]
[]
[]
[]
[]
[]
[]
[]
[]
[]
[]
[]
[]
[]
[]
[]
[]
[]
[]
[]
[]
[]
[]
[]
[]
[]
[]
[]
[]
[]
[]
[]
[]
[]
[]
[]
[]
[]
[]
[]
[]
[]
[]
[]
[]
[]
[]
[]
[]
[]
[]
[]
[]
[]
[]
[]
[]
[]
[]
[]
[]
[]
[]
[]
[]
[]
[]
[]
[]
[]
[]
[]
[]
[]
[]
[]
[]
[]
[]
[]
[]
[]
[]
[]
[]
[]
[]
[]
[]
[]
[]
[]
[]
[]
[]
[]
[]
[]
[]
[]
[]
[]
[]
[]
[]
[]
[]
[]
[]
[]
[]
[]
[]
[]
[]
[]
[]
[]
[]
[]
[]
[]
[]
[]
[]
[]
[]
[]
[]
[]
[]
[]
[]
[]
[]
[]
[]
[]
[]
[]
[]
[]
[]
[]
[]
[]
[]
[]
[]
[]
[]
[]
[]
[]
[]
[]
[]
[]
[]
[]
[]
[]
[]
[]
[]
[]
[]
[]
[]
[]
[]
[]
[]
[]
[]
[]
[]
[]
[]
[]
[]
[]
[]
[]
[]
[]
[]
[]
[]
[]
[]
[]
[]
[]
[]
[]
[]
[]
[]
[]
[]
[]
[]
[]
[]
[]
[]
[]
[]
[]
[]
[]
[]
[]
[]
[]
[]
[]
[]
[]
[]
[]
[]
[]
[]
[]
[]
[]
[]
[]
[]
[]
[]
[]
[]
[]
[]
[]
[]
[]
[]
[]
[]
[]
[]
[]
[]
[]
[]
[]
[]
[]
[]
[]
[]
[]
[]
[]
[]
[]
[]
[]
[]
[]
[]
[]
[]
[]
[]
[]
[]
[]
[]
[]
[]
[]
[]
[]
[]
[]
[]
[]
[]
[]
[]
[]
[]
[]
[]
[]
[]
[]
[]
[]
[]
[]
[]
[]
[]
[]
[]
[]
[]
[]
[]
[]
[]
[]
[]
[]
[]
[]
[]
[]
[]
[]
[]
[]
[]
[]
[]
[]
[]
[]
[]
[]
[]
[]
[]
[]
[]
[]
[]
[]
[]
[]
[]
[]
[]
[]
[]
[]
[]
[]
[]
[]
[]
[]
[]
[]
[]
[]
[]
[]
[]
[]
[]
[]
[]
[]
[]
[]
[]
[]
[]
[]
[]
[]
[]
[]
[]
[]
[]
[]
[]
[]
[]
[]
[]
[]
[]
[]
[]
[]
[]
[]
[]
[]
[]
[]
[]
[]
[]
[]
[]
[]
[]
[]
[]
[]
[]
[]
[]
[]
[]
[]
[]
[]
[]
[]
[]
[]
[]
[]
[]
[]
[]
[]
[]
[]
[]
[]
[]
[]
[]
[]
[]
[]
[]
[]
[]
[]
[]
[]
[]
[]
[]
[]
[]
[]
[]
[]
[]
[]
[]
[]
[]
[]
[]
[]
[]
[]
[]
[]
[]
[]
[]
[]
[]
[]
[]
[]
[]
[]
[]
[]
[]
[]
[]
[]
[]
[]
[]
[]
[]
[]
[]
[]
[]
[]
[]
[]
[]
[]
[]
[]
[]
[]
[]
[]
[]
[]
[]
[]
[]
[]
[]
[]
[]
[]
[]
[]
[]
[]
[]
[]
[]
[]
[]
[]
[]
[]
[]
[]
[]
[]
[]
[]
[]
[]
[]
[]
[]
[]
[]
[]
[]
[]
[]
[]
[]
[]
[]
[]
[]
[]
[]
[]
[]
[]
[]
[]
[]
[]
[]
[]
[]
[]
[]
[]
[]
[]
[]
[]
[]
[]
[]
[]
[]
[]
[]
[]
[]
[]
[]
[]
[]
[]
[]
[]
[]
[]
[]
[]
[]
[]
[]
[]
[]
[]
[]
[]
[]
[]
[]
[]
[]
[]
[]
[]
[]
[]
[]
[]
[]
[]
[]
[]
[]
[]
[]
[]
[]
[]
[]
[]
[]
[]
[]
[]
[]
[]
[]
[]
[null,{"$f":"IF(AND(COUNTA(ID!A1:AX500)=0,COUNTA(ID!BC1:CZ500)=0,COUNTA(ID!DB1:EY500)=0,COUNTA(ID!FA1:GX500)=0,COUNTBLANK(ID!GL1000000:XY1000000)=456,COUNTBLANK(ID!XY1:XY456)=456,COUNTBLANK(Data!XY1:XY100),COUNTBLANK('Arus Kas'!XY1:XY100)),XY6000,\"#\")","v":0}]
[]
[]
[]
[]
[]
[]
[]
[]
[]
[]
[]
[]
[]
[]
[]
[]
[]
[]
[]
[]
[]
[]
[]
[]
[]
[]
[]
[]
[]
[]
[]
[]
[]
[]
[]
[]
[]
[]
[]
[]
[]
[]
[]
[]
[]
[]
[]
[]
[]
[]
[]
[]
[]
[]
[]
[]
[]
[]
[]
[]
[]
[]
[]
[]
[]
[]
[]
[]
[]
[]
[]
[]
[]
[]
[]
[]
[]
[]
[]
[]
[]
[]
[]
[]
[]
[]
[]
[]
[]
[]
[]
[]
[]
[]
[]
[]
[]
[]
[]
[]
[]
[]
[]
[]
[]
[]
[]
[]
[]
[]
[]
[]
[]
[]
[]
[]
[]
[]
[]
[]
[]
[]
[]
[]
[]
[]
[]
[]
[]
[]
[]
[]
[]
[]
[]
[]
[]
[]
[]
[]
[]
[]
[]
[]
[]
[]
[]
[]
[]
[]
[]
[]
[]
[]
[]
[]
[]
[]
[]
[]
[]
[]
[]
[]
[]
[]
[]
[]
[]
[]
[]
[]
[]
[]
[]
[]
[]
[]
[]
[]
[]
[]
[]
[]
[]
[]
[]
[]
[]
[]
[]
[]
[]
[]
[]
[]
[]
[]
[]
[]
[]
[]
[]
[]
[]
[]
[]
[]
[]
[]
[]
[]
[]
[]
[]
[]
[]
[]
[]
[]
[]
[]
[]
[]
[]
[]
[]
[]
[]
[]
[]
[]
[]
[]
[]
[]
[]
[]
[]
[]
[]
[]
[]
[]
[]
[]
[]
[]
[]
[]
[]
[]
[]
[]
[]
[]
[]
[]
[]
[]
[]
[]
[]
[]
[]
[]
[]
[]
[]
[]
[]
[]
[]
[]
[]
[]
[]
[]
[]
[]
[]
[]
[]
[]
[]
[]
[]
[]
[]
[]
[]
[]
[]
[]
[]
[]
[]
[]
[]
[]
[]
[]
[]
[]
[]
[]
[]
[]
[]
[]
[]
[]
[]
[]
[]
[]
[]
[]
[]
[]
[]
[]
[]
[]
[]
[]
[]
[]
[]
[]
[]
[]
[]
[]
[]
[]
[]
[]
[]
[]
[]
[]
[]
[]
[]
[]
[]
[]
[]
[]
[]
[]
[]
[]
[]
[]
[]
[]
[]
[]
[]
[]
[]
[]
[]
[]
[]
[]
[]
[]
[]
[]
[]
[]
[]
[]
[]
[]
[]
[]
[]
[]
[]
[]
[]
[]
[]
[]
[]
[]
[]
[]
[]
[]
[]
[]
[]
[]
[]
[]
[]
[]
[]
[]
[]
[]
[]
[]
[]
[]
[]
[]
[]
[]
[]
[]
[]
[]
[]
[]
[]
[]
[]
[]
[]
[]
[]
[]
[]
[]
[]
[]
[]
[]
[]
[]
[]
[]
[]
[]
[]
[]
[]
[]
[]
[]
[]
[]
[]
[]
[]
[]
[]
[]
[]
[]
[]
[]
[]
[]
[]
[]
[]
[]
[]
[]
[]
[]
[]
[]
[]
[]
[]
[]
[]
[]
[]
[]
[]
[]
[]
[]
[]
[]
[]
[]
[]
[]
[]
[]
[]
[]
[]
[]
[]
[]
[]
[]
[]
[]
[]
[]
[]
[]
[]
[]
[]
[]
[]
[]
[]
[]
[]
[]
[]
[]
[]
[]
[]
[]
[]
[]
[]
[]
[]
[]
[]
[]
[]
[]
[]
[]
[]
[]
[]
[]
[]
[]
[]
[]
[]
[]
[]
[]
[]
[]
[]
[]
[]
[]
[]
[]
[]
[]
[]
[]
[]
[]
[]
[]
[]
[]
[]
[]
[]
[]
[]
[]
[]
[]
[]
[]
[]
[]
[]
[]
[]
[]
[]
[]
[]
[]
[]
[]
[]
[]
[]
[]
[]
[]
[]
[]
[]
[]
[]
[]
[]
[]
[]
[]
[]
[]
[]
[]
[]
[]
[]
[]
[]
[]
[]
[]
[]
[]
[]
[]
[]
[]
[]
[]
[]
[]
[]
[]
[]
[]
[]
[]
[]
[]
[]
[]
[]
[]
[]
[]
[]
[]
[]
[]
[]
[]
[]
[]
[]
[]
[]
[]
[]
[]
[]
[]
[]
[]
[]
[]
[]
[]
[]
[]
[]
[]
[]
[]
[]
[]
[]
[]
[]
[]
[]
[]
[]
[]
[]
[]
[]
[]
[]
[]
[]
[]
[]
[]
[]
[]
[]
[]
[]
[]
[]
[]
[]
[]
[]
[]
[]
[]
[]
[]
[]
[]
[]
[]
[]
[]
[]
[]
[]
[]
[]
[]
[]
[]
[]
[]
[]
[]
[]
[]
[]
[]
[]
[]
[]
[]
[]
[]
[]
[]
[]
[]
[]
[]
[]
[]
[]
[]
[]
[]
[]
[]
[]
[]
[]
[]
[]
[]
[]
[]
[]
[]
[]
[]
[]
[]
[]
[]
[]
[]
[]
[]
[]
[]
[]
[]
[]
[]
[]
[]
[]
[]
[]
[]
[]
[]
[]
[]
[]
[]
[]
[]
[]
[]
[]
[]
[]
[]
[]
[]
[]
[]
[]
[]
[]
[]
[]
[]
[]
[]
[]
[]
[]
[]
[]
[]
[]
[]
[]
[]
[]
[]
[]
[]
[]
[]
[]
[]
[]
[]
[]
[]
[]
[]
[]
[]
[]
[]
[]
[]
[]
[]
[]
[]
[]
[]
[]
[]
[]
[]
[]
[]
[]
[]
[]
[]
[]
[]
[]
[]
[]
[]
[]
[]
[]
[]
[]
[]
[]
[]
[]
[]
[]
[]
[]
[]
[]
[]
[]
[]
[]
[]
[]
[]
[]
[]
[]
[]
[]
[]
[]
[]
[]
[]
[]
[]
[]
[]
[]
[]
[]
[]
[]
[]
[]
[]
[]
[]
[]
[]
[]
[]
[]
[]
[]
[]
[]
[]
[]
[]
[]
[]
[]
[]
[]
[]
[]
[]
[]
[]
[]
[]
[]
[]
[]
[]
[]
[]
[]
[]
[]
[]
[]
[]
[]
[]
[]
[]
[]
[]
[]
[]
[]
[]
[]
[]
[]
[]
[]
[]
[]
[]
[]
[]
[]
[]
[]
[]
[]
[]
[]
[]
[]
[]
[]
[]
[]
[]
[]
[]
[]
[]
[]
[]
[]
[]
[]
[]
[]
[]
[]
[]
[]
[]
[]
[]
[]
[]
[]
[]
[]
[]
[]
[]
[]
[]
[]
[]
[]
[null,{"$f":"IF(SUM(B4001:B4006)=65,XY6000,\"#\")","v":0}]
[null,{"$f":"COUNTA(Info!A1:G4)","v":28}]
[null,{"$f":"COUNTA(Info!A5:B11)","v":14}]
[null,{"$f":"COUNTA(Info!F5:G12)","v":14}]
[null,{"$f":"COUNTA(Info!E6:E9)","v":4}]
[null,{"$f":"COUNTA(Info!C9:D9)","v":2}]
[null,{"$f":"COUNTA(Info!C11:E11)","v":3}]
[]
[]
[]
[]
[]
[]
[]
[]
[]
[]
[]
[]
[]
[]
[]
[]
[]
[]
[]
[]
[]
[]
[]
[]
[]
[]
[]
[]
[]
[]
[]
[]
[]
[]
[]
[]
[]
[]
[]
[]
[]
[]
[]
[]
[]
[]
[]
[]
[]
[]
[]
[]
[]
[]
[]
[]
[]
[]
[]
[]
[]
[]
[]
[]
[]
[]
[]
[]
[]
[]
[]
[]
[]
[]
[]
[]
[]
[]
[]
[]
[]
[]
[]
[]
[]
[]
[]
[]
[]
[]
[]
[]
[]
[]
[]
[]
[]
[]
[]
[]
[]
[]
[]
[]
[]
[]
[]
[]
[]
[]
[]
[]
[]
[]
[]
[]
[]
[]
[]
[]
[]
[]
[]
[]
[]
[]
[]
[]
[]
[]
[]
[]
[]
[]
[]
[]
[]
[]
[]
[]
[]
[]
[]
[]
[]
[]
[]
[]
[]
[]
[]
[]
[]
[]
[]
[]
[]
[]
[]
[]
[]
[]
[]
[]
[]
[]
[]
[]
[]
[]
[]
[]
[]
[]
[]
[]
[]
[]
[]
[]
[]
[]
[]
[]
[]
[]
[]
[]
[]
[]
[]
[]
[]
[]
[]
[]
[]
[]
[]
[]
[]
[]
[]
[]
[]
[]
[]
[]
[]
[]
[]
[]
[]
[]
[]
[]
[]
[]
[]
[]
[]
[]
[]
[]
[]
[]
[]
[]
[]
[]
[]
[]
[]
[]
[]
[]
[]
[]
[]
[]
[]
[]
[]
[]
[]
[]
[]
[]
[]
[]
[]
[]
[]
[]
[]
[]
[]
[]
[]
[]
[]
[]
[]
[]
[]
[]
[]
[]
[]
[]
[]
[]
[]
[]
[]
[]
[]
[]
[]
[]
[]
[]
[]
[]
[]
[]
[]
[]
[]
[]
[]
[]
[]
[]
[]
[]
[]
[]
[]
[]
[]
[]
[]
[]
[]
[]
[]
[]
[]
[]
[]
[]
[]
[]
[]
[]
[]
[]
[]
[]
[]
[]
[]
[]
[]
[]
[]
[]
[]
[]
[]
[]
[]
[]
[]
[]
[]
[]
[]
[]
[]
[]
[]
[]
[]
[]
[]
[]
[]
[]
[]
[]
[]
[]
[]
[]
[]
[]
[]
[]
[]
[]
[]
[]
[]
[]
[]
[]
[]
[]
[]
[]
[]
[]
[]
[]
[]
[]
[]
[]
[]
[]
[]
[]
[]
[]
[]
[]
[]
[]
[]
[]
[]
[]
[]
[]
[]
[]
[]
[]
[]
[]
[]
[]
[]
[]
[]
[]
[]
[]
[]
[]
[]
[]
[]
[]
[]
[]
[]
[]
[]
[]
[]
[]
[]
[]
[]
[]
[]
[]
[]
[]
[]
[]
[]
[]
[]
[]
[]
[]
[]
[]
[]
[]
[]
[]
[]
[]
[]
[]
[]
[]
[]
[]
[]
[]
[]
[]
[]
[]
[]
[]
[]
[]
[]
[]
[]
[]
[]
[]
[]
[]
[]
[]
[]
[]
[]
[]
[]
[]
[]
[]
[]
[]
[]
[]
[]
[]
[]
[]
[]
[]
[]
[]
[]
[]
[]
[]
[]
[]
[]
[]
[]
[]
[]
[]
[]
[]
[]
[]
[]
[]
[]
[]
[]
[]
[]
[]
[]
[]
[]
[]
[]
[]
[]
[]
[]
[]
[]
[]
[]
[]
[]
[]
[]
[]
[]
[]
[]
[]
[]
[]
[]
[]
[]
[]
[]
[]
[]
[]
[]
[]
[]
[]
[]
[]
[]
[]
[]
[]
[]
[]
[]
[]
[]
[]
[]
[]
[]
[]
[]
[]
[]
[]
[]
[]
[]
[]
[]
[]
[]
[]
[]
[]
[]
[]
[]
[]
[]
[]
[]
[]
[]
[]
[]
[]
[]
[]
[]
[]
[]
[]
[]
[]
[]
[]
[]
[]
[]
[]
[]
[]
[]
[]
[]
[]
[]
[]
[]
[]
[]
[]
[]
[]
[]
[]
[]
[]
[]
[]
[]
[]
[]
[]
[]
[]
[]
[]
[]
[]
[]
[]
[]
[]
[]
[]
[]
[]
[]
[]
[]
[]
[]
[]
[]
[]
[]
[]
[]
[]
[]
[]
[]
[]
[]
[]
[]
[]
[]
[]
[]
[]
[]
[]
[]
[]
[]
[]
[]
[]
[]
[]
[]
[]
[]
[]
[]
[]
[]
[]
[]
[]
[]
[]
[]
[]
[]
[]
[]
[]
[]
[]
[]
[]
[]
[]
[]
[]
[]
[]
[]
[]
[]
[]
[]
[]
[]
[]
[]
[]
[]
[]
[]
[]
[]
[]
[]
[]
[]
[]
[]
[]
[]
[]
[]
[]
[]
[]
[]
[]
[]
[]
[]
[]
[]
[]
[]
[]
[]
[]
[]
[]
[]
[]
[]
[]
[]
[]
[]
[]
[]
[]
[]
[]
[]
[]
[]
[]
[]
[]
[]
[]
[]
[]
[]
[]
[]
[]
[]
[]
[]
[]
[]
[]
[]
[]
[]
[]
[]
[]
[]
[]
[]
[]
[]
[]
[]
[]
[]
[]
[]
[]
[]
[]
[]
[]
[]
[]
[]
[]
[]
[]
[]
[]
[]
[]
[]
[]
[]
[]
[]
[]
[]
[]
[]
[]
[]
[]
[]
[]
[]
[]
[]
[]
[]
[]
[]
[]
[]
[]
[]
[]
[]
[]
[]
[]
[]
[]
[]
[]
[]
[]
[]
[]
[]
[]
[]
[]
[]
[]
[]
[]
[]
[]
[]
[]
[]
[]
[]
[]
[]
[]
[]
[]
[]
[]
[]
[]
[]
[]
[]
[]
[]
[]
[]
[]
[]
[]
[]
[]
[]
[]
[]
[]
[]
[]
[]
[]
[]
[]
[]
[]
[]
[]
[]
[]
[]
[]
[]
[]
[]
[]
[]
[]
[]
[]
[]
[]
[]
[]
[]
[]
[]
[]
[]
[]
[]
[]
[]
[]
[]
[]
[]
[]
[]
[]
[]
[]
[]
[]
[]
[]
[]
[]
[]
[]
[]
[]
[]
[]
[]
[]
[]
[]
[]
[]
[]
[]
[]
[]
[]
[]
[]
[]
[]
[]
[]
[]
[]
[]
[]
[]
[]
[]
[]
[]
[]
[]
[]
[]
[]
[]
[]
[]
[]
[]
[]
[]
[]
[]
[]
[]
[]
[null,null,null,null,null,null,null,null,null,null,null,null,null,null,null,null,null,null,null,null,null,null,null,null,null,null,null,null,null,null,null,null,null,null,null,null,null,null,null,null,null,null,null,null,null,null,null,null,null,null,null,null,null,null,null,null,null,null,null,null,null,null,null,null,null,null,null,null,null,null,null,null,null,null,null,null,null,null,null,null,null,null,null,null,null,null,null,null,null,null,null,null,null,null,null,null,null,null,null,null,null,null,null,null,null,null,null,null,null,null,null,null,null,null,null,null,null,null,null,null,null,null,null,null,null,null,null,null,null,null,null,null,null,null,null,null,null,null,null,null,null,null,null,null,null,null,null,null,null,null,null,null,null,null,null,null,null,null,null,null,null,null,null,null,null,null,null,null,null,null,null,null,null,null,null,null,null,null,null,null,null,null,null,null,null,null,null,null,null,null,null,null,null,null,null,null,null,null,null,null,null,null,null,null,null,null,null,null,null,null,null,null,null,null,null,null,null,null,null,null,null,null,null,null,null,null,null,null,null,null,null,null,null,null,null,null,null,null,null,null,null,null,null,null,null,null,null,null,null,null,null,null,null,null,null,null,null,null,null,null,null,null,null,null,null,null,null,null,null,null,null,null,null,null,null,null,null,null,null,null,null,null,null,null,null,null,null,null,null,null,null,null,null,null,null,null,null,null,null,null,null,null,null,null,null,null,null,null,null,null,null,null,null,null,null,null,null,null,null,null,null,null,null,null,null,null,null,null,null,null,null,null,null,null,null,null,null,null,null,null,null,null,null,null,null,null,null,null,null,null,null,null,null,null,null,null,null,null,null,null,null,null,null,null,null,null,null,null,null,null,null,null,null,null,null,null,null,null,null,null,null,null,null,null,null,null,null,null,null,null,null,null,null,null,null,null,null,null,null,null,null,null,null,null,null,null,null,null,null,null,null,null,null,null,null,null,null,null,null,null,null,null,null,null,null,null,null,null,null,null,null,null,null,null,null,null,null,null,null,null,null,null,null,null,null,null,null,null,null,null,null,null,null,null,null,null,null,null,null,null,null,null,null,null,null,null,null,null,null,null,null,null,null,null,null,null,null,null,null,null,null,null,null,null,null,null,null,null,null,null,null,null,null,null,null,null,null,null,null,null,null,null,null,null,null,null,null,null,null,null,null,null,null,null,null,null,null,null,null,null,null,null,null,null,null,null,null,null,null,null,null,null,null,null,null,null,null,null,null,null,null,null,null,null,null,null,null,null,null,null,null,null,null,null,null,null,null,null,null,null,null,null,null,null,null,null,null,null,null,null,null,null,null,null,null,null,null,null,null,null,null,null,null,null,null,null,null,null,null,null,null,null,null,null,null,null,null,null,null,null,null,null,null,null,null,null,null,null,null,null,null,null,null,null,null,null,null,null,null,null,null,null,null,null,null,null,null,null,null,null,null,null,null,null,null,null,null,null,null,null,null,null,null,null,null,null,null,null,"info@xclmedia.com"]
[]
[]
[]
[]
[]
[]
[]
[]
[]
[]
[]
[]
[]
[]
[]
[]
[]
[]
[]
[]
[]
[]
[]
[]
[]
[]
[]
[]
[]
[]
[]
[]
[]
[]
[]
[]
[]
[]
[]
[]
[]
[]
[]
[]
[]
[]
[]
[]
[]
[]
[]
[]
[]
[]
[]
[]
[]
[]
[]
[]
[]
[]
[]
[]
[]
[]
[]
[]
[]
[]
[]
[]
[]
[]
[]
[]
[]
[]
[]
[]
[]
[]
[]
[]
[]
[]
[]
[]
[]
[]
[]
[]
[]
[]
[]
[]
[]
[]
[]
[]
[]
[]
[]
[]
[]
[]
[]
[]
[]
[]
[]
[]
[]
[]
[]
[]
[]
[]
[]
[]
[]
[]
[]
[]
[]
[]
[]
[]
[]
[]
[]
[]
[]
[]
[]
[]
[]
[]
[]
[]
[]
[]
[]
[]
[]
[]
[]
[]
[]
[]
[]
[]
[]
[]
[]
[]
[]
[]
[]
[]
[]
[]
[]
[]
[]
[]
[]
[]
[]
[]
[]
[]
[]
[]
[]
[]
[]
[]
[]
[]
[]
[]
[]
[]
[]
[]
[]
[]
[]
[]
[]
[]
[]
[]
[]
[]
[]
[]
[]
[]
[]
[]
[]
[]
[]
[]
[]
[]
[]
[]
[]
[]
[]
[]
[]
[]
[]
[]
[]
[]
[]
[]
[]
[]
[]
[]
[]
[]
[]
[]
[]
[]
[]
[]
[]
[]
[]
[]
[]
[]
[]
[]
[]
[]
[]
[]
[]
[]
[]
[]
[]
[]
[]
[]
[]
[]
[]
[]
[]
[]
[]
[]
[]
[]
[]
[]
[]
[]
[]
[]
[]
[]
[]
[]
[]
[]
[]
[]
[]
[]
[]
[]
[]
[]
[]
[]
[]
[]
[]
[]
[]
[]
[]
[]
[]
[]
[]
[]
[]
[]
[]
[]
[]
[]
[]
[]
[]
[]
[]
[]
[]
[]
[]
[]
[]
[]
[]
[]
[]
[]
[]
[]
[]
[]
[]
[]
[]
[]
[]
[]
[]
[]
[]
[]
[]
[]
[]
[]
[]
[]
[]
[]
[]
[]
[]
[]
[]
[]
[]
[]
[]
[]
[]
[]
[]
[]
[]
[]
[]
[]
[]
[]
[]
[]
[]
[]
[]
[]
[]
[]
[]
[]
[]
[]
[]
[]
[]
[]
[]
[]
[]
[]
[]
[]
[]
[]
[]
[]
[]
[]
[]
[]
[]
[]
[]
[]
[]
[]
[]
[]
[]
[]
[]
[]
[]
[]
[]
[]
[]
[]
[]
[]
[]
[]
[]
[]
[]
[]
[]
[]
[]
[]
[]
[]
[]
[]
[]
[]
[]
[]
[]
[]
[]
[]
[]
[]
[]
[]
[]
[]
[]
[]
[]
[]
[]
[]
[]
[]
[]
[]
[]
[]
[]
[]
[]
[]
[]
[]
[]
[]
[]
[]
[]
[]
[]
[]
[]
[]
[]
[]
[]
[]
[]
[]
[]
[]
[]
[]
[]
[]
[]
[]
[]
[]
[]
[]
[]
[]
[]
[]
[]
[]
[]
[]
[]
[]
[]
[]
[]
[]
[]
[]
[]
[]
[]
[]
[]
[]
[]
[]
[]
[]
[]
[]
[]
[]
[]
[]
[]
[]
[]
[]
[]
[]
[]
[]
[]
[]
[]
[]
[]
[]
[]
[]
[]
[]
[]
[]
[]
[]
[]
[]
[]
[]
[]
[]
[]
[]
[]
[]
[]
[]
[]
[]
[]
[]
[]
[]
[]
[]
[]
[]
[]
[]
[]
[]
[]
[]
[]
[]
[]
[]
[]
[]
[]
[]
[]
[]
[]
[]
[]
[]
[]
[]
[]
[]
[]
[]
[]
[]
[]
[]
[]
[]
[]
[]
[]
[]
[]
[]
[]
[]
[]
[]
[]
[]
[]
[]
[]
[]
[]
[]
[]
[]
[]
[]
[]
[]
[]
[]
[]
[]
[]
[]
[]
[]
[]
[]
[]
[]
[]
[]
[]
[]
[]
[]
[]
[]
[]
[]
[]
[]
[]
[]
[]
[]
[]
[]
[]
[]
[]
[]
[]
[]
[]
[]
[]
[]
[]
[]
[]
[]
[]
[]
[]
[]
[]
[]
[]
[]
[]
[]
[]
[]
[]
[]
[]
[]
[]
[]
[]
[]
[]
[]
[]
[]
[]
[]
[]
[]
[]
[]
[]
[]
[]
[]
[]
[]
[]
[]
[]
[]
[]
[]
[]
[]
[]
[]
[]
[]
[]
[]
[]
[]
[]
[]
[]
[]
[]
[]
[]
[]
[]
[]
[]
[]
[]
[]
[]
[]
[]
[]
[]
[]
[]
[]
[]
[]
[]
[]
[]
[]
[]
[]
[]
[]
[]
[]
[]
[]
[]
[]
[]
[]
[]
[]
[]
[]
[]
[]
[]
[]
[]
[]
[]
[]
[]
[]
[]
[]
[]
[]
[]
[]
[]
[]
[]
[]
[]
[]
[]
[]
[]
[]
[]
[]
[]
[]
[]
[]
[]
[]
[]
[]
[]
[]
[]
[]
[]
[]
[]
[]
[]
[]
[]
[]
[]
[]
[]
[]
[]
[]
[]
[]
[]
[]
[]
[]
[]
[]
[]
[]
[]
[]
[]
[]
[]
[]
[]
[]
[]
[]
[]
[]
[]
[]
[]
[]
[]
[]
[]
[]
[]
[]
[]
[]
[]
[]
[]
[]
[]
[]
[]
[]
[]
[]
[]
[]
[]
[]
[]
[]
[]
[]
[]
[]
[]
[]
[]
[]
[]
[]
[]
[]
[]
[]
[]
[]
[]
[]
[]
[]
[]
[]
[]
[]
[]
[]
[]
[]
[]
[]
[]
[]
[]
[]
[]
[]
[]
[]
[]
[]
[]
[]
[]
[]
[]
[]
[]
[]
[]
[]
[]
[]
[]
[]
[]
[]
[]
[]
[]
[]
[]
[]
[]
[]
[]
[]
[]
[]
[]
[]
[]
[]
[]
[]
[]
[]
[]
[]
[]
[]
[]
[]
[]
[]
[]
[]
[]
[]
[]
[]
[]
[]
[]
[]
[]
[]
[]
[]
[]
[]
[]
[]
[]
[]
[]
[]
[]
[]
[]
[]
[]
[]
[]
[]
[]
[]
[]
[]
[]
[]
[]
[]
[]
[]
[]
[]
[]
[]
[]
[]
[]
[]
[]
[]
[]
[]
[]
[null,null,null,null,null,null,null,null,null,null,null,null,null,null,null,null,null,null,null,null,null,null,null,null,null,null,null,null,null,null,null,null,null,null,null,null,null,null,null,null,null,null,null,null,null,null,null,null,null,null,null,null,null,null,null,null,null,null,null,null,null,null,null,null,null,null,null,null,null,null,null,null,null,null,null,null,null,null,null,null,null,null,null,null,null,null,null,null,null,null,null,null,null,null,null,null,null,null,null,null,null,null,null,null,null,null,null,null,null,null,null,null,null,null,null,null,null,null,null,null,null,null,null,null,null,null,null,null,null,null,null,null,null,null,null,null,null,null,null,null,null,null,null,null,null,null,null,null,null,null,null,null,null,null,null,null,null,null,null,null,null,null,null,null,null,null,null,null,null,null,null,null,null,null,null,null,null,null,null,null,null,null,null,null,null,null,null,null,null,null,null,null,null,null,null,null,null,null,null,null,null,null,null,null,null,null,null,null,null,null,null,null,null,null,null,null,null,null,null,null,null,null,null,null,null,null,null,null,null,null,null,null,null,null,null,null,null,null,null,null,null,null,null,null,null,null,null,null,null,null,null,null,null,null,null,null,null,null,null,null,null,null,null,null,null,null,null,null,null,null,null,null,null,null,null,null,null,null,null,null,null,null,null,null,null,null,null,null,null,null,null,null,null,null,null,null,null,null,null,null,null,null,null,null,null,null,null,null,null,null,null,null,null,null,null,null,null,null,null,null,null,null,null,null,null,null,null,null,null,null,null,null,null,null,null,null,null,null,null,null,null,null,null,null,null,null,null,null,null,null,null,null,null,null,null,null,null,null,null,null,null,null,null,null,null,null,null,null,null,null,null,null,null,null,null,null,null,null,null,null,null,null,null,null,null,null,null,null,null,null,null,null,null,null,null,null,null,null,null,null,null,null,null,null,null,null,null,null,null,null,null,null,null,null,null,null,null,null,null,null,null,null,null,null,null,null,null,null,null,null,null,null,null,null,null,null,null,null,null,null,null,null,null,null,null,null,null,null,null,null,null,null,null,null,null,null,null,null,null,null,null,null,null,null,null,null,null,null,null,null,null,null,null,null,null,null,null,null,null,null,null,null,null,null,null,null,null,null,null,null,null,null,null,null,null,null,null,null,null,null,null,null,null,null,null,null,null,null,null,null,null,null,null,null,null,null,null,null,null,null,null,null,null,null,null,null,null,null,null,null,null,null,null,null,null,null,null,null,null,null,null,null,null,null,null,null,null,null,null,null,null,null,null,null,null,null,null,null,null,null,null,null,null,null,null,null,null,null,null,null,null,null,null,null,null,null,null,null,null,null,null,null,null,null,null,null,null,null,null,null,null,null,null,null,null,null,null,null,null,null,null,null,null,null,null,null,null,null,null,null,null,null,null,null,null,null,null,null,null,null,null,null,null,null,null,null,null,null,null,null,null,null,null,null,null,null,null,null,null,null,null,null,null,null,null,null,null,null,{"$f":"IF(NOW()>LARGE(XZ6000,1),\"#\",0)","v":0},55152]